Workbook

Sheet INTEGRALES
B11: CUOTAS | D11: =+IFERROR(IF(OR(C11="AL CONTADO",C11="4 CUOTAS"),""," -> Afiliaciones al DA no aplican intereses para productos nuevos, cupones aplican intereses de 17.5%.")," ") -> -> Afiliaciones al DA no aplican intereses para productos nuevos, cupones aplican intereses de 17.5%.
B12: INTERESES | D12: -> Para aplicar "sin intereses", consultar las condiciones de campaña vigente.
B13: PLAN
B14: DESCUENTO DE CAMPAÑA | D14: -> Clic aquí para poder ver las condiciones de la campaña actual.
D17: =IF($C$13="","-",IF($C$13="COMPLETO",1,IF(AND(D$20="MINT",$C$13="RESGUARDO"),0.55,IF(OR(D$20="SALUD ESENCIAL",D$20="MULTISALUD BASE", D$20="SALUD ESENCIAL PLUS"),"-",IF(AND(D$20<>"MINT",$C$13="RESGUARDO"),0.25,IF(AND(D$20="MINT",$C$13="MINT DEDUCIBLE 20K"),0.35,IF(AND(D$20<>"MINT",$C$13="MINT DEDUCIBLE 20K"),"-",IF(AND(D$20="MINT",C13="MINT DEDUCIBLE 10K"),0.45,IF(AND(D$20<>"MINT",$C$13="MINT DEDUCIBLE 10K"),"-"))))))))) -> - | E17: =IF($C$13="","-",IF($C$13="COMPLETO",1,IF(AND(E$20="MINT",$C$13="RESGUARDO"),0.55,IF(OR(E$20="SALUD ESENCIAL",E$20="MULTISALUD BASE", E$20="SALUD ESENCIAL PLUS"),"-",IF(AND(E$20<>"MINT",$C$13="RESGUARDO"),0.25,IF(AND(E$20="MINT",$C$13="MINT DEDUCIBLE 20K"),0.35,IF(AND(E$20<>"MINT",$C$13="MINT DEDUCIBLE 20K"),"-",IF(AND(E$20="MINT",D13="MINT DEDUCIBLE 10K"),0.45,IF(AND(E$20<>"MINT",$C$13="MINT DEDUCIBLE 10K"),"-"))))))))) -> - | F17: - | G17: - | H17: - | I17: - | J17: -
D19: TARIFARIO VENTA NUEVA
B20: ASEGURADO | C20: EDAD | D20: MINT | E20: MEDICVIDA NACIONAL | F20: MULTISALUD | G20: RED PREFERENTE | H20: MULTISALUD BASE | I20: SALUD ESENCIAL PLUS | J20: SALUD ESENCIAL
D21: =+IFERROR("Paga el "&(D17)*100&"%"&" de prima.","-") -> - | E21: =+IFERROR("Paga el "&(E17)*100&"%"&" de prima.","-") -> - | F21: - | G21: - | H21: - | I21: - | J21: -
B22: =+IF(INDIRECT("'Datos Integrales'!B2")="","-",INDIRECT("'Datos Integrales'!B2")) -> - | C22: =+IF(INDIRECT("'Datos Integrales'!C2")="","-",VALUE(INDIRECT("'Datos Integrales'!C2"))) -> - | D22: =IFERROR(IF($C22="","",D$17*(IF($C$13="COMPLETO",IF($B22="Hijo(a)",VLOOKUP($C22,'Cambios data'!$AV:$BC,MATCH(D$20,'Cambios data'!$AV$1:$BC$1,0),0),VLOOKUP($C22,'Cambios data'!$AN:$AU,MATCH(D$20,'Cambios data'!$AN$1:$AU$1,0),0))*1.18*1.03/VLOOKUP(CONCATENATE($C$11," ",$C$12),'Cambios data'!$A$40:$B$51,2,0),IF($C$13<>"COMPLETO",IF($B22="Hijo(a)",VLOOKUP($C22,'Cambios data'!$AV:$BC,MATCH(D$20,'Cambios data'!$AV$1:$BC$1,0),0),VLOOKUP($C22,'Cambios data'!$AN:$AU,MATCH(D$20,'Cambios data'!$AN$1:$AU$1,0),0))*1.18*1.03/VLOOKUP(CONCATENATE($C$11," ",$C$12),'Cambios data'!$A$40:$B$51,2,0))))),"-") -> - | E22: =IFERROR(IF($C22="","",E$17*(IF($C$13="COMPLETO",IF($B22="Hijo(a)",VLOOKUP($C22,'Cambios data'!$AV:$BC,MATCH(E$20,'Cambios data'!$AV$1:$BC$1,0),0),VLOOKUP($C22,'Cambios data'!$AN:$AU,MATCH(E$20,'Cambios data'!$AN$1:$AU$1,0),0))*1.18*1.03/VLOOKUP(CONCATENATE($C$11," ",$C$12),'Cambios data'!$A$40:$B$51,2,0),IF($C$13<>"COMPLETO",IF($B22="Hijo(a)",VLOOKUP($C22,'Cambios data'!$AV:$BC,MATCH(E$20,'Cambios data'!$AV$1:$BC$1,0),0),VLOOKUP($C22,'Cambios data'!$AN:$AU,MATCH(E$20,'Cambios data'!$AN$1:$AU$1,0),0))*1.18*1.03/VLOOKUP(CONCATENATE($C$11," ",$C$12),'Cambios data'!$A$40:$B$51,2,0))))),"-") -> - | F22: =IFERROR(IF($C22="","",F$17*(IF($C$13="COMPLETO",IF($B22="Hijo(a)",VLOOKUP($C22,'Cambios data'!$AV:$BC,MATCH(F$20,'Cambios data'!$AV$1:$BC$1,0),0),VLOOKUP($C22,'Cambios data'!$AN:$AU,MATCH(F$20,'Cambios data'!$AN$1:$AU$1,0),0))*1.18*1.03/VLOOKUP(CONCATENATE($C$11," ",$C$12),'Cambios data'!$A$40:$B$51,2,0),IF($C$13<>"COMPLETO",IF($B22="Hijo(a)",VLOOKUP($C22,'Cambios data'!$AV:$BC,MATCH(F$20,'Cambios data'!$AV$1:$BC$1,0),0),VLOOKUP($C22,'Cambios data'!$AN:$AU,MATCH(F$20,'Cambios data'!$AN$1:$AU$1,0),0))*1.18*1.03/VLOOKUP(CONCATENATE($C$11," ",$C$12),'Cambios data'!$A$40:$B$51,2,0))))),"-") -> - | G22: =IFERROR(IF($C22="","",G$17*(IF($C$13="COMPLETO",IF($B22="Hijo(a)",VLOOKUP($C22,'Cambios data'!$AV:$BC,MATCH(G$20,'Cambios data'!$AV$1:$BC$1,0),0),VLOOKUP($C22,'Cambios data'!$AN:$AU,MATCH(G$20,'Cambios data'!$AN$1:$AU$1,0),0))*1.18*1.03/VLOOKUP(CONCATENATE($C$11," ",$C$12),'Cambios data'!$A$40:$B$51,2,0),IF($C$13<>"COMPLETO",IF($B22="Hijo(a)",VLOOKUP($C22,'Cambios data'!$AV:$BC,MATCH(G$20,'Cambios data'!$AV$1:$BC$1,0),0),VLOOKUP($C22,'Cambios data'!$AN:$AU,MATCH(G$20,'Cambios data'!$AN$1:$AU$1,0),0))*1.18*1.03/VLOOKUP(CONCATENATE($C$11," ",$C$12),'Cambios data'!$A$40:$B$51,2,0))))),"-") -> - | H22: =IFERROR(IF($C22="","",H$17*(IF($C$13="COMPLETO",IF($B22="Hijo(a)",VLOOKUP($C22,'Cambios data'!$AV:$BC,MATCH(H$20,'Cambios data'!$AV$1:$BC$1,0),0),VLOOKUP($C22,'Cambios data'!$AN:$AU,MATCH(H$20,'Cambios data'!$AN$1:$AU$1,0),0))*1.18*1.03/VLOOKUP(CONCATENATE($C$11," ",$C$12),'Cambios data'!$A$40:$B$51,2,0),IF($C$13<>"COMPLETO",IF($B22="Hijo(a)",VLOOKUP($C22,'Cambios data'!$AV:$BC,MATCH(H$20,'Cambios data'!$AV$1:$BC$1,0),0),VLOOKUP($C22,'Cambios data'!$AN:$AU,MATCH(H$20,'Cambios data'!$AN$1:$AU$1,0),0))*1.18*1.03/VLOOKUP(CONCATENATE($C$11," ",$C$12),'Cambios data'!$A$40:$B$51,2,0))))),"-") -> - | I22: =IFERROR(IF($C22="","",I$17*(IF($C$13="COMPLETO",IF($B22="Hijo(a)",VLOOKUP($C22,'Cambios data'!$AV:$BC,MATCH(I$20,'Cambios data'!$AV$1:$BC$1,0),0),VLOOKUP($C22,'Cambios data'!$AN:$AU,MATCH(I$20,'Cambios data'!$AN$1:$AU$1,0),0))*1.18*1.03/VLOOKUP(CONCATENATE($C$11," ",$C$12),'Cambios data'!$A$40:$B$51,2,0),IF($C$13<>"COMPLETO",IF($B22="Hijo(a)",VLOOKUP($C22,'Cambios data'!$AV:$BC,MATCH(I$20,'Cambios data'!$AV$1:$BC$1,0),0),VLOOKUP($C22,'Cambios data'!$AN:$AU,MATCH(I$20,'Cambios data'!$AN$1:$AU$1,0),0))*1.18*1.03/VLOOKUP(CONCATENATE($C$11," ",$C$12),'Cambios data'!$A$40:$B$51,2,0))))),"-") -> - | J22: =IFERROR(IF($C22="","",J$17*(IF($C$13="COMPLETO",IF($B22="Hijo(a)",VLOOKUP($C22,'Cambios data'!$AV:$BC,MATCH(J$20,'Cambios data'!$AV$1:$BC$1,0),0),VLOOKUP($C22,'Cambios data'!$AN:$AU,MATCH(J$20,'Cambios data'!$AN$1:$AU$1,0),0))*1.18*1.03/VLOOKUP(CONCATENATE($C$11," ",$C$12),'Cambios data'!$A$40:$B$51,2,0),IF($C$13<>"COMPLETO",IF($B22="Hijo(a)",VLOOKUP($C22,'Cambios data'!$AV:$BC,MATCH(J$20,'Cambios data'!$AV$1:$BC$1,0),0),VLOOKUP($C22,'Cambios data'!$AN:$AU,MATCH(J$20,'Cambios data'!$AN$1:$AU$1,0),0))*1.18*1.03/VLOOKUP(CONCATENATE($C$11," ",$C$12),'Cambios data'!$A$40:$B$51,2,0))))),"-") -> -
B23: =+IF(INDIRECT("'Datos Integrales'!B3")="","-",INDIRECT("'Datos Integrales'!B3")) -> - | C23: =+IF(INDIRECT("'Datos Integrales'!C3")="","-",VALUE(INDIRECT("'Datos Integrales'!C3"))) -> - | D23: =IFERROR(IF($C23="","",D$17*(IF($C$13="COMPLETO",IF($B23="Hijo(a)",VLOOKUP($C23,'Cambios data'!$AV:$BC,MATCH(D$20,'Cambios data'!$AV$1:$BC$1,0),0),VLOOKUP($C23,'Cambios data'!$AN:$AU,MATCH(D$20,'Cambios data'!$AN$1:$AU$1,0),0))*1.18*1.03/VLOOKUP(CONCATENATE($C$11," ",$C$12),'Cambios data'!$A$40:$B$51,2,0),IF($C$13<>"COMPLETO",IF($B23="Hijo(a)",VLOOKUP($C23,'Cambios data'!$AV:$BC,MATCH(D$20,'Cambios data'!$AV$1:$BC$1,0),0),VLOOKUP($C23,'Cambios data'!$AN:$AU,MATCH(D$20,'Cambios data'!$AN$1:$AU$1,0),0))*1.18*1.03/VLOOKUP(CONCATENATE($C$11," ",$C$12),'Cambios data'!$A$40:$B$51,2,0))))),"-") -> - | E23: =IFERROR(IF($C23="","",E$17*(IF($C$13="COMPLETO",IF($B23="Hijo(a)",VLOOKUP($C23,'Cambios data'!$AV:$BC,MATCH(E$20,'Cambios data'!$AV$1:$BC$1,0),0),VLOOKUP($C23,'Cambios data'!$AN:$AU,MATCH(E$20,'Cambios data'!$AN$1:$AU$1,0),0))*1.18*1.03/VLOOKUP(CONCATENATE($C$11," ",$C$12),'Cambios data'!$A$40:$B$51,2,0),IF($C$13<>"COMPLETO",IF($B23="Hijo(a)",VLOOKUP($C23,'Cambios data'!$AV:$BC,MATCH(E$20,'Cambios data'!$AV$1:$BC$1,0),0),VLOOKUP($C23,'Cambios data'!$AN:$AU,MATCH(E$20,'Cambios data'!$AN$1:$AU$1,0),0))*1.18*1.03/VLOOKUP(CONCATENATE($C$11," ",$C$12),'Cambios data'!$A$40:$B$51,2,0))))),"-") -> - | F23: =IFERROR(IF($C23="","",F$17*(IF($C$13="COMPLETO",IF($B23="Hijo(a)",VLOOKUP($C23,'Cambios data'!$AV:$BC,MATCH(F$20,'Cambios data'!$AV$1:$BC$1,0),0),VLOOKUP($C23,'Cambios data'!$AN:$AU,MATCH(F$20,'Cambios data'!$AN$1:$AU$1,0),0))*1.18*1.03/VLOOKUP(CONCATENATE($C$11," ",$C$12),'Cambios data'!$A$40:$B$51,2,0),IF($C$13<>"COMPLETO",IF($B23="Hijo(a)",VLOOKUP($C23,'Cambios data'!$AV:$BC,MATCH(F$20,'Cambios data'!$AV$1:$BC$1,0),0),VLOOKUP($C23,'Cambios data'!$AN:$AU,MATCH(F$20,'Cambios data'!$AN$1:$AU$1,0),0))*1.18*1.03/VLOOKUP(CONCATENATE($C$11," ",$C$12),'Cambios data'!$A$40:$B$51,2,0))))),"-") -> - | G23: =IFERROR(IF($C23="","",G$17*(IF($C$13="COMPLETO",IF($B23="Hijo(a)",VLOOKUP($C23,'Cambios data'!$AV:$BC,MATCH(G$20,'Cambios data'!$AV$1:$BC$1,0),0),VLOOKUP($C23,'Cambios data'!$AN:$AU,MATCH(G$20,'Cambios data'!$AN$1:$AU$1,0),0))*1.18*1.03/VLOOKUP(CONCATENATE($C$11," ",$C$12),'Cambios data'!$A$40:$B$51,2,0),IF($C$13<>"COMPLETO",IF($B23="Hijo(a)",VLOOKUP($C23,'Cambios data'!$AV:$BC,MATCH(G$20,'Cambios data'!$AV$1:$BC$1,0),0),VLOOKUP($C23,'Cambios data'!$AN:$AU,MATCH(G$20,'Cambios data'!$AN$1:$AU$1,0),0))*1.18*1.03/VLOOKUP(CONCATENATE($C$11," ",$C$12),'Cambios data'!$A$40:$B$51,2,0))))),"-") -> - | H23: =IFERROR(IF($C23="","",H$17*(IF($C$13="COMPLETO",IF($B23="Hijo(a)",VLOOKUP($C23,'Cambios data'!$AV:$BC,MATCH(H$20,'Cambios data'!$AV$1:$BC$1,0),0),VLOOKUP($C23,'Cambios data'!$AN:$AU,MATCH(H$20,'Cambios data'!$AN$1:$AU$1,0),0))*1.18*1.03/VLOOKUP(CONCATENATE($C$11," ",$C$12),'Cambios data'!$A$40:$B$51,2,0),IF($C$13<>"COMPLETO",IF($B23="Hijo(a)",VLOOKUP($C23,'Cambios data'!$AV:$BC,MATCH(H$20,'Cambios data'!$AV$1:$BC$1,0),0),VLOOKUP($C23,'Cambios data'!$AN:$AU,MATCH(H$20,'Cambios data'!$AN$1:$AU$1,0),0))*1.18*1.03/VLOOKUP(CONCATENATE($C$11," ",$C$12),'Cambios data'!$A$40:$B$51,2,0))))),"-") -> - | I23: =IFERROR(IF($C23="","",I$17*(IF($C$13="COMPLETO",IF($B23="Hijo(a)",VLOOKUP($C23,'Cambios data'!$AV:$BC,MATCH(I$20,'Cambios data'!$AV$1:$BC$1,0),0),VLOOKUP($C23,'Cambios data'!$AN:$AU,MATCH(I$20,'Cambios data'!$AN$1:$AU$1,0),0))*1.18*1.03/VLOOKUP(CONCATENATE($C$11," ",$C$12),'Cambios data'!$A$40:$B$51,2,0),IF($C$13<>"COMPLETO",IF($B23="Hijo(a)",VLOOKUP($C23,'Cambios data'!$AV:$BC,MATCH(I$20,'Cambios data'!$AV$1:$BC$1,0),0),VLOOKUP($C23,'Cambios data'!$AN:$AU,MATCH(I$20,'Cambios data'!$AN$1:$AU$1,0),0))*1.18*1.03/VLOOKUP(CONCATENATE($C$11," ",$C$12),'Cambios data'!$A$40:$B$51,2,0))))),"-") -> - | J23: =IFERROR(IF($C23="","",J$17*(IF($C$13="COMPLETO",IF($B23="Hijo(a)",VLOOKUP($C23,'Cambios data'!$AV:$BC,MATCH(J$20,'Cambios data'!$AV$1:$BC$1,0),0),VLOOKUP($C23,'Cambios data'!$AN:$AU,MATCH(J$20,'Cambios data'!$AN$1:$AU$1,0),0))*1.18*1.03/VLOOKUP(CONCATENATE($C$11," ",$C$12),'Cambios data'!$A$40:$B$51,2,0),IF($C$13<>"COMPLETO",IF($B23="Hijo(a)",VLOOKUP($C23,'Cambios data'!$AV:$BC,MATCH(J$20,'Cambios data'!$AV$1:$BC$1,0),0),VLOOKUP($C23,'Cambios data'!$AN:$AU,MATCH(J$20,'Cambios data'!$AN$1:$AU$1,0),0))*1.18*1.03/VLOOKUP(CONCATENATE($C$11," ",$C$12),'Cambios data'!$A$40:$B$51,2,0))))),"-") -> -
B24: =+IF(INDIRECT("'Datos Integrales'!B4")="","-",INDIRECT("'Datos Integrales'!B4")) -> - | C24: =+IF(INDIRECT("'Datos Integrales'!C4")="","-",VALUE(INDIRECT("'Datos Integrales'!C4"))) -> - | D24: =IFERROR(IF($C24="","",D$17*(IF($C$13="COMPLETO",IF($B24="Hijo(a)",VLOOKUP($C24,'Cambios data'!$AV:$BC,MATCH(D$20,'Cambios data'!$AV$1:$BC$1,0),0),VLOOKUP($C24,'Cambios data'!$AN:$AU,MATCH(D$20,'Cambios data'!$AN$1:$AU$1,0),0))*1.18*1.03/VLOOKUP(CONCATENATE($C$11," ",$C$12),'Cambios data'!$A$40:$B$51,2,0),IF($C$13<>"COMPLETO",IF($B24="Hijo(a)",VLOOKUP($C24,'Cambios data'!$AV:$BC,MATCH(D$20,'Cambios data'!$AV$1:$BC$1,0),0),VLOOKUP($C24,'Cambios data'!$AN:$AU,MATCH(D$20,'Cambios data'!$AN$1:$AU$1,0),0))*1.18*1.03/VLOOKUP(CONCATENATE($C$11," ",$C$12),'Cambios data'!$A$40:$B$51,2,0))))),"-") -> - | E24: =IFERROR(IF($C24="","",E$17*(IF($C$13="COMPLETO",IF($B24="Hijo(a)",VLOOKUP($C24,'Cambios data'!$AV:$BC,MATCH(E$20,'Cambios data'!$AV$1:$BC$1,0),0),VLOOKUP($C24,'Cambios data'!$AN:$AU,MATCH(E$20,'Cambios data'!$AN$1:$AU$1,0),0))*1.18*1.03/VLOOKUP(CONCATENATE($C$11," ",$C$12),'Cambios data'!$A$40:$B$51,2,0),IF($C$13<>"COMPLETO",IF($B24="Hijo(a)",VLOOKUP($C24,'Cambios data'!$AV:$BC,MATCH(E$20,'Cambios data'!$AV$1:$BC$1,0),0),VLOOKUP($C24,'Cambios data'!$AN:$AU,MATCH(E$20,'Cambios data'!$AN$1:$AU$1,0),0))*1.18*1.03/VLOOKUP(CONCATENATE($C$11," ",$C$12),'Cambios data'!$A$40:$B$51,2,0))))),"-") -> - | F24: =IFERROR(IF($C24="","",F$17*(IF($C$13="COMPLETO",IF($B24="Hijo(a)",VLOOKUP($C24,'Cambios data'!$AV:$BC,MATCH(F$20,'Cambios data'!$AV$1:$BC$1,0),0),VLOOKUP($C24,'Cambios data'!$AN:$AU,MATCH(F$20,'Cambios data'!$AN$1:$AU$1,0),0))*1.18*1.03/VLOOKUP(CONCATENATE($C$11," ",$C$12),'Cambios data'!$A$40:$B$51,2,0),IF($C$13<>"COMPLETO",IF($B24="Hijo(a)",VLOOKUP($C24,'Cambios data'!$AV:$BC,MATCH(F$20,'Cambios data'!$AV$1:$BC$1,0),0),VLOOKUP($C24,'Cambios data'!$AN:$AU,MATCH(F$20,'Cambios data'!$AN$1:$AU$1,0),0))*1.18*1.03/VLOOKUP(CONCATENATE($C$11," ",$C$12),'Cambios data'!$A$40:$B$51,2,0))))),"-") -> - | G24: =IFERROR(IF($C24="","",G$17*(IF($C$13="COMPLETO",IF($B24="Hijo(a)",VLOOKUP($C24,'Cambios data'!$AV:$BC,MATCH(G$20,'Cambios data'!$AV$1:$BC$1,0),0),VLOOKUP($C24,'Cambios data'!$AN:$AU,MATCH(G$20,'Cambios data'!$AN$1:$AU$1,0),0))*1.18*1.03/VLOOKUP(CONCATENATE($C$11," ",$C$12),'Cambios data'!$A$40:$B$51,2,0),IF($C$13<>"COMPLETO",IF($B24="Hijo(a)",VLOOKUP($C24,'Cambios data'!$AV:$BC,MATCH(G$20,'Cambios data'!$AV$1:$BC$1,0),0),VLOOKUP($C24,'Cambios data'!$AN:$AU,MATCH(G$20,'Cambios data'!$AN$1:$AU$1,0),0))*1.18*1.03/VLOOKUP(CONCATENATE($C$11," ",$C$12),'Cambios data'!$A$40:$B$51,2,0))))),"-") -> - | H24: =IFERROR(IF($C24="","",H$17*(IF($C$13="COMPLETO",IF($B24="Hijo(a)",VLOOKUP($C24,'Cambios data'!$AV:$BC,MATCH(H$20,'Cambios data'!$AV$1:$BC$1,0),0),VLOOKUP($C24,'Cambios data'!$AN:$AU,MATCH(H$20,'Cambios data'!$AN$1:$AU$1,0),0))*1.18*1.03/VLOOKUP(CONCATENATE($C$11," ",$C$12),'Cambios data'!$A$40:$B$51,2,0),IF($C$13<>"COMPLETO",IF($B24="Hijo(a)",VLOOKUP($C24,'Cambios data'!$AV:$BC,MATCH(H$20,'Cambios data'!$AV$1:$BC$1,0),0),VLOOKUP($C24,'Cambios data'!$AN:$AU,MATCH(H$20,'Cambios data'!$AN$1:$AU$1,0),0))*1.18*1.03/VLOOKUP(CONCATENATE($C$11," ",$C$12),'Cambios data'!$A$40:$B$51,2,0))))),"-") -> - | I24: =IFERROR(IF($C24="","",I$17*(IF($C$13="COMPLETO",IF($B24="Hijo(a)",VLOOKUP($C24,'Cambios data'!$AV:$BC,MATCH(I$20,'Cambios data'!$AV$1:$BC$1,0),0),VLOOKUP($C24,'Cambios data'!$AN:$AU,MATCH(I$20,'Cambios data'!$AN$1:$AU$1,0),0))*1.18*1.03/VLOOKUP(CONCATENATE($C$11," ",$C$12),'Cambios data'!$A$40:$B$51,2,0),IF($C$13<>"COMPLETO",IF($B24="Hijo(a)",VLOOKUP($C24,'Cambios data'!$AV:$BC,MATCH(I$20,'Cambios data'!$AV$1:$BC$1,0),0),VLOOKUP($C24,'Cambios data'!$AN:$AU,MATCH(I$20,'Cambios data'!$AN$1:$AU$1,0),0))*1.18*1.03/VLOOKUP(CONCATENATE($C$11," ",$C$12),'Cambios data'!$A$40:$B$51,2,0))))),"-") -> - | J24: =IFERROR(IF($C24="","",J$17*(IF($C$13="COMPLETO",IF($B24="Hijo(a)",VLOOKUP($C24,'Cambios data'!$AV:$BC,MATCH(J$20,'Cambios data'!$AV$1:$BC$1,0),0),VLOOKUP($C24,'Cambios data'!$AN:$AU,MATCH(J$20,'Cambios data'!$AN$1:$AU$1,0),0))*1.18*1.03/VLOOKUP(CONCATENATE($C$11," ",$C$12),'Cambios data'!$A$40:$B$51,2,0),IF($C$13<>"COMPLETO",IF($B24="Hijo(a)",VLOOKUP($C24,'Cambios data'!$AV:$BC,MATCH(J$20,'Cambios data'!$AV$1:$BC$1,0),0),VLOOKUP($C24,'Cambios data'!$AN:$AU,MATCH(J$20,'Cambios data'!$AN$1:$AU$1,0),0))*1.18*1.03/VLOOKUP(CONCATENATE($C$11," ",$C$12),'Cambios data'!$A$40:$B$51,2,0))))),"-") -> -
B25: =+IF(INDIRECT("'Datos Integrales'!B5")="","-",INDIRECT("'Datos Integrales'!B5")) -> - | C25: =+IF(INDIRECT("'Datos Integrales'!C5")="","-",VALUE(INDIRECT("'Datos Integrales'!C5"))) -> - | D25: =IFERROR(IF($C25="","",D$17*(IF($C$13="COMPLETO",IF($B25="Hijo(a)",VLOOKUP($C25,'Cambios data'!$AV:$BC,MATCH(D$20,'Cambios data'!$AV$1:$BC$1,0),0),VLOOKUP($C25,'Cambios data'!$AN:$AU,MATCH(D$20,'Cambios data'!$AN$1:$AU$1,0),0))*1.18*1.03/VLOOKUP(CONCATENATE($C$11," ",$C$12),'Cambios data'!$A$40:$B$51,2,0),IF($C$13<>"COMPLETO",IF($B25="Hijo(a)",VLOOKUP($C25,'Cambios data'!$AV:$BC,MATCH(D$20,'Cambios data'!$AV$1:$BC$1,0),0),VLOOKUP($C25,'Cambios data'!$AN:$AU,MATCH(D$20,'Cambios data'!$AN$1:$AU$1,0),0))*1.18*1.03/VLOOKUP(CONCATENATE($C$11," ",$C$12),'Cambios data'!$A$40:$B$51,2,0))))),"-") -> - | E25: =IFERROR(IF($C25="","",E$17*(IF($C$13="COMPLETO",IF($B25="Hijo(a)",VLOOKUP($C25,'Cambios data'!$AV:$BC,MATCH(E$20,'Cambios data'!$AV$1:$BC$1,0),0),VLOOKUP($C25,'Cambios data'!$AN:$AU,MATCH(E$20,'Cambios data'!$AN$1:$AU$1,0),0))*1.18*1.03/VLOOKUP(CONCATENATE($C$11," ",$C$12),'Cambios data'!$A$40:$B$51,2,0),IF($C$13<>"COMPLETO",IF($B25="Hijo(a)",VLOOKUP($C25,'Cambios data'!$AV:$BC,MATCH(E$20,'Cambios data'!$AV$1:$BC$1,0),0),VLOOKUP($C25,'Cambios data'!$AN:$AU,MATCH(E$20,'Cambios data'!$AN$1:$AU$1,0),0))*1.18*1.03/VLOOKUP(CONCATENATE($C$11," ",$C$12),'Cambios data'!$A$40:$B$51,2,0))))),"-") -> - | F25: =IFERROR(IF($C25="","",F$17*(IF($C$13="COMPLETO",IF($B25="Hijo(a)",VLOOKUP($C25,'Cambios data'!$AV:$BC,MATCH(F$20,'Cambios data'!$AV$1:$BC$1,0),0),VLOOKUP($C25,'Cambios data'!$AN:$AU,MATCH(F$20,'Cambios data'!$AN$1:$AU$1,0),0))*1.18*1.03/VLOOKUP(CONCATENATE($C$11," ",$C$12),'Cambios data'!$A$40:$B$51,2,0),IF($C$13<>"COMPLETO",IF($B25="Hijo(a)",VLOOKUP($C25,'Cambios data'!$AV:$BC,MATCH(F$20,'Cambios data'!$AV$1:$BC$1,0),0),VLOOKUP($C25,'Cambios data'!$AN:$AU,MATCH(F$20,'Cambios data'!$AN$1:$AU$1,0),0))*1.18*1.03/VLOOKUP(CONCATENATE($C$11," ",$C$12),'Cambios data'!$A$40:$B$51,2,0))))),"-") -> - | G25: =IFERROR(IF($C25="","",G$17*(IF($C$13="COMPLETO",IF($B25="Hijo(a)",VLOOKUP($C25,'Cambios data'!$AV:$BC,MATCH(G$20,'Cambios data'!$AV$1:$BC$1,0),0),VLOOKUP($C25,'Cambios data'!$AN:$AU,MATCH(G$20,'Cambios data'!$AN$1:$AU$1,0),0))*1.18*1.03/VLOOKUP(CONCATENATE($C$11," ",$C$12),'Cambios data'!$A$40:$B$51,2,0),IF($C$13<>"COMPLETO",IF($B25="Hijo(a)",VLOOKUP($C25,'Cambios data'!$AV:$BC,MATCH(G$20,'Cambios data'!$AV$1:$BC$1,0),0),VLOOKUP($C25,'Cambios data'!$AN:$AU,MATCH(G$20,'Cambios data'!$AN$1:$AU$1,0),0))*1.18*1.03/VLOOKUP(CONCATENATE($C$11," ",$C$12),'Cambios data'!$A$40:$B$51,2,0))))),"-") -> - | H25: =IFERROR(IF($C25="","",H$17*(IF($C$13="COMPLETO",IF($B25="Hijo(a)",VLOOKUP($C25,'Cambios data'!$AV:$BC,MATCH(H$20,'Cambios data'!$AV$1:$BC$1,0),0),VLOOKUP($C25,'Cambios data'!$AN:$AU,MATCH(H$20,'Cambios data'!$AN$1:$AU$1,0),0))*1.18*1.03/VLOOKUP(CONCATENATE($C$11," ",$C$12),'Cambios data'!$A$40:$B$51,2,0),IF($C$13<>"COMPLETO",IF($B25="Hijo(a)",VLOOKUP($C25,'Cambios data'!$AV:$BC,MATCH(H$20,'Cambios data'!$AV$1:$BC$1,0),0),VLOOKUP($C25,'Cambios data'!$AN:$AU,MATCH(H$20,'Cambios data'!$AN$1:$AU$1,0),0))*1.18*1.03/VLOOKUP(CONCATENATE($C$11," ",$C$12),'Cambios data'!$A$40:$B$51,2,0))))),"-") -> - | I25: =IFERROR(IF($C25="","",I$17*(IF($C$13="COMPLETO",IF($B25="Hijo(a)",VLOOKUP($C25,'Cambios data'!$AV:$BC,MATCH(I$20,'Cambios data'!$AV$1:$BC$1,0),0),VLOOKUP($C25,'Cambios data'!$AN:$AU,MATCH(I$20,'Cambios data'!$AN$1:$AU$1,0),0))*1.18*1.03/VLOOKUP(CONCATENATE($C$11," ",$C$12),'Cambios data'!$A$40:$B$51,2,0),IF($C$13<>"COMPLETO",IF($B25="Hijo(a)",VLOOKUP($C25,'Cambios data'!$AV:$BC,MATCH(I$20,'Cambios data'!$AV$1:$BC$1,0),0),VLOOKUP($C25,'Cambios data'!$AN:$AU,MATCH(I$20,'Cambios data'!$AN$1:$AU$1,0),0))*1.18*1.03/VLOOKUP(CONCATENATE($C$11," ",$C$12),'Cambios data'!$A$40:$B$51,2,0))))),"-") -> - | J25: =IFERROR(IF($C25="","",J$17*(IF($C$13="COMPLETO",IF($B25="Hijo(a)",VLOOKUP($C25,'Cambios data'!$AV:$BC,MATCH(J$20,'Cambios data'!$AV$1:$BC$1,0),0),VLOOKUP($C25,'Cambios data'!$AN:$AU,MATCH(J$20,'Cambios data'!$AN$1:$AU$1,0),0))*1.18*1.03/VLOOKUP(CONCATENATE($C$11," ",$C$12),'Cambios data'!$A$40:$B$51,2,0),IF($C$13<>"COMPLETO",IF($B25="Hijo(a)",VLOOKUP($C25,'Cambios data'!$AV:$BC,MATCH(J$20,'Cambios data'!$AV$1:$BC$1,0),0),VLOOKUP($C25,'Cambios data'!$AN:$AU,MATCH(J$20,'Cambios data'!$AN$1:$AU$1,0),0))*1.18*1.03/VLOOKUP(CONCATENATE($C$11," ",$C$12),'Cambios data'!$A$40:$B$51,2,0))))),"-") -> -
B26: =+IF(INDIRECT("'Datos Integrales'!B6")="","-",INDIRECT("'Datos Integrales'!B6")) -> - | C26: =+IF(INDIRECT("'Datos Integrales'!C6")="","-",VALUE(INDIRECT("'Datos Integrales'!C6"))) -> - | D26: =IFERROR(IF($C26="","",D$17*(IF($C$13="COMPLETO",IF($B26="Hijo(a)",VLOOKUP($C26,'Cambios data'!$AV:$BC,MATCH(D$20,'Cambios data'!$AV$1:$BC$1,0),0),VLOOKUP($C26,'Cambios data'!$AN:$AU,MATCH(D$20,'Cambios data'!$AN$1:$AU$1,0),0))*1.18*1.03/VLOOKUP(CONCATENATE($C$11," ",$C$12),'Cambios data'!$A$40:$B$51,2,0),IF($C$13<>"COMPLETO",IF($B26="Hijo(a)",VLOOKUP($C26,'Cambios data'!$AV:$BC,MATCH(D$20,'Cambios data'!$AV$1:$BC$1,0),0),VLOOKUP($C26,'Cambios data'!$AN:$AU,MATCH(D$20,'Cambios data'!$AN$1:$AU$1,0),0))*1.18*1.03/VLOOKUP(CONCATENATE($C$11," ",$C$12),'Cambios data'!$A$40:$B$51,2,0))))),"-") -> - | E26: =IFERROR(IF($C26="","",E$17*(IF($C$13="COMPLETO",IF($B26="Hijo(a)",VLOOKUP($C26,'Cambios data'!$AV:$BC,MATCH(E$20,'Cambios data'!$AV$1:$BC$1,0),0),VLOOKUP($C26,'Cambios data'!$AN:$AU,MATCH(E$20,'Cambios data'!$AN$1:$AU$1,0),0))*1.18*1.03/VLOOKUP(CONCATENATE($C$11," ",$C$12),'Cambios data'!$A$40:$B$51,2,0),IF($C$13<>"COMPLETO",IF($B26="Hijo(a)",VLOOKUP($C26,'Cambios data'!$AV:$BC,MATCH(E$20,'Cambios data'!$AV$1:$BC$1,0),0),VLOOKUP($C26,'Cambios data'!$AN:$AU,MATCH(E$20,'Cambios data'!$AN$1:$AU$1,0),0))*1.18*1.03/VLOOKUP(CONCATENATE($C$11," ",$C$12),'Cambios data'!$A$40:$B$51,2,0))))),"-") -> - | F26: =IFERROR(IF($C26="","",F$17*(IF($C$13="COMPLETO",IF($B26="Hijo(a)",VLOOKUP($C26,'Cambios data'!$AV:$BC,MATCH(F$20,'Cambios data'!$AV$1:$BC$1,0),0),VLOOKUP($C26,'Cambios data'!$AN:$AU,MATCH(F$20,'Cambios data'!$AN$1:$AU$1,0),0))*1.18*1.03/VLOOKUP(CONCATENATE($C$11," ",$C$12),'Cambios data'!$A$40:$B$51,2,0),IF($C$13<>"COMPLETO",IF($B26="Hijo(a)",VLOOKUP($C26,'Cambios data'!$AV:$BC,MATCH(F$20,'Cambios data'!$AV$1:$BC$1,0),0),VLOOKUP($C26,'Cambios data'!$AN:$AU,MATCH(F$20,'Cambios data'!$AN$1:$AU$1,0),0))*1.18*1.03/VLOOKUP(CONCATENATE($C$11," ",$C$12),'Cambios data'!$A$40:$B$51,2,0))))),"-") -> - | G26: =IFERROR(IF($C26="","",G$17*(IF($C$13="COMPLETO",IF($B26="Hijo(a)",VLOOKUP($C26,'Cambios data'!$AV:$BC,MATCH(G$20,'Cambios data'!$AV$1:$BC$1,0),0),VLOOKUP($C26,'Cambios data'!$AN:$AU,MATCH(G$20,'Cambios data'!$AN$1:$AU$1,0),0))*1.18*1.03/VLOOKUP(CONCATENATE($C$11," ",$C$12),'Cambios data'!$A$40:$B$51,2,0),IF($C$13<>"COMPLETO",IF($B26="Hijo(a)",VLOOKUP($C26,'Cambios data'!$AV:$BC,MATCH(G$20,'Cambios data'!$AV$1:$BC$1,0),0),VLOOKUP($C26,'Cambios data'!$AN:$AU,MATCH(G$20,'Cambios data'!$AN$1:$AU$1,0),0))*1.18*1.03/VLOOKUP(CONCATENATE($C$11," ",$C$12),'Cambios data'!$A$40:$B$51,2,0))))),"-") -> - | H26: =IFERROR(IF($C26="","",H$17*(IF($C$13="COMPLETO",IF($B26="Hijo(a)",VLOOKUP($C26,'Cambios data'!$AV:$BC,MATCH(H$20,'Cambios data'!$AV$1:$BC$1,0),0),VLOOKUP($C26,'Cambios data'!$AN:$AU,MATCH(H$20,'Cambios data'!$AN$1:$AU$1,0),0))*1.18*1.03/VLOOKUP(CONCATENATE($C$11," ",$C$12),'Cambios data'!$A$40:$B$51,2,0),IF($C$13<>"COMPLETO",IF($B26="Hijo(a)",VLOOKUP($C26,'Cambios data'!$AV:$BC,MATCH(H$20,'Cambios data'!$AV$1:$BC$1,0),0),VLOOKUP($C26,'Cambios data'!$AN:$AU,MATCH(H$20,'Cambios data'!$AN$1:$AU$1,0),0))*1.18*1.03/VLOOKUP(CONCATENATE($C$11," ",$C$12),'Cambios data'!$A$40:$B$51,2,0))))),"-") -> - | I26: =IFERROR(IF($C26="","",I$17*(IF($C$13="COMPLETO",IF($B26="Hijo(a)",VLOOKUP($C26,'Cambios data'!$AV:$BC,MATCH(I$20,'Cambios data'!$AV$1:$BC$1,0),0),VLOOKUP($C26,'Cambios data'!$AN:$AU,MATCH(I$20,'Cambios data'!$AN$1:$AU$1,0),0))*1.18*1.03/VLOOKUP(CONCATENATE($C$11," ",$C$12),'Cambios data'!$A$40:$B$51,2,0),IF($C$13<>"COMPLETO",IF($B26="Hijo(a)",VLOOKUP($C26,'Cambios data'!$AV:$BC,MATCH(I$20,'Cambios data'!$AV$1:$BC$1,0),0),VLOOKUP($C26,'Cambios data'!$AN:$AU,MATCH(I$20,'Cambios data'!$AN$1:$AU$1,0),0))*1.18*1.03/VLOOKUP(CONCATENATE($C$11," ",$C$12),'Cambios data'!$A$40:$B$51,2,0))))),"-") -> - | J26: =IFERROR(IF($C26="","",J$17*(IF($C$13="COMPLETO",IF($B26="Hijo(a)",VLOOKUP($C26,'Cambios data'!$AV:$BC,MATCH(J$20,'Cambios data'!$AV$1:$BC$1,0),0),VLOOKUP($C26,'Cambios data'!$AN:$AU,MATCH(J$20,'Cambios data'!$AN$1:$AU$1,0),0))*1.18*1.03/VLOOKUP(CONCATENATE($C$11," ",$C$12),'Cambios data'!$A$40:$B$51,2,0),IF($C$13<>"COMPLETO",IF($B26="Hijo(a)",VLOOKUP($C26,'Cambios data'!$AV:$BC,MATCH(J$20,'Cambios data'!$AV$1:$BC$1,0),0),VLOOKUP($C26,'Cambios data'!$AN:$AU,MATCH(J$20,'Cambios data'!$AN$1:$AU$1,0),0))*1.18*1.03/VLOOKUP(CONCATENATE($C$11," ",$C$12),'Cambios data'!$A$40:$B$51,2,0))))),"-") -> -
B27: =+IF(INDIRECT("'Datos Integrales'!B7")="","-",INDIRECT("'Datos Integrales'!B7")) -> - | C27: =+IF(INDIRECT("'Datos Integrales'!C7")="","-",VALUE(INDIRECT("'Datos Integrales'!C7"))) -> - | D27: =IFERROR(IF($C27="","",D$17*(IF($C$13="COMPLETO",IF($B27="Hijo(a)",VLOOKUP($C27,'Cambios data'!$AV:$BC,MATCH(D$20,'Cambios data'!$AV$1:$BC$1,0),0),VLOOKUP($C27,'Cambios data'!$AN:$AU,MATCH(D$20,'Cambios data'!$AN$1:$AU$1,0),0))*1.18*1.03/VLOOKUP(CONCATENATE($C$11," ",$C$12),'Cambios data'!$A$40:$B$51,2,0),IF($C$13<>"COMPLETO",IF($B27="Hijo(a)",VLOOKUP($C27,'Cambios data'!$AV:$BC,MATCH(D$20,'Cambios data'!$AV$1:$BC$1,0),0),VLOOKUP($C27,'Cambios data'!$AN:$AU,MATCH(D$20,'Cambios data'!$AN$1:$AU$1,0),0))*1.18*1.03/VLOOKUP(CONCATENATE($C$11," ",$C$12),'Cambios data'!$A$40:$B$51,2,0))))),"-") -> - | E27: =IFERROR(IF($C27="","",E$17*(IF($C$13="COMPLETO",IF($B27="Hijo(a)",VLOOKUP($C27,'Cambios data'!$AV:$BC,MATCH(E$20,'Cambios data'!$AV$1:$BC$1,0),0),VLOOKUP($C27,'Cambios data'!$AN:$AU,MATCH(E$20,'Cambios data'!$AN$1:$AU$1,0),0))*1.18*1.03/VLOOKUP(CONCATENATE($C$11," ",$C$12),'Cambios data'!$A$40:$B$51,2,0),IF($C$13<>"COMPLETO",IF($B27="Hijo(a)",VLOOKUP($C27,'Cambios data'!$AV:$BC,MATCH(E$20,'Cambios data'!$AV$1:$BC$1,0),0),VLOOKUP($C27,'Cambios data'!$AN:$AU,MATCH(E$20,'Cambios data'!$AN$1:$AU$1,0),0))*1.18*1.03/VLOOKUP(CONCATENATE($C$11," ",$C$12),'Cambios data'!$A$40:$B$51,2,0))))),"-") -> - | F27: =IFERROR(IF($C27="","",F$17*(IF($C$13="COMPLETO",IF($B27="Hijo(a)",VLOOKUP($C27,'Cambios data'!$AV:$BC,MATCH(F$20,'Cambios data'!$AV$1:$BC$1,0),0),VLOOKUP($C27,'Cambios data'!$AN:$AU,MATCH(F$20,'Cambios data'!$AN$1:$AU$1,0),0))*1.18*1.03/VLOOKUP(CONCATENATE($C$11," ",$C$12),'Cambios data'!$A$40:$B$51,2,0),IF($C$13<>"COMPLETO",IF($B27="Hijo(a)",VLOOKUP($C27,'Cambios data'!$AV:$BC,MATCH(F$20,'Cambios data'!$AV$1:$BC$1,0),0),VLOOKUP($C27,'Cambios data'!$AN:$AU,MATCH(F$20,'Cambios data'!$AN$1:$AU$1,0),0))*1.18*1.03/VLOOKUP(CONCATENATE($C$11," ",$C$12),'Cambios data'!$A$40:$B$51,2,0))))),"-") -> - | G27: =IFERROR(IF($C27="","",G$17*(IF($C$13="COMPLETO",IF($B27="Hijo(a)",VLOOKUP($C27,'Cambios data'!$AV:$BC,MATCH(G$20,'Cambios data'!$AV$1:$BC$1,0),0),VLOOKUP($C27,'Cambios data'!$AN:$AU,MATCH(G$20,'Cambios data'!$AN$1:$AU$1,0),0))*1.18*1.03/VLOOKUP(CONCATENATE($C$11," ",$C$12),'Cambios data'!$A$40:$B$51,2,0),IF($C$13<>"COMPLETO",IF($B27="Hijo(a)",VLOOKUP($C27,'Cambios data'!$AV:$BC,MATCH(G$20,'Cambios data'!$AV$1:$BC$1,0),0),VLOOKUP($C27,'Cambios data'!$AN:$AU,MATCH(G$20,'Cambios data'!$AN$1:$AU$1,0),0))*1.18*1.03/VLOOKUP(CONCATENATE($C$11," ",$C$12),'Cambios data'!$A$40:$B$51,2,0))))),"-") -> - | H27: =IFERROR(IF($C27="","",H$17*(IF($C$13="COMPLETO",IF($B27="Hijo(a)",VLOOKUP($C27,'Cambios data'!$AV:$BC,MATCH(H$20,'Cambios data'!$AV$1:$BC$1,0),0),VLOOKUP($C27,'Cambios data'!$AN:$AU,MATCH(H$20,'Cambios data'!$AN$1:$AU$1,0),0))*1.18*1.03/VLOOKUP(CONCATENATE($C$11," ",$C$12),'Cambios data'!$A$40:$B$51,2,0),IF($C$13<>"COMPLETO",IF($B27="Hijo(a)",VLOOKUP($C27,'Cambios data'!$AV:$BC,MATCH(H$20,'Cambios data'!$AV$1:$BC$1,0),0),VLOOKUP($C27,'Cambios data'!$AN:$AU,MATCH(H$20,'Cambios data'!$AN$1:$AU$1,0),0))*1.18*1.03/VLOOKUP(CONCATENATE($C$11," ",$C$12),'Cambios data'!$A$40:$B$51,2,0))))),"-") -> - | I27: =IFERROR(IF($C27="","",I$17*(IF($C$13="COMPLETO",IF($B27="Hijo(a)",VLOOKUP($C27,'Cambios data'!$AV:$BC,MATCH(I$20,'Cambios data'!$AV$1:$BC$1,0),0),VLOOKUP($C27,'Cambios data'!$AN:$AU,MATCH(I$20,'Cambios data'!$AN$1:$AU$1,0),0))*1.18*1.03/VLOOKUP(CONCATENATE($C$11," ",$C$12),'Cambios data'!$A$40:$B$51,2,0),IF($C$13<>"COMPLETO",IF($B27="Hijo(a)",VLOOKUP($C27,'Cambios data'!$AV:$BC,MATCH(I$20,'Cambios data'!$AV$1:$BC$1,0),0),VLOOKUP($C27,'Cambios data'!$AN:$AU,MATCH(I$20,'Cambios data'!$AN$1:$AU$1,0),0))*1.18*1.03/VLOOKUP(CONCATENATE($C$11," ",$C$12),'Cambios data'!$A$40:$B$51,2,0))))),"-") -> - | J27: =IFERROR(IF($C27="","",J$17*(IF($C$13="COMPLETO",IF($B27="Hijo(a)",VLOOKUP($C27,'Cambios data'!$AV:$BC,MATCH(J$20,'Cambios data'!$AV$1:$BC$1,0),0),VLOOKUP($C27,'Cambios data'!$AN:$AU,MATCH(J$20,'Cambios data'!$AN$1:$AU$1,0),0))*1.18*1.03/VLOOKUP(CONCATENATE($C$11," ",$C$12),'Cambios data'!$A$40:$B$51,2,0),IF($C$13<>"COMPLETO",IF($B27="Hijo(a)",VLOOKUP($C27,'Cambios data'!$AV:$BC,MATCH(J$20,'Cambios data'!$AV$1:$BC$1,0),0),VLOOKUP($C27,'Cambios data'!$AN:$AU,MATCH(J$20,'Cambios data'!$AN$1:$AU$1,0),0))*1.18*1.03/VLOOKUP(CONCATENATE($C$11," ",$C$12),'Cambios data'!$A$40:$B$51,2,0))))),"-") -> -
B28: =+IF(INDIRECT("'Datos Integrales'!B8")="","-",INDIRECT("'Datos Integrales'!B8")) -> - | C28: =+IF(INDIRECT("'Datos Integrales'!C8")="","-",VALUE(INDIRECT("'Datos Integrales'!C8"))) -> - | D28: =IFERROR(IF($C28="","",D$17*(IF($C$13="COMPLETO",IF($B28="Hijo(a)",VLOOKUP($C28,'Cambios data'!$AV:$BC,MATCH(D$20,'Cambios data'!$AV$1:$BC$1,0),0),VLOOKUP($C28,'Cambios data'!$AN:$AU,MATCH(D$20,'Cambios data'!$AN$1:$AU$1,0),0))*1.18*1.03/VLOOKUP(CONCATENATE($C$11," ",$C$12),'Cambios data'!$A$40:$B$51,2,0),IF($C$13<>"COMPLETO",IF($B28="Hijo(a)",VLOOKUP($C28,'Cambios data'!$AV:$BC,MATCH(D$20,'Cambios data'!$AV$1:$BC$1,0),0),VLOOKUP($C28,'Cambios data'!$AN:$AU,MATCH(D$20,'Cambios data'!$AN$1:$AU$1,0),0))*1.18*1.03/VLOOKUP(CONCATENATE($C$11," ",$C$12),'Cambios data'!$A$40:$B$51,2,0))))),"-") -> - | E28: =IFERROR(IF($C28="","",E$17*(IF($C$13="COMPLETO",IF($B28="Hijo(a)",VLOOKUP($C28,'Cambios data'!$AV:$BC,MATCH(E$20,'Cambios data'!$AV$1:$BC$1,0),0),VLOOKUP($C28,'Cambios data'!$AN:$AU,MATCH(E$20,'Cambios data'!$AN$1:$AU$1,0),0))*1.18*1.03/VLOOKUP(CONCATENATE($C$11," ",$C$12),'Cambios data'!$A$40:$B$51,2,0),IF($C$13<>"COMPLETO",IF($B28="Hijo(a)",VLOOKUP($C28,'Cambios data'!$AV:$BC,MATCH(E$20,'Cambios data'!$AV$1:$BC$1,0),0),VLOOKUP($C28,'Cambios data'!$AN:$AU,MATCH(E$20,'Cambios data'!$AN$1:$AU$1,0),0))*1.18*1.03/VLOOKUP(CONCATENATE($C$11," ",$C$12),'Cambios data'!$A$40:$B$51,2,0))))),"-") -> - | F28: =IFERROR(IF($C28="","",F$17*(IF($C$13="COMPLETO",IF($B28="Hijo(a)",VLOOKUP($C28,'Cambios data'!$AV:$BC,MATCH(F$20,'Cambios data'!$AV$1:$BC$1,0),0),VLOOKUP($C28,'Cambios data'!$AN:$AU,MATCH(F$20,'Cambios data'!$AN$1:$AU$1,0),0))*1.18*1.03/VLOOKUP(CONCATENATE($C$11," ",$C$12),'Cambios data'!$A$40:$B$51,2,0),IF($C$13<>"COMPLETO",IF($B28="Hijo(a)",VLOOKUP($C28,'Cambios data'!$AV:$BC,MATCH(F$20,'Cambios data'!$AV$1:$BC$1,0),0),VLOOKUP($C28,'Cambios data'!$AN:$AU,MATCH(F$20,'Cambios data'!$AN$1:$AU$1,0),0))*1.18*1.03/VLOOKUP(CONCATENATE($C$11," ",$C$12),'Cambios data'!$A$40:$B$51,2,0))))),"-") -> - | G28: =IFERROR(IF($C28="","",G$17*(IF($C$13="COMPLETO",IF($B28="Hijo(a)",VLOOKUP($C28,'Cambios data'!$AV:$BC,MATCH(G$20,'Cambios data'!$AV$1:$BC$1,0),0),VLOOKUP($C28,'Cambios data'!$AN:$AU,MATCH(G$20,'Cambios data'!$AN$1:$AU$1,0),0))*1.18*1.03/VLOOKUP(CONCATENATE($C$11," ",$C$12),'Cambios data'!$A$40:$B$51,2,0),IF($C$13<>"COMPLETO",IF($B28="Hijo(a)",VLOOKUP($C28,'Cambios data'!$AV:$BC,MATCH(G$20,'Cambios data'!$AV$1:$BC$1,0),0),VLOOKUP($C28,'Cambios data'!$AN:$AU,MATCH(G$20,'Cambios data'!$AN$1:$AU$1,0),0))*1.18*1.03/VLOOKUP(CONCATENATE($C$11," ",$C$12),'Cambios data'!$A$40:$B$51,2,0))))),"-") -> - | H28: =IFERROR(IF($C28="","",H$17*(IF($C$13="COMPLETO",IF($B28="Hijo(a)",VLOOKUP($C28,'Cambios data'!$AV:$BC,MATCH(H$20,'Cambios data'!$AV$1:$BC$1,0),0),VLOOKUP($C28,'Cambios data'!$AN:$AU,MATCH(H$20,'Cambios data'!$AN$1:$AU$1,0),0))*1.18*1.03/VLOOKUP(CONCATENATE($C$11," ",$C$12),'Cambios data'!$A$40:$B$51,2,0),IF($C$13<>"COMPLETO",IF($B28="Hijo(a)",VLOOKUP($C28,'Cambios data'!$AV:$BC,MATCH(H$20,'Cambios data'!$AV$1:$BC$1,0),0),VLOOKUP($C28,'Cambios data'!$AN:$AU,MATCH(H$20,'Cambios data'!$AN$1:$AU$1,0),0))*1.18*1.03/VLOOKUP(CONCATENATE($C$11," ",$C$12),'Cambios data'!$A$40:$B$51,2,0))))),"-") -> - | I28: =IFERROR(IF($C28="","",I$17*(IF($C$13="COMPLETO",IF($B28="Hijo(a)",VLOOKUP($C28,'Cambios data'!$AV:$BC,MATCH(I$20,'Cambios data'!$AV$1:$BC$1,0),0),VLOOKUP($C28,'Cambios data'!$AN:$AU,MATCH(I$20,'Cambios data'!$AN$1:$AU$1,0),0))*1.18*1.03/VLOOKUP(CONCATENATE($C$11," ",$C$12),'Cambios data'!$A$40:$B$51,2,0),IF($C$13<>"COMPLETO",IF($B28="Hijo(a)",VLOOKUP($C28,'Cambios data'!$AV:$BC,MATCH(I$20,'Cambios data'!$AV$1:$BC$1,0),0),VLOOKUP($C28,'Cambios data'!$AN:$AU,MATCH(I$20,'Cambios data'!$AN$1:$AU$1,0),0))*1.18*1.03/VLOOKUP(CONCATENATE($C$11," ",$C$12),'Cambios data'!$A$40:$B$51,2,0))))),"-") -> - | J28: =IFERROR(IF($C28="","",J$17*(IF($C$13="COMPLETO",IF($B28="Hijo(a)",VLOOKUP($C28,'Cambios data'!$AV:$BC,MATCH(J$20,'Cambios data'!$AV$1:$BC$1,0),0),VLOOKUP($C28,'Cambios data'!$AN:$AU,MATCH(J$20,'Cambios data'!$AN$1:$AU$1,0),0))*1.18*1.03/VLOOKUP(CONCATENATE($C$11," ",$C$12),'Cambios data'!$A$40:$B$51,2,0),IF($C$13<>"COMPLETO",IF($B28="Hijo(a)",VLOOKUP($C28,'Cambios data'!$AV:$BC,MATCH(J$20,'Cambios data'!$AV$1:$BC$1,0),0),VLOOKUP($C28,'Cambios data'!$AN:$AU,MATCH(J$20,'Cambios data'!$AN$1:$AU$1,0),0))*1.18*1.03/VLOOKUP(CONCATENATE($C$11," ",$C$12),'Cambios data'!$A$40:$B$51,2,0))))),"-") -> -
B29: =+IF(INDIRECT("'Datos Integrales'!B9")="","-",INDIRECT("'Datos Integrales'!B9")) -> - | C29: =+IF(INDIRECT("'Datos Integrales'!C9")="","-",VALUE(INDIRECT("'Datos Integrales'!C9"))) -> - | D29: =IFERROR(IF($C29="","",D$17*(IF($C$13="COMPLETO",IF($B29="Hijo(a)",VLOOKUP($C29,'Cambios data'!$AV:$BC,MATCH(D$20,'Cambios data'!$AV$1:$BC$1,0),0),VLOOKUP($C29,'Cambios data'!$AN:$AU,MATCH(D$20,'Cambios data'!$AN$1:$AU$1,0),0))*1.18*1.03/VLOOKUP(CONCATENATE($C$11," ",$C$12),'Cambios data'!$A$40:$B$51,2,0),IF($C$13<>"COMPLETO",IF($B29="Hijo(a)",VLOOKUP($C29,'Cambios data'!$AV:$BC,MATCH(D$20,'Cambios data'!$AV$1:$BC$1,0),0),VLOOKUP($C29,'Cambios data'!$AN:$AU,MATCH(D$20,'Cambios data'!$AN$1:$AU$1,0),0))*1.18*1.03/VLOOKUP(CONCATENATE($C$11," ",$C$12),'Cambios data'!$A$40:$B$51,2,0))))),"-") -> - | E29: =IFERROR(IF($C29="","",E$17*(IF($C$13="COMPLETO",IF($B29="Hijo(a)",VLOOKUP($C29,'Cambios data'!$AV:$BC,MATCH(E$20,'Cambios data'!$AV$1:$BC$1,0),0),VLOOKUP($C29,'Cambios data'!$AN:$AU,MATCH(E$20,'Cambios data'!$AN$1:$AU$1,0),0))*1.18*1.03/VLOOKUP(CONCATENATE($C$11," ",$C$12),'Cambios data'!$A$40:$B$51,2,0),IF($C$13<>"COMPLETO",IF($B29="Hijo(a)",VLOOKUP($C29,'Cambios data'!$AV:$BC,MATCH(E$20,'Cambios data'!$AV$1:$BC$1,0),0),VLOOKUP($C29,'Cambios data'!$AN:$AU,MATCH(E$20,'Cambios data'!$AN$1:$AU$1,0),0))*1.18*1.03/VLOOKUP(CONCATENATE($C$11," ",$C$12),'Cambios data'!$A$40:$B$51,2,0))))),"-") -> - | F29: =IFERROR(IF($C29="","",F$17*(IF($C$13="COMPLETO",IF($B29="Hijo(a)",VLOOKUP($C29,'Cambios data'!$AV:$BC,MATCH(F$20,'Cambios data'!$AV$1:$BC$1,0),0),VLOOKUP($C29,'Cambios data'!$AN:$AU,MATCH(F$20,'Cambios data'!$AN$1:$AU$1,0),0))*1.18*1.03/VLOOKUP(CONCATENATE($C$11," ",$C$12),'Cambios data'!$A$40:$B$51,2,0),IF($C$13<>"COMPLETO",IF($B29="Hijo(a)",VLOOKUP($C29,'Cambios data'!$AV:$BC,MATCH(F$20,'Cambios data'!$AV$1:$BC$1,0),0),VLOOKUP($C29,'Cambios data'!$AN:$AU,MATCH(F$20,'Cambios data'!$AN$1:$AU$1,0),0))*1.18*1.03/VLOOKUP(CONCATENATE($C$11," ",$C$12),'Cambios data'!$A$40:$B$51,2,0))))),"-") -> - | G29: =IFERROR(IF($C29="","",G$17*(IF($C$13="COMPLETO",IF($B29="Hijo(a)",VLOOKUP($C29,'Cambios data'!$AV:$BC,MATCH(G$20,'Cambios data'!$AV$1:$BC$1,0),0),VLOOKUP($C29,'Cambios data'!$AN:$AU,MATCH(G$20,'Cambios data'!$AN$1:$AU$1,0),0))*1.18*1.03/VLOOKUP(CONCATENATE($C$11," ",$C$12),'Cambios data'!$A$40:$B$51,2,0),IF($C$13<>"COMPLETO",IF($B29="Hijo(a)",VLOOKUP($C29,'Cambios data'!$AV:$BC,MATCH(G$20,'Cambios data'!$AV$1:$BC$1,0),0),VLOOKUP($C29,'Cambios data'!$AN:$AU,MATCH(G$20,'Cambios data'!$AN$1:$AU$1,0),0))*1.18*1.03/VLOOKUP(CONCATENATE($C$11," ",$C$12),'Cambios data'!$A$40:$B$51,2,0))))),"-") -> - | H29: =IFERROR(IF($C29="","",H$17*(IF($C$13="COMPLETO",IF($B29="Hijo(a)",VLOOKUP($C29,'Cambios data'!$AV:$BC,MATCH(H$20,'Cambios data'!$AV$1:$BC$1,0),0),VLOOKUP($C29,'Cambios data'!$AN:$AU,MATCH(H$20,'Cambios data'!$AN$1:$AU$1,0),0))*1.18*1.03/VLOOKUP(CONCATENATE($C$11," ",$C$12),'Cambios data'!$A$40:$B$51,2,0),IF($C$13<>"COMPLETO",IF($B29="Hijo(a)",VLOOKUP($C29,'Cambios data'!$AV:$BC,MATCH(H$20,'Cambios data'!$AV$1:$BC$1,0),0),VLOOKUP($C29,'Cambios data'!$AN:$AU,MATCH(H$20,'Cambios data'!$AN$1:$AU$1,0),0))*1.18*1.03/VLOOKUP(CONCATENATE($C$11," ",$C$12),'Cambios data'!$A$40:$B$51,2,0))))),"-") -> - | I29: =IFERROR(IF($C29="","",I$17*(IF($C$13="COMPLETO",IF($B29="Hijo(a)",VLOOKUP($C29,'Cambios data'!$AV:$BC,MATCH(I$20,'Cambios data'!$AV$1:$BC$1,0),0),VLOOKUP($C29,'Cambios data'!$AN:$AU,MATCH(I$20,'Cambios data'!$AN$1:$AU$1,0),0))*1.18*1.03/VLOOKUP(CONCATENATE($C$11," ",$C$12),'Cambios data'!$A$40:$B$51,2,0),IF($C$13<>"COMPLETO",IF($B29="Hijo(a)",VLOOKUP($C29,'Cambios data'!$AV:$BC,MATCH(I$20,'Cambios data'!$AV$1:$BC$1,0),0),VLOOKUP($C29,'Cambios data'!$AN:$AU,MATCH(I$20,'Cambios data'!$AN$1:$AU$1,0),0))*1.18*1.03/VLOOKUP(CONCATENATE($C$11," ",$C$12),'Cambios data'!$A$40:$B$51,2,0))))),"-") -> - | J29: =IFERROR(IF($C29="","",J$17*(IF($C$13="COMPLETO",IF($B29="Hijo(a)",VLOOKUP($C29,'Cambios data'!$AV:$BC,MATCH(J$20,'Cambios data'!$AV$1:$BC$1,0),0),VLOOKUP($C29,'Cambios data'!$AN:$AU,MATCH(J$20,'Cambios data'!$AN$1:$AU$1,0),0))*1.18*1.03/VLOOKUP(CONCATENATE($C$11," ",$C$12),'Cambios data'!$A$40:$B$51,2,0),IF($C$13<>"COMPLETO",IF($B29="Hijo(a)",VLOOKUP($C29,'Cambios data'!$AV:$BC,MATCH(J$20,'Cambios data'!$AV$1:$BC$1,0),0),VLOOKUP($C29,'Cambios data'!$AN:$AU,MATCH(J$20,'Cambios data'!$AN$1:$AU$1,0),0))*1.18*1.03/VLOOKUP(CONCATENATE($C$11," ",$C$12),'Cambios data'!$A$40:$B$51,2,0))))),"-") -> -
C30: SUBTOTAL (INCLUYE IGV) | D30: =SUM(D22:D29) -> 0 | E30: 0 | F30: 0 | G30: 0 | H30: 0 | I30: 0 | J30: 0
C31: % DE DSCTO A APLICAR | D31: =+IF($C$13<>"COMPLETO",0%,$C$14) -> 0 | E31: =+IF($C$13<>"COMPLETO",0%,$C$14) -> 0 | F31: 0 | G31: 0 | H31: 0 | I31: 0 | J31: 0
C32: =+IF(C11="AL CONTADO","Total",PROPER(C11)&" de") -> de | D32: =IFERROR(D30*(1-D31),"INGRESAR BIEN DATOS") -> 0 | E32: =IFERROR(E30*(1-E31),"INGRESAR BIEN DATOS") -> 0 | F32: 0 | G32: 0 | H32: 0 | I32: 0 | J32: 0
D34: Cód. SBS: AE0446420001 | E34: Cód. SBS: AE0446420002 | F34: Cód. SBS: AE0446410003 | G34: Cód. SBS: AE0446410003 | H34: Cód. SBS: AE0446410003 | I34: Cód. SBS: AE200400242 | J34: Cód. SBS: AE200400242
B40: HAZLE UN CLICK A LOS NOMBRES DE LOS PRODUCTOS PARA VER LOS FOLLETOS COMPLETOS DE CADA UNO
D42: MINT | E42: MEDICVIDA NACIONAL | F42: MULTISALUD | G42: RED PREFERENTE | H42: MULTISALUD BASE | I42: SALUD ESENCIAL PLUS | J42: SALUD ESENCIAL
B43: Cobertura máxima anual por persona | D43: $ 4'000,000 | E43: S/ 9'600,000 | F43: S/ 5'000,000 | G43: S/ 3'200,000 | H43: S/ 2'000,000 | I43: S/ 2'000,000 | J43: S/ 1'000,000
B44: Edad máxima de ingreso | D44: 65 años inclusive | E44: 65 años inclusive | F44: 65 años inclusive | G44: 65 años inclusive | H44: 60 años inclusive | I44: 60 años inclusive | J44: 60 años inclusive
B45: Ámbito de cobertura | D45: Lima y provincias | E45: Lima y provincias | F45: Lima y provincias | G45: Lima y provincias | H45: Lima | I45: Lima | J45: Lima y provincias
B46: Cantidad de redes de atención | D46: 8 | E46: 8 | F46: 8 | G46: 4 | H46: 4 | I46: 3 | J46: 3
B47: Chequeo Preventivo cubierto al 100% | D47: Sí. A reembolso hasta S/ 800 | E47: Sí. A reembolso hasta S/ 600 | F47: Sí | G47: Sí | H47: Sí | I47: Sí | J47: Sí
B48: Emergencia accidental ambulatoria (dentro de las primeras 24 horas, no aplica para cirugía ambulatoria) | D48: Al 100% | E48: Al 100%. | F48: Al 100% | G48: Al 100% | H48: Al 100% | I48: Al 100% | J48: Al 100%
B49: Emergencia médica | D49: Al 100% | E49: Según condiciones ambulatorias | F49: Según condiciones ambulatorias | G49: Según condiciones ambulatorias | H49: Según condiciones ambulatorias | I49: Según condiciones ambulatorias | J49: Según condiciones ambulatorias
B50: Médicos a Domicilio | D50: En Lima: S/ 55 al 100% En provincia: S/ 40 al 100% | E50: En Lima: S/ 55 al 100% En provincia: S/ 40 al 100% | F50: En Lima: S/ 55 al 100% En provincia: S/ 40 al 100% | G50: En Lima: S/ 55 al 100% En provincia: S/ 40 al 100% | H50: En Lima: S/ 40 al 100% | I50: En Lima: S/ 40 al 100% | J50: Lima: S/ 50 al 100% En provincia: S/ 50 al 100% (Trujillo, Arequipa, Piura)
B51: Programa Siempre Sano: Asma bronquial, hipertensión arterial, dislipidemia, diabetes mellitus tipo 2 (previa evaluación en Lima, Piura, Trujillo, Cajamarca y Arequipa) | D51: Al 100% | E51: Al 100% | F51: Al 100% | G51: Al 100% | H51: - | I51: - | J51: -
B52: Asistencia al viajero en el extranjero: ASSIST CARD (emergencias médicas o accidentales en el extranjero, traslados médicos, entre otros) | D52: Al 100% Hasta US$ 100,000 para todo el mundo | E52: Al 100%. Hasta $ 50,000 en países no Schengen. Hasta € 30,000 en países Schengen | F52: Al 100%. Hasta $ 15,000 en países no Schengen. Hasta € 30,000 en países Schengen | G52: - | H52: - | I52: - | J52: -
B53: Cobertura oncológica | D53: Al 100% | E53: Al 100% | F53: Al 100% | G53: Al 100% | H53: Al 90% | I53: Al 90% | J53: -
B54: Programa de maternidad | D54: Al 100% hasta 18 000 | E54: Al 100% hasta 13 000 | F54: Al 100% hasta 8 000 | G54: Al 100% en la red Sanna | H54: Al 100% hasta S/4,500 | I54: Al 100% hasta S/5,000 | J54: Indemnización por parto S/4000
B55: Reembolso | D55: Sí | E55: Sí | F55: - | G55: - | H55: - | I55: - | J55: -

Sheet Cambios data (hidden)
AM1: PACÍFICO 2023 (TARIFARIO ACTUAL) | AN1: TIT | AO1: MINT | AP1: MEDICVIDA NACIONAL | AQ1: MULTISALUD | AR1: RED PREFERENTE | AS1: MULTISALUD BASE | AT1: SALUD ESENCIAL PLUS | AU1: SALUD ESENCIAL | AV1: HIJO | AW1: MINT | AX1: MEDICVIDA NACIONAL | AY1: MULTISALUD | AZ1: RED PREFERENTE | BA1: MULTISALUD BASE | BB1: SALUD ESENCIAL PLUS | BC1: SALUD ESENCIAL | BF1: PACÍFICO 2023 (TARIFARIO ONCOLÓGICOS) | BG1: TIT | BH1: ONCOLÓGICO NACIONAL | BI1: ONCOLÓGICO INTERNACIONAL
AN2: 0 | AO2: 8930.393286 | AP2: 3831.66 | AQ2: 3121.61 | AR2: 2640.283034 | AS2: =+'BISIESTO CAMBIOS DATA'!AS2/366*365 -> 2412.347551 | AT2: =+'BISIESTO CAMBIOS DATA'!AT2/366*365 -> 2018.494889 | AU2: =+'BISIESTO CAMBIOS DATA'!AU2/366*365 -> 1723.105393 | AV2: 0 | AW2: 6907.191048 | AX2: 3595.52 | AY2: 3082.11 | AZ2: 2564.58779 | BA2: =+'BISIESTO CAMBIOS DATA'!BA2/366*365 -> 2412.347551 | BB2: =+'BISIESTO CAMBIOS DATA'!BB2/366*365 -> 2018.494889 | BC2: =+'BISIESTO CAMBIOS DATA'!BC2/366*365 -> 1723.105393 | BG2: 0 | BH2: =+'BISIESTO CAMBIOS DATA'!BH2/366*365 -> 312.1564403 | BI2: =+'BISIESTO CAMBIOS DATA'!BI2/366*365 -> 720.0036943
AN3: 1 | AO3: 8930.393286 | AP3: 3831.66 | AQ3: 3121.61 | AR3: 2640.283034 | AS3: =+'BISIESTO CAMBIOS DATA'!AS3/366*365 -> 2412.347551 | AT3: =+'BISIESTO CAMBIOS DATA'!AT3/366*365 -> 2018.494889 | AU3: =+'BISIESTO CAMBIOS DATA'!AU3/366*365 -> 1723.105393 | AV3: 1 | AW3: 6907.191048 | AX3: 3595.52 | AY3: 3082.11 | AZ3: 2564.58779 | BA3: =+'BISIESTO CAMBIOS DATA'!BA3/366*365 -> 2412.347551 | BB3: =+'BISIESTO CAMBIOS DATA'!BB3/366*365 -> 2018.494889 | BC3: =+'BISIESTO CAMBIOS DATA'!BC3/366*365 -> 1723.105393 | BG3: 1 | BH3: =+'BISIESTO CAMBIOS DATA'!BH3/366*365 -> 312.1564403 | BI3: =+'BISIESTO CAMBIOS DATA'!BI3/366*365 -> 720.0036943
AN4: 2 | AO4: 8930.393286 | AP4: 3831.66 | AQ4: 3121.61 | AR4: 2640.283034 | AS4: =+'BISIESTO CAMBIOS DATA'!AS4/366*365 -> 2412.347551 | AT4: =+'BISIESTO CAMBIOS DATA'!AT4/366*365 -> 2018.494889 | AU4: =+'BISIESTO CAMBIOS DATA'!AU4/366*365 -> 1723.105393 | AV4: 2 | AW4: 6907.191048 | AX4: 3595.52 | AY4: 3082.11 | AZ4: 2564.58779 | BA4: =+'BISIESTO CAMBIOS DATA'!BA4/366*365 -> 2412.347551 | BB4: =+'BISIESTO CAMBIOS DATA'!BB4/366*365 -> 2018.494889 | BC4: =+'BISIESTO CAMBIOS DATA'!BC4/366*365 -> 1723.105393 | BG4: 2 | BH4: =+'BISIESTO CAMBIOS DATA'!BH4/366*365 -> 312.1564403 | BI4: =+'BISIESTO CAMBIOS DATA'!BI4/366*365 -> 720.0036943
AN5: 3 | AO5: 8930.393286 | AP5: 3831.66 | AQ5: 3121.61 | AR5: 2640.283034 | AS5: =+'BISIESTO CAMBIOS DATA'!AS5/366*365 -> 2412.347551 | AT5: =+'BISIESTO CAMBIOS DATA'!AT5/366*365 -> 2018.494889 | AU5: =+'BISIESTO CAMBIOS DATA'!AU5/366*365 -> 1723.105393 | AV5: 3 | AW5: 6907.191048 | AX5: 3595.52 | AY5: 3082.11 | AZ5: 2564.58779 | BA5: =+'BISIESTO CAMBIOS DATA'!BA5/366*365 -> 2412.347551 | BB5: =+'BISIESTO CAMBIOS DATA'!BB5/366*365 -> 2018.494889 | BC5: =+'BISIESTO CAMBIOS DATA'!BC5/366*365 -> 1723.105393 | BG5: 3 | BH5: =+'BISIESTO CAMBIOS DATA'!BH5/366*365 -> 312.1564403 | BI5: =+'BISIESTO CAMBIOS DATA'!BI5/366*365 -> 720.0036943
AN6: 4 | AO6: 8930.393286 | AP6: 3831.66 | AQ6: 3121.61 | AR6: 2640.283034 | AS6: =+'BISIESTO CAMBIOS DATA'!AS6/366*365 -> 2412.347551 | AT6: =+'BISIESTO CAMBIOS DATA'!AT6/366*365 -> 2018.494889 | AU6: =+'BISIESTO CAMBIOS DATA'!AU6/366*365 -> 1723.105393 | AV6: 4 | AW6: 6907.191048 | AX6: 3595.52 | AY6: 3082.11 | AZ6: 2564.58779 | BA6: =+'BISIESTO CAMBIOS DATA'!BA6/366*365 -> 2412.347551 | BB6: =+'BISIESTO CAMBIOS DATA'!BB6/366*365 -> 2018.494889 | BC6: =+'BISIESTO CAMBIOS DATA'!BC6/366*365 -> 1723.105393 | BG6: 4 | BH6: =+'BISIESTO CAMBIOS DATA'!BH6/366*365 -> 312.1564403 | BI6: =+'BISIESTO CAMBIOS DATA'!BI6/366*365 -> 720.0036943
AN7: 5 | AO7: 8930.393286 | AP7: 3831.66 | AQ7: 3121.61 | AR7: 2640.283034 | AS7: =+'BISIESTO CAMBIOS DATA'!AS7/366*365 -> 2412.347551 | AT7: =+'BISIESTO CAMBIOS DATA'!AT7/366*365 -> 2018.494889 | AU7: =+'BISIESTO CAMBIOS DATA'!AU7/366*365 -> 1723.105393 | AV7: 5 | AW7: 6907.191048 | AX7: 3595.52 | AY7: 3082.11 | AZ7: 2564.58779 | BA7: =+'BISIESTO CAMBIOS DATA'!BA7/366*365 -> 2412.347551 | BB7: =+'BISIESTO CAMBIOS DATA'!BB7/366*365 -> 2018.494889 | BC7: =+'BISIESTO CAMBIOS DATA'!BC7/366*365 -> 1723.105393 | BG7: 5 | BH7: =+'BISIESTO CAMBIOS DATA'!BH7/366*365 -> 312.1564403 | BI7: =+'BISIESTO CAMBIOS DATA'!BI7/366*365 -> 720.0036943
AN8: 6 | AO8: 8930.393286 | AP8: 3831.66 | AQ8: 3121.61 | AR8: 2640.283034 | AS8: =+'BISIESTO CAMBIOS DATA'!AS8/366*365 -> 2412.347551 | AT8: =+'BISIESTO CAMBIOS DATA'!AT8/366*365 -> 2018.494889 | AU8: =+'BISIESTO CAMBIOS DATA'!AU8/366*365 -> 1723.105393 | AV8: 6 | AW8: 6907.191048 | AX8: 3595.52 | AY8: 3082.11 | AZ8: 2564.58779 | BA8: =+'BISIESTO CAMBIOS DATA'!BA8/366*365 -> 2412.347551 | BB8: =+'BISIESTO CAMBIOS DATA'!BB8/366*365 -> 2018.494889 | BC8: =+'BISIESTO CAMBIOS DATA'!BC8/366*365 -> 1723.105393 | BG8: 6 | BH8: =+'BISIESTO CAMBIOS DATA'!BH8/366*365 -> 312.1564403 | BI8: =+'BISIESTO CAMBIOS DATA'!BI8/366*365 -> 720.0036943
AN9: 7 | AO9: 8930.393286 | AP9: 3831.66 | AQ9: 3121.61 | AR9: 2640.283034 | AS9: =+'BISIESTO CAMBIOS DATA'!AS9/366*365 -> 2412.347551 | AT9: =+'BISIESTO CAMBIOS DATA'!AT9/366*365 -> 2018.494889 | AU9: =+'BISIESTO CAMBIOS DATA'!AU9/366*365 -> 1723.105393 | AV9: 7 | AW9: 6907.191048 | AX9: 3595.52 | AY9: 3082.11 | AZ9: 2564.58779 | BA9: =+'BISIESTO CAMBIOS DATA'!BA9/366*365 -> 2412.347551 | BB9: =+'BISIESTO CAMBIOS DATA'!BB9/366*365 -> 2018.494889 | BC9: =+'BISIESTO CAMBIOS DATA'!BC9/366*365 -> 1723.105393 | BG9: 7 | BH9: =+'BISIESTO CAMBIOS DATA'!BH9/366*365 -> 312.1564403 | BI9: =+'BISIESTO CAMBIOS DATA'!BI9/366*365 -> 720.0036943
AN10: 8 | AO10: 8930.393286 | AP10: 3831.66 | AQ10: 3121.61 | AR10: 2640.283034 | AS10: =+'BISIESTO CAMBIOS DATA'!AS10/366*365 -> 2412.347551 | AT10: =+'BISIESTO CAMBIOS DATA'!AT10/366*365 -> 2018.494889 | AU10: =+'BISIESTO CAMBIOS DATA'!AU10/366*365 -> 1723.105393 | AV10: 8 | AW10: 6907.191048 | AX10: 3595.52 | AY10: 3082.11 | AZ10: 2564.58779 | BA10: =+'BISIESTO CAMBIOS DATA'!BA10/366*365 -> 2412.347551 | BB10: =+'BISIESTO CAMBIOS DATA'!BB10/366*365 -> 2018.494889 | BC10: =+'BISIESTO CAMBIOS DATA'!BC10/366*365 -> 1723.105393 | BG10: 8 | BH10: =+'BISIESTO CAMBIOS DATA'!BH10/366*365 -> 312.1564403 | BI10: =+'BISIESTO CAMBIOS DATA'!BI10/366*365 -> 720.0036943
AN11: 9 | AO11: 8930.393286 | AP11: 3831.66 | AQ11: 3121.61 | AR11: 2640.283034 | AS11: =+'BISIESTO CAMBIOS DATA'!AS11/366*365 -> 2412.347551 | AT11: =+'BISIESTO CAMBIOS DATA'!AT11/366*365 -> 2018.494889 | AU11: =+'BISIESTO CAMBIOS DATA'!AU11/366*365 -> 1723.105393 | AV11: 9 | AW11: 6907.191048 | AX11: 3595.52 | AY11: 3082.11 | AZ11: 2564.58779 | BA11: =+'BISIESTO CAMBIOS DATA'!BA11/366*365 -> 2412.347551 | BB11: =+'BISIESTO CAMBIOS DATA'!BB11/366*365 -> 2018.494889 | BC11: =+'BISIESTO CAMBIOS DATA'!BC11/366*365 -> 1723.105393 | BG11: 9 | BH11: =+'BISIESTO CAMBIOS DATA'!BH11/366*365 -> 312.1564403 | BI11: =+'BISIESTO CAMBIOS DATA'!BI11/366*365 -> 720.0036943
AN12: 10 | AO12: 8930.393286 | AP12: 3831.66 | AQ12: 3121.61 | AR12: 2640.283034 | AS12: =+'BISIESTO CAMBIOS DATA'!AS12/366*365 -> 2412.347551 | AT12: =+'BISIESTO CAMBIOS DATA'!AT12/366*365 -> 2018.494889 | AU12: =+'BISIESTO CAMBIOS DATA'!AU12/366*365 -> 1723.105393 | AV12: 10 | AW12: 6907.191048 | AX12: 3595.52 | AY12: 3082.11 | AZ12: 2564.58779 | BA12: =+'BISIESTO CAMBIOS DATA'!BA12/366*365 -> 2412.347551 | BB12: =+'BISIESTO CAMBIOS DATA'!BB12/366*365 -> 2018.494889 | BC12: =+'BISIESTO CAMBIOS DATA'!BC12/366*365 -> 1723.105393 | BG12: 10 | BH12: =+'BISIESTO CAMBIOS DATA'!BH12/366*365 -> 312.1564403 | BI12: =+'BISIESTO CAMBIOS DATA'!BI12/366*365 -> 720.0036943
A13: COMPLETO | AN13: 11 | AO13: 8930.393286 | AP13: 3831.66 | AQ13: 3121.61 | AR13: 2640.283034 | AS13: =+'BISIESTO CAMBIOS DATA'!AS13/366*365 -> 2412.347551 | AT13: =+'BISIESTO CAMBIOS DATA'!AT13/366*365 -> 2018.494889 | AU13: =+'BISIESTO CAMBIOS DATA'!AU13/366*365 -> 1723.105393 | AV13: 11 | AW13: 6907.191048 | AX13: 3595.52 | AY13: 3082.11 | AZ13: 2564.58779 | BA13: =+'BISIESTO CAMBIOS DATA'!BA13/366*365 -> 2412.347551 | BB13: =+'BISIESTO CAMBIOS DATA'!BB13/366*365 -> 2018.494889 | BC13: =+'BISIESTO CAMBIOS DATA'!BC13/366*365 -> 1723.105393 | BG13: 11 | BH13: =+'BISIESTO CAMBIOS DATA'!BH13/366*365 -> 312.1564403 | BI13: =+'BISIESTO CAMBIOS DATA'!BI13/366*365 -> 720.0036943
A14: RESGUARDO | AN14: 12 | AO14: 8930.393286 | AP14: 3831.66 | AQ14: 3121.61 | AR14: 2640.283034 | AS14: =+'BISIESTO CAMBIOS DATA'!AS14/366*365 -> 2412.347551 | AT14: =+'BISIESTO CAMBIOS DATA'!AT14/366*365 -> 2018.494889 | AU14: =+'BISIESTO CAMBIOS DATA'!AU14/366*365 -> 1723.105393 | AV14: 12 | AW14: 6907.191048 | AX14: 3595.52 | AY14: 3082.11 | AZ14: 2564.58779 | BA14: =+'BISIESTO CAMBIOS DATA'!BA14/366*365 -> 2412.347551 | BB14: =+'BISIESTO CAMBIOS DATA'!BB14/366*365 -> 2018.494889 | BC14: =+'BISIESTO CAMBIOS DATA'!BC14/366*365 -> 1723.105393 | BG14: 12 | BH14: =+'BISIESTO CAMBIOS DATA'!BH14/366*365 -> 312.1564403 | BI14: =+'BISIESTO CAMBIOS DATA'!BI14/366*365 -> 720.0036943
A15: MINT DEDUCIBLE 10K | AN15: 13 | AO15: 8930.393286 | AP15: 3831.66 | AQ15: 3121.61 | AR15: 2640.283034 | AS15: =+'BISIESTO CAMBIOS DATA'!AS15/366*365 -> 2412.347551 | AT15: =+'BISIESTO CAMBIOS DATA'!AT15/366*365 -> 2018.494889 | AU15: =+'BISIESTO CAMBIOS DATA'!AU15/366*365 -> 1723.105393 | AV15: 13 | AW15: 6907.191048 | AX15: 3595.52 | AY15: 3082.11 | AZ15: 2564.58779 | BA15: =+'BISIESTO CAMBIOS DATA'!BA15/366*365 -> 2412.347551 | BB15: =+'BISIESTO CAMBIOS DATA'!BB15/366*365 -> 2018.494889 | BC15: =+'BISIESTO CAMBIOS DATA'!BC15/366*365 -> 1723.105393 | BG15: 13 | BH15: =+'BISIESTO CAMBIOS DATA'!BH15/366*365 -> 312.1564403 | BI15: =+'BISIESTO CAMBIOS DATA'!BI15/366*365 -> 720.0036943
A16: MINT DEDUCIBLE 20K | AN16: 14 | AO16: 8930.393286 | AP16: 3831.66 | AQ16: 3121.61 | AR16: 2640.283034 | AS16: =+'BISIESTO CAMBIOS DATA'!AS16/366*365 -> 2412.347551 | AT16: =+'BISIESTO CAMBIOS DATA'!AT16/366*365 -> 2018.494889 | AU16: =+'BISIESTO CAMBIOS DATA'!AU16/366*365 -> 1723.105393 | AV16: 14 | AW16: 6907.191048 | AX16: 3595.52 | AY16: 3082.11 | AZ16: 2564.58779 | BA16: =+'BISIESTO CAMBIOS DATA'!BA16/366*365 -> 2412.347551 | BB16: =+'BISIESTO CAMBIOS DATA'!BB16/366*365 -> 2018.494889 | BC16: =+'BISIESTO CAMBIOS DATA'!BC16/366*365 -> 1723.105393 | BG16: 14 | BH16: =+'BISIESTO CAMBIOS DATA'!BH16/366*365 -> 312.1564403 | BI16: =+'BISIESTO CAMBIOS DATA'!BI16/366*365 -> 720.0036943
AN17: 15 | AO17: 8930.393286 | AP17: 3831.66 | AQ17: 3121.61 | AR17: 2640.283034 | AS17: =+'BISIESTO CAMBIOS DATA'!AS17/366*365 -> 2412.347551 | AT17: =+'BISIESTO CAMBIOS DATA'!AT17/366*365 -> 2018.494889 | AU17: =+'BISIESTO CAMBIOS DATA'!AU17/366*365 -> 1723.105393 | AV17: 15 | AW17: 6907.191048 | AX17: 3595.52 | AY17: 3082.11 | AZ17: 2564.58779 | BA17: =+'BISIESTO CAMBIOS DATA'!BA17/366*365 -> 2412.347551 | BB17: =+'BISIESTO CAMBIOS DATA'!BB17/366*365 -> 2018.494889 | BC17: =+'BISIESTO CAMBIOS DATA'!BC17/366*365 -> 1723.105393 | BG17: 15 | BH17: =+'BISIESTO CAMBIOS DATA'!BH17/366*365 -> 312.1564403 | BI17: =+'BISIESTO CAMBIOS DATA'!BI17/366*365 -> 720.0036943
AN18: 16 | AO18: 8930.393286 | AP18: 3831.66 | AQ18: 3121.61 | AR18: 2640.283034 | AS18: =+'BISIESTO CAMBIOS DATA'!AS18/366*365 -> 2412.347551 | AT18: =+'BISIESTO CAMBIOS DATA'!AT18/366*365 -> 2018.494889 | AU18: =+'BISIESTO CAMBIOS DATA'!AU18/366*365 -> 1723.105393 | AV18: 16 | AW18: 6907.191048 | AX18: 3595.52 | AY18: 3082.11 | AZ18: 2564.58779 | BA18: =+'BISIESTO CAMBIOS DATA'!BA18/366*365 -> 2412.347551 | BB18: =+'BISIESTO CAMBIOS DATA'!BB18/366*365 -> 2018.494889 | BC18: =+'BISIESTO CAMBIOS DATA'!BC18/366*365 -> 1723.105393 | BG18: 16 | BH18: =+'BISIESTO CAMBIOS DATA'!BH18/366*365 -> 312.1564403 | BI18: =+'BISIESTO CAMBIOS DATA'!BI18/366*365 -> 720.0036943
AN19: 17 | AO19: 8930.393286 | AP19: 3831.66 | AQ19: 3121.61 | AR19: 2640.283034 | AS19: =+'BISIESTO CAMBIOS DATA'!AS19/366*365 -> 2412.347551 | AT19: =+'BISIESTO CAMBIOS DATA'!AT19/366*365 -> 2018.494889 | AU19: =+'BISIESTO CAMBIOS DATA'!AU19/366*365 -> 1723.105393 | AV19: 17 | AW19: 6907.191048 | AX19: 3595.52 | AY19: 3082.11 | AZ19: 2564.58779 | BA19: =+'BISIESTO CAMBIOS DATA'!BA19/366*365 -> 2412.347551 | BB19: =+'BISIESTO CAMBIOS DATA'!BB19/366*365 -> 2018.494889 | BC19: =+'BISIESTO CAMBIOS DATA'!BC19/366*365 -> 1723.105393 | BG19: 17 | BH19: =+'BISIESTO CAMBIOS DATA'!BH19/366*365 -> 312.1564403 | BI19: =+'BISIESTO CAMBIOS DATA'!BI19/366*365 -> 720.0036943
AN20: 18 | AO20: 9122.922495 | AP20: 3831.66 | AQ20: 3121.61 | AR20: 2706.104986 | AS20: =+'BISIESTO CAMBIOS DATA'!AS20/366*365 -> 2461.579133 | AT20: =+'BISIESTO CAMBIOS DATA'!AT20/366*365 -> 2067.726472 | AU20: =+'BISIESTO CAMBIOS DATA'!AU20/366*365 -> 1723.105393 | AV20: 18 | AW20: 6959.84861 | AX20: 3609.51 | AY20: 3082.11 | AZ20: 2659.206845 | BA20: =+'BISIESTO CAMBIOS DATA'!BA20/366*365 -> 2461.579133 | BB20: =+'BISIESTO CAMBIOS DATA'!BB20/366*365 -> 2067.726472 | BC20: =+'BISIESTO CAMBIOS DATA'!BC20/366*365 -> 1723.105393 | BG20: 18 | BH20: =+'BISIESTO CAMBIOS DATA'!BH20/366*365 -> 312.1564403 | BI20: =+'BISIESTO CAMBIOS DATA'!BI20/366*365 -> 720.0036943
AN21: 19 | AO21: 9122.922495 | AP21: 3831.66 | AQ21: 3121.61 | AR21: 2706.104986 | AS21: =+'BISIESTO CAMBIOS DATA'!AS21/366*365 -> 2461.579133 | AT21: =+'BISIESTO CAMBIOS DATA'!AT21/366*365 -> 2067.726472 | AU21: =+'BISIESTO CAMBIOS DATA'!AU21/366*365 -> 1723.105393 | AV21: 19 | AW21: 6959.84861 | AX21: 3609.51 | AY21: 3082.11 | AZ21: 2659.206845 | BA21: =+'BISIESTO CAMBIOS DATA'!BA21/366*365 -> 2461.579133 | BB21: =+'BISIESTO CAMBIOS DATA'!BB21/366*365 -> 2067.726472 | BC21: =+'BISIESTO CAMBIOS DATA'!BC21/366*365 -> 1723.105393 | BG21: 19 | BH21: =+'BISIESTO CAMBIOS DATA'!BH21/366*365 -> 329.8081438 | BI21: =+'BISIESTO CAMBIOS DATA'!BI21/366*365 -> 749.7328791
AN22: 20 | AO22: 9122.922495 | AP22: 3831.66 | AQ22: 3121.61 | AR22: 2706.104986 | AS22: =+'BISIESTO CAMBIOS DATA'!AS22/366*365 -> 2461.579133 | AT22: =+'BISIESTO CAMBIOS DATA'!AT22/366*365 -> 2067.726472 | AU22: =+'BISIESTO CAMBIOS DATA'!AU22/366*365 -> 1723.105393 | AV22: 20 | AW22: 6959.84861 | AX22: 3609.51 | AY22: 3082.11 | AZ22: 2659.206845 | BA22: =+'BISIESTO CAMBIOS DATA'!BA22/366*365 -> 2461.579133 | BB22: =+'BISIESTO CAMBIOS DATA'!BB22/366*365 -> 2067.726472 | BC22: =+'BISIESTO CAMBIOS DATA'!BC22/366*365 -> 1723.105393 | BG22: 20 | BH22: =+'BISIESTO CAMBIOS DATA'!BH22/366*365 -> 329.8081438 | BI22: =+'BISIESTO CAMBIOS DATA'!BI22/366*365 -> 779.4620638
AN23: 21 | AO23: 9122.922495 | AP23: 3831.66 | AQ23: 3121.61 | AR23: 2706.104986 | AS23: =+'BISIESTO CAMBIOS DATA'!AS23/366*365 -> 2461.579133 | AT23: =+'BISIESTO CAMBIOS DATA'!AT23/366*365 -> 2067.726472 | AU23: =+'BISIESTO CAMBIOS DATA'!AU23/366*365 -> 1723.105393 | AV23: 21 | AW23: 6959.84861 | AX23: 3609.51 | AY23: 3082.11 | AZ23: 2659.206845 | BA23: =+'BISIESTO CAMBIOS DATA'!BA23/366*365 -> 2461.579133 | BB23: =+'BISIESTO CAMBIOS DATA'!BB23/366*365 -> 2067.726472 | BC23: =+'BISIESTO CAMBIOS DATA'!BC23/366*365 -> 1723.105393 | BG23: 21 | BH23: =+'BISIESTO CAMBIOS DATA'!BH23/366*365 -> 329.8081438 | BI23: =+'BISIESTO CAMBIOS DATA'!BI23/366*365 -> 810.1202857
AN24: 22 | AO24: 9122.922495 | AP24: 3831.66 | AQ24: 3121.61 | AR24: 2706.104986 | AS24: =+'BISIESTO CAMBIOS DATA'!AS24/366*365 -> 2461.579133 | AT24: =+'BISIESTO CAMBIOS DATA'!AT24/366*365 -> 2067.726472 | AU24: =+'BISIESTO CAMBIOS DATA'!AU24/366*365 -> 1723.105393 | AV24: 22 | AW24: 6959.84861 | AX24: 3609.51 | AY24: 3082.11 | AZ24: 2659.206845 | BA24: =+'BISIESTO CAMBIOS DATA'!BA24/366*365 -> 2461.579133 | BB24: =+'BISIESTO CAMBIOS DATA'!BB24/366*365 -> 2067.726472 | BC24: =+'BISIESTO CAMBIOS DATA'!BC24/366*365 -> 1723.105393 | BG24: 22 | BH24: =+'BISIESTO CAMBIOS DATA'!BH24/366*365 -> 329.8081438 | BI24: =+'BISIESTO CAMBIOS DATA'!BI24/366*365 -> 839.8494705
AN25: 23 | AO25: 9122.922495 | AP25: 3831.66 | AQ25: 3121.61 | AR25: 2706.104986 | AS25: =+'BISIESTO CAMBIOS DATA'!AS25/366*365 -> 2461.579133 | AT25: =+'BISIESTO CAMBIOS DATA'!AT25/366*365 -> 2067.726472 | AU25: =+'BISIESTO CAMBIOS DATA'!AU25/366*365 -> 1723.105393 | AV25: 23 | AW25: 6959.84861 | AX25: 3609.51 | AY25: 3082.11 | AZ25: 2659.206845 | BA25: =+'BISIESTO CAMBIOS DATA'!BA25/366*365 -> 2461.579133 | BB25: =+'BISIESTO CAMBIOS DATA'!BB25/366*365 -> 2067.726472 | BC25: =+'BISIESTO CAMBIOS DATA'!BC25/366*365 -> 1723.105393 | BG25: 23 | BH25: =+'BISIESTO CAMBIOS DATA'!BH25/366*365 -> 329.8081438 | BI25: =+'BISIESTO CAMBIOS DATA'!BI25/366*365 -> 900.2368771
AN26: 24 | AO26: 9122.922495 | AP26: 3831.66 | AQ26: 3121.61 | AR26: 2706.104986 | AS26: =+'BISIESTO CAMBIOS DATA'!AS26/366*365 -> 2461.579133 | AT26: =+'BISIESTO CAMBIOS DATA'!AT26/366*365 -> 2067.726472 | AU26: =+'BISIESTO CAMBIOS DATA'!AU26/366*365 -> 1723.105393 | AV26: 24 | AW26: 6959.84861 | AX26: 3609.51 | AY26: 3082.11 | AZ26: 2659.206845 | BA26: =+'BISIESTO CAMBIOS DATA'!BA26/366*365 -> 2461.579133 | BB26: =+'BISIESTO CAMBIOS DATA'!BB26/366*365 -> 2067.726472 | BC26: =+'BISIESTO CAMBIOS DATA'!BC26/366*365 -> 1723.105393 | BG26: 24 | BH26: =+'BISIESTO CAMBIOS DATA'!BH26/366*365 -> 329.8081438 | BI26: =+'BISIESTO CAMBIOS DATA'!BI26/366*365 -> 959.6952467
A27: Titular | AN27: 25 | AO27: 9122.922495 | AP27: 3831.66 | AQ27: 3121.61 | AR27: 2706.104986 | AS27: =+'BISIESTO CAMBIOS DATA'!AS27/366*365 -> 2461.579133 | AT27: =+'BISIESTO CAMBIOS DATA'!AT27/366*365 -> 2067.726472 | AU27: =+'BISIESTO CAMBIOS DATA'!AU27/366*365 -> 1723.105393 | AV27: 25 | AW27: 6959.84861 | AX27: 3609.51 | AY27: 3082.11 | AZ27: 2659.206845 | BA27: =+'BISIESTO CAMBIOS DATA'!BA27/366*365 -> 2461.579133 | BB27: =+'BISIESTO CAMBIOS DATA'!BB27/366*365 -> 2067.726472 | BC27: =+'BISIESTO CAMBIOS DATA'!BC27/366*365 -> 1723.105393 | BG27: 25 | BH27: =+'BISIESTO CAMBIOS DATA'!BH27/366*365 -> 349.3179213 | BI27: =+'BISIESTO CAMBIOS DATA'!BI27/366*365 -> 1020.082653
A28: Cónyugé/Conviviente | AN28: 26 | AO28: 9148.428501 | AP28: 4144.31 | AQ28: 3472.11 | AR28: 2772.749712 | AS28: =+'BISIESTO CAMBIOS DATA'!AS28/366*365 -> 2530.503349 | AT28: =+'BISIESTO CAMBIOS DATA'!AT28/366*365 -> 2166.189637 | AU28: =+'BISIESTO CAMBIOS DATA'!AU28/366*365 -> 1821.568559 | AV28: 26 | AW28: 7430.475564 | AX28: 4000.33 | AY28: 3399.7 | AZ28: 2762.876419 | BA28: =+'BISIESTO CAMBIOS DATA'!BA28/366*365 -> 2530.503349 | BB28: =+'BISIESTO CAMBIOS DATA'!BB28/366*365 -> 2166.189637 | BC28: =+'BISIESTO CAMBIOS DATA'!BC28/366*365 -> 1821.568559 | BG28: 26 | BH28: =+'BISIESTO CAMBIOS DATA'!BH28/366*365 -> 390.1955504 | BI28: =+'BISIESTO CAMBIOS DATA'!BI28/366*365 -> 1079.541023
A29: Hijo(a) | AN29: 27 | AO29: 9210.136581 | AP29: 4375.51 | AQ29: 3633.37 | AR29: 2838.571664 | AS29: =+'BISIESTO CAMBIOS DATA'!AS29/366*365 -> 2579.734932 | AT29: =+'BISIESTO CAMBIOS DATA'!AT29/366*365 -> 2215.42122 | AU29: =+'BISIESTO CAMBIOS DATA'!AU29/366*365 -> 1821.568559 | AV29: 27 | AW29: 9210.136581 | AX29: 4375.51 | AY29: 3633.37 | AZ29: 2838.571664 | BA29: =+'BISIESTO CAMBIOS DATA'!BA29/366*365 -> 2579.734932 | BB29: =+'BISIESTO CAMBIOS DATA'!BB29/366*365 -> 2215.42122 | BC29: =+'BISIESTO CAMBIOS DATA'!BC29/366*365 -> 1821.568559 | BG29: 27 | BH29: =+'BISIESTO CAMBIOS DATA'!BH29/366*365 -> 459.8733273 | BI29: =+'BISIESTO CAMBIOS DATA'!BI29/366*365 -> 1139.928429
AN30: 28 | AO30: 9401.843015 | AP30: 4593.55 | AQ30: 3746.09 | AR30: 2914.266908 | AS30: =+'BISIESTO CAMBIOS DATA'!AS30/366*365 -> 2609.273881 | AT30: =+'BISIESTO CAMBIOS DATA'!AT30/366*365 -> 2235.113853 | AU30: =+'BISIESTO CAMBIOS DATA'!AU30/366*365 -> 1821.568559 | AV30: 28 | AW30: 9401.843015 | AX30: 4593.55 | AY30: 3746.09 | AZ30: 2914.266908 | BA30: =+'BISIESTO CAMBIOS DATA'!BA30/366*365 -> 2609.273881 | BB30: =+'BISIESTO CAMBIOS DATA'!BB30/366*365 -> 2235.113853 | BC30: =+'BISIESTO CAMBIOS DATA'!BC30/366*365 -> 1821.568559 | BG30: 28 | BH30: =+'BISIESTO CAMBIOS DATA'!BH30/366*365 -> 596.44177 | BI30: =+'BISIESTO CAMBIOS DATA'!BI30/366*365 -> 1200.315836
AN31: 29 | AO31: 9593.549449 | AP31: 4853.55 | AQ31: 3884.32 | AR31: 2989.962152 | AS31: =+'BISIESTO CAMBIOS DATA'!AS31/366*365 -> 2678.198097 | AT31: =+'BISIESTO CAMBIOS DATA'!AT31/366*365 -> 2264.652803 | AU31: =+'BISIESTO CAMBIOS DATA'!AU31/366*365 -> 1821.568559 | AV31: 29 | AW31: 9593.549449 | AX31: 4853.55 | AY31: 3884.32 | AZ31: 2989.962152 | BA31: =+'BISIESTO CAMBIOS DATA'!BA31/366*365 -> 2678.198097 | BB31: =+'BISIESTO CAMBIOS DATA'!BB31/366*365 -> 2264.652803 | BC31: =+'BISIESTO CAMBIOS DATA'!BC31/366*365 -> 1821.568559 | BG31: 29 | BH31: =+'BISIESTO CAMBIOS DATA'!BH31/366*365 -> 706.9971759 | BI31: =+'BISIESTO CAMBIOS DATA'!BI31/366*365 -> 1290.432427
AN32: 30 | AO32: 9777.028139 | AP32: 5143.16 | AQ32: 3906.53 | AR32: 3065.657397 | AS32: =+'BISIESTO CAMBIOS DATA'!AS32/366*365 -> 2707.737047 | AT32: =+'BISIESTO CAMBIOS DATA'!AT32/366*365 -> 2284.345436 | AU32: =+'BISIESTO CAMBIOS DATA'!AU32/366*365 -> 1821.568559 | AV32: 30 | AW32: 9777.028139 | AX32: 5143.16 | AY32: 3906.53 | AZ32: 3065.657397 | BA32: =+'BISIESTO CAMBIOS DATA'!BA32/366*365 -> 2707.737047 | BB32: =+'BISIESTO CAMBIOS DATA'!BB32/366*365 -> 2284.345436 | BC32: =+'BISIESTO CAMBIOS DATA'!BC32/366*365 -> 1821.568559 | BG32: 30 | BH32: =+'BISIESTO CAMBIOS DATA'!BH32/366*365 -> 761.8103604 | BI32: =+'BISIESTO CAMBIOS DATA'!BI32/366*365 -> 1379.619982
AN33: 31 | AO33: 9968.734573 | AP33: 5320.06 | AQ33: 3958.37 | AR33: 3141.352641 | AS33: =+'BISIESTO CAMBIOS DATA'!AS33/366*365 -> 2756.968629 | AT33: =+'BISIESTO CAMBIOS DATA'!AT33/366*365 -> 2313.884385 | AU33: =+'BISIESTO CAMBIOS DATA'!AU33/366*365 -> 2018.494889 | AV33: 31 | AW33: 9968.734573 | AX33: 5320.06 | AY33: 3958.37 | AZ33: 3141.352641 | BA33: =+'BISIESTO CAMBIOS DATA'!BA33/366*365 -> 2756.968629 | BB33: =+'BISIESTO CAMBIOS DATA'!BB33/366*365 -> 2313.884385 | BC33: =+'BISIESTO CAMBIOS DATA'!BC33/366*365 -> 2018.494889 | BG33: 31 | BH33: =+'BISIESTO CAMBIOS DATA'!BH33/366*365 -> 816.6235448 | BI33: =+'BISIESTO CAMBIOS DATA'!BI33/366*365 -> 1469.736573
AN34: 32 | AO34: 10151.39049 | AP34: 5536.45 | AQ34: 3978.11 | AR34: 3217.047885 | AS34: =+'BISIESTO CAMBIOS DATA'!AS34/366*365 -> 2806.200212 | AT34: =+'BISIESTO CAMBIOS DATA'!AT34/366*365 -> 2363.115968 | AU34: =+'BISIESTO CAMBIOS DATA'!AU34/366*365 -> 2018.494889 | AV34: 32 | AW34: 10151.39049 | AX34: 5536.45 | AY34: 3978.11 | AZ34: 3217.047885 | BA34: =+'BISIESTO CAMBIOS DATA'!BA34/366*365 -> 2806.200212 | BB34: =+'BISIESTO CAMBIOS DATA'!BB34/366*365 -> 2363.115968 | BC34: =+'BISIESTO CAMBIOS DATA'!BC34/366*365 -> 2018.494889 | BG34: 32 | BH34: =+'BISIESTO CAMBIOS DATA'!BH34/366*365 -> 868.6496182 | BI34: =+'BISIESTO CAMBIOS DATA'!BI34/366*365 -> 1559.853165
AN35: 33 | AO35: 10247.65509 | AP35: 5671.38 | AQ35: 4019.25 | AR35: 3292.74313 | AS35: =+'BISIESTO CAMBIOS DATA'!AS35/366*365 -> 2855.431795 | AT35: =+'BISIESTO CAMBIOS DATA'!AT35/366*365 -> 2412.347551 | AU35: =+'BISIESTO CAMBIOS DATA'!AU35/366*365 -> 2018.494889 | AV35: 33 | AW35: 10247.65509 | AX35: 5671.38 | AY35: 4019.25 | AZ35: 3292.74313 | BA35: =+'BISIESTO CAMBIOS DATA'!BA35/366*365 -> 2855.431795 | BB35: =+'BISIESTO CAMBIOS DATA'!BB35/366*365 -> 2412.347551 | BC35: =+'BISIESTO CAMBIOS DATA'!BC35/366*365 -> 2018.494889 | BG35: 33 | BH35: =+'BISIESTO CAMBIOS DATA'!BH35/366*365 -> 904.8820622 | BI35: =+'BISIESTO CAMBIOS DATA'!BI35/366*365 -> 1649.969756
AN36: 34 | AO36: 10439.36153 | AP36: 5786.57 | AQ36: 4040.65 | AR36: 3368.438374 | AS36: =+'BISIESTO CAMBIOS DATA'!AS36/366*365 -> 2904.663377 | AT36: =+'BISIESTO CAMBIOS DATA'!AT36/366*365 -> 2461.579133 | AU36: =+'BISIESTO CAMBIOS DATA'!AU36/366*365 -> 2018.494889 | AV36: 34 | AW36: 10439.36153 | AX36: 5786.57 | AY36: 4040.65 | AZ36: 3368.438374 | BA36: =+'BISIESTO CAMBIOS DATA'!BA36/366*365 -> 2904.663377 | BB36: =+'BISIESTO CAMBIOS DATA'!BB36/366*365 -> 2461.579133 | BC36: =+'BISIESTO CAMBIOS DATA'!BC36/366*365 -> 2018.494889 | BG36: 34 | BH36: =+'BISIESTO CAMBIOS DATA'!BH36/366*365 -> 942.9725802 | BI36: =+'BISIESTO CAMBIOS DATA'!BI36/366*365 -> 1741.015385
AN37: 35 | AO37: 10579.23317 | AP37: 5880.37 | AQ37: 4093.3 | AR37: 3444.133619 | AS37: =+'BISIESTO CAMBIOS DATA'!AS37/366*365 -> 2953.89496 | AT37: =+'BISIESTO CAMBIOS DATA'!AT37/366*365 -> 2510.810716 | AU37: =+'BISIESTO CAMBIOS DATA'!AU37/366*365 -> 2018.494889 | AV37: 35 | AW37: 10579.23317 | AX37: 5880.37 | AY37: 4093.3 | AZ37: 3444.133619 | BA37: =+'BISIESTO CAMBIOS DATA'!BA37/366*365 -> 2953.89496 | BB37: =+'BISIESTO CAMBIOS DATA'!BB37/366*365 -> 2510.810716 | BC37: =+'BISIESTO CAMBIOS DATA'!BC37/366*365 -> 2018.494889 | BG37: 35 | BH37: =+'BISIESTO CAMBIOS DATA'!BH37/366*365 -> 969.9146539 | BI37: =+'BISIESTO CAMBIOS DATA'!BI37/366*365 -> 1830.202939
AN38: 36 | AO38: 10718.28205 | AP38: 5953.6 | AQ38: 4102.35 | AR38: 3519.828863 | AS38: =+'BISIESTO CAMBIOS DATA'!AS38/366*365 -> 3003.126543 | AT38: =+'BISIESTO CAMBIOS DATA'!AT38/366*365 -> 2560.042299 | AU38: =+'BISIESTO CAMBIOS DATA'!AU38/366*365 -> 2116.958055 | AV38: 36 | AW38: 10718.28205 | AX38: 5953.6 | AY38: 4102.35 | AZ38: 3519.828863 | BA38: =+'BISIESTO CAMBIOS DATA'!BA38/366*365 -> 3003.126543 | BB38: =+'BISIESTO CAMBIOS DATA'!BB38/366*365 -> 2560.042299 | BC38: =+'BISIESTO CAMBIOS DATA'!BC38/366*365 -> 2116.958055 | BG38: 36 | BH38: =+'BISIESTO CAMBIOS DATA'!BH38/366*365 -> 969.9146539 | BI38: =+'BISIESTO CAMBIOS DATA'!BI38/366*365 -> 1920.31953
A39: Integrales | AN39: 37 | AO39: 10998.02534 | AP39: 6027.65 | AQ39: 4110.58 | AR39: 3595.524107 | AS39: =+'BISIESTO CAMBIOS DATA'!AS39/366*365 -> 3052.358125 | AT39: =+'BISIESTO CAMBIOS DATA'!AT39/366*365 -> 2609.273881 | AU39: =+'BISIESTO CAMBIOS DATA'!AU39/366*365 -> 2116.958055 | AV39: 37 | AW39: 10998.02534 | AX39: 6027.65 | AY39: 4110.58 | AZ39: 3595.524107 | BA39: =+'BISIESTO CAMBIOS DATA'!BA39/366*365 -> 3052.358125 | BB39: =+'BISIESTO CAMBIOS DATA'!BB39/366*365 -> 2609.273881 | BC39: =+'BISIESTO CAMBIOS DATA'!BC39/366*365 -> 2116.958055 | BG39: 37 | BH39: =+'BISIESTO CAMBIOS DATA'!BH39/366*365 -> 969.9146539 | BI39: =+'BISIESTO CAMBIOS DATA'!BI39/366*365 -> 2010.436122
A40: FINANCIAMIENTOS JUN 2022 | B40: FACTORES | AN40: 38 | AO40: 11285.17361 | AP40: 6151.06 | AQ40: 4118.81 | AR40: 3690.143163 | AS40: =+'BISIESTO CAMBIOS DATA'!AS40/366*365 -> 3101.589708 | AT40: =+'BISIESTO CAMBIOS DATA'!AT40/366*365 -> 2658.505464 | AU40: =+'BISIESTO CAMBIOS DATA'!AU40/366*365 -> 2116.958055 | AV40: 38 | AW40: 11285.17361 | AX40: 6151.06 | AY40: 4118.81 | AZ40: 3690.143163 | BA40: =+'BISIESTO CAMBIOS DATA'!BA40/366*365 -> 3101.589708 | BB40: =+'BISIESTO CAMBIOS DATA'!BB40/366*365 -> 2658.505464 | BC40: =+'BISIESTO CAMBIOS DATA'!BC40/366*365 -> 2116.958055 | BG40: 38 | BH40: =+'BISIESTO CAMBIOS DATA'!BH40/366*365 -> 1042.379542 | BI40: =+'BISIESTO CAMBIOS DATA'!BI40/366*365 -> 2099.623676
A41: AL CONTADO NO APLICAN | B41: 1 | AN41: 39 | AO41: 11564.9169 | AP41: 6284.35 | AQ41: 4127.86 | AR41: 3784.762218 | AS41: =+'BISIESTO CAMBIOS DATA'!AS41/366*365 -> 3150.821291 | AT41: =+'BISIESTO CAMBIOS DATA'!AT41/366*365 -> 2707.737047 | AU41: =+'BISIESTO CAMBIOS DATA'!AU41/366*365 -> 2116.958055 | AV41: 39 | AW41: 11564.9169 | AX41: 6284.35 | AY41: 4127.86 | AZ41: 3784.762218 | BA41: =+'BISIESTO CAMBIOS DATA'!BA41/366*365 -> 3150.821291 | BB41: =+'BISIESTO CAMBIOS DATA'!BB41/366*365 -> 2707.737047 | BC41: =+'BISIESTO CAMBIOS DATA'!BC41/366*365 -> 2116.958055 | BG41: 39 | BH41: =+'BISIESTO CAMBIOS DATA'!BH41/366*365 -> 1042.379542 | BI41: =+'BISIESTO CAMBIOS DATA'!BI41/366*365 -> 2160.011083
A42: 4 CUOTAS SIN INTERESES | B42: 4 | AN42: 40 | AO42: 11843.83742 | AP42: 6559.98 | AQ42: 4168.18 | AR42: 3879.381274 | AS42: =+'BISIESTO CAMBIOS DATA'!AS42/366*365 -> 3249.284456 | AT42: =+'BISIESTO CAMBIOS DATA'!AT42/366*365 -> 2756.968629 | AU42: =+'BISIESTO CAMBIOS DATA'!AU42/366*365 -> 2116.958055 | AV42: 40 | AW42: 11843.83742 | AX42: 6559.98 | AY42: 4168.18 | AZ42: 3879.381274 | BA42: =+'BISIESTO CAMBIOS DATA'!BA42/366*365 -> 3249.284456 | BB42: =+'BISIESTO CAMBIOS DATA'!BB42/366*365 -> 2756.968629 | BC42: =+'BISIESTO CAMBIOS DATA'!BC42/366*365 -> 2116.958055 | BG42: 40 | BH42: =+'BISIESTO CAMBIOS DATA'!BH42/366*365 -> 1042.379542 | BI42: =+'BISIESTO CAMBIOS DATA'!BI42/366*365 -> 2250.127674
A43: 6 CUOTAS SIN INTERESES - DÉBITO AUTOMÁTICO | B43: 6 | AN43: 41 | AO43: 12035.54385 | AP43: 6803.52 | AQ43: 4508.8 | AR43: 3992.92414 | AS43: =+'BISIESTO CAMBIOS DATA'!AS43/366*365 -> 3347.747621 | AT43: =+'BISIESTO CAMBIOS DATA'!AT43/366*365 -> 2904.663377 | AU43: =+'BISIESTO CAMBIOS DATA'!AU43/366*365 -> 2264.652803 | AV43: 41 | AW43: 12035.54385 | AX43: 6803.52 | AY43: 4508.8 | AZ43: 3992.92414 | BA43: =+'BISIESTO CAMBIOS DATA'!BA43/366*365 -> 3347.747621 | BB43: =+'BISIESTO CAMBIOS DATA'!BB43/366*365 -> 2904.663377 | BC43: =+'BISIESTO CAMBIOS DATA'!BC43/366*365 -> 2264.652803 | BG43: 41 | BH43: =+'BISIESTO CAMBIOS DATA'!BH43/366*365 -> 1142.715541 | BI43: =+'BISIESTO CAMBIOS DATA'!BI43/366*365 -> 2340.244266
A44: 6 CUOTAS TCEA 4% - DÉBITO AUTOMÁTICO | B44: 5.931847245 | AN44: 42 | AO44: 12314.46437 | AP44: 7137.57 | AQ44: 4839.56 | AR44: 4106.467007 | AS44: =+'BISIESTO CAMBIOS DATA'!AS44/366*365 -> 3593.905535 | AT44: =+'BISIESTO CAMBIOS DATA'!AT44/366*365 -> 3052.358125 | AU44: =+'BISIESTO CAMBIOS DATA'!AU44/366*365 -> 2412.347551 | AV44: 42 | AW44: 12314.46437 | AX44: 7137.57 | AY44: 4839.56 | AZ44: 4106.467007 | BA44: =+'BISIESTO CAMBIOS DATA'!BA44/366*365 -> 3593.905535 | BB44: =+'BISIESTO CAMBIOS DATA'!BB44/366*365 -> 3052.358125 | BC44: =+'BISIESTO CAMBIOS DATA'!BC44/366*365 -> 2412.347551 | BG44: 42 | BH44: =+'BISIESTO CAMBIOS DATA'!BH44/366*365 -> 1223.541762 | BI44: =+'BISIESTO CAMBIOS DATA'!BI44/366*365 -> 2430.360857
A45: 6 CUOTAS TCEA 17.5% - CUPONES | B45: 5.725823013 | AN45: 43 | AO45: 12602.43541 | AP45: 7390.16 | AQ45: 5268.22 | AR45: 4220.009873 | AS45: =+'BISIESTO CAMBIOS DATA'!AS45/366*365 -> 3840.063448 | AT45: =+'BISIESTO CAMBIOS DATA'!AT45/366*365 -> 3170.513924 | AU45: =+'BISIESTO CAMBIOS DATA'!AU45/366*365 -> 2510.810716 | AV45: 43 | AW45: 12602.43541 | AX45: 7390.16 | AY45: 5268.22 | AZ45: 4220.009873 | BA45: =+'BISIESTO CAMBIOS DATA'!BA45/366*365 -> 3840.063448 | BB45: =+'BISIESTO CAMBIOS DATA'!BB45/366*365 -> 3170.513924 | BC45: =+'BISIESTO CAMBIOS DATA'!BC45/366*365 -> 2510.810716 | BG45: 43 | BH45: =+'BISIESTO CAMBIOS DATA'!BH45/366*365 -> 1303.438946 | BI45: =+'BISIESTO CAMBIOS DATA'!BI45/366*365 -> 2519.548411
A46: 10 CUOTAS SIN INTERESES - DÉBITO AUTOMÁTICO | B46: 10 | AN46: 44 | AO46: 12689.6495 | AP46: 7662.5 | AQ46: 5455.82 | AR46: 4352.476551 | AS46: =+'BISIESTO CAMBIOS DATA'!AS46/366*365 -> 4086.221361 | AT46: =+'BISIESTO CAMBIOS DATA'!AT46/366*365 -> 3268.977089 | AU46: =+'BISIESTO CAMBIOS DATA'!AU46/366*365 -> 2609.273881 | AV46: 44 | AW46: 12689.6495 | AX46: 7662.5 | AY46: 5455.82 | AZ46: 4352.476551 | BA46: =+'BISIESTO CAMBIOS DATA'!BA46/366*365 -> 4086.221361 | BB46: =+'BISIESTO CAMBIOS DATA'!BB46/366*365 -> 3268.977089 | BC46: =+'BISIESTO CAMBIOS DATA'!BC46/366*365 -> 2609.273881 | BG46: 44 | BH46: =+'BISIESTO CAMBIOS DATA'!BH46/366*365 -> 1347.103686 | BI46: =+'BISIESTO CAMBIOS DATA'!BI46/366*365 -> 2609.665003
A47: 10 CUOTAS TCEA 4% - DÉBITO AUTOMÁTICO | B47: 9.822277276 | AN47: 45 | AO47: 12785.9141 | AP47: 7854.2 | AQ47: 5663.16 | AR47: 4522.790851 | AS47: =+'BISIESTO CAMBIOS DATA'!AS47/366*365 -> 4332.379275 | AT47: =+'BISIESTO CAMBIOS DATA'!AT47/366*365 -> 3367.440254 | AU47: =+'BISIESTO CAMBIOS DATA'!AU47/366*365 -> 2707.737047 | AV47: 45 | AW47: 12785.9141 | AX47: 7854.2 | AY47: 5663.16 | AZ47: 4522.790851 | BA47: =+'BISIESTO CAMBIOS DATA'!BA47/366*365 -> 4332.379275 | BB47: =+'BISIESTO CAMBIOS DATA'!BB47/366*365 -> 3367.440254 | BC47: =+'BISIESTO CAMBIOS DATA'!BC47/366*365 -> 2707.737047 | BG47: 45 | BH47: =+'BISIESTO CAMBIOS DATA'!BH47/366*365 -> 1445.581611 | BI47: =+'BISIESTO CAMBIOS DATA'!BI47/366*365 -> 2699.781594
A48: 10 CUOTAS TCEA 17.5% - CUPONES | B48: 9.294431117 | AN48: 46 | AO48: 13343.75514 | AP48: 8276.29 | AQ48: 6079.48 | AR48: 4712.028962 | AS48: =+'BISIESTO CAMBIOS DATA'!AS48/366*365 -> 4578.537188 | AT48: =+'BISIESTO CAMBIOS DATA'!AT48/366*365 -> 3465.90342 | AU48: =+'BISIESTO CAMBIOS DATA'!AU48/366*365 -> 2806.200212 | AV48: 46 | AW48: 13343.75514 | AX48: 8276.29 | AY48: 6079.48 | AZ48: 4712.028962 | BA48: =+'BISIESTO CAMBIOS DATA'!BA48/366*365 -> 4578.537188 | BB48: =+'BISIESTO CAMBIOS DATA'!BB48/366*365 -> 3465.90342 | BC48: =+'BISIESTO CAMBIOS DATA'!BC48/366*365 -> 2806.200212 | BG48: 46 | BH48: =+'BISIESTO CAMBIOS DATA'!BH48/366*365 -> 1590.511387 | BI48: =+'BISIESTO CAMBIOS DATA'!BI48/366*365 -> 2789.898186
A49: 12 CUOTAS SIN INTERESES - DÉBITO AUTOMÁTICO | B49: 12 | AN49: 47 | AO49: 14006.9113 | AP49: 8575.78 | AQ49: 6332.89 | AR49: 4901.267073 | AS49: =+'BISIESTO CAMBIOS DATA'!AS49/366*365 -> 4726.231936 | AT49: =+'BISIESTO CAMBIOS DATA'!AT49/366*365 -> 3564.366585 | AU49: =+'BISIESTO CAMBIOS DATA'!AU49/366*365 -> 2904.663377 | AV49: 47 | AW49: 14006.9113 | AX49: 8575.78 | AY49: 6332.89 | AZ49: 4901.267073 | BA49: =+'BISIESTO CAMBIOS DATA'!BA49/366*365 -> 4726.231936 | BB49: =+'BISIESTO CAMBIOS DATA'!BB49/366*365 -> 3564.366585 | BC49: =+'BISIESTO CAMBIOS DATA'!BC49/366*365 -> 2904.663377 | BG49: 47 | BH49: =+'BISIESTO CAMBIOS DATA'!BH49/366*365 -> 1664.834349 | BI49: =+'BISIESTO CAMBIOS DATA'!BI49/366*365 -> 2880.014777
A50: 12 CUOTAS TCEA 4% - DÉBITO AUTOMÁTICO | B50: 11.74850203 | AN50: 48 | AO50: 14669.24469 | AP50: 8796.28 | AQ50: 6537.77 | AR50: 5100.378476 | AS50: =+'BISIESTO CAMBIOS DATA'!AS50/366*365 -> 5021.621432 | AT50: =+'BISIESTO CAMBIOS DATA'!AT50/366*365 -> 3761.292916 | AU50: =+'BISIESTO CAMBIOS DATA'!AU50/366*365 -> 3003.126543 | AV50: 48 | AW50: 14669.24469 | AX50: 8796.28 | AY50: 6537.77 | AZ50: 5100.378476 | BA50: =+'BISIESTO CAMBIOS DATA'!BA50/366*365 -> 5021.621432 | BB50: =+'BISIESTO CAMBIOS DATA'!BB50/366*365 -> 3761.292916 | BC50: =+'BISIESTO CAMBIOS DATA'!BC50/366*365 -> 3003.126543 | BG50: 48 | BH50: =+'BISIESTO CAMBIOS DATA'!BH50/366*365 -> 1739.15731 | BI50: =+'BISIESTO CAMBIOS DATA'!BI50/366*365 -> 2970.131368
A51: 12 CUOTAS TCEA 17.5% - CUPONES | B51: 11.00807343 | AN51: 49 | AO51: 15323.35034 | AP51: 9125.39 | AQ51: 6752.51 | AR51: 5327.464209 | AS51: =+'BISIESTO CAMBIOS DATA'!AS51/366*365 -> 5317.010928 | AT51: =+'BISIESTO CAMBIOS DATA'!AT51/366*365 -> 4017.297146 | AU51: =+'BISIESTO CAMBIOS DATA'!AU51/366*365 -> 3150.821291 | AV51: 49 | AW51: 15323.35034 | AX51: 9125.39 | AY51: 6752.51 | AZ51: 5327.464209 | BA51: =+'BISIESTO CAMBIOS DATA'!BA51/366*365 -> 5317.010928 | BB51: =+'BISIESTO CAMBIOS DATA'!BB51/366*365 -> 4017.297146 | BC51: =+'BISIESTO CAMBIOS DATA'!BC51/366*365 -> 3150.821291 | BG51: 49 | BH51: =+'BISIESTO CAMBIOS DATA'!BH51/366*365 -> 1813.480272 | BI51: =+'BISIESTO CAMBIOS DATA'!BI51/366*365 -> 3060.24796
AN52: 50 | AO52: 16169.16242 | AP52: 9524.44 | AQ52: 7003.46 | AR52: 5582.524272 | AS52: =+'BISIESTO CAMBIOS DATA'!AS52/366*365 -> 5612.400424 | AT52: =+'BISIESTO CAMBIOS DATA'!AT52/366*365 -> 4283.147692 | AU52: =+'BISIESTO CAMBIOS DATA'!AU52/366*365 -> 3298.516039 | AV52: 50 | AW52: 16169.16242 | AX52: 9524.44 | AY52: 7003.46 | AZ52: 5582.524272 | BA52: =+'BISIESTO CAMBIOS DATA'!BA52/366*365 -> 5612.400424 | BB52: =+'BISIESTO CAMBIOS DATA'!BB52/366*365 -> 4283.147692 | BC52: =+'BISIESTO CAMBIOS DATA'!BC52/366*365 -> 3298.516039 | BG52: 50 | BH52: =+'BISIESTO CAMBIOS DATA'!BH52/366*365 -> 1887.803234 | BI52: =+'BISIESTO CAMBIOS DATA'!BI52/366*365 -> 3149.435514
AN53: 51 | AO53: 16919.53266 | AP53: 10236.14 | AQ53: 7471.61 | AR53: 5847.457627 | AS53: =+'BISIESTO CAMBIOS DATA'!AS53/366*365 -> 5907.78992 | AT53: =+'BISIESTO CAMBIOS DATA'!AT53/366*365 -> 4529.305605 | AU53: =+'BISIESTO CAMBIOS DATA'!AU53/366*365 -> 3446.210787 | AV53: 51 | AW53: 16919.53266 | AX53: 10236.14 | AY53: 7471.61 | AZ53: 5847.457627 | BA53: =+'BISIESTO CAMBIOS DATA'!BA53/366*365 -> 5907.78992 | BB53: =+'BISIESTO CAMBIOS DATA'!BB53/366*365 -> 4529.305605 | BC53: =+'BISIESTO CAMBIOS DATA'!BC53/366*365 -> 3446.210787 | BG53: 51 | BH53: =+'BISIESTO CAMBIOS DATA'!BH53/366*365 -> 1962.126197 | BI53: =+'BISIESTO CAMBIOS DATA'!BI53/366*365 -> 3239.552106
AN54: 52 | AO54: 17861.60935 | AP54: 10999.67 | AQ54: 7810.6 | AR54: 6150.238605 | AS54: =+'BISIESTO CAMBIOS DATA'!AS54/366*365 -> 6203.179416 | AT54: =+'BISIESTO CAMBIOS DATA'!AT54/366*365 -> 4775.463519 | AU54: =+'BISIESTO CAMBIOS DATA'!AU54/366*365 -> 3741.600283 | AV54: 52 | AW54: 17861.60935 | AX54: 10999.67 | AY54: 7810.6 | AZ54: 6150.238605 | BA54: =+'BISIESTO CAMBIOS DATA'!BA54/366*365 -> 6203.179416 | BB54: =+'BISIESTO CAMBIOS DATA'!BB54/366*365 -> 4775.463519 | BC54: =+'BISIESTO CAMBIOS DATA'!BC54/366*365 -> 3741.600283 | BG54: 52 | BH54: =+'BISIESTO CAMBIOS DATA'!BH54/366*365 -> 2036.449159 | BI54: =+'BISIESTO CAMBIOS DATA'!BI54/366*365 -> 3329.668697
A55: Oncológicos | AN55: 53 | AO55: 19457.79167 | AP55: 11630.74 | AQ55: 8070.59 | AR55: 6481.816686 | AS55: =+'BISIESTO CAMBIOS DATA'!AS55/366*365 -> 6498.568912 | AT55: =+'BISIESTO CAMBIOS DATA'!AT55/366*365 -> 5021.621432 | AU55: =+'BISIESTO CAMBIOS DATA'!AU55/366*365 -> 4036.989779 | AV55: 53 | AW55: 19457.79167 | AX55: 11630.74 | AY55: 8070.59 | AZ55: 6481.816686 | BA55: =+'BISIESTO CAMBIOS DATA'!BA55/366*365 -> 6498.568912 | BB55: =+'BISIESTO CAMBIOS DATA'!BB55/366*365 -> 5021.621432 | BC55: =+'BISIESTO CAMBIOS DATA'!BC55/366*365 -> 4036.989779 | BG55: 53 | BH55: =+'BISIESTO CAMBIOS DATA'!BH55/366*365 -> 2114.488269 | BI55: =+'BISIESTO CAMBIOS DATA'!BI55/366*365 -> 3418.856251
A56: FINANCIAMIENTOS JUN 2022 | B56: FACTORES | AN56: 54 | AO56: 20495.31019 | AP56: 12200.92 | AQ56: 8417.8 | AR56: 6831.495804 | AS56: =+'BISIESTO CAMBIOS DATA'!AS56/366*365 -> 6793.958408 | AT56: =+'BISIESTO CAMBIOS DATA'!AT56/366*365 -> 5317.010928 | AU56: =+'BISIESTO CAMBIOS DATA'!AU56/366*365 -> 4332.379275 | AV56: 54 | AW56: 20495.31019 | AX56: 12200.92 | AY56: 8417.8 | AZ56: 6831.495804 | BA56: =+'BISIESTO CAMBIOS DATA'!BA56/366*365 -> 6793.958408 | BB56: =+'BISIESTO CAMBIOS DATA'!BB56/366*365 -> 5317.010928 | BC56: =+'BISIESTO CAMBIOS DATA'!BC56/366*365 -> 4332.379275 | BG56: 54 | BH56: =+'BISIESTO CAMBIOS DATA'!BH56/366*365 -> 2216.682341 | BI56: =+'BISIESTO CAMBIOS DATA'!BI56/366*365 -> 3509.90188
A57: AL CONTADO NO APLICAN | B57: 1 | AN57: 55 | AO57: 21812.57199 | AP57: 12718.45 | AQ57: 8792.17 | AR57: 7228.895837 | AS57: =+'BISIESTO CAMBIOS DATA'!AS57/366*365 -> 7089.347904 | AT57: =+'BISIESTO CAMBIOS DATA'!AT57/366*365 -> 5612.400424 | AU57: =+'BISIESTO CAMBIOS DATA'!AU57/366*365 -> 4627.768771 | AV57: 55 | AW57: 21812.57199 | AX57: 12718.45 | AY57: 8792.17 | AZ57: 7228.895837 | BA57: =+'BISIESTO CAMBIOS DATA'!BA57/366*365 -> 7089.347904 | BB57: =+'BISIESTO CAMBIOS DATA'!BB57/366*365 -> 5612.400424 | BC57: =+'BISIESTO CAMBIOS DATA'!BC57/366*365 -> 4627.768771 | BG57: 55 | BH57: =+'BISIESTO CAMBIOS DATA'!BH57/366*365 -> 2305.869896 | BI57: =+'BISIESTO CAMBIOS DATA'!BI57/366*365 -> 3660.405878
A58: 4 CUOTAS SIN INTERESES | B58: 4 | AN58: 56 | AO58: 23407.93155 | AP58: 13125.72 | AQ58: 9167.35 | AR58: 7664.143492 | AS58: =+'BISIESTO CAMBIOS DATA'!AS58/366*365 -> 7483.200565 | AT58: =+'BISIESTO CAMBIOS DATA'!AT58/366*365 -> 5907.78992 | AU58: =+'BISIESTO CAMBIOS DATA'!AU58/366*365 -> 4923.158267 | AV58: 56 | AW58: 23407.93155 | AX58: 13125.72 | AY58: 9167.35 | AZ58: 7664.143492 | BA58: =+'BISIESTO CAMBIOS DATA'!BA58/366*365 -> 7483.200565 | BB58: =+'BISIESTO CAMBIOS DATA'!BB58/366*365 -> 5907.78992 | BC58: =+'BISIESTO CAMBIOS DATA'!BC58/366*365 -> 4923.158267 | BG58: 56 | BH58: =+'BISIESTO CAMBIOS DATA'!BH58/366*365 -> 2399.702635 | BI58: =+'BISIESTO CAMBIOS DATA'!BI58/366*365 -> 3809.051802
A59: 6 CUOTAS TCEA 12% - DÉBITO AUTOMÁTICO | B59: 5.805671792 | AN59: 57 | AO59: 25161.26378 | AP59: 13891.72 | AQ59: 9540.89 | AR59: 8137.238769 | AS59: =+'BISIESTO CAMBIOS DATA'!AS59/366*365 -> 7975.516392 | AT59: =+'BISIESTO CAMBIOS DATA'!AT59/366*365 -> 6203.179416 | AU59: =+'BISIESTO CAMBIOS DATA'!AU59/366*365 -> 5267.779345 | AV59: 57 | AW59: 25161.26378 | AX59: 13891.72 | AY59: 9540.89 | AZ59: 8137.238769 | BA59: =+'BISIESTO CAMBIOS DATA'!BA59/366*365 -> 7975.516392 | BB59: =+'BISIESTO CAMBIOS DATA'!BB59/366*365 -> 6203.179416 | BC59: =+'BISIESTO CAMBIOS DATA'!BC59/366*365 -> 5267.779345 | BG59: 57 | BH59: =+'BISIESTO CAMBIOS DATA'!BH59/366*365 -> 2519.548411 | BI59: =+'BISIESTO CAMBIOS DATA'!BI59/366*365 -> 3990.214022
A60: 6 CUOTAS TCEA 17.5% - CUPONES | B60: 5.725823013 | AN60: 58 | AO60: 26643.90324 | AP60: 14666.78 | AQ60: 9981.08 | AR60: 8686.029291 | AS60: =+'BISIESTO CAMBIOS DATA'!AS60/366*365 -> 8467.832219 | AT60: =+'BISIESTO CAMBIOS DATA'!AT60/366*365 -> 6597.032077 | AU60: =+'BISIESTO CAMBIOS DATA'!AU60/366*365 -> 5612.400424 | AV60: 58 | AW60: 26643.90324 | AX60: 14666.78 | AY60: 9981.08 | AZ60: 8686.029291 | BA60: =+'BISIESTO CAMBIOS DATA'!BA60/366*365 -> 8467.832219 | BB60: =+'BISIESTO CAMBIOS DATA'!BB60/366*365 -> 6597.032077 | BC60: =+'BISIESTO CAMBIOS DATA'!BC60/366*365 -> 5612.400424 | BG60: 58 | BH60: =+'BISIESTO CAMBIOS DATA'!BH60/366*365 -> 2639.394188 | BI60: =+'BISIESTO CAMBIOS DATA'!BI60/366*365 -> 4170.447204
A61: 10 CUOTAS TCEA 12% - DÉBITO AUTOMÁTICO | B61: 9.497329567 | AN61: 59 | AO61: 28240.08557 | AP61: 15479.68 | AQ61: 10729.8 | AR61: 9225.769294 | AS61: =+'BISIESTO CAMBIOS DATA'!AS61/366*365 -> 8960.148045 | AT61: =+'BISIESTO CAMBIOS DATA'!AT61/366*365 -> 6990.884739 | AU61: =+'BISIESTO CAMBIOS DATA'!AU61/366*365 -> 5957.021503 | AV61: 59 | AW61: 28240.08557 | AX61: 15479.68 | AY61: 10729.8 | AZ61: 9225.769294 | BA61: =+'BISIESTO CAMBIOS DATA'!BA61/366*365 -> 8960.148045 | BB61: =+'BISIESTO CAMBIOS DATA'!BB61/366*365 -> 6990.884739 | BC61: =+'BISIESTO CAMBIOS DATA'!BC61/366*365 -> 5957.021503 | BG61: 59 | BH61: =+'BISIESTO CAMBIOS DATA'!BH61/366*365 -> 2760.169001 | BI61: =+'BISIESTO CAMBIOS DATA'!BI61/366*365 -> 4349.75135
A62: 10 CUOTAS TCEA 17.5% - CUPONES | B62: 9.294431117 | AN62: 60 | AO62: 29705.44677 | AP62: 16451.37 | AQ62: 11746.75 | AR62: 9764.686523 | AS62: =+'BISIESTO CAMBIOS DATA'!AS62/366*365 -> 9944.779699 | AT62: =+'BISIESTO CAMBIOS DATA'!AT62/366*365 -> 8467.832219 | AU62: =+'BISIESTO CAMBIOS DATA'!AU62/366*365 -> 6252.410999 | AV62: 60 | AW62: 29705.44677 | AX62: 16451.37 | AY62: 11746.75 | AZ62: 9764.686523 | BA62: =+'BISIESTO CAMBIOS DATA'!BA62/366*365 -> 9944.779699 | BB62: =+'BISIESTO CAMBIOS DATA'!BB62/366*365 -> 8467.832219 | BC62: =+'BISIESTO CAMBIOS DATA'!BC62/366*365 -> 6252.410999 | BG62: 60 | BH62: =+'BISIESTO CAMBIOS DATA'!BH62/366*365 -> 2898.595517 | BI62: =+'BISIESTO CAMBIOS DATA'!BI62/366*365 -> 4529.984533
A63: 12 CUOTAS TCEA 12% - DÉBITO AUTOMÁTICO | B63: 11.29151599 | AN63: 61 | AO63: 32434.58944 | AP63: 17270.86 | AQ63: 12443.64 | AR63: 10313.47704 | AV63: 61 | AW63: 32434.58944 | AX63: 17270.86 | AY63: 12443.64 | AZ63: 10313.47704 | BG63: 61 | BH63: =+'BISIESTO CAMBIOS DATA'!BH63/366*365 -> 3068.609293 | BI63: =+'BISIESTO CAMBIOS DATA'!BI63/366*365 -> 4710.217716
A64: 12 CUOTAS TCEA 17.5% - CUPONES | B64: 11.00807343 | AN64: 62 | AO64: 35260.81948 | AP64: 18259.01 | AQ64: 13698.37 | AR64: 11070.42949 | AV64: 62 | AW64: 35260.81948 | AX64: 18259.01 | AY64: 13698.37 | AZ64: 11070.42949 | BG64: 62 | BH64: =+'BISIESTO CAMBIOS DATA'!BH64/366*365 -> 3239.552106 | BI64: =+'BISIESTO CAMBIOS DATA'!BI64/366*365 -> 4890.450899
AN65: 63 | AO65: 37606.54928 | AP65: 19503.04 | AQ65: 14736.71 | AR65: 11959.84861 | AV65: 63 | AW65: 37606.54928 | AX65: 19503.04 | AY65: 14736.71 | AZ65: 11959.84861 | BG65: 63 | BH65: =+'BISIESTO CAMBIOS DATA'!BH65/366*365 -> 3419.785289 | BI65: =+'BISIESTO CAMBIOS DATA'!BI65/366*365 -> 5069.755045
AN66: 64 | AO66: 39865.88777 | AP66: 21053.15 | AQ66: 15771.76 | AR66: 12915.91246 | AV66: 64 | AW66: 39865.88777 | AX66: 21053.15 | AY66: 15771.76 | AZ66: 12915.91246 | BG66: 64 | BH66: =+'BISIESTO CAMBIOS DATA'!BH66/366*365 -> 3623.244397 | BI66: =+'BISIESTO CAMBIOS DATA'!BI66/366*365 -> 5249.05919
AN67: 65 | AO67: 42682.24453 | AP67: 22501.23 | AQ67: 17112.06 | AR67: 14051.34112 | AV67: 65 | AW67: 42682.24453 | AX67: 22501.23 | AY67: 17112.06 | AZ67: 14051.34112 | BG67: 65 | BH67: =+'BISIESTO CAMBIOS DATA'!BH67/366*365 -> 3816.484098 | BI67: =+'BISIESTO CAMBIOS DATA'!BI67/366*365 -> 5489.67978
A68: AL CONTADO | C68: TCEA 12% - DÉBITO AUTOMÁTICO | AN68: 66 | AO68: 45124.23893 | AP68: 26304.1 | AQ68: 18841.53 | AR68: 16488.39888 | AV68: 66 | AW68: 45124.23893 | AX68: 26304.1 | AY68: 18841.53 | AZ68: 16488.39888 | BG68: 66 | BH68: =+'BISIESTO CAMBIOS DATA'!BH68/366*365 -> 4038.523947 | BI68: =+'BISIESTO CAMBIOS DATA'!BI68/366*365 -> 5730.300369
A69: 4 CUOTAS | C69: TCEA 17.5% - CUPONES | AN69: 67 | AO69: 47950.46898 | AP69: 27892.05 | AQ69: 20742.14 | AR69: 17854.20438 | AV69: 67 | AW69: 47950.46898 | AX69: 27892.05 | AY69: 20742.14 | AZ69: 17854.20438 | BG69: 67 | BH69: =+'BISIESTO CAMBIOS DATA'!BH69/366*365 -> 4259.634759 | BI69: =+'BISIESTO CAMBIOS DATA'!BI69/366*365 -> 5969.991922
A70: 6 CUOTAS | AN70: 68 | AO70: 51778.83824 | AP70: 29685.7 | AQ70: 22757.94 | AR70: 19335.19829 | AV70: 68 | AW70: 51778.83824 | AX70: 29685.7 | AY70: 22757.94 | AZ70: 19335.19829 | BG70: 68 | BH70: =+'BISIESTO CAMBIOS DATA'!BH70/366*365 -> 4499.326311 | BI70: =+'BISIESTO CAMBIOS DATA'!BI70/366*365 -> 6209.683474
A71: 10 CUOTAS | AM71: (TCEA 12%) - DÉBITO AUTOMÁTICO | AN71: 69 | AO71: 54717.78838 | AP71: 32433.77 | AQ71: 24436.4 | AR71: 20692.77604 | AV71: 69 | AW71: 54717.78838 | AX71: 32433.77 | AY71: 24436.4 | AZ71: 20692.77604 | BG71: 69 | BH71: =+'BISIESTO CAMBIOS DATA'!BH71/366*365 -> 4740.875938 | BI71: =+'BISIESTO CAMBIOS DATA'!BI71/366*365 -> 6450.304063
A72: 12 CUOTAS | AM72: (TCEA 17.5%) - CUPONES | AN72: 70 | AO72: 59227.41484 | AP72: 34860.95 | AQ72: 25933.85 | AR72: 22165.54221 | AV72: 70 | AW72: 59227.41484 | AX72: 34860.95 | AY72: 25933.85 | AZ72: 22165.54221 | BG72: 70 | BH72: =+'BISIESTO CAMBIOS DATA'!BH72/366*365 -> 4980.56749 | BI72: =+'BISIESTO CAMBIOS DATA'!BI72/366*365 -> 6689.066579
AN73: 71 | AO73: 65436.8932 | AP73: 37822.94 | AQ73: 28155.34 | AR73: 23745.26905 | AV73: 71 | AW73: 65436.8932 | AX73: 37822.94 | AY73: 28155.34 | AZ73: 23745.26905 | BG73: 71 | BH73: =+'BISIESTO CAMBIOS DATA'!BH73/366*365 -> 5220.259043 | BI73: =+'BISIESTO CAMBIOS DATA'!BI73/366*365 -> 6990.074575
AN74: 72 | AO74: 65436.8932 | AP74: =+'BISIESTO CAMBIOS DATA'!AP74/366*365 -> 37822.93895 | AQ74: 28155.34 | AR74: 23745.26905 | AV74: 72 | AW74: 65436.8932 | AX74: 37822.93895 | AY74: 28155.34 | AZ74: 23745.26905 | BG74: 72 | BH74: =+'BISIESTO CAMBIOS DATA'!BH74/366*365 -> 5459.950595 | BI74: =+'BISIESTO CAMBIOS DATA'!BI74/366*365 -> 6990.074575
AN75: 73 | AO75: 65436.8932 | AP75: =+'BISIESTO CAMBIOS DATA'!AP75/366*365 -> 37822.93895 | AQ75: 28155.34 | AR75: 23745.26905 | AV75: 73 | AW75: 65436.8932 | AX75: 37822.93895 | AY75: 28155.34 | AZ75: 23745.26905 | BG75: 73 | BH75: =+'BISIESTO CAMBIOS DATA'!BH75/366*365 -> 5459.950595 | BI75: =+'BISIESTO CAMBIOS DATA'!BI75/366*365 -> 6990.074575
A76: SIN INTERESES - DÉBITO AUTOMÁTICO | C76: NO APLICAN | AN76: 74 | AO76: 65436.8932 | AP76: =+'BISIESTO CAMBIOS DATA'!AP76/366*365 -> 37822.93895 | AQ76: 28155.34 | AR76: 23745.26905 | AV76: 74 | AW76: 65436.8932 | AX76: 37822.93895 | AY76: 28155.34 | AZ76: 23745.26905 | BG76: 74 | BH76: =+'BISIESTO CAMBIOS DATA'!BH76/366*365 -> 5459.950595 | BI76: =+'BISIESTO CAMBIOS DATA'!BI76/366*365 -> 6990.074575
A77: TCEA 4% - DÉBITO AUTOMÁTICO | AN77: 75 | AO77: 65436.8932 | AP77: =+'BISIESTO CAMBIOS DATA'!AP77/366*365 -> 37822.93895 | AQ77: 28155.34 | AR77: 23745.26905 | AV77: 75 | AW77: 65436.8932 | AX77: 37822.93895 | AY77: 28155.34 | AZ77: 23745.26905 | BG77: 75 | BH77: =+'BISIESTO CAMBIOS DATA'!BH77/366*365 -> 5579.796371 | BI77: =+'BISIESTO CAMBIOS DATA'!BI77/366*365 -> 6990.074575
A78: TCEA 17.5% - CUPONES | AN78: 76 | AO78: 67687.18117 | AP78: =+'BISIESTO CAMBIOS DATA'!AP78/366*365 -> 43105.15057 | AQ78: 31059.73 | AR78: =+'BISIESTO CAMBIOS DATA'!AR78/366*365 -> 25111.07454 | AV78: 76 | AW78: 67687.18117 | AX78: 43105.15057 | AY78: 31059.73 | AZ78: 25111.07454 | BG78: 76 | BH78: =+'BISIESTO CAMBIOS DATA'!BH78/366*365 -> 5579.796371 | BI78: =+'BISIESTO CAMBIOS DATA'!BI78/366*365 -> 6990.074575
C79: (TCEA 12%) - DÉBITO AUTOMÁTICO | AN79: 77 | AO79: 67687.18117 | AP79: =+'BISIESTO CAMBIOS DATA'!AP79/366*365 -> 43105.15057 | AQ79: =+'BISIESTO CAMBIOS DATA'!AQ79/366*365 -> 31059.73342 | AR79: =+'BISIESTO CAMBIOS DATA'!AR79/366*365 -> 25111.07454 | AV79: 77 | AW79: 67687.18117 | AX79: 43105.15057 | AY79: 31059.73342 | AZ79: 25111.07454 | BG79: 77 | BH79: =+'BISIESTO CAMBIOS DATA'!BH79/366*365 -> 5579.796371 | BI79: =+'BISIESTO CAMBIOS DATA'!BI79/366*365 -> 6990.074575
A80: SIN INTERESES | C80: (TCEA 17.5%) - CUPONES | AN80: 78 | AO80: 67687.18117 | AP80: =+'BISIESTO CAMBIOS DATA'!AP80/366*365 -> 43105.15057 | AQ80: =+'BISIESTO CAMBIOS DATA'!AQ80/366*365 -> 31059.73342 | AR80: =+'BISIESTO CAMBIOS DATA'!AR80/366*365 -> 25111.07454 | AV80: 78 | AW80: 67687.18117 | AX80: 43105.15057 | AY80: 31059.73342 | AZ80: 25111.07454 | BG80: 78 | BH80: =+'BISIESTO CAMBIOS DATA'!BH80/366*365 -> 5579.796371 | BI80: =+'BISIESTO CAMBIOS DATA'!BI80/366*365 -> 6990.074575
AN81: 79 | AO81: 67687.18117 | AP81: =+'BISIESTO CAMBIOS DATA'!AP81/366*365 -> 43105.15057 | AQ81: =+'BISIESTO CAMBIOS DATA'!AQ81/366*365 -> 31059.73342 | AR81: =+'BISIESTO CAMBIOS DATA'!AR81/366*365 -> 25111.07454 | AV81: 79 | AW81: 67687.18117 | AX81: 43105.15057 | AY81: 31059.73342 | AZ81: 25111.07454 | BG81: 79 | BH81: =+'BISIESTO CAMBIOS DATA'!BH81/366*365 -> 5579.796371 | BI81: =+'BISIESTO CAMBIOS DATA'!BI81/366*365 -> 6990.074575
AN82: 80 | AO82: 67687.18117 | AP82: =+'BISIESTO CAMBIOS DATA'!AP82/366*365 -> 43105.15057 | AQ82: =+'BISIESTO CAMBIOS DATA'!AQ82/366*365 -> 31059.73342 | AR82: =+'BISIESTO CAMBIOS DATA'!AR82/366*365 -> 25111.07454 | AV82: 80 | AW82: 67687.18117 | AX82: 43105.15057 | AY82: 31059.73342 | AZ82: 25111.07454 | BG82: 80 | BH82: =+'BISIESTO CAMBIOS DATA'!BH82/366*365 -> 5700.571184 | BI82: =+'BISIESTO CAMBIOS DATA'!BI82/366*365 -> 6990.074575
A83: FINANCIAMIENTOS JUN 2022 | B83: FACTORES | AN83: 81 | AO83: 68254.07273 | AP83: =+'BISIESTO CAMBIOS DATA'!AP83/366*365 -> 47539.90456 | AQ83: =+'BISIESTO CAMBIOS DATA'!AQ83/366*365 -> 34400.19747 | AR83: =+'BISIESTO CAMBIOS DATA'!AR83/366*365 -> 26575.61297 | AV83: 81 | AW83: 68254.07273 | AX83: 47539.90456 | AY83: 34400.19747 | AZ83: 26575.61297 | BG83: 81 | BH83: =+'BISIESTO CAMBIOS DATA'!BH83/366*365 -> 5700.571184 | BI83: =+'BISIESTO CAMBIOS DATA'!BI83/366*365 -> 6990.074575
A84: AL CONTADO NO APLICAN | B84: 1 | AN84: 82 | AO84: 68254.07273 | AP84: =+'BISIESTO CAMBIOS DATA'!AP84/366*365 -> 47539.90456 | AQ84: =+'BISIESTO CAMBIOS DATA'!AQ84/366*365 -> 34400.19747 | AR84: =+'BISIESTO CAMBIOS DATA'!AR84/366*365 -> 26575.61297 | AV84: 82 | AW84: 68254.07273 | AX84: 47539.90456 | AY84: 34400.19747 | AZ84: 26575.61297 | BG84: 82 | BH84: =+'BISIESTO CAMBIOS DATA'!BH84/366*365 -> 5700.571184 | BI84: =+'BISIESTO CAMBIOS DATA'!BI84/366*365 -> 6990.074575
A85: 4 CUOTAS SIN INTERESES | B85: 4 | AN85: 83 | AO85: 68254.07273 | AP85: =+'BISIESTO CAMBIOS DATA'!AP85/366*365 -> 47539.90456 | AQ85: =+'BISIESTO CAMBIOS DATA'!AQ85/366*365 -> 34400.19747 | AR85: =+'BISIESTO CAMBIOS DATA'!AR85/366*365 -> 26575.61297 | AV85: 83 | AW85: 68254.07273 | AX85: 47539.90456 | AY85: 34400.19747 | AZ85: 26575.61297 | BG85: 83 | BH85: =+'BISIESTO CAMBIOS DATA'!BH85/366*365 -> 5700.571184 | BI85: =+'BISIESTO CAMBIOS DATA'!BI85/366*365 -> 6990.074575
A86: 6 CUOTAS TCEA 4% - DÉBITO AUTOMÁTICO | B86: 5.931847245 | AN86: 84 | AO86: 68254.07273 | AP86: =+'BISIESTO CAMBIOS DATA'!AP86/366*365 -> 47539.90456 | AQ86: =+'BISIESTO CAMBIOS DATA'!AQ86/366*365 -> 34400.19747 | AR86: =+'BISIESTO CAMBIOS DATA'!AR86/366*365 -> 26575.61297 | AV86: 84 | AW86: 68254.07273 | AX86: 47539.90456 | AY86: 34400.19747 | AZ86: 26575.61297 | BG86: 84 | BH86: =+'BISIESTO CAMBIOS DATA'!BH86/366*365 -> 5700.571184 | BI86: =+'BISIESTO CAMBIOS DATA'!BI86/366*365 -> 6990.074575
A87: 6 CUOTAS TCEA 17.5% - CUPONES | B87: 5.725823013 | AN87: 85 | AO87: 68254.07273 | AP87: =+'BISIESTO CAMBIOS DATA'!AP87/366*365 -> 47539.90456 | AQ87: =+'BISIESTO CAMBIOS DATA'!AQ87/366*365 -> 34400.19747 | AR87: =+'BISIESTO CAMBIOS DATA'!AR87/366*365 -> 26575.61297 | AV87: 85 | AW87: 68254.07273 | AX87: 47539.90456 | AY87: 34400.19747 | AZ87: 26575.61297 | BG87: 85 | BH87: =+'BISIESTO CAMBIOS DATA'!BH87/366*365 -> 5700.571184 | BI87: =+'BISIESTO CAMBIOS DATA'!BI87/366*365 -> 6990.074575
A88: 10 CUOTAS TCEA 4% - DÉBITO AUTOMÁTICO | B88: 9.822277276 | AN88: 86 | AO88: 68254.07273 | AP88: =+'BISIESTO CAMBIOS DATA'!AP88/366*365 -> 47539.90456 | AQ88: =+'BISIESTO CAMBIOS DATA'!AQ88/366*365 -> 34400.19747 | AR88: =+'BISIESTO CAMBIOS DATA'!AR88/366*365 -> 26575.61297 | AV88: 86 | AW88: 68254.07273 | AX88: 47539.90456 | AY88: 34400.19747 | AZ88: 26575.61297 | BG88: 86 | BH88: =+'BISIESTO CAMBIOS DATA'!BH88/366*365 -> 5700.571184 | BI88: =+'BISIESTO CAMBIOS DATA'!BI88/366*365 -> 6990.074575
A89: 10 CUOTAS TCEA 17.5% - CUPONES | B89: 9.294431117 | AN89: 87 | AO89: 68254.07273 | AP89: =+'BISIESTO CAMBIOS DATA'!AP89/366*365 -> 47539.90456 | AQ89: =+'BISIESTO CAMBIOS DATA'!AQ89/366*365 -> 34400.19747 | AR89: =+'BISIESTO CAMBIOS DATA'!AR89/366*365 -> 26575.61297 | AV89: 87 | AW89: 68254.07273 | AX89: 47539.90456 | AY89: 34400.19747 | AZ89: 26575.61297 | BG89: 87 | BH89: =+'BISIESTO CAMBIOS DATA'!BH89/366*365 -> 5700.571184 | BI89: =+'BISIESTO CAMBIOS DATA'!BI89/366*365 -> 6990.074575
A90: 12 CUOTAS TCEA 4% - DÉBITO AUTOMÁTICO | B90: 11.74850203 | AN90: 88 | AO90: 68254.07273 | AP90: =+'BISIESTO CAMBIOS DATA'!AP90/366*365 -> 47539.90456 | AQ90: =+'BISIESTO CAMBIOS DATA'!AQ90/366*365 -> 34400.19747 | AR90: =+'BISIESTO CAMBIOS DATA'!AR90/366*365 -> 26575.61297 | AV90: 88 | AW90: 68254.07273 | AX90: 47539.90456 | AY90: 34400.19747 | AZ90: 26575.61297 | BG90: 88 | BH90: =+'BISIESTO CAMBIOS DATA'!BH90/366*365 -> 5700.571184 | BI90: =+'BISIESTO CAMBIOS DATA'!BI90/366*365 -> 6990.074575
A91: 12 CUOTAS TCEA 17.5% - CUPONES | B91: 11.00807343 | AN91: 89 | AO91: 68254.07273 | AP91: =+'BISIESTO CAMBIOS DATA'!AP91/366*365 -> 47539.90456 | AQ91: =+'BISIESTO CAMBIOS DATA'!AQ91/366*365 -> 34400.19747 | AR91: =+'BISIESTO CAMBIOS DATA'!AR91/366*365 -> 26575.61297 | AV91: 89 | AW91: 68254.07273 | AX91: 47539.90456 | AY91: 34400.19747 | AZ91: 26575.61297 | BG91: 89 | BH91: =+'BISIESTO CAMBIOS DATA'!BH91/366*365 -> 5700.571184 | BI91: =+'BISIESTO CAMBIOS DATA'!BI91/366*365 -> 6990.074575
AN92: 90 | AO92: 68254.07273 | AP92: =+'BISIESTO CAMBIOS DATA'!AP92/366*365 -> 47539.90456 | AQ92: =+'BISIESTO CAMBIOS DATA'!AQ92/366*365 -> 34400.19747 | AR92: =+'BISIESTO CAMBIOS DATA'!AR92/366*365 -> 26575.61297 | AV92: 90 | AW92: 68254.07273 | AX92: 47539.90456 | AY92: 34400.19747 | AZ92: 26575.61297 | BG92: 90 | BH92: =+'BISIESTO CAMBIOS DATA'!BH92/366*365 -> 5700.571184 | BI92: =+'BISIESTO CAMBIOS DATA'!BI92/366*365 -> 6990.074575
AN93: 91 | AO93: 68254.07273 | AP93: =+'BISIESTO CAMBIOS DATA'!AP93/366*365 -> 47539.90456 | AQ93: =+'BISIESTO CAMBIOS DATA'!AQ93/366*365 -> 34400.19747 | AR93: =+'BISIESTO CAMBIOS DATA'!AR93/366*365 -> 26575.61297 | AV93: 91 | AW93: 68254.07273 | AX93: 47539.90456 | AY93: 34400.19747 | AZ93: 26575.61297 | BG93: 91 | BH93: =+'BISIESTO CAMBIOS DATA'!BH93/366*365 -> 5700.571184 | BI93: =+'BISIESTO CAMBIOS DATA'!BI93/366*365 -> 6990.074575
AN94: 92 | AO94: 68254.07273 | AP94: =+'BISIESTO CAMBIOS DATA'!AP94/366*365 -> 47539.90456 | AQ94: =+'BISIESTO CAMBIOS DATA'!AQ94/366*365 -> 34400.19747 | AR94: =+'BISIESTO CAMBIOS DATA'!AR94/366*365 -> 26575.61297 | AV94: 92 | AW94: 68254.07273 | AX94: 47539.90456 | AY94: 34400.19747 | AZ94: 26575.61297 | BG94: 92 | BH94: =+'BISIESTO CAMBIOS DATA'!BH94/366*365 -> 5700.571184 | BI94: =+'BISIESTO CAMBIOS DATA'!BI94/366*365 -> 6990.074575
AN95: 93 | AO95: 68254.07273 | AP95: =+'BISIESTO CAMBIOS DATA'!AP95/366*365 -> 47539.90456 | AQ95: =+'BISIESTO CAMBIOS DATA'!AQ95/366*365 -> 34400.19747 | AR95: =+'BISIESTO CAMBIOS DATA'!AR95/366*365 -> 26575.61297 | AV95: 93 | AW95: 68254.07273 | AX95: 47539.90456 | AY95: 34400.19747 | AZ95: 26575.61297 | BG95: 93 | BH95: =+'BISIESTO CAMBIOS DATA'!BH95/366*365 -> 5700.571184 | BI95: =+'BISIESTO CAMBIOS DATA'!BI95/366*365 -> 6990.074575
AN96: 94 | AO96: 68254.07273 | AP96: =+'BISIESTO CAMBIOS DATA'!AP96/366*365 -> 47539.90456 | AQ96: =+'BISIESTO CAMBIOS DATA'!AQ96/366*365 -> 34400.19747 | AR96: =+'BISIESTO CAMBIOS DATA'!AR96/366*365 -> 26575.61297 | AV96: 94 | AW96: 68254.07273 | AX96: 47539.90456 | AY96: 34400.19747 | AZ96: 26575.61297 | BG96: 94 | BH96: =+'BISIESTO CAMBIOS DATA'!BH96/366*365 -> 5700.571184 | BI96: =+'BISIESTO CAMBIOS DATA'!BI96/366*365 -> 6990.074575
AN97: 95 | AO97: 68254.07273 | AP97: =+'BISIESTO CAMBIOS DATA'!AP97/366*365 -> 47539.90456 | AQ97: =+'BISIESTO CAMBIOS DATA'!AQ97/366*365 -> 34400.19747 | AR97: =+'BISIESTO CAMBIOS DATA'!AR97/366*365 -> 26575.61297 | AV97: 95 | AW97: 68254.07273 | AX97: 47539.90456 | AY97: 34400.19747 | AZ97: 26575.61297 | BG97: 95 | BH97: =+'BISIESTO CAMBIOS DATA'!BH97/366*365 -> 5700.571184 | BI97: =+'BISIESTO CAMBIOS DATA'!BI97/366*365 -> 6990.074575
AN98: 96 | AO98: 68254.07273 | AP98: =+'BISIESTO CAMBIOS DATA'!AP98/366*365 -> 47539.90456 | AQ98: =+'BISIESTO CAMBIOS DATA'!AQ98/366*365 -> 34400.19747 | AR98: =+'BISIESTO CAMBIOS DATA'!AR98/366*365 -> 26575.61297 | AV98: 96 | AW98: 68254.07273 | AX98: 47539.90456 | AY98: 34400.19747 | AZ98: 26575.61297 | BG98: 96 | BH98: =+'BISIESTO CAMBIOS DATA'!BH98/366*365 -> 5700.571184 | BI98: =+'BISIESTO CAMBIOS DATA'!BI98/366*365 -> 6990.074575
AN99: 97 | AO99: 68254.07273 | AP99: =+'BISIESTO CAMBIOS DATA'!AP99/366*365 -> 47539.90456 | AQ99: =+'BISIESTO CAMBIOS DATA'!AQ99/366*365 -> 34400.19747 | AR99: =+'BISIESTO CAMBIOS DATA'!AR99/366*365 -> 26575.61297 | AV99: 97 | AW99: 68254.07273 | AX99: 47539.90456 | AY99: 34400.19747 | AZ99: 26575.61297 | BG99: 97 | BH99: =+'BISIESTO CAMBIOS DATA'!BH99/366*365 -> 5700.571184 | BI99: =+'BISIESTO CAMBIOS DATA'!BI99/366*365 -> 6990.074575
AN100: 98 | AO100: 68254.07273 | AP100: =+'BISIESTO CAMBIOS DATA'!AP100/366*365 -> 47539.90456 | AQ100: =+'BISIESTO CAMBIOS DATA'!AQ100/366*365 -> 34400.19747 | AR100: =+'BISIESTO CAMBIOS DATA'!AR100/366*365 -> 26575.61297 | AV100: 98 | AW100: 68254.07273 | AX100: 47539.90456 | AY100: 34400.19747 | AZ100: 26575.61297 | BG100: 98 | BH100: =+'BISIESTO CAMBIOS DATA'!BH100/366*365 -> 5700.571184 | BI100: =+'BISIESTO CAMBIOS DATA'!BI100/366*365 -> 6990.074575
AN101: 99 | AO101: 68254.07273 | AP101: =+'BISIESTO CAMBIOS DATA'!AP101/366*365 -> 47539.90456 | AQ101: =+'BISIESTO CAMBIOS DATA'!AQ101/366*365 -> 34400.19747 | AR101: =+'BISIESTO CAMBIOS DATA'!AR101/366*365 -> 26575.61297 | AV101: 99 | AW101: 68254.07273 | AX101: 47539.90456 | AY101: 34400.19747 | AZ101: 26575.61297 | BG101: 99 | BH101: =+'BISIESTO CAMBIOS DATA'!BH101/366*365 -> 5700.571184 | BI101: =+'BISIESTO CAMBIOS DATA'!BI101/366*365 -> 6990.074575
AN102: 100 | AO102: 68254.07273 | AP102: =+'BISIESTO CAMBIOS DATA'!AP102/366*365 -> 47539.90456 | AQ102: =+'BISIESTO CAMBIOS DATA'!AQ102/366*365 -> 34400.19747 | AR102: =+'BISIESTO CAMBIOS DATA'!AR102/366*365 -> 26575.61297 | AV102: 100 | AW102: 68254.07273 | AX102: 47539.90456 | AY102: 34400.19747 | AZ102: 26575.61297 | BG102: 100 | BH102: =+'BISIESTO CAMBIOS DATA'!BH102/366*365 -> 5700.571184 | BI102: =+'BISIESTO CAMBIOS DATA'!BI102/366*365 -> 6990.074575
A110: Cotizaciones sujetas a condiciones de campaña y variaciones. Vigente desde el 1 de abril 2023 hasta el 29 de febrero 2024 (366 días). Aplica para las pólizas con fecha de ingreso a partir del 01/04/2022

Sheet BISIESTO (hidden)
AM1: PACÍFICO 2023 (TARIFARIO ACTUAL) | AN1: TIT | AO1: MINT | AP1: MEDICVIDA NACIONAL | AQ1: MULTISALUD | AR1: RED PREFERENTE | AS1: MULTISALUD BASE | AT1: SALUD ESENCIAL PLUS | AU1: SALUD ESENCIAL | AV1: HIJO | AW1: MINT | AX1: MEDICVIDA NACIONAL | AY1: MULTISALUD | AZ1: RED PREFERENTE | BA1: MULTISALUD BASE | BB1: SALUD ESENCIAL PLUS | BC1: SALUD ESENCIAL | BF1: PACÍFICO 2023 (TARIFARIO ONCOLÓGICOS) | BG1: TIT | BH1: ONCOLÓGICO NACIONAL | BI1: ONCOLÓGICO INTERNACIONAL
AN2: 0 | AO2: 8448.292574 | AP2: 3572.373715 | AQ2: 2524.587429 | AR2: 2285.329144 | AS2: 2418.956722 | AT2: 2024.025012 | AU2: 1727.82623 | AV2: 0 | AW2: 6534.226288 | AX2: 3357.866287 | AY2: 2466.835429 | AZ2: 2285.329144 | BA2: 2418.956722 | BB2: 2024.025012 | BC2: 1727.82623 | BG2: 0 | BH2: 313.0116634 | BI2: 721.9763072
AN3: 1 | AO3: 8448.292574 | AP3: 3572.373715 | AQ3: 2524.587429 | AR3: 2285.329144 | AS3: 2418.956722 | AT3: 2024.025012 | AU3: 1727.82623 | AV3: 1 | AW3: 6534.226288 | AX3: 3357.866287 | AY3: 2466.835429 | AZ3: 2285.329144 | BA3: 2418.956722 | BB3: 2024.025012 | BC3: 1727.82623 | BG3: 1 | BH3: 313.0116634 | BI3: 721.9763072
AN4: 2 | AO4: 8448.292574 | AP4: 3572.373715 | AQ4: 2524.587429 | AR4: 2285.329144 | AS4: 2418.956722 | AT4: 2024.025012 | AU4: 1727.82623 | AV4: 2 | AW4: 6534.226288 | AX4: 3357.866287 | AY4: 2466.835429 | AZ4: 2285.329144 | BA4: 2418.956722 | BB4: 2024.025012 | BC4: 1727.82623 | BG4: 2 | BH4: 313.0116634 | BI4: 721.9763072
AN5: 3 | AO5: 8448.292574 | AP5: 3572.373715 | AQ5: 2524.587429 | AR5: 2285.329144 | AS5: 2418.956722 | AT5: 2024.025012 | AU5: 1727.82623 | AV5: 3 | AW5: 6534.226288 | AX5: 3357.866287 | AY5: 2466.835429 | AZ5: 2285.329144 | BA5: 2418.956722 | BB5: 2024.025012 | BC5: 1727.82623 | BG5: 3 | BH5: 313.0116634 | BI5: 721.9763072
AN6: 4 | AO6: 8448.292574 | AP6: 3572.373715 | AQ6: 2524.587429 | AR6: 2285.329144 | AS6: 2418.956722 | AT6: 2024.025012 | AU6: 1727.82623 | AV6: 4 | AW6: 6534.226288 | AX6: 3357.866287 | AY6: 2466.835429 | AZ6: 2285.329144 | BA6: 2418.956722 | BB6: 2024.025012 | BC6: 1727.82623 | BG6: 4 | BH6: 313.0116634 | BI6: 721.9763072
AN7: 5 | AO7: 8448.292574 | AP7: 3572.373715 | AQ7: 2524.587429 | AR7: 2285.329144 | AS7: 2418.956722 | AT7: 2024.025012 | AU7: 1727.82623 | AV7: 5 | AW7: 6534.226288 | AX7: 3357.866287 | AY7: 2466.835429 | AZ7: 2285.329144 | BA7: 2418.956722 | BB7: 2024.025012 | BC7: 1727.82623 | BG7: 5 | BH7: 313.0116634 | BI7: 721.9763072
AN8: 6 | AO8: 8448.292574 | AP8: 3572.373715 | AQ8: 2524.587429 | AR8: 2285.329144 | AS8: 2418.956722 | AT8: 2024.025012 | AU8: 1727.82623 | AV8: 6 | AW8: 6534.226288 | AX8: 3357.866287 | AY8: 2466.835429 | AZ8: 2285.329144 | BA8: 2418.956722 | BB8: 2024.025012 | BC8: 1727.82623 | BG8: 6 | BH8: 313.0116634 | BI8: 721.9763072
AN9: 7 | AO9: 8448.292574 | AP9: 3572.373715 | AQ9: 2524.587429 | AR9: 2285.329144 | AS9: 2418.956722 | AT9: 2024.025012 | AU9: 1727.82623 | AV9: 7 | AW9: 6534.226288 | AX9: 3357.866287 | AY9: 2466.835429 | AZ9: 2285.329144 | BA9: 2418.956722 | BB9: 2024.025012 | BC9: 1727.82623 | BG9: 7 | BH9: 313.0116634 | BI9: 721.9763072
AN10: 8 | AO10: 8448.292574 | AP10: 3572.373715 | AQ10: 2524.587429 | AR10: 2285.329144 | AS10: 2418.956722 | AT10: 2024.025012 | AU10: 1727.82623 | AV10: 8 | AW10: 6534.226288 | AX10: 3357.866287 | AY10: 2466.835429 | AZ10: 2285.329144 | BA10: 2418.956722 | BB10: 2024.025012 | BC10: 1727.82623 | BG10: 8 | BH10: 313.0116634 | BI10: 721.9763072
AN11: 9 | AO11: 8448.292574 | AP11: 3572.373715 | AQ11: 2524.587429 | AR11: 2285.329144 | AS11: 2418.956722 | AT11: 2024.025012 | AU11: 1727.82623 | AV11: 9 | AW11: 6534.226288 | AX11: 3357.866287 | AY11: 2466.835429 | AZ11: 2285.329144 | BA11: 2418.956722 | BB11: 2024.025012 | BC11: 1727.82623 | BG11: 9 | BH11: 313.0116634 | BI11: 721.9763072
AN12: 10 | AO12: 8448.292574 | AP12: 3572.373715 | AQ12: 2524.587429 | AR12: 2285.329144 | AS12: 2418.956722 | AT12: 2024.025012 | AU12: 1727.82623 | AV12: 10 | AW12: 6534.226288 | AX12: 3357.866287 | AY12: 2466.835429 | AZ12: 2285.329144 | BA12: 2418.956722 | BB12: 2024.025012 | BC12: 1727.82623 | BG12: 10 | BH12: 313.0116634 | BI12: 721.9763072
A13: COMPLETO | AN13: 11 | AO13: 8448.292574 | AP13: 3572.373715 | AQ13: 2524.587429 | AR13: 2285.329144 | AS13: 2418.956722 | AT13: 2024.025012 | AU13: 1727.82623 | AV13: 11 | AW13: 6534.226288 | AX13: 3357.866287 | AY13: 2466.835429 | AZ13: 2285.329144 | BA13: 2418.956722 | BB13: 2024.025012 | BC13: 1727.82623 | BG13: 11 | BH13: 313.0116634 | BI13: 721.9763072
A14: RESGUARDO | AN14: 12 | AO14: 8448.292574 | AP14: 3572.373715 | AQ14: 2524.587429 | AR14: 2285.329144 | AS14: 2418.956722 | AT14: 2024.025012 | AU14: 1727.82623 | AV14: 12 | AW14: 6534.226288 | AX14: 3357.866287 | AY14: 2466.835429 | AZ14: 2285.329144 | BA14: 2418.956722 | BB14: 2024.025012 | BC14: 1727.82623 | BG14: 12 | BH14: 313.0116634 | BI14: 721.9763072
A15: MINT DEDUCIBLE 10K | AN15: 13 | AO15: 8448.292574 | AP15: 3572.373715 | AQ15: 2524.587429 | AR15: 2285.329144 | AS15: 2418.956722 | AT15: 2024.025012 | AU15: 1727.82623 | AV15: 13 | AW15: 6534.226288 | AX15: 3357.866287 | AY15: 2466.835429 | AZ15: 2285.329144 | BA15: 2418.956722 | BB15: 2024.025012 | BC15: 1727.82623 | BG15: 13 | BH15: 313.0116634 | BI15: 721.9763072
A16: MINT DEDUCIBLE 20K | AN16: 14 | AO16: 8448.292574 | AP16: 3572.373715 | AQ16: 2524.587429 | AR16: 2285.329144 | AS16: 2418.956722 | AT16: 2024.025012 | AU16: 1727.82623 | AV16: 14 | AW16: 6534.226288 | AX16: 3357.866287 | AY16: 2466.835429 | AZ16: 2285.329144 | BA16: 2418.956722 | BB16: 2024.025012 | BC16: 1727.82623 | BG16: 14 | BH16: 313.0116634 | BI16: 721.9763072
AN17: 15 | AO17: 8448.292574 | AP17: 3572.373715 | AQ17: 2524.587429 | AR17: 2285.329144 | AS17: 2418.956722 | AT17: 2024.025012 | AU17: 1727.82623 | AV17: 15 | AW17: 6534.226288 | AX17: 3357.866287 | AY17: 2466.835429 | AZ17: 2285.329144 | BA17: 2418.956722 | BB17: 2024.025012 | BC17: 1727.82623 | BG17: 15 | BH17: 313.0116634 | BI17: 721.9763072
AN18: 16 | AO18: 8448.292574 | AP18: 3572.373715 | AQ18: 2524.587429 | AR18: 2285.329144 | AS18: 2418.956722 | AT18: 2024.025012 | AU18: 1727.82623 | AV18: 16 | AW18: 6534.226288 | AX18: 3357.866287 | AY18: 2466.835429 | AZ18: 2285.329144 | BA18: 2418.956722 | BB18: 2024.025012 | BC18: 1727.82623 | BG18: 16 | BH18: 313.0116634 | BI18: 721.9763072
AN19: 17 | AO19: 8448.292574 | AP19: 3572.373715 | AQ19: 2524.587429 | AR19: 2285.329144 | AS19: 2418.956722 | AT19: 2024.025012 | AU19: 1727.82623 | AV19: 17 | AW19: 6534.226288 | AX19: 3357.866287 | AY19: 2466.835429 | AZ19: 2285.329144 | BA19: 2418.956722 | BB19: 2024.025012 | BC19: 1727.82623 | BG19: 17 | BH19: 313.0116634 | BI19: 721.9763072
AN20: 18 | AO20: 8629.79886 | AP20: 3613.625144 | AQ20: 2549.338287 | AR20: 2326.580572 | AS20: 2468.323186 | AT20: 2073.391476 | AU20: 1727.82623 | AV20: 18 | AW20: 6583.728002 | AX20: 3399.117715 | AY20: 2532.837715 | AZ20: 2326.580572 | BA20: 2468.323186 | BB20: 2073.391476 | BC20: 1727.82623 | BG20: 18 | BH20: 313.0116634 | BI20: 721.9763072
AN21: 19 | AO21: 8629.79886 | AP21: 3613.625144 | AQ21: 2549.338287 | AR21: 2326.580572 | AS21: 2468.323186 | AT21: 2073.391476 | AU21: 1727.82623 | AV21: 19 | AW21: 6583.728002 | AX21: 3399.117715 | AY21: 2532.837715 | AZ21: 2326.580572 | BA21: 2468.323186 | BB21: 2073.391476 | BC21: 1727.82623 | BG21: 19 | BH21: 330.7117278 | BI21: 751.7869418
AN22: 20 | AO22: 8629.79886 | AP22: 3613.625144 | AQ22: 2549.338287 | AR22: 2326.580572 | AS22: 2468.323186 | AT22: 2073.391476 | AU22: 1727.82623 | AV22: 20 | AW22: 6583.728002 | AX22: 3399.117715 | AY22: 2532.837715 | AZ22: 2326.580572 | BA22: 2468.323186 | BB22: 2073.391476 | BC22: 1727.82623 | BG22: 20 | BH22: 330.7117278 | BI22: 781.5975763
AN23: 21 | AO23: 8629.79886 | AP23: 3613.625144 | AQ23: 2549.338287 | AR23: 2326.580572 | AS23: 2468.323186 | AT23: 2073.391476 | AU23: 1727.82623 | AV23: 21 | AW23: 6583.728002 | AX23: 3399.117715 | AY23: 2532.837715 | AZ23: 2326.580572 | BA23: 2468.323186 | BB23: 2073.391476 | BC23: 1727.82623 | BG23: 21 | BH23: 330.7117278 | BI23: 812.3397933
AN24: 22 | AO24: 8629.79886 | AP24: 3613.625144 | AQ24: 2549.338287 | AR24: 2326.580572 | AS24: 2468.323186 | AT24: 2073.391476 | AU24: 1727.82623 | AV24: 22 | AW24: 6583.728002 | AX24: 3399.117715 | AY24: 2532.837715 | AZ24: 2326.580572 | BA24: 2468.323186 | BB24: 2073.391476 | BC24: 1727.82623 | BG24: 22 | BH24: 330.7117278 | BI24: 842.150428
AN25: 23 | AO25: 8629.79886 | AP25: 3613.625144 | AQ25: 2549.338287 | AR25: 2326.580572 | AS25: 2468.323186 | AT25: 2073.391476 | AU25: 1727.82623 | AV25: 23 | AW25: 6583.728002 | AX25: 3399.117715 | AY25: 2532.837715 | AZ25: 2326.580572 | BA25: 2468.323186 | BB25: 2073.391476 | BC25: 1727.82623 | BG25: 23 | BH25: 330.7117278 | BI25: 902.7032795
AN26: 24 | AO26: 8629.79886 | AP26: 3613.625144 | AQ26: 2549.338287 | AR26: 2326.580572 | AS26: 2468.323186 | AT26: 2073.391476 | AU26: 1727.82623 | AV26: 24 | AW26: 6583.728002 | AX26: 3399.117715 | AY26: 2532.837715 | AZ26: 2326.580572 | BA26: 2468.323186 | BB26: 2073.391476 | BC26: 1727.82623 | BG26: 24 | BH26: 330.7117278 | BI26: 962.3245487
A27: TITULAR | AN27: 25 | AO27: 8629.79886 | AP27: 3613.625144 | AQ27: 2549.338287 | AR27: 2326.580572 | AS27: 2468.323186 | AT27: 2073.391476 | AU27: 1727.82623 | AV27: 25 | AW27: 6583.728002 | AX27: 3399.117715 | AY27: 2532.837715 | AZ27: 2326.580572 | BA27: 2468.323186 | BB27: 2073.391476 | BC27: 1727.82623 | BG27: 25 | BH27: 350.2749567 | BI27: 1022.8774
A28: CÓNYUGE/CONVIVIENTE | AN28: 26 | AO28: 8654.549717 | AP28: 3762.130287 | AQ28: 2763.845715 | AR28: 2458.585144 | AS28: 2537.436235 | AT28: 2172.124403 | AU28: 1826.559157 | AV28: 26 | AW28: 7029.243431 | AX28: 3654.876573 | AY28: 2780.346287 | AZ28: 2458.585144 | BA28: 2537.436235 | BB28: 2172.124403 | BC28: 1826.559157 | BG28: 26 | BH28: 391.2645793 | BI28: 1082.49867
A29: HIJO/A | AN29: 27 | AO29: 8712.301717 | AP29: 4017.889144 | AQ29: 3102.10743 | AR29: 2631.841144 | AS29: 2586.802699 | AT29: 2221.490867 | AU29: 1826.559157 | AV29: 27 | AW29: 8712.301717 | AX29: 4017.889144 | AY29: 3102.10743 | AZ29: 2631.841144 | BA29: 2586.802699 | BB29: 2221.490867 | BC29: 1826.559157 | BG29: 27 | BH29: 461.1332542 | BI29: 1143.051521
AN30: 28 | AO30: 8893.808003 | AP30: 4207.645716 | AQ30: 3209.361144 | AR30: 2681.342858 | AS30: 2616.422577 | AT30: 2241.237453 | AU30: 1826.559157 | AV30: 28 | AW30: 8893.808003 | AX30: 4207.645716 | AY30: 3209.361144 | AZ30: 2681.342858 | BA30: 2616.422577 | BB30: 2241.237453 | BC30: 1826.559157 | BG30: 28 | BH30: 598.075857 | BI30: 1203.604373
AN31: 29 | AO31: 9075.314289 | AP31: 4372.65143 | AQ31: 3316.614858 | AR31: 2755.595429 | AS31: 2685.535626 | AT31: 2270.857331 | AU31: 1826.559157 | AV31: 29 | AW31: 9075.314289 | AX31: 4372.65143 | AY31: 3316.614858 | AZ31: 2755.595429 | BA31: 2685.535626 | BB31: 2270.857331 | BC31: 1826.559157 | BG31: 29 | BH31: 708.9341545 | BI31: 1293.967859
AN32: 30 | AO32: 9248.570289 | AP32: 4661.41143 | AQ32: 3349.616001 | AR32: 2829.848001 | AS32: 2715.155504 | AT32: 2290.603916 | AU32: 1826.559157 | AV32: 30 | AW32: 9248.570289 | AX32: 4661.41143 | AY32: 3349.616001 | AZ32: 2829.848001 | BA32: 2715.155504 | BB32: 2290.603916 | BC32: 1826.559157 | BG32: 30 | BH32: 763.8975121 | BI32: 1383.399763
AN33: 31 | AO33: 9430.076574 | AP33: 4867.668573 | AQ33: 3399.117715 | AR33: 2912.350858 | AS33: 2764.521968 | AT33: 2320.223795 | AU33: 2024.025012 | AV33: 31 | AW33: 9430.076574 | AX33: 4867.668573 | AY33: 3399.117715 | AZ33: 2912.350858 | BA33: 2764.521968 | BB33: 2320.223795 | BC33: 2024.025012 | BG33: 31 | BH33: 818.8608696 | BI33: 1473.763249
AN34: 32 | AO34: 9603.332574 | AP34: 5032.674287 | AQ34: 3432.118858 | AR34: 2970.102858 | AS34: 2813.888432 | AT34: 2369.590258 | AU34: 2024.025012 | AV34: 32 | AW34: 9603.332574 | AX34: 5032.674287 | AY34: 3432.118858 | AZ34: 2970.102858 | BA34: 2813.888432 | BB34: 2369.590258 | BC34: 2024.025012 | BG34: 32 | BH34: 871.0294802 | BI34: 1564.126735
AN35: 33 | AO35: 9694.085717 | AP35: 5156.428573 | AQ35: 3473.370287 | AR35: 3077.356572 | AS35: 2863.254896 | AT35: 2418.956722 | AU35: 2024.025012 | AV35: 33 | AW35: 9694.085717 | AX35: 5156.428573 | AY35: 3473.370287 | AZ35: 3077.356572 | BA35: 2863.254896 | BB35: 2418.956722 | BC35: 2024.025012 | BG35: 33 | BH35: 907.3611911 | BI35: 1654.490221
AN36: 34 | AO36: 9875.592003 | AP36: 5255.432002 | AQ36: 3506.37143 | AR36: 3135.108572 | AS36: 2912.621359 | AT36: 2468.323186 | AU36: 2024.025012 | AV36: 34 | AW36: 9875.592003 | AX36: 5255.432002 | AY36: 3506.37143 | AZ36: 3135.108572 | BA36: 2912.621359 | BB36: 2468.323186 | BC36: 2024.025012 | BG36: 34 | BH36: 945.5560667 | BI36: 1745.78529
AN37: 35 | AO37: 10007.59657 | AP37: 5337.934859 | AQ37: 3555.873144 | AR37: 3184.610287 | AS37: 2961.987823 | AT37: 2517.689649 | AU37: 2024.025012 | AV37: 35 | AW37: 10007.59657 | AX37: 5337.934859 | AY37: 3555.873144 | AZ37: 3184.610287 | BA37: 2961.987823 | BB37: 2517.689649 | BC37: 2024.025012 | BG37: 35 | BH37: 972.5719543 | BI37: 1835.217194
AN38: 36 | AO38: 10139.60115 | AP38: 5445.188573 | AQ38: 3580.624001 | AR38: 3217.61143 | AS38: 3011.354287 | AT38: 2567.056113 | AU38: 2122.75794 | AV38: 36 | AW38: 10139.60115 | AX38: 5445.188573 | AY38: 3580.624001 | AZ38: 3217.61143 | BA38: 3011.354287 | BB38: 2567.056113 | BC38: 2122.75794 | BG38: 36 | BH38: 972.5719543 | BI38: 1925.58068
A39: Integrales | AN39: 37 | AO39: 10403.61029 | AP39: 5560.692573 | AQ39: 3605.374858 | AR39: 3250.612572 | AS39: 3060.72075 | AT39: 2616.422577 | AU39: 2122.75794 | AV39: 37 | AW39: 10403.61029 | AX39: 5560.692573 | AY39: 3605.374858 | AZ39: 3250.612572 | BA39: 3060.72075 | BB39: 2616.422577 | BC39: 2122.75794 | BG39: 37 | BH39: 972.5719543 | BI39: 2015.944166
A40: FINANCIAMIENTOS JUN 2022 | B40: FACTORES | AN40: 38 | AO40: 10675.86972 | AP40: 5643.19543 | AQ40: 3638.376001 | AR40: 3283.613715 | AS40: 3110.087214 | AT40: 2665.789041 | AU40: 2122.75794 | AV40: 38 | AW40: 10675.86972 | AX40: 5643.19543 | AY40: 3638.376001 | AZ40: 3283.613715 | BA40: 3110.087214 | BB40: 2665.789041 | BC40: 2122.75794 | BG40: 38 | BH40: 1045.235376 | BI40: 2105.37607
A41: AL CONTADO | B41: 1 | AN41: 39 | AO41: 10939.87886 | AP41: 5791.700573 | AQ41: 3696.128001 | AR41: 3333.11543 | AS41: 3159.453678 | AT41: 2715.155504 | AU41: 2122.75794 | AV41: 39 | AW41: 10939.87886 | AX41: 5791.700573 | AY41: 3696.128001 | AZ41: 3333.11543 | BA41: 3159.453678 | BB41: 2715.155504 | BC41: 2122.75794 | BG41: 39 | BH41: 1045.235376 | BI41: 2165.928921
A42: 4 CUOTAS SIN INTERESES | B42: 4 | AN42: 40 | AO42: 11203.888 | AP42: 6022.708573 | AQ42: 3786.881144 | AR42: 3399.117715 | AS42: 3258.186605 | AT42: 2764.521968 | AU42: 2122.75794 | AV42: 40 | AW42: 11203.888 | AX42: 6022.708573 | AY42: 3786.881144 | AZ42: 3399.117715 | BA42: 3258.186605 | BB42: 2764.521968 | BC42: 2122.75794 | BG42: 40 | BH42: 1045.235376 | BI42: 2256.292408
A43: 6 CUOTAS SIN INTERESES | B43: 6 | AN43: 41 | AO43: 11385.39429 | AP43: 6352.720002 | AQ43: 4199.39543 | AR43: 3745.629715 | AS43: 3356.919533 | AT43: 2912.621359 | AU43: 2270.857331 | AV43: 41 | AW43: 11385.39429 | AX43: 6352.720002 | AY43: 4199.39543 | AZ43: 3745.629715 | BA43: 3356.919533 | BB43: 2912.621359 | BC43: 2270.857331 | BG43: 41 | BH43: 1145.846268 | BI43: 2346.655894
A44: 6 CUOTAS (TCEA 4%) | B44: 5.931847245 | AN44: 42 | AO44: 11649.40343 | AP44: 6723.982859 | AQ44: 4471.654859 | AR44: 3927.136001 | AS44: 3603.751851 | AT44: 3060.72075 | AU44: 2418.956722 | AV44: 42 | AW44: 11649.40343 | AX44: 6723.982859 | AY44: 4471.654859 | AZ44: 3927.136001 | BA44: 3603.751851 | BB44: 3060.72075 | BC44: 2418.956722 | BG44: 42 | BH44: 1226.893931 | BI44: 2437.01938
A45: 6 CUOTAS (TCEA 17.5%) | B45: 5.725823013 | AN45: 43 | AO45: 11921.66286 | AP45: 6971.491431 | AQ45: 4867.668573 | AR45: 4273.648001 | AS45: 3850.58417 | AT45: 3179.200263 | AU45: 2517.689649 | AV45: 43 | AW45: 11921.66286 | AX45: 6971.491431 | AY45: 4867.668573 | AZ45: 4273.648001 | BA45: 3850.58417 | BB45: 3179.200263 | BC45: 2517.689649 | BG45: 43 | BH45: 1307.010012 | BI45: 2526.451284
A46: 10 CUOTAS SIN INTERESES | B46: 10 | AN46: 44 | AO46: 12004.16572 | AP46: 7152.997717 | AQ46: 5040.924573 | AR46: 4537.657144 | AS46: 4097.416488 | AT46: 3277.933191 | AU46: 2616.422577 | AV46: 44 | AW46: 12004.16572 | AX46: 7152.997717 | AY46: 5040.924573 | AZ46: 4537.657144 | BA46: 4097.416488 | BB46: 3277.933191 | BC46: 2616.422577 | BG46: 44 | BH46: 1350.794381 | BI46: 2616.81477
A47: 10 CUOTAS (TCEA 4%) | B47: 9.822277276 | AN47: 45 | AO47: 12094.91886 | AP47: 7507.760002 | AQ47: 5247.181716 | AR47: 4710.913144 | AS47: 4344.248807 | AT47: 3376.666118 | AU47: 2715.155504 | AV47: 45 | AW47: 12094.91886 | AX47: 7507.760002 | AY47: 5247.181716 | AZ47: 4710.913144 | BA47: 4344.248807 | BB47: 3376.666118 | BC47: 2715.155504 | BG47: 45 | BH47: 1449.542108 | BI47: 2707.178256
A48: 10 CUOTAS (TCEA 17.5%) | B48: 9.294431117 | AN48: 46 | AO48: 12622.93715 | AP48: 7854.272002 | AQ48: 5692.697145 | AR48: 5065.67543 | AS48: 4591.081126 | AT48: 3475.399046 | AU48: 2813.888432 | AV48: 46 | AW48: 12622.93715 | AX48: 7854.272002 | AY48: 5692.697145 | AZ48: 5065.67543 | BA48: 4591.081126 | BB48: 3475.399046 | BC48: 2813.888432 | BG48: 46 | BH48: 1594.868952 | BI48: 2797.541742
A49: 12 CUOTAS SIN INTERESES | B49: 12 | AN49: 47 | AO49: 13249.95886 | AP49: 8035.778288 | AQ49: 6006.208002 | AR49: 5238.93143 | AS49: 4739.180517 | AT49: 3574.131973 | AU49: 2912.621359 | AV49: 47 | AW49: 13249.95886 | AX49: 8035.778288 | AY49: 6006.208002 | AZ49: 5238.93143 | BA49: 4739.180517 | BB49: 3574.131973 | BC49: 2912.621359 | BG49: 47 | BH49: 1669.395538 | BI49: 2887.905228
A50: 12 CUOTAS (TCEA 4%) | B50: 11.74850203 | AN50: 48 | AO50: 13876.98058 | AP50: 8390.540574 | AQ50: 6228.965716 | AR50: 5412.18743 | AS50: 5035.379299 | AT50: 3771.597828 | AU50: 3011.354287 | AV50: 48 | AW50: 13876.98058 | AX50: 8390.540574 | AY50: 6228.965716 | AZ50: 5412.18743 | BA50: 5035.379299 | BB50: 3771.597828 | BC50: 3011.354287 | BG50: 48 | BH50: 1743.922125 | BI50: 2978.268715
A51: 12 CUOTAS (TCEA 17.5%) | B51: 11.00807343 | AN51: 49 | AO51: 14495.752 | AP51: 8737.052574 | AQ51: 6451.723431 | AR51: 5585.44343 | AS51: 5331.578081 | AT51: 4028.303439 | AU51: 3159.453678 | AV51: 49 | AW51: 14495.752 | AX51: 8737.052574 | AY51: 6451.723431 | AZ51: 5585.44343 | BA51: 5331.578081 | BB51: 4028.303439 | BC51: 3159.453678 | BG51: 49 | BH51: 1818.448712 | BI51: 3068.632201
AN52: 50 | AO52: 15296.02972 | AP52: 9009.312003 | AQ52: 6715.732574 | AR52: 5766.949716 | AS52: 5627.776864 | AT52: 4294.882343 | AU52: 3307.553069 | AV52: 50 | AW52: 15296.02972 | AX52: 9009.312003 | AY52: 6715.732574 | AZ52: 5766.949716 | BA52: 5627.776864 | BB52: 4294.882343 | BC52: 3307.553069 | BG52: 50 | BH52: 1892.975298 | BI52: 3158.064105
AN53: 51 | AO53: 16005.55429 | AP53: 9982.845717 | AQ53: 7301.502859 | AR53: 6294.968002 | AS53: 5923.975646 | AT53: 4541.714662 | AU53: 3455.65246 | AV53: 51 | AW53: 16005.55429 | AX53: 9982.845717 | AY53: 7301.502859 | AZ53: 6294.968002 | BA53: 5923.975646 | BB53: 4541.714662 | BC53: 3455.65246 | BG53: 51 | BH53: 1967.501885 | BI53: 3248.427591
AN54: 52 | AO54: 16896.58515 | AP54: 10725.37143 | AQ54: 7730.517717 | AR54: 6558.977145 | AS54: 6220.174428 | AT54: 4788.54698 | AU54: 3751.851242 | AV54: 52 | AW54: 16896.58515 | AX54: 10725.37143 | AY54: 7730.517717 | AZ54: 6558.977145 | BA54: 6220.174428 | BB54: 4788.54698 | BC54: 3751.851242 | BG54: 52 | BH54: 2042.028471 | BI54: 3338.791077
A55: Oncológicos | AN55: 53 | AO55: 18406.38743 | AP55: 11137.88572 | AQ55: 7862.522288 | AR55: 6732.233145 | AS55: 6516.37321 | AT55: 5035.379299 | AU55: 4048.050025 | AV55: 53 | AW55: 18406.38743 | AX55: 11137.88572 | AY55: 7862.522288 | AZ55: 6732.233145 | BA55: 6516.37321 | BB55: 5035.379299 | BC55: 4048.050025 | BG55: 53 | BH55: 2120.281387 | BI55: 3428.222981
A56: FINANCIAMIENTOS JUN 2022 | B56: FACTORES | AN56: 54 | AO56: 19388.17143 | AP56: 11715.40572 | AQ56: 8217.284574 | AR56: 6996.242288 | AS56: 6812.571993 | AT56: 5331.578081 | AU56: 4344.248807 | AV56: 54 | AW56: 19388.17143 | AX56: 11715.40572 | AY56: 8217.284574 | AZ56: 6996.242288 | BA56: 6812.571993 | BB56: 5331.578081 | BC56: 4344.248807 | BG56: 54 | BH56: 2222.755444 | BI56: 3519.518049
A57: AL CONTADO | B57: 1 | AN57: 55 | AO57: 20633.96458 | AP57: 12210.42286 | AQ57: 8662.800003 | AR57: 7351.004574 | AS57: 7108.770775 | AT57: 5627.776864 | AU57: 4640.447589 | AV57: 55 | AW57: 20633.96458 | AX57: 12210.42286 | AY57: 8662.800003 | AZ57: 7351.004574 | BA57: 7108.770775 | BB57: 5627.776864 | BC57: 4640.447589 | BG57: 55 | BH57: 2312.187347 | BI57: 3670.434387
A58: 4 CUOTAS SIN INTERESES | B58: 4 | AN58: 56 | AO58: 22143.76686 | AP58: 12787.94286 | AQ58: 9009.312003 | AR58: 7788.269717 | AS58: 7503.702485 | AT58: 5923.975646 | AU58: 4936.646372 | AV58: 56 | AW58: 22143.76686 | AX58: 12787.94286 | AY58: 9009.312003 | AZ58: 7788.269717 | BA58: 7503.702485 | BB58: 5923.975646 | BC58: 4936.646372 | BG58: 56 | BH58: 2406.277163 | BI58: 3819.48756
A59: 6 CUOTAS (INTERÉS 12%) | B59: 5.805671792 | AN59: 57 | AO59: 23802.07429 | AP59: 13489.21715 | AQ59: 9586.832003 | AR59: 8225.53486 | AS59: 7997.367122 | AT59: 6220.174428 | AU59: 5282.211618 | AV59: 57 | AW59: 23802.07429 | AX59: 13489.21715 | AY59: 9586.832003 | AZ59: 8225.53486 | BA59: 7997.367122 | BB59: 6220.174428 | BC59: 5282.211618 | BG59: 57 | BH59: 2526.451284 | BI59: 4001.146115
A60: 6 CUOTAS (INTERÉS 17.5%) | B60: 5.725823013 | AN60: 58 | AO60: 25204.62287 | AP60: 14190.49143 | AQ60: 10073.59886 | AR60: 8662.800003 | AS60: 8491.031759 | AT60: 6615.106138 | AU60: 5627.776864 | AV60: 58 | AW60: 25204.62287 | AX60: 14190.49143 | AY60: 10073.59886 | AZ60: 8662.800003 | BA60: 8491.031759 | BB60: 6615.106138 | BC60: 5627.776864 | BG60: 58 | BH60: 2646.625405 | BI60: 4181.873087
A61: 10 CUOTAS (INTERÉS 12%) | B61: 9.497329567 | AN61: 59 | AO61: 26714.42515 | AP61: 15098.02286 | AQ61: 11063.63315 | AR61: 9364.074289 | AS61: 8984.696396 | AT61: 7010.037848 | AU61: 5973.34211 | AV61: 59 | AW61: 26714.42515 | AX61: 15098.02286 | AY61: 11063.63315 | AZ61: 9364.074289 | BA61: 8984.696396 | BB61: 7010.037848 | BC61: 5973.34211 | BG61: 59 | BH61: 2767.731108 | BI61: 4361.668477
A62: 10 CUOTAS (INTERÉS 17.5%) | B62: 9.294431117 | AN62: 60 | AO62: 28100.47315 | AP62: 16005.55429 | AQ62: 12094.91886 | AR62: 10156.10172 | AS62: 9972.025671 | AT62: 8491.031759 | AU62: 6269.540892 | AV62: 60 | AW62: 28100.47315 | AX62: 16005.55429 | AY62: 12094.91886 | AZ62: 10156.10172 | BA62: 9972.025671 | BB62: 8491.031759 | BC62: 6269.540892 | BG62: 60 | BH62: 2906.536875 | BI62: 4542.39545
A63: 12 CUOTAS (INTERÉS 12%) | B63: 11.29151599 | AN63: 61 | AO63: 30682.81258 | AP63: 17325.60001 | AQ63: 12787.94286 | AR63: 11030.632 | AV63: 61 | AW63: 30682.81258 | AX63: 17325.60001 | AY63: 12787.94286 | AZ63: 11030.632 | BG63: 61 | BH63: 3077.016442 | BI63: 4723.122422
A64: 12 CUOTAS (INTERÉS 17.5%) | B64: 11.00807343 | AN64: 62 | AO64: 33355.90515 | AP64: 18645.64572 | AQ64: 13934.73258 | AR64: 11913.41258 | AV64: 62 | AW64: 33355.90515 | AX64: 18645.64572 | AY64: 13934.73258 | AZ64: 11913.41258 | BG64: 62 | BH64: 3248.427591 | BI64: 4903.849394
AN65: 63 | AO65: 35575.23201 | AP65: 19924.44001 | AQ65: 14933.01715 | AR65: 12787.94286 | AV65: 63 | AW65: 35575.23201 | AX65: 19924.44001 | AY65: 14933.01715 | AZ65: 12787.94286 | BG65: 63 | BH65: 3429.154563 | BI65: 5083.644784
AN66: 64 | AO66: 37712.05601 | AP66: 21285.73715 | AQ66: 16121.05829 | AR66: 13670.72343 | AV66: 64 | AW66: 37712.05601 | AX66: 21285.73715 | AY66: 16121.05829 | AZ66: 13670.72343 | BG66: 64 | BH66: 3633.171094 | BI66: 5263.440174
AN67: 65 | AO67: 40376.8983 | AP67: 22605.78286 | AQ67: 17540.10743 | AR67: 14545.25372 | AV67: 65 | AW67: 40376.8983 | AX67: 22605.78286 | AY67: 17540.10743 | AZ67: 14545.25372 | BG67: 65 | BH67: 3826.940219 | BI67: 5504.719998
AN68: 66 | AO68: 42686.9783 | AP68: 26376.16344 | AQ68: 18893.15429 | AR68: 16533.57258 | AV68: 66 | AW68: 42686.9783 | AX68: 26376.16344 | AY68: 18893.15429 | AZ68: 16533.57258 | BG68: 66 | BH68: 4049.588396 | BI68: 5745.999822
AN69: 67 | AO69: 45360.07087 | AP69: 27968.46858 | AQ69: 20798.97029 | AR69: 17903.12001 | AV69: 67 | AW69: 45360.07087 | AX69: 27968.46858 | AY69: 20798.97029 | AZ69: 17903.12001 | BG69: 67 | BH69: 4271.304991 | BI69: 5986.348064
AN70: 68 | AO70: 48981.9463 | AP70: 29767.03087 | AQ70: 22820.29029 | AR70: 19388.17143 | AV70: 68 | AW70: 48981.9463 | AX70: 29767.03087 | AY70: 22820.29029 | AZ70: 19388.17143 | BG70: 68 | BH70: 4511.653233 | BI70: 6226.696306
AN71: 69 | AO71: 51762.29259 | AP71: 32522.6263 | AQ71: 24503.34858 | AR71: 20749.46858 | AV71: 69 | AW71: 51762.29259 | AX71: 32522.6263 | AY71: 24503.34858 | AZ71: 20749.46858 | BG71: 69 | BH71: 4753.864639 | BI71: 6467.976129
AN72: 70 | AO72: 56027.6903 | AP72: 34956.46058 | AQ72: 26004.90058 | AR72: 22226.26972 | AV72: 70 | AW72: 56027.6903 | AX72: 34956.46058 | AY72: 26004.90058 | AZ72: 22226.26972 | BG72: 70 | BH72: 4994.212881 | BI72: 6707.392789
AN73: 71 | AO73: 61901.89373 | AP73: 37926.56344 | AQ73: 28232.47772 | AR73: 23810.32458 | AV73: 71 | AW73: 61901.89373 | AX73: 37926.56344 | AY73: 28232.47772 | AZ73: 23810.32458 | BG73: 71 | BH73: 5234.561122 | BI73: 7009.225464
AN74: 72 | AO74: 61901.89373 | AP74: 37926.56344 | AQ74: 28232.47772 | AR74: 23810.32458 | AV74: 72 | AW74: 61901.89373 | AX74: 37926.56344 | AY74: 28232.47772 | AZ74: 23810.32458 | BG74: 72 | BH74: 5474.909364 | BI74: 7009.225464
AN75: 73 | AO75: 61901.89373 | AP75: 37926.56344 | AQ75: 28232.47772 | AR75: 23810.32458 | AV75: 73 | AW75: 61901.89373 | AX75: 37926.56344 | AY75: 28232.47772 | AZ75: 23810.32458 | BG75: 73 | BH75: 5474.909364 | BI75: 7009.225464
AN76: 74 | AO76: 61901.89373 | AP76: 37926.56344 | AQ76: 28232.47772 | AR76: 23810.32458 | AV76: 74 | AW76: 61901.89373 | AX76: 37926.56344 | AY76: 28232.47772 | AZ76: 23810.32458 | BG76: 74 | BH76: 5474.909364 | BI76: 7009.225464
AN77: 75 | AO77: 61901.89373 | AP77: 37926.56344 | AQ77: 28232.47772 | AR77: 23810.32458 | AV77: 75 | AW77: 61901.89373 | AX77: 37926.56344 | AY77: 28232.47772 | AZ77: 23810.32458 | BG77: 75 | BH77: 5595.083485 | BI77: 7009.225464
AN78: 76 | AO78: 64030.46745 | AP78: 43223.24687 | AQ78: 31144.82858 | AR78: 25179.87201 | AV78: 76 | AW78: 64030.46745 | AX78: 43223.24687 | AY78: 31144.82858 | AZ78: 25179.87201 | BG78: 76 | BH78: 5595.083485 | BI78: 7009.225464
AN79: 77 | AO79: 64030.46745 | AP79: 43223.24687 | AQ79: 31144.82858 | AR79: 25179.87201 | AV79: 77 | AW79: 64030.46745 | AX79: 43223.24687 | AY79: 31144.82858 | AZ79: 25179.87201 | BG79: 77 | BH79: 5595.083485 | BI79: 7009.225464
AN80: 78 | AO80: 64030.46745 | AP80: 43223.24687 | AQ80: 31144.82858 | AR80: 25179.87201 | AV80: 78 | AW80: 64030.46745 | AX80: 43223.24687 | AY80: 31144.82858 | AZ80: 25179.87201 | BG80: 78 | BH80: 5595.083485 | BI80: 7009.225464
AN81: 79 | AO81: 64030.46745 | AP81: 43223.24687 | AQ81: 31144.82858 | AR81: 25179.87201 | AV81: 79 | AW81: 64030.46745 | AX81: 43223.24687 | AY81: 31144.82858 | AZ81: 25179.87201 | BG81: 79 | BH81: 5595.083485 | BI81: 7009.225464
AN82: 80 | AO82: 64030.46745 | AP82: 43223.24687 | AQ82: 31144.82858 | AR82: 25179.87201 | AV82: 80 | AW82: 64030.46745 | AX82: 43223.24687 | AY82: 31144.82858 | AZ82: 25179.87201 | BG82: 80 | BH82: 5716.189188 | BI82: 7009.225464
AN83: 81 | AO83: 64566.73602 | AP83: 47670.15087 | AQ83: 34494.44458 | AR83: 26648.42287 | AV83: 81 | AW83: 64566.73602 | AX83: 47670.15087 | AY83: 34494.44458 | AZ83: 26648.42287 | BG83: 81 | BH83: 5716.189188 | BI83: 7009.225464
AN84: 82 | AO84: 64566.73602 | AP84: 47670.15087 | AQ84: 34494.44458 | AR84: 26648.42287 | AV84: 82 | AW84: 64566.73602 | AX84: 47670.15087 | AY84: 34494.44458 | AZ84: 26648.42287 | BG84: 82 | BH84: 5716.189188 | BI84: 7009.225464
AN85: 83 | AO85: 64566.73602 | AP85: 47670.15087 | AQ85: 34494.44458 | AR85: 26648.42287 | AV85: 83 | AW85: 64566.73602 | AX85: 47670.15087 | AY85: 34494.44458 | AZ85: 26648.42287 | BG85: 83 | BH85: 5716.189188 | BI85: 7009.225464
AN86: 84 | AO86: 64566.73602 | AP86: 47670.15087 | AQ86: 34494.44458 | AR86: 26648.42287 | AV86: 84 | AW86: 64566.73602 | AX86: 47670.15087 | AY86: 34494.44458 | AZ86: 26648.42287 | BG86: 84 | BH86: 5716.189188 | BI86: 7009.225464
AN87: 85 | AO87: 64566.73602 | AP87: 47670.15087 | AQ87: 34494.44458 | AR87: 26648.42287 | AV87: 85 | AW87: 64566.73602 | AX87: 47670.15087 | AY87: 34494.44458 | AZ87: 26648.42287 | BG87: 85 | BH87: 5716.189188 | BI87: 7009.225464
AN88: 86 | AO88: 64566.73602 | AP88: 47670.15087 | AQ88: 34494.44458 | AR88: 26648.42287 | AV88: 86 | AW88: 64566.73602 | AX88: 47670.15087 | AY88: 34494.44458 | AZ88: 26648.42287 | BG88: 86 | BH88: 5716.189188 | BI88: 7009.225464
AN89: 87 | AO89: 64566.73602 | AP89: 47670.15087 | AQ89: 34494.44458 | AR89: 26648.42287 | AV89: 87 | AW89: 64566.73602 | AX89: 47670.15087 | AY89: 34494.44458 | AZ89: 26648.42287 | BG89: 87 | BH89: 5716.189188 | BI89: 7009.225464
AN90: 88 | AO90: 64566.73602 | AP90: 47670.15087 | AQ90: 34494.44458 | AR90: 26648.42287 | AV90: 88 | AW90: 64566.73602 | AX90: 47670.15087 | AY90: 34494.44458 | AZ90: 26648.42287 | BG90: 88 | BH90: 5716.189188 | BI90: 7009.225464
AN91: 89 | AO91: 64566.73602 | AP91: 47670.15087 | AQ91: 34494.44458 | AR91: 26648.42287 | AV91: 89 | AW91: 64566.73602 | AX91: 47670.15087 | AY91: 34494.44458 | AZ91: 26648.42287 | BG91: 89 | BH91: 5716.189188 | BI91: 7009.225464
AN92: 90 | AO92: 64566.73602 | AP92: 47670.15087 | AQ92: 34494.44458 | AR92: 26648.42287 | AV92: 90 | AW92: 64566.73602 | AX92: 47670.15087 | AY92: 34494.44458 | AZ92: 26648.42287 | BG92: 90 | BH92: 5716.189188 | BI92: 7009.225464
AN93: 91 | AO93: 64566.73602 | AP93: 47670.15087 | AQ93: 34494.44458 | AR93: 26648.42287 | AV93: 91 | AW93: 64566.73602 | AX93: 47670.15087 | AY93: 34494.44458 | AZ93: 26648.42287 | BG93: 91 | BH93: 5716.189188 | BI93: 7009.225464
AN94: 92 | AO94: 64566.73602 | AP94: 47670.15087 | AQ94: 34494.44458 | AR94: 26648.42287 | AV94: 92 | AW94: 64566.73602 | AX94: 47670.15087 | AY94: 34494.44458 | AZ94: 26648.42287 | BG94: 92 | BH94: 5716.189188 | BI94: 7009.225464
AN95: 93 | AO95: 64566.73602 | AP95: 47670.15087 | AQ95: 34494.44458 | AR95: 26648.42287 | AV95: 93 | AW95: 64566.73602 | AX95: 47670.15087 | AY95: 34494.44458 | AZ95: 26648.42287 | BG95: 93 | BH95: 5716.189188 | BI95: 7009.225464
AN96: 94 | AO96: 64566.73602 | AP96: 47670.15087 | AQ96: 34494.44458 | AR96: 26648.42287 | AV96: 94 | AW96: 64566.73602 | AX96: 47670.15087 | AY96: 34494.44458 | AZ96: 26648.42287 | BG96: 94 | BH96: 5716.189188 | BI96: 7009.225464
AN97: 95 | AO97: 64566.73602 | AP97: 47670.15087 | AQ97: 34494.44458 | AR97: 26648.42287 | AV97: 95 | AW97: 64566.73602 | AX97: 47670.15087 | AY97: 34494.44458 | AZ97: 26648.42287 | BG97: 95 | BH97: 5716.189188 | BI97: 7009.225464
AN98: 96 | AO98: 64566.73602 | AP98: 47670.15087 | AQ98: 34494.44458 | AR98: 26648.42287 | AV98: 96 | AW98: 64566.73602 | AX98: 47670.15087 | AY98: 34494.44458 | AZ98: 26648.42287 | BG98: 96 | BH98: 5716.189188 | BI98: 7009.225464
AN99: 97 | AO99: 64566.73602 | AP99: 47670.15087 | AQ99: 34494.44458 | AR99: 26648.42287 | AV99: 97 | AW99: 64566.73602 | AX99: 47670.15087 | AY99: 34494.44458 | AZ99: 26648.42287 | BG99: 97 | BH99: 5716.189188 | BI99: 7009.225464
AN100: 98 | AO100: 64566.73602 | AP100: 47670.15087 | AQ100: 34494.44458 | AR100: 26648.42287 | AV100: 98 | AW100: 64566.73602 | AX100: 47670.15087 | AY100: 34494.44458 | AZ100: 26648.42287 | BG100: 98 | BH100: 5716.189188 | BI100: 7009.225464
AN101: 99 | AO101: 64566.73602 | AP101: 47670.15087 | AQ101: 34494.44458 | AR101: 26648.42287 | AV101: 99 | AW101: 64566.73602 | AX101: 47670.15087 | AY101: 34494.44458 | AZ101: 26648.42287 | BG101: 99 | BH101: 5716.189188 | BI101: 7009.225464
AN102: 100 | AO102: 64566.73602 | AP102: 47670.15087 | AQ102: 34494.44458 | AR102: 26648.42287 | AV102: 100 | AW102: 64566.73602 | AX102: 47670.15087 | AY102: 34494.44458 | AZ102: 26648.42287 | BG102: 100 | BH102: 5716.189188 | BI102: 7009.225464

Sheet DATA INT2 (hidden)
AM1: PACÍFICO 2023 (TARIFARIO ACTUAL) | AN1: TIT | AO1: MINT | AP1: MEDICVIDA NACIONAL | AQ1: MULTISALUD | AR1: RED PREFERENTE | AS1: MULTISALUD BASE | AT1: SALUD ESENCIAL PLUS | AU1: SALUD ESENCIAL | AV1: HIJO | AW1: MINT | AX1: MEDICVIDA NACIONAL | AY1: MULTISALUD | AZ1: RED PREFERENTE | BA1: MULTISALUD BASE | BB1: SALUD ESENCIAL PLUS | BC1: SALUD ESENCIAL | BF1: PACÍFICO 2023 (TARIFARIO ONCOLÓGICOS) | BG1: TIT | BH1: ONCOLÓGICO NACIONAL | BI1: ONCOLÓGICO INTERNACIONAL
AN2: 0 | AO2: =+BISIESTO!AO2/366*365 -> 8425.209807 | AP2: =+BISIESTO!AP2/366*365 -> 3562.613131 | AQ2: =+BISIESTO!AQ2/366*365 -> 2517.689649 | AR2: =+BISIESTO!AR2/366*365 -> 2279.085075 | AS2: =+BISIESTO!AS2/366*365 -> 2412.347551 | AT2: =+BISIESTO!AT2/366*365 -> 2018.494889 | AU2: =+BISIESTO!AU2/366*365 -> 1723.105393 | AV2: 0 | AW2: =+BISIESTO!AW2/366*365 -> 6516.37321 | AX2: =+BISIESTO!AX2/366*365 -> 3348.691789 | AY2: =+BISIESTO!AY2/366*365 -> 2460.095442 | AZ2: =+BISIESTO!AZ2/366*365 -> 2279.085075 | BA2: =+BISIESTO!BA2/366*365 -> 2412.347551 | BB2: =+BISIESTO!BB2/366*365 -> 2018.494889 | BC2: =+BISIESTO!BC2/366*365 -> 1723.105393 | BG2: 0 | BH2: =+BISIESTO!BH2/366*365 -> 312.1564403 | BI2: =+BISIESTO!BI2/366*365 -> 720.0036943
AN3: 1 | AO3: =+BISIESTO!AO3/366*365 -> 8425.209807 | AP3: =+BISIESTO!AP3/366*365 -> 3562.613131 | AQ3: =+BISIESTO!AQ3/366*365 -> 2517.689649 | AR3: =+BISIESTO!AR3/366*365 -> 2279.085075 | AS3: =+BISIESTO!AS3/366*365 -> 2412.347551 | AT3: =+BISIESTO!AT3/366*365 -> 2018.494889 | AU3: =+BISIESTO!AU3/366*365 -> 1723.105393 | AV3: 1 | AW3: =+BISIESTO!AW3/366*365 -> 6516.37321 | AX3: =+BISIESTO!AX3/366*365 -> 3348.691789 | AY3: =+BISIESTO!AY3/366*365 -> 2460.095442 | AZ3: =+BISIESTO!AZ3/366*365 -> 2279.085075 | BA3: =+BISIESTO!BA3/366*365 -> 2412.347551 | BB3: =+BISIESTO!BB3/366*365 -> 2018.494889 | BC3: =+BISIESTO!BC3/366*365 -> 1723.105393 | BG3: 1 | BH3: =+BISIESTO!BH3/366*365 -> 312.1564403 | BI3: =+BISIESTO!BI3/366*365 -> 720.0036943
AN4: 2 | AO4: =+BISIESTO!AO4/366*365 -> 8425.209807 | AP4: =+BISIESTO!AP4/366*365 -> 3562.613131 | AQ4: =+BISIESTO!AQ4/366*365 -> 2517.689649 | AR4: =+BISIESTO!AR4/366*365 -> 2279.085075 | AS4: =+BISIESTO!AS4/366*365 -> 2412.347551 | AT4: =+BISIESTO!AT4/366*365 -> 2018.494889 | AU4: =+BISIESTO!AU4/366*365 -> 1723.105393 | AV4: 2 | AW4: =+BISIESTO!AW4/366*365 -> 6516.37321 | AX4: =+BISIESTO!AX4/366*365 -> 3348.691789 | AY4: =+BISIESTO!AY4/366*365 -> 2460.095442 | AZ4: =+BISIESTO!AZ4/366*365 -> 2279.085075 | BA4: =+BISIESTO!BA4/366*365 -> 2412.347551 | BB4: =+BISIESTO!BB4/366*365 -> 2018.494889 | BC4: =+BISIESTO!BC4/366*365 -> 1723.105393 | BG4: 2 | BH4: =+BISIESTO!BH4/366*365 -> 312.1564403 | BI4: =+BISIESTO!BI4/366*365 -> 720.0036943
AN5: 3 | AO5: =+BISIESTO!AO5/366*365 -> 8425.209807 | AP5: =+BISIESTO!AP5/366*365 -> 3562.613131 | AQ5: =+BISIESTO!AQ5/366*365 -> 2517.689649 | AR5: =+BISIESTO!AR5/366*365 -> 2279.085075 | AS5: =+BISIESTO!AS5/366*365 -> 2412.347551 | AT5: =+BISIESTO!AT5/366*365 -> 2018.494889 | AU5: =+BISIESTO!AU5/366*365 -> 1723.105393 | AV5: 3 | AW5: =+BISIESTO!AW5/366*365 -> 6516.37321 | AX5: =+BISIESTO!AX5/366*365 -> 3348.691789 | AY5: =+BISIESTO!AY5/366*365 -> 2460.095442 | AZ5: =+BISIESTO!AZ5/366*365 -> 2279.085075 | BA5: =+BISIESTO!BA5/366*365 -> 2412.347551 | BB5: =+BISIESTO!BB5/366*365 -> 2018.494889 | BC5: =+BISIESTO!BC5/366*365 -> 1723.105393 | BG5: 3 | BH5: =+BISIESTO!BH5/366*365 -> 312.1564403 | BI5: =+BISIESTO!BI5/366*365 -> 720.0036943
AN6: 4 | AO6: =+BISIESTO!AO6/366*365 -> 8425.209807 | AP6: =+BISIESTO!AP6/366*365 -> 3562.613131 | AQ6: =+BISIESTO!AQ6/366*365 -> 2517.689649 | AR6: =+BISIESTO!AR6/366*365 -> 2279.085075 | AS6: =+BISIESTO!AS6/366*365 -> 2412.347551 | AT6: =+BISIESTO!AT6/366*365 -> 2018.494889 | AU6: =+BISIESTO!AU6/366*365 -> 1723.105393 | AV6: 4 | AW6: =+BISIESTO!AW6/366*365 -> 6516.37321 | AX6: =+BISIESTO!AX6/366*365 -> 3348.691789 | AY6: =+BISIESTO!AY6/366*365 -> 2460.095442 | AZ6: =+BISIESTO!AZ6/366*365 -> 2279.085075 | BA6: =+BISIESTO!BA6/366*365 -> 2412.347551 | BB6: =+BISIESTO!BB6/366*365 -> 2018.494889 | BC6: =+BISIESTO!BC6/366*365 -> 1723.105393 | BG6: 4 | BH6: =+BISIESTO!BH6/366*365 -> 312.1564403 | BI6: =+BISIESTO!BI6/366*365 -> 720.0036943
AN7: 5 | AO7: =+BISIESTO!AO7/366*365 -> 8425.209807 | AP7: =+BISIESTO!AP7/366*365 -> 3562.613131 | AQ7: =+BISIESTO!AQ7/366*365 -> 2517.689649 | AR7: =+BISIESTO!AR7/366*365 -> 2279.085075 | AS7: =+BISIESTO!AS7/366*365 -> 2412.347551 | AT7: =+BISIESTO!AT7/366*365 -> 2018.494889 | AU7: =+BISIESTO!AU7/366*365 -> 1723.105393 | AV7: 5 | AW7: =+BISIESTO!AW7/366*365 -> 6516.37321 | AX7: =+BISIESTO!AX7/366*365 -> 3348.691789 | AY7: =+BISIESTO!AY7/366*365 -> 2460.095442 | AZ7: =+BISIESTO!AZ7/366*365 -> 2279.085075 | BA7: =+BISIESTO!BA7/366*365 -> 2412.347551 | BB7: =+BISIESTO!BB7/366*365 -> 2018.494889 | BC7: =+BISIESTO!BC7/366*365 -> 1723.105393 | BG7: 5 | BH7: =+BISIESTO!BH7/366*365 -> 312.1564403 | BI7: =+BISIESTO!BI7/366*365 -> 720.0036943
AN8: 6 | AO8: =+BISIESTO!AO8/366*365 -> 8425.209807 | AP8: =+BISIESTO!AP8/366*365 -> 3562.613131 | AQ8: =+BISIESTO!AQ8/366*365 -> 2517.689649 | AR8: =+BISIESTO!AR8/366*365 -> 2279.085075 | AS8: =+BISIESTO!AS8/366*365 -> 2412.347551 | AT8: =+BISIESTO!AT8/366*365 -> 2018.494889 | AU8: =+BISIESTO!AU8/366*365 -> 1723.105393 | AV8: 6 | AW8: =+BISIESTO!AW8/366*365 -> 6516.37321 | AX8: =+BISIESTO!AX8/366*365 -> 3348.691789 | AY8: =+BISIESTO!AY8/366*365 -> 2460.095442 | AZ8: =+BISIESTO!AZ8/366*365 -> 2279.085075 | BA8: =+BISIESTO!BA8/366*365 -> 2412.347551 | BB8: =+BISIESTO!BB8/366*365 -> 2018.494889 | BC8: =+BISIESTO!BC8/366*365 -> 1723.105393 | BG8: 6 | BH8: =+BISIESTO!BH8/366*365 -> 312.1564403 | BI8: =+BISIESTO!BI8/366*365 -> 720.0036943
AN9: 7 | AO9: =+BISIESTO!AO9/366*365 -> 8425.209807 | AP9: =+BISIESTO!AP9/366*365 -> 3562.613131 | AQ9: =+BISIESTO!AQ9/366*365 -> 2517.689649 | AR9: =+BISIESTO!AR9/366*365 -> 2279.085075 | AS9: =+BISIESTO!AS9/366*365 -> 2412.347551 | AT9: =+BISIESTO!AT9/366*365 -> 2018.494889 | AU9: =+BISIESTO!AU9/366*365 -> 1723.105393 | AV9: 7 | AW9: =+BISIESTO!AW9/366*365 -> 6516.37321 | AX9: =+BISIESTO!AX9/366*365 -> 3348.691789 | AY9: =+BISIESTO!AY9/366*365 -> 2460.095442 | AZ9: =+BISIESTO!AZ9/366*365 -> 2279.085075 | BA9: =+BISIESTO!BA9/366*365 -> 2412.347551 | BB9: =+BISIESTO!BB9/366*365 -> 2018.494889 | BC9: =+BISIESTO!BC9/366*365 -> 1723.105393 | BG9: 7 | BH9: =+BISIESTO!BH9/366*365 -> 312.1564403 | BI9: =+BISIESTO!BI9/366*365 -> 720.0036943
AN10: 8 | AO10: =+BISIESTO!AO10/366*365 -> 8425.209807 | AP10: =+BISIESTO!AP10/366*365 -> 3562.613131 | AQ10: =+BISIESTO!AQ10/366*365 -> 2517.689649 | AR10: =+BISIESTO!AR10/366*365 -> 2279.085075 | AS10: =+BISIESTO!AS10/366*365 -> 2412.347551 | AT10: =+BISIESTO!AT10/366*365 -> 2018.494889 | AU10: =+BISIESTO!AU10/366*365 -> 1723.105393 | AV10: 8 | AW10: =+BISIESTO!AW10/366*365 -> 6516.37321 | AX10: =+BISIESTO!AX10/366*365 -> 3348.691789 | AY10: =+BISIESTO!AY10/366*365 -> 2460.095442 | AZ10: =+BISIESTO!AZ10/366*365 -> 2279.085075 | BA10: =+BISIESTO!BA10/366*365 -> 2412.347551 | BB10: =+BISIESTO!BB10/366*365 -> 2018.494889 | BC10: =+BISIESTO!BC10/366*365 -> 1723.105393 | BG10: 8 | BH10: =+BISIESTO!BH10/366*365 -> 312.1564403 | BI10: =+BISIESTO!BI10/366*365 -> 720.0036943
AN11: 9 | AO11: =+BISIESTO!AO11/366*365 -> 8425.209807 | AP11: =+BISIESTO!AP11/366*365 -> 3562.613131 | AQ11: =+BISIESTO!AQ11/366*365 -> 2517.689649 | AR11: =+BISIESTO!AR11/366*365 -> 2279.085075 | AS11: =+BISIESTO!AS11/366*365 -> 2412.347551 | AT11: =+BISIESTO!AT11/366*365 -> 2018.494889 | AU11: =+BISIESTO!AU11/366*365 -> 1723.105393 | AV11: 9 | AW11: =+BISIESTO!AW11/366*365 -> 6516.37321 | AX11: =+BISIESTO!AX11/366*365 -> 3348.691789 | AY11: =+BISIESTO!AY11/366*365 -> 2460.095442 | AZ11: =+BISIESTO!AZ11/366*365 -> 2279.085075 | BA11: =+BISIESTO!BA11/366*365 -> 2412.347551 | BB11: =+BISIESTO!BB11/366*365 -> 2018.494889 | BC11: =+BISIESTO!BC11/366*365 -> 1723.105393 | BG11: 9 | BH11: =+BISIESTO!BH11/366*365 -> 312.1564403 | BI11: =+BISIESTO!BI11/366*365 -> 720.0036943
AN12: 10 | AO12: =+BISIESTO!AO12/366*365 -> 8425.209807 | AP12: =+BISIESTO!AP12/366*365 -> 3562.613131 | AQ12: =+BISIESTO!AQ12/366*365 -> 2517.689649 | AR12: =+BISIESTO!AR12/366*365 -> 2279.085075 | AS12: =+BISIESTO!AS12/366*365 -> 2412.347551 | AT12: =+BISIESTO!AT12/366*365 -> 2018.494889 | AU12: =+BISIESTO!AU12/366*365 -> 1723.105393 | AV12: 10 | AW12: =+BISIESTO!AW12/366*365 -> 6516.37321 | AX12: =+BISIESTO!AX12/366*365 -> 3348.691789 | AY12: =+BISIESTO!AY12/366*365 -> 2460.095442 | AZ12: =+BISIESTO!AZ12/366*365 -> 2279.085075 | BA12: =+BISIESTO!BA12/366*365 -> 2412.347551 | BB12: =+BISIESTO!BB12/366*365 -> 2018.494889 | BC12: =+BISIESTO!BC12/366*365 -> 1723.105393 | BG12: 10 | BH12: =+BISIESTO!BH12/366*365 -> 312.1564403 | BI12: =+BISIESTO!BI12/366*365 -> 720.0036943
A13: COMPLETO | AN13: 11 | AO13: =+BISIESTO!AO13/366*365 -> 8425.209807 | AP13: =+BISIESTO!AP13/366*365 -> 3562.613131 | AQ13: =+BISIESTO!AQ13/366*365 -> 2517.689649 | AR13: =+BISIESTO!AR13/366*365 -> 2279.085075 | AS13: =+BISIESTO!AS13/366*365 -> 2412.347551 | AT13: =+BISIESTO!AT13/366*365 -> 2018.494889 | AU13: =+BISIESTO!AU13/366*365 -> 1723.105393 | AV13: 11 | AW13: =+BISIESTO!AW13/366*365 -> 6516.37321 | AX13: =+BISIESTO!AX13/366*365 -> 3348.691789 | AY13: =+BISIESTO!AY13/366*365 -> 2460.095442 | AZ13: =+BISIESTO!AZ13/366*365 -> 2279.085075 | BA13: =+BISIESTO!BA13/366*365 -> 2412.347551 | BB13: =+BISIESTO!BB13/366*365 -> 2018.494889 | BC13: =+BISIESTO!BC13/366*365 -> 1723.105393 | BG13: 11 | BH13: =+BISIESTO!BH13/366*365 -> 312.1564403 | BI13: =+BISIESTO!BI13/366*365 -> 720.0036943
A14: RESGUARDO | AN14: 12 | AO14: =+BISIESTO!AO14/366*365 -> 8425.209807 | AP14: =+BISIESTO!AP14/366*365 -> 3562.613131 | AQ14: =+BISIESTO!AQ14/366*365 -> 2517.689649 | AR14: =+BISIESTO!AR14/366*365 -> 2279.085075 | AS14: =+BISIESTO!AS14/366*365 -> 2412.347551 | AT14: =+BISIESTO!AT14/366*365 -> 2018.494889 | AU14: =+BISIESTO!AU14/366*365 -> 1723.105393 | AV14: 12 | AW14: =+BISIESTO!AW14/366*365 -> 6516.37321 | AX14: =+BISIESTO!AX14/366*365 -> 3348.691789 | AY14: =+BISIESTO!AY14/366*365 -> 2460.095442 | AZ14: =+BISIESTO!AZ14/366*365 -> 2279.085075 | BA14: =+BISIESTO!BA14/366*365 -> 2412.347551 | BB14: =+BISIESTO!BB14/366*365 -> 2018.494889 | BC14: =+BISIESTO!BC14/366*365 -> 1723.105393 | BG14: 12 | BH14: =+BISIESTO!BH14/366*365 -> 312.1564403 | BI14: =+BISIESTO!BI14/366*365 -> 720.0036943
A15: MINT DEDUCIBLE 10K | AN15: 13 | AO15: =+BISIESTO!AO15/366*365 -> 8425.209807 | AP15: =+BISIESTO!AP15/366*365 -> 3562.613131 | AQ15: =+BISIESTO!AQ15/366*365 -> 2517.689649 | AR15: =+BISIESTO!AR15/366*365 -> 2279.085075 | AS15: =+BISIESTO!AS15/366*365 -> 2412.347551 | AT15: =+BISIESTO!AT15/366*365 -> 2018.494889 | AU15: =+BISIESTO!AU15/366*365 -> 1723.105393 | AV15: 13 | AW15: =+BISIESTO!AW15/366*365 -> 6516.37321 | AX15: =+BISIESTO!AX15/366*365 -> 3348.691789 | AY15: =+BISIESTO!AY15/366*365 -> 2460.095442 | AZ15: =+BISIESTO!AZ15/366*365 -> 2279.085075 | BA15: =+BISIESTO!BA15/366*365 -> 2412.347551 | BB15: =+BISIESTO!BB15/366*365 -> 2018.494889 | BC15: =+BISIESTO!BC15/366*365 -> 1723.105393 | BG15: 13 | BH15: =+BISIESTO!BH15/366*365 -> 312.1564403 | BI15: =+BISIESTO!BI15/366*365 -> 720.0036943
A16: MINT DEDUCIBLE 20K | AN16: 14 | AO16: =+BISIESTO!AO16/366*365 -> 8425.209807 | AP16: =+BISIESTO!AP16/366*365 -> 3562.613131 | AQ16: =+BISIESTO!AQ16/366*365 -> 2517.689649 | AR16: =+BISIESTO!AR16/366*365 -> 2279.085075 | AS16: =+BISIESTO!AS16/366*365 -> 2412.347551 | AT16: =+BISIESTO!AT16/366*365 -> 2018.494889 | AU16: =+BISIESTO!AU16/366*365 -> 1723.105393 | AV16: 14 | AW16: =+BISIESTO!AW16/366*365 -> 6516.37321 | AX16: =+BISIESTO!AX16/366*365 -> 3348.691789 | AY16: =+BISIESTO!AY16/366*365 -> 2460.095442 | AZ16: =+BISIESTO!AZ16/366*365 -> 2279.085075 | BA16: =+BISIESTO!BA16/366*365 -> 2412.347551 | BB16: =+BISIESTO!BB16/366*365 -> 2018.494889 | BC16: =+BISIESTO!BC16/366*365 -> 1723.105393 | BG16: 14 | BH16: =+BISIESTO!BH16/366*365 -> 312.1564403 | BI16: =+BISIESTO!BI16/366*365 -> 720.0036943
AN17: 15 | AO17: =+BISIESTO!AO17/366*365 -> 8425.209807 | AP17: =+BISIESTO!AP17/366*365 -> 3562.613131 | AQ17: =+BISIESTO!AQ17/366*365 -> 2517.689649 | AR17: =+BISIESTO!AR17/366*365 -> 2279.085075 | AS17: =+BISIESTO!AS17/366*365 -> 2412.347551 | AT17: =+BISIESTO!AT17/366*365 -> 2018.494889 | AU17: =+BISIESTO!AU17/366*365 -> 1723.105393 | AV17: 15 | AW17: =+BISIESTO!AW17/366*365 -> 6516.37321 | AX17: =+BISIESTO!AX17/366*365 -> 3348.691789 | AY17: =+BISIESTO!AY17/366*365 -> 2460.095442 | AZ17: =+BISIESTO!AZ17/366*365 -> 2279.085075 | BA17: =+BISIESTO!BA17/366*365 -> 2412.347551 | BB17: =+BISIESTO!BB17/366*365 -> 2018.494889 | BC17: =+BISIESTO!BC17/366*365 -> 1723.105393 | BG17: 15 | BH17: =+BISIESTO!BH17/366*365 -> 312.1564403 | BI17: =+BISIESTO!BI17/366*365 -> 720.0036943
AN18: 16 | AO18: =+BISIESTO!AO18/366*365 -> 8425.209807 | AP18: =+BISIESTO!AP18/366*365 -> 3562.613131 | AQ18: =+BISIESTO!AQ18/366*365 -> 2517.689649 | AR18: =+BISIESTO!AR18/366*365 -> 2279.085075 | AS18: =+BISIESTO!AS18/366*365 -> 2412.347551 | AT18: =+BISIESTO!AT18/366*365 -> 2018.494889 | AU18: =+BISIESTO!AU18/366*365 -> 1723.105393 | AV18: 16 | AW18: =+BISIESTO!AW18/366*365 -> 6516.37321 | AX18: =+BISIESTO!AX18/366*365 -> 3348.691789 | AY18: =+BISIESTO!AY18/366*365 -> 2460.095442 | AZ18: =+BISIESTO!AZ18/366*365 -> 2279.085075 | BA18: =+BISIESTO!BA18/366*365 -> 2412.347551 | BB18: =+BISIESTO!BB18/366*365 -> 2018.494889 | BC18: =+BISIESTO!BC18/366*365 -> 1723.105393 | BG18: 16 | BH18: =+BISIESTO!BH18/366*365 -> 312.1564403 | BI18: =+BISIESTO!BI18/366*365 -> 720.0036943
AN19: 17 | AO19: =+BISIESTO!AO19/366*365 -> 8425.209807 | AP19: =+BISIESTO!AP19/366*365 -> 3562.613131 | AQ19: =+BISIESTO!AQ19/366*365 -> 2517.689649 | AR19: =+BISIESTO!AR19/366*365 -> 2279.085075 | AS19: =+BISIESTO!AS19/366*365 -> 2412.347551 | AT19: =+BISIESTO!AT19/366*365 -> 2018.494889 | AU19: =+BISIESTO!AU19/366*365 -> 1723.105393 | AV19: 17 | AW19: =+BISIESTO!AW19/366*365 -> 6516.37321 | AX19: =+BISIESTO!AX19/366*365 -> 3348.691789 | AY19: =+BISIESTO!AY19/366*365 -> 2460.095442 | AZ19: =+BISIESTO!AZ19/366*365 -> 2279.085075 | BA19: =+BISIESTO!BA19/366*365 -> 2412.347551 | BB19: =+BISIESTO!BB19/366*365 -> 2018.494889 | BC19: =+BISIESTO!BC19/366*365 -> 1723.105393 | BG19: 17 | BH19: =+BISIESTO!BH19/366*365 -> 312.1564403 | BI19: =+BISIESTO!BI19/366*365 -> 720.0036943
AN20: 18 | AO20: =+BISIESTO!AO20/366*365 -> 8606.220174 | AP20: =+BISIESTO!AP20/366*365 -> 3603.751851 | AQ20: =+BISIESTO!AQ20/366*365 -> 2542.372881 | AR20: =+BISIESTO!AR20/366*365 -> 2320.223795 | AS20: =+BISIESTO!AS20/366*365 -> 2461.579133 | AT20: =+BISIESTO!AT20/366*365 -> 2067.726472 | AU20: =+BISIESTO!AU20/366*365 -> 1723.105393 | AV20: 18 | AW20: =+BISIESTO!AW20/366*365 -> 6565.739674 | AX20: =+BISIESTO!AX20/366*365 -> 3389.830508 | AY20: =+BISIESTO!AY20/366*365 -> 2525.917393 | AZ20: =+BISIESTO!AZ20/366*365 -> 2320.223795 | BA20: =+BISIESTO!BA20/366*365 -> 2461.579133 | BB20: =+BISIESTO!BB20/366*365 -> 2067.726472 | BC20: =+BISIESTO!BC20/366*365 -> 1723.105393 | BG20: 18 | BH20: =+BISIESTO!BH20/366*365 -> 312.1564403 | BI20: =+BISIESTO!BI20/366*365 -> 720.0036943
AN21: 19 | AO21: =+BISIESTO!AO21/366*365 -> 8606.220174 | AP21: =+BISIESTO!AP21/366*365 -> 3603.751851 | AQ21: =+BISIESTO!AQ21/366*365 -> 2542.372881 | AR21: =+BISIESTO!AR21/366*365 -> 2320.223795 | AS21: =+BISIESTO!AS21/366*365 -> 2461.579133 | AT21: =+BISIESTO!AT21/366*365 -> 2067.726472 | AU21: =+BISIESTO!AU21/366*365 -> 1723.105393 | AV21: 19 | AW21: =+BISIESTO!AW21/366*365 -> 6565.739674 | AX21: =+BISIESTO!AX21/366*365 -> 3389.830508 | AY21: =+BISIESTO!AY21/366*365 -> 2525.917393 | AZ21: =+BISIESTO!AZ21/366*365 -> 2320.223795 | BA21: =+BISIESTO!BA21/366*365 -> 2461.579133 | BB21: =+BISIESTO!BB21/366*365 -> 2067.726472 | BC21: =+BISIESTO!BC21/366*365 -> 1723.105393 | BG21: 19 | BH21: =+BISIESTO!BH21/366*365 -> 329.8081438 | BI21: =+BISIESTO!BI21/366*365 -> 749.7328791
AN22: 20 | AO22: =+BISIESTO!AO22/366*365 -> 8606.220174 | AP22: =+BISIESTO!AP22/366*365 -> 3603.751851 | AQ22: =+BISIESTO!AQ22/366*365 -> 2542.372881 | AR22: =+BISIESTO!AR22/366*365 -> 2320.223795 | AS22: =+BISIESTO!AS22/366*365 -> 2461.579133 | AT22: =+BISIESTO!AT22/366*365 -> 2067.726472 | AU22: =+BISIESTO!AU22/366*365 -> 1723.105393 | AV22: 20 | AW22: =+BISIESTO!AW22/366*365 -> 6565.739674 | AX22: =+BISIESTO!AX22/366*365 -> 3389.830508 | AY22: =+BISIESTO!AY22/366*365 -> 2525.917393 | AZ22: =+BISIESTO!AZ22/366*365 -> 2320.223795 | BA22: =+BISIESTO!BA22/366*365 -> 2461.579133 | BB22: =+BISIESTO!BB22/366*365 -> 2067.726472 | BC22: =+BISIESTO!BC22/366*365 -> 1723.105393 | BG22: 20 | BH22: =+BISIESTO!BH22/366*365 -> 329.8081438 | BI22: =+BISIESTO!BI22/366*365 -> 779.4620638
AN23: 21 | AO23: =+BISIESTO!AO23/366*365 -> 8606.220174 | AP23: =+BISIESTO!AP23/366*365 -> 3603.751851 | AQ23: =+BISIESTO!AQ23/366*365 -> 2542.372881 | AR23: =+BISIESTO!AR23/366*365 -> 2320.223795 | AS23: =+BISIESTO!AS23/366*365 -> 2461.579133 | AT23: =+BISIESTO!AT23/366*365 -> 2067.726472 | AU23: =+BISIESTO!AU23/366*365 -> 1723.105393 | AV23: 21 | AW23: =+BISIESTO!AW23/366*365 -> 6565.739674 | AX23: =+BISIESTO!AX23/366*365 -> 3389.830508 | AY23: =+BISIESTO!AY23/366*365 -> 2525.917393 | AZ23: =+BISIESTO!AZ23/366*365 -> 2320.223795 | BA23: =+BISIESTO!BA23/366*365 -> 2461.579133 | BB23: =+BISIESTO!BB23/366*365 -> 2067.726472 | BC23: =+BISIESTO!BC23/366*365 -> 1723.105393 | BG23: 21 | BH23: =+BISIESTO!BH23/366*365 -> 329.8081438 | BI23: =+BISIESTO!BI23/366*365 -> 810.1202857
AN24: 22 | AO24: =+BISIESTO!AO24/366*365 -> 8606.220174 | AP24: =+BISIESTO!AP24/366*365 -> 3603.751851 | AQ24: =+BISIESTO!AQ24/366*365 -> 2542.372881 | AR24: =+BISIESTO!AR24/366*365 -> 2320.223795 | AS24: =+BISIESTO!AS24/366*365 -> 2461.579133 | AT24: =+BISIESTO!AT24/366*365 -> 2067.726472 | AU24: =+BISIESTO!AU24/366*365 -> 1723.105393 | AV24: 22 | AW24: =+BISIESTO!AW24/366*365 -> 6565.739674 | AX24: =+BISIESTO!AX24/366*365 -> 3389.830508 | AY24: =+BISIESTO!AY24/366*365 -> 2525.917393 | AZ24: =+BISIESTO!AZ24/366*365 -> 2320.223795 | BA24: =+BISIESTO!BA24/366*365 -> 2461.579133 | BB24: =+BISIESTO!BB24/366*365 -> 2067.726472 | BC24: =+BISIESTO!BC24/366*365 -> 1723.105393 | BG24: 22 | BH24: =+BISIESTO!BH24/366*365 -> 329.8081438 | BI24: =+BISIESTO!BI24/366*365 -> 839.8494705
AN25: 23 | AO25: =+BISIESTO!AO25/366*365 -> 8606.220174 | AP25: =+BISIESTO!AP25/366*365 -> 3603.751851 | AQ25: =+BISIESTO!AQ25/366*365 -> 2542.372881 | AR25: =+BISIESTO!AR25/366*365 -> 2320.223795 | AS25: =+BISIESTO!AS25/366*365 -> 2461.579133 | AT25: =+BISIESTO!AT25/366*365 -> 2067.726472 | AU25: =+BISIESTO!AU25/366*365 -> 1723.105393 | AV25: 23 | AW25: =+BISIESTO!AW25/366*365 -> 6565.739674 | AX25: =+BISIESTO!AX25/366*365 -> 3389.830508 | AY25: =+BISIESTO!AY25/366*365 -> 2525.917393 | AZ25: =+BISIESTO!AZ25/366*365 -> 2320.223795 | BA25: =+BISIESTO!BA25/366*365 -> 2461.579133 | BB25: =+BISIESTO!BB25/366*365 -> 2067.726472 | BC25: =+BISIESTO!BC25/366*365 -> 1723.105393 | BG25: 23 | BH25: =+BISIESTO!BH25/366*365 -> 329.8081438 | BI25: =+BISIESTO!BI25/366*365 -> 900.2368771
AN26: 24 | AO26: =+BISIESTO!AO26/366*365 -> 8606.220174 | AP26: =+BISIESTO!AP26/366*365 -> 3603.751851 | AQ26: =+BISIESTO!AQ26/366*365 -> 2542.372881 | AR26: =+BISIESTO!AR26/366*365 -> 2320.223795 | AS26: =+BISIESTO!AS26/366*365 -> 2461.579133 | AT26: =+BISIESTO!AT26/366*365 -> 2067.726472 | AU26: =+BISIESTO!AU26/366*365 -> 1723.105393 | AV26: 24 | AW26: =+BISIESTO!AW26/366*365 -> 6565.739674 | AX26: =+BISIESTO!AX26/366*365 -> 3389.830508 | AY26: =+BISIESTO!AY26/366*365 -> 2525.917393 | AZ26: =+BISIESTO!AZ26/366*365 -> 2320.223795 | BA26: =+BISIESTO!BA26/366*365 -> 2461.579133 | BB26: =+BISIESTO!BB26/366*365 -> 2067.726472 | BC26: =+BISIESTO!BC26/366*365 -> 1723.105393 | BG26: 24 | BH26: =+BISIESTO!BH26/366*365 -> 329.8081438 | BI26: =+BISIESTO!BI26/366*365 -> 959.6952467
A27: TITULAR | AN27: 25 | AO27: =+BISIESTO!AO27/366*365 -> 8606.220174 | AP27: =+BISIESTO!AP27/366*365 -> 3603.751851 | AQ27: =+BISIESTO!AQ27/366*365 -> 2542.372881 | AR27: =+BISIESTO!AR27/366*365 -> 2320.223795 | AS27: =+BISIESTO!AS27/366*365 -> 2461.579133 | AT27: =+BISIESTO!AT27/366*365 -> 2067.726472 | AU27: =+BISIESTO!AU27/366*365 -> 1723.105393 | AV27: 25 | AW27: =+BISIESTO!AW27/366*365 -> 6565.739674 | AX27: =+BISIESTO!AX27/366*365 -> 3389.830508 | AY27: =+BISIESTO!AY27/366*365 -> 2525.917393 | AZ27: =+BISIESTO!AZ27/366*365 -> 2320.223795 | BA27: =+BISIESTO!BA27/366*365 -> 2461.579133 | BB27: =+BISIESTO!BB27/366*365 -> 2067.726472 | BC27: =+BISIESTO!BC27/366*365 -> 1723.105393 | BG27: 25 | BH27: =+BISIESTO!BH27/366*365 -> 349.3179213 | BI27: =+BISIESTO!BI27/366*365 -> 1020.082653
A28: CÓNYUGE/CONVIVIENTE | AN28: 26 | AO28: =+BISIESTO!AO28/366*365 -> 8630.903406 | AP28: =+BISIESTO!AP28/366*365 -> 3751.851242 | AQ28: =+BISIESTO!AQ28/366*365 -> 2756.294224 | AR28: =+BISIESTO!AR28/366*365 -> 2451.867698 | AS28: =+BISIESTO!AS28/366*365 -> 2530.503349 | AT28: =+BISIESTO!AT28/366*365 -> 2166.189637 | AU28: =+BISIESTO!AU28/366*365 -> 1821.568559 | AV28: 26 | AW28: =+BISIESTO!AW28/366*365 -> 7010.037848 | AX28: =+BISIESTO!AX28/366*365 -> 3644.890571 | AY28: =+BISIESTO!AY28/366*365 -> 2772.749712 | AZ28: =+BISIESTO!AZ28/366*365 -> 2451.867698 | BA28: =+BISIESTO!BA28/366*365 -> 2530.503349 | BB28: =+BISIESTO!BB28/366*365 -> 2166.189637 | BC28: =+BISIESTO!BC28/366*365 -> 1821.568559 | BG28: 26 | BH28: =+BISIESTO!BH28/366*365 -> 390.1955504 | BI28: =+BISIESTO!BI28/366*365 -> 1079.541023
A29: HIJO/A | AN29: 27 | AO29: =+BISIESTO!AO29/366*365 -> 8688.497614 | AP29: =+BISIESTO!AP29/366*365 -> 4006.911305 | AQ29: =+BISIESTO!AQ29/366*365 -> 3093.631726 | AR29: =+BISIESTO!AR29/366*365 -> 2624.650321 | AS29: =+BISIESTO!AS29/366*365 -> 2579.734932 | AT29: =+BISIESTO!AT29/366*365 -> 2215.42122 | AU29: =+BISIESTO!AU29/366*365 -> 1821.568559 | AV29: 27 | AW29: =+BISIESTO!AW29/366*365 -> 8688.497614 | AX29: =+BISIESTO!AX29/366*365 -> 4006.911305 | AY29: =+BISIESTO!AY29/366*365 -> 3093.631726 | AZ29: =+BISIESTO!AZ29/366*365 -> 2624.650321 | BA29: =+BISIESTO!BA29/366*365 -> 2579.734932 | BB29: =+BISIESTO!BB29/366*365 -> 2215.42122 | BC29: =+BISIESTO!BC29/366*365 -> 1821.568559 | BG29: 27 | BH29: =+BISIESTO!BH29/366*365 -> 459.8733273 | BI29: =+BISIESTO!BI29/366*365 -> 1139.928429
AN30: 28 | AO30: =+BISIESTO!AO30/366*365 -> 8869.507981 | AP30: =+BISIESTO!AP30/366*365 -> 4196.149416 | AQ30: =+BISIESTO!AQ30/366*365 -> 3200.592398 | AR30: =+BISIESTO!AR30/366*365 -> 2674.016785 | AS30: =+BISIESTO!AS30/366*365 -> 2609.273881 | AT30: =+BISIESTO!AT30/366*365 -> 2235.113853 | AU30: =+BISIESTO!AU30/366*365 -> 1821.568559 | AV30: 28 | AW30: =+BISIESTO!AW30/366*365 -> 8869.507981 | AX30: =+BISIESTO!AX30/366*365 -> 4196.149416 | AY30: =+BISIESTO!AY30/366*365 -> 3200.592398 | AZ30: =+BISIESTO!AZ30/366*365 -> 2674.016785 | BA30: =+BISIESTO!BA30/366*365 -> 2609.273881 | BB30: =+BISIESTO!BB30/366*365 -> 2235.113853 | BC30: =+BISIESTO!BC30/366*365 -> 1821.568559 | BG30: 28 | BH30: =+BISIESTO!BH30/366*365 -> 596.44177 | BI30: =+BISIESTO!BI30/366*365 -> 1200.315836
AN31: 29 | AO31: =+BISIESTO!AO31/366*365 -> 9050.518348 | AP31: =+BISIESTO!AP31/366*365 -> 4360.704295 | AQ31: =+BISIESTO!AQ31/366*365 -> 3307.553069 | AR31: =+BISIESTO!AR31/366*365 -> 2748.06648 | AS31: =+BISIESTO!AS31/366*365 -> 2678.198097 | AT31: =+BISIESTO!AT31/366*365 -> 2264.652803 | AU31: =+BISIESTO!AU31/366*365 -> 1821.568559 | AV31: 29 | AW31: =+BISIESTO!AW31/366*365 -> 9050.518348 | AX31: =+BISIESTO!AX31/366*365 -> 4360.704295 | AY31: =+BISIESTO!AY31/366*365 -> 3307.553069 | AZ31: =+BISIESTO!AZ31/366*365 -> 2748.06648 | BA31: =+BISIESTO!BA31/366*365 -> 2678.198097 | BB31: =+BISIESTO!BB31/366*365 -> 2264.652803 | BC31: =+BISIESTO!BC31/366*365 -> 1821.568559 | BG31: 29 | BH31: =+BISIESTO!BH31/366*365 -> 706.9971759 | BI31: =+BISIESTO!BI31/366*365 -> 1290.432427
AN32: 30 | AO32: =+BISIESTO!AO32/366*365 -> 9223.300971 | AP32: =+BISIESTO!AP32/366*365 -> 4648.675333 | AQ32: =+BISIESTO!AQ32/366*365 -> 3340.464045 | AR32: =+BISIESTO!AR32/366*365 -> 2822.116176 | AS32: =+BISIESTO!AS32/366*365 -> 2707.737047 | AT32: =+BISIESTO!AT32/366*365 -> 2284.345436 | AU32: =+BISIESTO!AU32/366*365 -> 1821.568559 | AV32: 30 | AW32: =+BISIESTO!AW32/366*365 -> 9223.300971 | AX32: =+BISIESTO!AX32/366*365 -> 4648.675333 | AY32: =+BISIESTO!AY32/366*365 -> 3340.464045 | AZ32: =+BISIESTO!AZ32/366*365 -> 2822.116176 | BA32: =+BISIESTO!BA32/366*365 -> 2707.737047 | BB32: =+BISIESTO!BB32/366*365 -> 2284.345436 | BC32: =+BISIESTO!BC32/366*365 -> 1821.568559 | BG32: 30 | BH32: =+BISIESTO!BH32/366*365 -> 761.8103604 | BI32: =+BISIESTO!BI32/366*365 -> 1379.619982
AN33: 31 | AO33: =+BISIESTO!AO33/366*365 -> 9404.311338 | AP33: =+BISIESTO!AP33/366*365 -> 4854.368932 | AQ33: =+BISIESTO!AQ33/366*365 -> 3389.830508 | AR33: =+BISIESTO!AR33/366*365 -> 2904.393615 | AS33: =+BISIESTO!AS33/366*365 -> 2756.968629 | AT33: =+BISIESTO!AT33/366*365 -> 2313.884385 | AU33: =+BISIESTO!AU33/366*365 -> 2018.494889 | AV33: 31 | AW33: =+BISIESTO!AW33/366*365 -> 9404.311338 | AX33: =+BISIESTO!AX33/366*365 -> 4854.368932 | AY33: =+BISIESTO!AY33/366*365 -> 3389.830508 | AZ33: =+BISIESTO!AZ33/366*365 -> 2904.393615 | BA33: =+BISIESTO!BA33/366*365 -> 2756.968629 | BB33: =+BISIESTO!BB33/366*365 -> 2313.884385 | BC33: =+BISIESTO!BC33/366*365 -> 2018.494889 | BG33: 31 | BH33: =+BISIESTO!BH33/366*365 -> 816.6235448 | BI33: =+BISIESTO!BI33/366*365 -> 1469.736573
AN34: 32 | AO34: =+BISIESTO!AO34/366*365 -> 9577.093961 | AP34: =+BISIESTO!AP34/366*365 -> 5018.923811 | AQ34: =+BISIESTO!AQ34/366*365 -> 3422.741484 | AR34: =+BISIESTO!AR34/366*365 -> 2961.987823 | AS34: =+BISIESTO!AS34/366*365 -> 2806.200212 | AT34: =+BISIESTO!AT34/366*365 -> 2363.115968 | AU34: =+BISIESTO!AU34/366*365 -> 2018.494889 | AV34: 32 | AW34: =+BISIESTO!AW34/366*365 -> 9577.093961 | AX34: =+BISIESTO!AX34/366*365 -> 5018.923811 | AY34: =+BISIESTO!AY34/366*365 -> 3422.741484 | AZ34: =+BISIESTO!AZ34/366*365 -> 2961.987823 | BA34: =+BISIESTO!BA34/366*365 -> 2806.200212 | BB34: =+BISIESTO!BB34/366*365 -> 2363.115968 | BC34: =+BISIESTO!BC34/366*365 -> 2018.494889 | BG34: 32 | BH34: =+BISIESTO!BH34/366*365 -> 868.6496182 | BI34: =+BISIESTO!BI34/366*365 -> 1559.853165
AN35: 33 | AO35: =+BISIESTO!AO35/366*365 -> 9667.599144 | AP35: =+BISIESTO!AP35/366*365 -> 5142.33997 | AQ35: =+BISIESTO!AQ35/366*365 -> 3463.880204 | AR35: =+BISIESTO!AR35/366*365 -> 3068.948494 | AS35: =+BISIESTO!AS35/366*365 -> 2855.431795 | AT35: =+BISIESTO!AT35/366*365 -> 2412.347551 | AU35: =+BISIESTO!AU35/366*365 -> 2018.494889 | AV35: 33 | AW35: =+BISIESTO!AW35/366*365 -> 9667.599144 | AX35: =+BISIESTO!AX35/366*365 -> 5142.33997 | AY35: =+BISIESTO!AY35/366*365 -> 3463.880204 | AZ35: =+BISIESTO!AZ35/366*365 -> 3068.948494 | BA35: =+BISIESTO!BA35/366*365 -> 2855.431795 | BB35: =+BISIESTO!BB35/366*365 -> 2412.347551 | BC35: =+BISIESTO!BC35/366*365 -> 2018.494889 | BG35: 33 | BH35: =+BISIESTO!BH35/366*365 -> 904.8820622 | BI35: =+BISIESTO!BI35/366*365 -> 1649.969756
AN36: 34 | AO36: =+BISIESTO!AO36/366*365 -> 9848.609511 | AP36: =+BISIESTO!AP36/366*365 -> 5241.072898 | AQ36: =+BISIESTO!AQ36/366*365 -> 3496.79118 | AR36: =+BISIESTO!AR36/366*365 -> 3126.542702 | AS36: =+BISIESTO!AS36/366*365 -> 2904.663377 | AT36: =+BISIESTO!AT36/366*365 -> 2461.579133 | AU36: =+BISIESTO!AU36/366*365 -> 2018.494889 | AV36: 34 | AW36: =+BISIESTO!AW36/366*365 -> 9848.609511 | AX36: =+BISIESTO!AX36/366*365 -> 5241.072898 | AY36: =+BISIESTO!AY36/366*365 -> 3496.79118 | AZ36: =+BISIESTO!AZ36/366*365 -> 3126.542702 | BA36: =+BISIESTO!BA36/366*365 -> 2904.663377 | BB36: =+BISIESTO!BB36/366*365 -> 2461.579133 | BC36: =+BISIESTO!BC36/366*365 -> 2018.494889 | BG36: 34 | BH36: =+BISIESTO!BH36/366*365 -> 942.9725802 | BI36: =+BISIESTO!BI36/366*365 -> 1741.015385
AN37: 35 | AO37: =+BISIESTO!AO37/366*365 -> 9980.253415 | AP37: =+BISIESTO!AP37/366*365 -> 5323.350337 | AQ37: =+BISIESTO!AQ37/366*365 -> 3546.157644 | AR37: =+BISIESTO!AR37/366*365 -> 3175.909166 | AS37: =+BISIESTO!AS37/366*365 -> 2953.89496 | AT37: =+BISIESTO!AT37/366*365 -> 2510.810716 | AU37: =+BISIESTO!AU37/366*365 -> 2018.494889 | AV37: 35 | AW37: =+BISIESTO!AW37/366*365 -> 9980.253415 | AX37: =+BISIESTO!AX37/366*365 -> 5323.350337 | AY37: =+BISIESTO!AY37/366*365 -> 3546.157644 | AZ37: =+BISIESTO!AZ37/366*365 -> 3175.909166 | BA37: =+BISIESTO!BA37/366*365 -> 2953.89496 | BB37: =+BISIESTO!BB37/366*365 -> 2510.810716 | BC37: =+BISIESTO!BC37/366*365 -> 2018.494889 | BG37: 35 | BH37: =+BISIESTO!BH37/366*365 -> 969.9146539 | BI37: =+BISIESTO!BI37/366*365 -> 1830.202939
AN38: 36 | AO38: =+BISIESTO!AO38/366*365 -> 10111.89732 | AP38: =+BISIESTO!AP38/366*365 -> 5430.311009 | AQ38: =+BISIESTO!AQ38/366*365 -> 3570.840875 | AR38: =+BISIESTO!AR38/366*365 -> 3208.820142 | AS38: =+BISIESTO!AS38/366*365 -> 3003.126543 | AT38: =+BISIESTO!AT38/366*365 -> 2560.042299 | AU38: =+BISIESTO!AU38/366*365 -> 2116.958055 | AV38: 36 | AW38: =+BISIESTO!AW38/366*365 -> 10111.89732 | AX38: =+BISIESTO!AX38/366*365 -> 5430.311009 | AY38: =+BISIESTO!AY38/366*365 -> 3570.840875 | AZ38: =+BISIESTO!AZ38/366*365 -> 3208.820142 | BA38: =+BISIESTO!BA38/366*365 -> 3003.126543 | BB38: =+BISIESTO!BB38/366*365 -> 2560.042299 | BC38: =+BISIESTO!BC38/366*365 -> 2116.958055 | BG38: 36 | BH38: =+BISIESTO!BH38/366*365 -> 969.9146539 | BI38: =+BISIESTO!BI38/366*365 -> 1920.31953
A39: Integrales | AN39: 37 | AO39: =+BISIESTO!AO39/366*365 -> 10375.18512 | AP39: =+BISIESTO!AP39/366*365 -> 5545.499424 | AQ39: =+BISIESTO!AQ39/366*365 -> 3595.524107 | AR39: =+BISIESTO!AR39/366*365 -> 3241.731117 | AS39: =+BISIESTO!AS39/366*365 -> 3052.358125 | AT39: =+BISIESTO!AT39/366*365 -> 2609.273881 | AU39: =+BISIESTO!AU39/366*365 -> 2116.958055 | AV39: 37 | AW39: =+BISIESTO!AW39/366*365 -> 10375.18512 | AX39: =+BISIESTO!AX39/366*365 -> 5545.499424 | AY39: =+BISIESTO!AY39/366*365 -> 3595.524107 | AZ39: =+BISIESTO!AZ39/366*365 -> 3241.731117 | BA39: =+BISIESTO!BA39/366*365 -> 3052.358125 | BB39: =+BISIESTO!BB39/366*365 -> 2609.273881 | BC39: =+BISIESTO!BC39/366*365 -> 2116.958055 | BG39: 37 | BH39: =+BISIESTO!BH39/366*365 -> 969.9146539 | BI39: =+BISIESTO!BI39/366*365 -> 2010.436122
A40: FINANCIAMIENTOS JUN 2022 | B40: FACTORES | AN40: 38 | AO40: =+BISIESTO!AO40/366*365 -> 10646.70067 | AP40: =+BISIESTO!AP40/366*365 -> 5627.776864 | AQ40: =+BISIESTO!AQ40/366*365 -> 3628.435083 | AR40: =+BISIESTO!AR40/366*365 -> 3274.642093 | AS40: =+BISIESTO!AS40/366*365 -> 3101.589708 | AT40: =+BISIESTO!AT40/366*365 -> 2658.505464 | AU40: =+BISIESTO!AU40/366*365 -> 2116.958055 | AV40: 38 | AW40: =+BISIESTO!AW40/366*365 -> 10646.70067 | AX40: =+BISIESTO!AX40/366*365 -> 5627.776864 | AY40: =+BISIESTO!AY40/366*365 -> 3628.435083 | AZ40: =+BISIESTO!AZ40/366*365 -> 3274.642093 | BA40: =+BISIESTO!BA40/366*365 -> 3101.589708 | BB40: =+BISIESTO!BB40/366*365 -> 2658.505464 | BC40: =+BISIESTO!BC40/366*365 -> 2116.958055 | BG40: 38 | BH40: =+BISIESTO!BH40/366*365 -> 1042.379542 | BI40: =+BISIESTO!BI40/366*365 -> 2099.623676
A41: AL CONTADO | B41: 1 | AN41: 39 | AO41: =+BISIESTO!AO41/366*365 -> 10909.98848 | AP41: =+BISIESTO!AP41/366*365 -> 5775.876255 | AQ41: =+BISIESTO!AQ41/366*365 -> 3686.029291 | AR41: =+BISIESTO!AR41/366*365 -> 3324.008557 | AS41: =+BISIESTO!AS41/366*365 -> 3150.821291 | AT41: =+BISIESTO!AT41/366*365 -> 2707.737047 | AU41: =+BISIESTO!AU41/366*365 -> 2116.958055 | AV41: 39 | AW41: =+BISIESTO!AW41/366*365 -> 10909.98848 | AX41: =+BISIESTO!AX41/366*365 -> 5775.876255 | AY41: =+BISIESTO!AY41/366*365 -> 3686.029291 | AZ41: =+BISIESTO!AZ41/366*365 -> 3324.008557 | BA41: =+BISIESTO!BA41/366*365 -> 3150.821291 | BB41: =+BISIESTO!BB41/366*365 -> 2707.737047 | BC41: =+BISIESTO!BC41/366*365 -> 2116.958055 | BG41: 39 | BH41: =+BISIESTO!BH41/366*365 -> 1042.379542 | BI41: =+BISIESTO!BI41/366*365 -> 2160.011083
A42: 4 CUOTAS SIN INTERESES | B42: 4 | AN42: 40 | AO42: =+BISIESTO!AO42/366*365 -> 11173.27629 | AP42: =+BISIESTO!AP42/366*365 -> 6006.253085 | AQ42: =+BISIESTO!AQ42/366*365 -> 3776.534474 | AR42: =+BISIESTO!AR42/366*365 -> 3389.830508 | AS42: =+BISIESTO!AS42/366*365 -> 3249.284456 | AT42: =+BISIESTO!AT42/366*365 -> 2756.968629 | AU42: =+BISIESTO!AU42/366*365 -> 2116.958055 | AV42: 40 | AW42: =+BISIESTO!AW42/366*365 -> 11173.27629 | AX42: =+BISIESTO!AX42/366*365 -> 6006.253085 | AY42: =+BISIESTO!AY42/366*365 -> 3776.534474 | AZ42: =+BISIESTO!AZ42/366*365 -> 3389.830508 | BA42: =+BISIESTO!BA42/366*365 -> 3249.284456 | BB42: =+BISIESTO!BB42/366*365 -> 2756.968629 | BC42: =+BISIESTO!BC42/366*365 -> 2116.958055 | BG42: 40 | BH42: =+BISIESTO!BH42/366*365 -> 1042.379542 | BI42: =+BISIESTO!BI42/366*365 -> 2250.127674
A43: 6 CUOTAS SIN INTERESES | B43: 6 | AN43: 41 | AO43: =+BISIESTO!AO43/366*365 -> 11354.28665 | AP43: =+BISIESTO!AP43/366*365 -> 6335.362844 | AQ43: =+BISIESTO!AQ43/366*365 -> 4187.921672 | AR43: =+BISIESTO!AR43/366*365 -> 3735.395754 | AS43: =+BISIESTO!AS43/366*365 -> 3347.747621 | AT43: =+BISIESTO!AT43/366*365 -> 2904.663377 | AU43: =+BISIESTO!AU43/366*365 -> 2264.652803 | AV43: 41 | AW43: =+BISIESTO!AW43/366*365 -> 11354.28665 | AX43: =+BISIESTO!AX43/366*365 -> 6335.362844 | AY43: =+BISIESTO!AY43/366*365 -> 4187.921672 | AZ43: =+BISIESTO!AZ43/366*365 -> 3735.395754 | BA43: =+BISIESTO!BA43/366*365 -> 3347.747621 | BB43: =+BISIESTO!BB43/366*365 -> 2904.663377 | BC43: =+BISIESTO!BC43/366*365 -> 2264.652803 | BG43: 41 | BH43: =+BISIESTO!BH43/366*365 -> 1142.715541 | BI43: =+BISIESTO!BI43/366*365 -> 2340.244266
A44: 6 CUOTAS (TCEA 4%) | B44: 5.931847245 | AN44: 42 | AO44: =+BISIESTO!AO44/366*365 -> 11617.57446 | AP44: =+BISIESTO!AP44/366*365 -> 6705.611321 | AQ44: =+BISIESTO!AQ44/366*365 -> 4459.437222 | AR44: =+BISIESTO!AR44/366*365 -> 3916.406121 | AS44: =+BISIESTO!AS44/366*365 -> 3593.905535 | AT44: =+BISIESTO!AT44/366*365 -> 3052.358125 | AU44: =+BISIESTO!AU44/366*365 -> 2412.347551 | AV44: 42 | AW44: =+BISIESTO!AW44/366*365 -> 11617.57446 | AX44: =+BISIESTO!AX44/366*365 -> 6705.611321 | AY44: =+BISIESTO!AY44/366*365 -> 4459.437222 | AZ44: =+BISIESTO!AZ44/366*365 -> 3916.406121 | BA44: =+BISIESTO!BA44/366*365 -> 3593.905535 | BB44: =+BISIESTO!BB44/366*365 -> 3052.358125 | BC44: =+BISIESTO!BC44/366*365 -> 2412.347551 | BG44: 42 | BH44: =+BISIESTO!BH44/366*365 -> 1223.541762 | BI44: =+BISIESTO!BI44/366*365 -> 2430.360857
A45: 6 CUOTAS (TCEA 17.5%) | B45: 5.725823013 | AN45: 43 | AO45: =+BISIESTO!AO45/366*365 -> 11889.09001 | AP45: =+BISIESTO!AP45/366*365 -> 6952.44364 | AQ45: =+BISIESTO!AQ45/366*365 -> 4854.368932 | AR45: =+BISIESTO!AR45/366*365 -> 4261.971367 | AS45: =+BISIESTO!AS45/366*365 -> 3840.063448 | AT45: =+BISIESTO!AT45/366*365 -> 3170.513924 | AU45: =+BISIESTO!AU45/366*365 -> 2510.810716 | AV45: 43 | AW45: =+BISIESTO!AW45/366*365 -> 11889.09001 | AX45: =+BISIESTO!AX45/366*365 -> 6952.44364 | AY45: =+BISIESTO!AY45/366*365 -> 4854.368932 | AZ45: =+BISIESTO!AZ45/366*365 -> 4261.971367 | BA45: =+BISIESTO!BA45/366*365 -> 3840.063448 | BB45: =+BISIESTO!BB45/366*365 -> 3170.513924 | BC45: =+BISIESTO!BC45/366*365 -> 2510.810716 | BG45: 43 | BH45: =+BISIESTO!BH45/366*365 -> 1303.438946 | BI45: =+BISIESTO!BI45/366*365 -> 2519.548411
A46: 10 CUOTAS SIN INTERESES | B46: 10 | AN46: 44 | AO46: =+BISIESTO!AO46/366*365 -> 11971.36745 | AP46: =+BISIESTO!AP46/366*365 -> 7133.454007 | AQ46: =+BISIESTO!AQ46/366*365 -> 5027.151555 | AR46: =+BISIESTO!AR46/366*365 -> 4525.259174 | AS46: =+BISIESTO!AS46/366*365 -> 4086.221361 | AT46: =+BISIESTO!AT46/366*365 -> 3268.977089 | AU46: =+BISIESTO!AU46/366*365 -> 2609.273881 | AV46: 44 | AW46: =+BISIESTO!AW46/366*365 -> 11971.36745 | AX46: =+BISIESTO!AX46/366*365 -> 7133.454007 | AY46: =+BISIESTO!AY46/366*365 -> 5027.151555 | AZ46: =+BISIESTO!AZ46/366*365 -> 4525.259174 | BA46: =+BISIESTO!BA46/366*365 -> 4086.221361 | BB46: =+BISIESTO!BB46/366*365 -> 3268.977089 | BC46: =+BISIESTO!BC46/366*365 -> 2609.273881 | BG46: 44 | BH46: =+BISIESTO!BH46/366*365 -> 1347.103686 | BI46: =+BISIESTO!BI46/366*365 -> 2609.665003
A47: 10 CUOTAS (TCEA 4%) | B47: 9.822277276 | AN47: 45 | AO47: =+BISIESTO!AO47/366*365 -> 12061.87263 | AP47: =+BISIESTO!AP47/366*365 -> 7487.246997 | AQ47: =+BISIESTO!AQ47/366*365 -> 5232.845154 | AR47: =+BISIESTO!AR47/366*365 -> 4698.041797 | AS47: =+BISIESTO!AS47/366*365 -> 4332.379275 | AT47: =+BISIESTO!AT47/366*365 -> 3367.440254 | AU47: =+BISIESTO!AU47/366*365 -> 2707.737047 | AV47: 45 | AW47: =+BISIESTO!AW47/366*365 -> 12061.87263 | AX47: =+BISIESTO!AX47/366*365 -> 7487.246997 | AY47: =+BISIESTO!AY47/366*365 -> 5232.845154 | AZ47: =+BISIESTO!AZ47/366*365 -> 4698.041797 | BA47: =+BISIESTO!BA47/366*365 -> 4332.379275 | BB47: =+BISIESTO!BB47/366*365 -> 3367.440254 | BC47: =+BISIESTO!BC47/366*365 -> 2707.737047 | BG47: 45 | BH47: =+BISIESTO!BH47/366*365 -> 1445.581611 | BI47: =+BISIESTO!BI47/366*365 -> 2699.781594
A48: 10 CUOTAS (TCEA 17.5%) | B48: 9.294431117 | AN48: 46 | AO48: =+BISIESTO!AO48/366*365 -> 12588.44825 | AP48: =+BISIESTO!AP48/366*365 -> 7832.812243 | AQ48: =+BISIESTO!AQ48/366*365 -> 5677.143327 | AR48: =+BISIESTO!AR48/366*365 -> 5051.834787 | AS48: =+BISIESTO!AS48/366*365 -> 4578.537188 | AT48: =+BISIESTO!AT48/366*365 -> 3465.90342 | AU48: =+BISIESTO!AU48/366*365 -> 2806.200212 | AV48: 46 | AW48: =+BISIESTO!AW48/366*365 -> 12588.44825 | AX48: =+BISIESTO!AX48/366*365 -> 7832.812243 | AY48: =+BISIESTO!AY48/366*365 -> 5677.143327 | AZ48: =+BISIESTO!AZ48/366*365 -> 5051.834787 | BA48: =+BISIESTO!BA48/366*365 -> 4578.537188 | BB48: =+BISIESTO!BB48/366*365 -> 3465.90342 | BC48: =+BISIESTO!BC48/366*365 -> 2806.200212 | BG48: 46 | BH48: =+BISIESTO!BH48/366*365 -> 1590.511387 | BI48: =+BISIESTO!BI48/366*365 -> 2789.898186
A49: 12 CUOTAS SIN INTERESES | B49: 12 | AN49: 47 | AO49: =+BISIESTO!AO49/366*365 -> 13213.75679 | AP49: =+BISIESTO!AP49/366*365 -> 8013.82261 | AQ49: =+BISIESTO!AQ49/366*365 -> 5989.797597 | AR49: =+BISIESTO!AR49/366*365 -> 5224.61741 | AS49: =+BISIESTO!AS49/366*365 -> 4726.231936 | AT49: =+BISIESTO!AT49/366*365 -> 3564.366585 | AU49: =+BISIESTO!AU49/366*365 -> 2904.663377 | AV49: 47 | AW49: =+BISIESTO!AW49/366*365 -> 13213.75679 | AX49: =+BISIESTO!AX49/366*365 -> 8013.82261 | AY49: =+BISIESTO!AY49/366*365 -> 5989.797597 | AZ49: =+BISIESTO!AZ49/366*365 -> 5224.61741 | BA49: =+BISIESTO!BA49/366*365 -> 4726.231936 | BB49: =+BISIESTO!BB49/366*365 -> 3564.366585 | BC49: =+BISIESTO!BC49/366*365 -> 2904.663377 | BG49: 47 | BH49: =+BISIESTO!BH49/366*365 -> 1664.834349 | BI49: =+BISIESTO!BI49/366*365 -> 2880.014777
A50: 12 CUOTAS (TCEA 4%) | B50: 11.74850203 | AN50: 48 | AO50: =+BISIESTO!AO50/366*365 -> 13839.06533 | AP50: =+BISIESTO!AP50/366*365 -> 8367.6156 | AQ50: =+BISIESTO!AQ50/366*365 -> 6211.946684 | AR50: =+BISIESTO!AR50/366*365 -> 5397.400033 | AS50: =+BISIESTO!AS50/366*365 -> 5021.621432 | AT50: =+BISIESTO!AT50/366*365 -> 3761.292916 | AU50: =+BISIESTO!AU50/366*365 -> 3003.126543 | AV50: 48 | AW50: =+BISIESTO!AW50/366*365 -> 13839.06533 | AX50: =+BISIESTO!AX50/366*365 -> 8367.6156 | AY50: =+BISIESTO!AY50/366*365 -> 6211.946684 | AZ50: =+BISIESTO!AZ50/366*365 -> 5397.400033 | BA50: =+BISIESTO!BA50/366*365 -> 5021.621432 | BB50: =+BISIESTO!BB50/366*365 -> 3761.292916 | BC50: =+BISIESTO!BC50/366*365 -> 3003.126543 | BG50: 48 | BH50: =+BISIESTO!BH50/366*365 -> 1739.15731 | BI50: =+BISIESTO!BI50/366*365 -> 2970.131368
A51: 12 CUOTAS (TCEA 17.5%) | B51: 11.00807343 | AN51: 49 | AO51: =+BISIESTO!AO51/366*365 -> 14456.14612 | AP51: =+BISIESTO!AP51/366*365 -> 8713.180846 | AQ51: =+BISIESTO!AQ51/366*365 -> 6434.095771 | AR51: =+BISIESTO!AR51/366*365 -> 5570.182656 | AS51: =+BISIESTO!AS51/366*365 -> 5317.010928 | AT51: =+BISIESTO!AT51/366*365 -> 4017.297146 | AU51: =+BISIESTO!AU51/366*365 -> 3150.821291 | AV51: 49 | AW51: =+BISIESTO!AW51/366*365 -> 14456.14612 | AX51: =+BISIESTO!AX51/366*365 -> 8713.180846 | AY51: =+BISIESTO!AY51/366*365 -> 6434.095771 | AZ51: =+BISIESTO!AZ51/366*365 -> 5570.182656 | BA51: =+BISIESTO!BA51/366*365 -> 5317.010928 | BB51: =+BISIESTO!BB51/366*365 -> 4017.297146 | BC51: =+BISIESTO!BC51/366*365 -> 3150.821291 | BG51: 49 | BH51: =+BISIESTO!BH51/366*365 -> 1813.480272 | BI51: =+BISIESTO!BI51/366*365 -> 3060.24796
AN52: 50 | AO52: =+BISIESTO!AO52/366*365 -> 15254.23729 | AP52: =+BISIESTO!AP52/366*365 -> 8984.696396 | AQ52: =+BISIESTO!AQ52/366*365 -> 6697.383577 | AR52: =+BISIESTO!AR52/366*365 -> 5751.193023 | AS52: =+BISIESTO!AS52/366*365 -> 5612.400424 | AT52: =+BISIESTO!AT52/366*365 -> 4283.147692 | AU52: =+BISIESTO!AU52/366*365 -> 3298.516039 | AV52: 50 | AW52: =+BISIESTO!AW52/366*365 -> 15254.23729 | AX52: =+BISIESTO!AX52/366*365 -> 8984.696396 | AY52: =+BISIESTO!AY52/366*365 -> 6697.383577 | AZ52: =+BISIESTO!AZ52/366*365 -> 5751.193023 | BA52: =+BISIESTO!BA52/366*365 -> 5612.400424 | BB52: =+BISIESTO!BB52/366*365 -> 4283.147692 | BC52: =+BISIESTO!BC52/366*365 -> 3298.516039 | BG52: 50 | BH52: =+BISIESTO!BH52/366*365 -> 1887.803234 | BI52: =+BISIESTO!BI52/366*365 -> 3149.435514
AN53: 51 | AO53: =+BISIESTO!AO53/366*365 -> 15961.82327 | AP53: =+BISIESTO!AP53/366*365 -> 9955.570183 | AQ53: =+BISIESTO!AQ53/366*365 -> 7281.553398 | AR53: =+BISIESTO!AR53/366*365 -> 6277.768636 | AS53: =+BISIESTO!AS53/366*365 -> 5907.78992 | AT53: =+BISIESTO!AT53/366*365 -> 4529.305605 | AU53: =+BISIESTO!AU53/366*365 -> 3446.210787 | AV53: 51 | AW53: =+BISIESTO!AW53/366*365 -> 15961.82327 | AX53: =+BISIESTO!AX53/366*365 -> 9955.570183 | AY53: =+BISIESTO!AY53/366*365 -> 7281.553398 | AZ53: =+BISIESTO!AZ53/366*365 -> 6277.768636 | BA53: =+BISIESTO!BA53/366*365 -> 5907.78992 | BB53: =+BISIESTO!BB53/366*365 -> 4529.305605 | BC53: =+BISIESTO!BC53/366*365 -> 3446.210787 | BG53: 51 | BH53: =+BISIESTO!BH53/366*365 -> 1962.126197 | BI53: =+BISIESTO!BI53/366*365 -> 3239.552106
AN54: 52 | AO54: =+BISIESTO!AO54/366*365 -> 16850.41961 | AP54: =+BISIESTO!AP54/366*365 -> 10696.06714 | AQ54: =+BISIESTO!AQ54/366*365 -> 7709.396084 | AR54: =+BISIESTO!AR54/366*365 -> 6541.056442 | AS54: =+BISIESTO!AS54/366*365 -> 6203.179416 | AT54: =+BISIESTO!AT54/366*365 -> 4775.463519 | AU54: =+BISIESTO!AU54/366*365 -> 3741.600283 | AV54: 52 | AW54: =+BISIESTO!AW54/366*365 -> 16850.41961 | AX54: =+BISIESTO!AX54/366*365 -> 10696.06714 | AY54: =+BISIESTO!AY54/366*365 -> 7709.396084 | AZ54: =+BISIESTO!AZ54/366*365 -> 6541.056442 | BA54: =+BISIESTO!BA54/366*365 -> 6203.179416 | BB54: =+BISIESTO!BB54/366*365 -> 4775.463519 | BC54: =+BISIESTO!BC54/366*365 -> 3741.600283 | BG54: 52 | BH54: =+BISIESTO!BH54/366*365 -> 2036.449159 | BI54: =+BISIESTO!BI54/366*365 -> 3329.668697
A55: Oncológicos | AN55: 53 | AO55: =+BISIESTO!AO55/366*365 -> 18356.09676 | AP55: =+BISIESTO!AP55/366*365 -> 11107.45434 | AQ55: =+BISIESTO!AQ55/366*365 -> 7841.039987 | AR55: =+BISIESTO!AR55/366*365 -> 6713.839065 | AS55: =+BISIESTO!AS55/366*365 -> 6498.568912 | AT55: =+BISIESTO!AT55/366*365 -> 5021.621432 | AU55: =+BISIESTO!AU55/366*365 -> 4036.989779 | AV55: 53 | AW55: =+BISIESTO!AW55/366*365 -> 18356.09676 | AX55: =+BISIESTO!AX55/366*365 -> 11107.45434 | AY55: =+BISIESTO!AY55/366*365 -> 7841.039987 | AZ55: =+BISIESTO!AZ55/366*365 -> 6713.839065 | BA55: =+BISIESTO!BA55/366*365 -> 6498.568912 | BB55: =+BISIESTO!BB55/366*365 -> 5021.621432 | BC55: =+BISIESTO!BC55/366*365 -> 4036.989779 | BG55: 53 | BH55: =+BISIESTO!BH55/366*365 -> 2114.488269 | BI55: =+BISIESTO!BI55/366*365 -> 3418.856251
A56: FINANCIAMIENTOS JUN 2022 | B56: FACTORES | AN56: 54 | AO56: =+BISIESTO!AO56/366*365 -> 19335.19829 | AP56: =+BISIESTO!AP56/366*365 -> 11683.39641 | AQ56: =+BISIESTO!AQ56/366*365 -> 8194.832977 | AR56: =+BISIESTO!AR56/366*365 -> 6977.126872 | AS56: =+BISIESTO!AS56/366*365 -> 6793.958408 | AT56: =+BISIESTO!AT56/366*365 -> 5317.010928 | AU56: =+BISIESTO!AU56/366*365 -> 4332.379275 | AV56: 54 | AW56: =+BISIESTO!AW56/366*365 -> 19335.19829 | AX56: =+BISIESTO!AX56/366*365 -> 11683.39641 | AY56: =+BISIESTO!AY56/366*365 -> 8194.832977 | AZ56: =+BISIESTO!AZ56/366*365 -> 6977.126872 | BA56: =+BISIESTO!BA56/366*365 -> 6793.958408 | BB56: =+BISIESTO!BB56/366*365 -> 5317.010928 | BC56: =+BISIESTO!BC56/366*365 -> 4332.379275 | BG56: 54 | BH56: =+BISIESTO!BH56/366*365 -> 2216.682341 | BI56: =+BISIESTO!BI56/366*365 -> 3509.90188
A57: AL CONTADO | B57: 1 | AN57: 55 | AO57: =+BISIESTO!AO57/366*365 -> 20577.58763 | AP57: =+BISIESTO!AP57/366*365 -> 12177.06105 | AQ57: =+BISIESTO!AQ57/366*365 -> 8639.13115 | AR57: =+BISIESTO!AR57/366*365 -> 7330.919862 | AS57: =+BISIESTO!AS57/366*365 -> 7089.347904 | AT57: =+BISIESTO!AT57/366*365 -> 5612.400424 | AU57: =+BISIESTO!AU57/366*365 -> 4627.768771 | AV57: 55 | AW57: =+BISIESTO!AW57/366*365 -> 20577.58763 | AX57: =+BISIESTO!AX57/366*365 -> 12177.06105 | AY57: =+BISIESTO!AY57/366*365 -> 8639.13115 | AZ57: =+BISIESTO!AZ57/366*365 -> 7330.919862 | BA57: =+BISIESTO!BA57/366*365 -> 7089.347904 | BB57: =+BISIESTO!BB57/366*365 -> 5612.400424 | BC57: =+BISIESTO!BC57/366*365 -> 4627.768771 | BG57: 55 | BH57: =+BISIESTO!BH57/366*365 -> 2305.869896 | BI57: =+BISIESTO!BI57/366*365 -> 3660.405878
A58: 4 CUOTAS SIN INTERESES | B58: 4 | AN58: 56 | AO58: =+BISIESTO!AO58/366*365 -> 22083.26477 | AP58: =+BISIESTO!AP58/366*365 -> 12753.00313 | AQ58: =+BISIESTO!AQ58/366*365 -> 8984.696396 | AR58: =+BISIESTO!AR58/366*365 -> 7766.990291 | AS58: =+BISIESTO!AS58/366*365 -> 7483.200565 | AT58: =+BISIESTO!AT58/366*365 -> 5907.78992 | AU58: =+BISIESTO!AU58/366*365 -> 4923.158267 | AV58: 56 | AW58: =+BISIESTO!AW58/366*365 -> 22083.26477 | AX58: =+BISIESTO!AX58/366*365 -> 12753.00313 | AY58: =+BISIESTO!AY58/366*365 -> 8984.696396 | AZ58: =+BISIESTO!AZ58/366*365 -> 7766.990291 | BA58: =+BISIESTO!BA58/366*365 -> 7483.200565 | BB58: =+BISIESTO!BB58/366*365 -> 5907.78992 | BC58: =+BISIESTO!BC58/366*365 -> 4923.158267 | BG58: 56 | BH58: =+BISIESTO!BH58/366*365 -> 2399.702635 | BI58: =+BISIESTO!BI58/366*365 -> 3809.051802
A59: 6 CUOTAS (INTERÉS 12%) | B59: 5.805671792 | AN59: 57 | AO59: =+BISIESTO!AO59/366*365 -> 23737.0413 | AP59: =+BISIESTO!AP59/366*365 -> 13452.36136 | AQ59: =+BISIESTO!AQ59/366*365 -> 9560.638473 | AR59: =+BISIESTO!AR59/366*365 -> 8203.060721 | AS59: =+BISIESTO!AS59/366*365 -> 7975.516392 | AT59: =+BISIESTO!AT59/366*365 -> 6203.179416 | AU59: =+BISIESTO!AU59/366*365 -> 5267.779345 | AV59: 57 | AW59: =+BISIESTO!AW59/366*365 -> 23737.0413 | AX59: =+BISIESTO!AX59/366*365 -> 13452.36136 | AY59: =+BISIESTO!AY59/366*365 -> 9560.638473 | AZ59: =+BISIESTO!AZ59/366*365 -> 8203.060721 | BA59: =+BISIESTO!BA59/366*365 -> 7975.516392 | BB59: =+BISIESTO!BB59/366*365 -> 6203.179416 | BC59: =+BISIESTO!BC59/366*365 -> 5267.779345 | BG59: 57 | BH59: =+BISIESTO!BH59/366*365 -> 2519.548411 | BI59: =+BISIESTO!BI59/366*365 -> 3990.214022
A60: 6 CUOTAS (INTERÉS 17.5%) | B60: 5.725823013 | AN60: 58 | AO60: =+BISIESTO!AO60/366*365 -> 25135.75778 | AP60: =+BISIESTO!AP60/366*365 -> 14151.7196 | AQ60: =+BISIESTO!AQ60/366*365 -> 10046.07537 | AR60: =+BISIESTO!AR60/366*365 -> 8639.13115 | AS60: =+BISIESTO!AS60/366*365 -> 8467.832219 | AT60: =+BISIESTO!AT60/366*365 -> 6597.032077 | AU60: =+BISIESTO!AU60/366*365 -> 5612.400424 | AV60: 58 | AW60: =+BISIESTO!AW60/366*365 -> 25135.75778 | AX60: =+BISIESTO!AX60/366*365 -> 14151.7196 | AY60: =+BISIESTO!AY60/366*365 -> 10046.07537 | AZ60: =+BISIESTO!AZ60/366*365 -> 8639.13115 | BA60: =+BISIESTO!BA60/366*365 -> 8467.832219 | BB60: =+BISIESTO!BB60/366*365 -> 6597.032077 | BC60: =+BISIESTO!BC60/366*365 -> 5612.400424 | BG60: 58 | BH60: =+BISIESTO!BH60/366*365 -> 2639.394188 | BI60: =+BISIESTO!BI60/366*365 -> 4170.447204
A61: 10 CUOTAS (INTERÉS 12%) | B61: 9.497329567 | AN61: 59 | AO61: =+BISIESTO!AO61/366*365 -> 26641.43492 | AP61: =+BISIESTO!AP61/366*365 -> 15056.77143 | AQ61: =+BISIESTO!AQ61/366*365 -> 11033.40464 | AR61: =+BISIESTO!AR61/366*365 -> 9338.489386 | AS61: =+BISIESTO!AS61/366*365 -> 8960.148045 | AT61: =+BISIESTO!AT61/366*365 -> 6990.884739 | AU61: =+BISIESTO!AU61/366*365 -> 5957.021503 | AV61: 59 | AW61: =+BISIESTO!AW61/366*365 -> 26641.43492 | AX61: =+BISIESTO!AX61/366*365 -> 15056.77143 | AY61: =+BISIESTO!AY61/366*365 -> 11033.40464 | AZ61: =+BISIESTO!AZ61/366*365 -> 9338.489386 | BA61: =+BISIESTO!BA61/366*365 -> 8960.148045 | BB61: =+BISIESTO!BB61/366*365 -> 6990.884739 | BC61: =+BISIESTO!BC61/366*365 -> 5957.021503 | BG61: 59 | BH61: =+BISIESTO!BH61/366*365 -> 2760.169001 | BI61: =+BISIESTO!BI61/366*365 -> 4349.75135
A62: 10 CUOTAS (INTERÉS 17.5%) | B62: 9.294431117 | AN62: 60 | AO62: =+BISIESTO!AO62/366*365 -> 28023.6959 | AP62: =+BISIESTO!AP62/366*365 -> 15961.82327 | AQ62: =+BISIESTO!AQ62/366*365 -> 12061.87263 | AR62: =+BISIESTO!AR62/366*365 -> 10128.35281 | AS62: =+BISIESTO!AS62/366*365 -> 9944.779699 | AT62: =+BISIESTO!AT62/366*365 -> 8467.832219 | AU62: =+BISIESTO!AU62/366*365 -> 6252.410999 | AV62: 60 | AW62: =+BISIESTO!AW62/366*365 -> 28023.6959 | AX62: =+BISIESTO!AX62/366*365 -> 15961.82327 | AY62: =+BISIESTO!AY62/366*365 -> 12061.87263 | AZ62: =+BISIESTO!AZ62/366*365 -> 10128.35281 | BA62: =+BISIESTO!BA62/366*365 -> 9944.779699 | BB62: =+BISIESTO!BB62/366*365 -> 8467.832219 | BC62: =+BISIESTO!BC62/366*365 -> 6252.410999 | BG62: 60 | BH62: =+BISIESTO!BH62/366*365 -> 2898.595517 | BI62: =+BISIESTO!BI62/366*365 -> 4529.984533
A63: 12 CUOTAS (INTERÉS 12%) | B63: 11.29151599 | AN63: 61 | AO63: =+BISIESTO!AO63/366*365 -> 30598.97976 | AP63: =+BISIESTO!AP63/366*365 -> 17278.2623 | AQ63: =+BISIESTO!AQ63/366*365 -> 12753.00313 | AR63: =+BISIESTO!AR63/366*365 -> 11000.49366 | AV63: 61 | AW63: =+BISIESTO!AW63/366*365 -> 30598.97976 | AX63: =+BISIESTO!AX63/366*365 -> 17278.2623 | AY63: =+BISIESTO!AY63/366*365 -> 12753.00313 | AZ63: =+BISIESTO!AZ63/366*365 -> 11000.49366 | BG63: 61 | BH63: =+BISIESTO!BH63/366*365 -> 3068.609293 | BI63: =+BISIESTO!BI63/366*365 -> 4710.217716
A64: 12 CUOTAS (INTERÉS 17.5%) | B64: 11.00807343 | AN64: 62 | AO64: =+BISIESTO!AO64/366*365 -> 33264.7688 | AP64: =+BISIESTO!AP64/366*365 -> 18594.70133 | AQ64: =+BISIESTO!AQ64/366*365 -> 13896.65954 | AR64: =+BISIESTO!AR64/366*365 -> 11880.86227 | AV64: 62 | AW64: =+BISIESTO!AW64/366*365 -> 33264.7688 | AX64: =+BISIESTO!AX64/366*365 -> 18594.70133 | AY64: =+BISIESTO!AY64/366*365 -> 13896.65954 | AZ64: =+BISIESTO!AZ64/366*365 -> 11880.86227 | BG64: 62 | BH64: =+BISIESTO!BH64/366*365 -> 3239.552106 | BI64: =+BISIESTO!BI64/366*365 -> 4890.450899
AN65: 63 | AO65: =+BISIESTO!AO65/366*365 -> 35478.03192 | AP65: =+BISIESTO!AP65/366*365 -> 19870.00165 | AQ65: =+BISIESTO!AQ65/366*365 -> 14892.21655 | AR65: =+BISIESTO!AR65/366*365 -> 12753.00313 | AV65: 63 | AW65: =+BISIESTO!AW65/366*365 -> 35478.03192 | AX65: =+BISIESTO!AX65/366*365 -> 19870.00165 | AY65: =+BISIESTO!AY65/366*365 -> 14892.21655 | AZ65: =+BISIESTO!AZ65/366*365 -> 12753.00313 | BG65: 63 | BH65: =+BISIESTO!BH65/366*365 -> 3419.785289 | BI65: =+BISIESTO!BI65/366*365 -> 5069.755045
AN66: 64 | AO66: =+BISIESTO!AO66/366*365 -> 37609.01761 | AP66: =+BISIESTO!AP66/366*365 -> 21227.5794 | AQ66: =+BISIESTO!AQ66/366*365 -> 16077.01168 | AR66: =+BISIESTO!AR66/366*365 -> 13633.37173 | AV66: 64 | AW66: =+BISIESTO!AW66/366*365 -> 37609.01761 | AX66: =+BISIESTO!AX66/366*365 -> 21227.5794 | AY66: =+BISIESTO!AY66/366*365 -> 16077.01168 | AZ66: =+BISIESTO!AZ66/366*365 -> 13633.37173 | BG66: 64 | BH66: =+BISIESTO!BH66/366*365 -> 3623.244397 | BI66: =+BISIESTO!BI66/366*365 -> 5249.05919
AN67: 65 | AO67: =+BISIESTO!AO67/366*365 -> 40266.5789 | AP67: =+BISIESTO!AP67/366*365 -> 22544.01843 | AQ67: =+BISIESTO!AQ67/366*365 -> 17492.18364 | AR67: =+BISIESTO!AR67/366*365 -> 14505.51259 | AV67: 65 | AW67: =+BISIESTO!AW67/366*365 -> 40266.5789 | AX67: =+BISIESTO!AX67/366*365 -> 22544.01843 | AY67: =+BISIESTO!AY67/366*365 -> 17492.18364 | AZ67: =+BISIESTO!AZ67/366*365 -> 14505.51259 | BG67: 65 | BH67: =+BISIESTO!BH67/366*365 -> 3816.484098 | BI67: =+BISIESTO!BI67/366*365 -> 5489.67978
AN68: 66 | AO68: =+BISIESTO!AO68/366*365 -> 42570.34721 | AP68: =+BISIESTO!AP68/366*365 -> 26304.09742 | AQ68: =+BISIESTO!AQ68/366*365 -> 18841.53365 | AR68: =+BISIESTO!AR68/366*365 -> 16488.39888 | AV68: 66 | AW68: =+BISIESTO!AW68/366*365 -> 42570.34721 | AX68: =+BISIESTO!AX68/366*365 -> 26304.09742 | AY68: =+BISIESTO!AY68/366*365 -> 18841.53365 | AZ68: =+BISIESTO!AZ68/366*365 -> 16488.39888 | BG68: 66 | BH68: =+BISIESTO!BH68/366*365 -> 4038.523947 | BI68: =+BISIESTO!BI68/366*365 -> 5730.300369
AN69: 67 | AO69: =+BISIESTO!AO69/366*365 -> 45236.13625 | AP69: =+BISIESTO!AP69/366*365 -> 27892.052 | AQ69: =+BISIESTO!AQ69/366*365 -> 20742.1425 | AR69: =+BISIESTO!AR69/366*365 -> 17854.20438 | AV69: 67 | AW69: =+BISIESTO!AW69/366*365 -> 45236.13625 | AX69: =+BISIESTO!AX69/366*365 -> 27892.052 | AY69: =+BISIESTO!AY69/366*365 -> 20742.1425 | AZ69: =+BISIESTO!AZ69/366*365 -> 17854.20438 | BG69: 67 | BH69: =+BISIESTO!BH69/366*365 -> 4259.634759 | BI69: =+BISIESTO!BI69/366*365 -> 5969.991922
AN70: 68 | AO70: =+BISIESTO!AO70/366*365 -> 48848.11585 | AP70: =+BISIESTO!AP70/366*365 -> 29685.70018 | AQ70: =+BISIESTO!AQ70/366*365 -> 22757.93977 | AR70: =+BISIESTO!AR70/366*365 -> 19335.19829 | AV70: 68 | AW70: =+BISIESTO!AW70/366*365 -> 48848.11585 | AX70: =+BISIESTO!AX70/366*365 -> 29685.70018 | AY70: =+BISIESTO!AY70/366*365 -> 22757.93977 | AZ70: =+BISIESTO!AZ70/366*365 -> 19335.19829 | BG70: 68 | BH70: =+BISIESTO!BH70/366*365 -> 4499.326311 | BI70: =+BISIESTO!BI70/366*365 -> 6209.683474
AN71: 69 | AO71: =+BISIESTO!AO71/366*365 -> 51620.86556 | AP71: =+BISIESTO!AP71/366*365 -> 32433.76666 | AQ71: =+BISIESTO!AQ71/366*365 -> 24436.39954 | AR71: =+BISIESTO!AR71/366*365 -> 20692.77604 | AV71: 69 | AW71: =+BISIESTO!AW71/366*365 -> 51620.86556 | AX71: =+BISIESTO!AX71/366*365 -> 32433.76666 | AY71: =+BISIESTO!AY71/366*365 -> 24436.39954 | AZ71: =+BISIESTO!AZ71/366*365 -> 20692.77604 | BG71: 69 | BH71: =+BISIESTO!BH71/366*365 -> 4740.875938 | BI71: =+BISIESTO!BI71/366*365 -> 6450.304063
AN72: 70 | AO72: =+BISIESTO!AO72/366*365 -> 55874.60918 | AP72: =+BISIESTO!AP72/366*365 -> 34860.95113 | AQ72: =+BISIESTO!AQ72/366*365 -> 25933.84894 | AR72: =+BISIESTO!AR72/366*365 -> 22165.54221 | AV72: 70 | AW72: =+BISIESTO!AW72/366*365 -> 55874.60918 | AX72: =+BISIESTO!AX72/366*365 -> 34860.95113 | AY72: =+BISIESTO!AY72/366*365 -> 25933.84894 | AZ72: =+BISIESTO!AZ72/366*365 -> 22165.54221 | BG72: 70 | BH72: =+BISIESTO!BH72/366*365 -> 4980.56749 | BI72: =+BISIESTO!BI72/366*365 -> 6689.066579
AN73: 71 | AO73: =+BISIESTO!AO73/366*365 -> 61732.76288 | AP73: =+BISIESTO!AP73/366*365 -> 37822.93895 | AQ73: =+BISIESTO!AQ73/366*365 -> 28155.33981 | AR73: =+BISIESTO!AR73/366*365 -> 23745.26905 | AV73: 71 | AW73: =+BISIESTO!AW73/366*365 -> 61732.76288 | AX73: =+BISIESTO!AX73/366*365 -> 37822.93895 | AY73: =+BISIESTO!AY73/366*365 -> 28155.33981 | AZ73: =+BISIESTO!AZ73/366*365 -> 23745.26905 | BG73: 71 | BH73: =+BISIESTO!BH73/366*365 -> 5220.259043 | BI73: =+BISIESTO!BI73/366*365 -> 6990.074575
AN74: 72 | AO74: =+BISIESTO!AO74/366*365 -> 61732.76288 | AP74: =+BISIESTO!AP74/366*365 -> 37822.93895 | AQ74: =+BISIESTO!AQ74/366*365 -> 28155.33981 | AR74: =+BISIESTO!AR74/366*365 -> 23745.26905 | AV74: 72 | AW74: =+BISIESTO!AW74/366*365 -> 61732.76288 | AX74: =+BISIESTO!AX74/366*365 -> 37822.93895 | AY74: =+BISIESTO!AY74/366*365 -> 28155.33981 | AZ74: =+BISIESTO!AZ74/366*365 -> 23745.26905 | BG74: 72 | BH74: =+BISIESTO!BH74/366*365 -> 5459.950595 | BI74: =+BISIESTO!BI74/366*365 -> 6990.074575
AN75: 73 | AO75: =+BISIESTO!AO75/366*365 -> 61732.76288 | AP75: =+BISIESTO!AP75/366*365 -> 37822.93895 | AQ75: =+BISIESTO!AQ75/366*365 -> 28155.33981 | AR75: =+BISIESTO!AR75/366*365 -> 23745.26905 | AV75: 73 | AW75: =+BISIESTO!AW75/366*365 -> 61732.76288 | AX75: =+BISIESTO!AX75/366*365 -> 37822.93895 | AY75: =+BISIESTO!AY75/366*365 -> 28155.33981 | AZ75: =+BISIESTO!AZ75/366*365 -> 23745.26905 | BG75: 73 | BH75: =+BISIESTO!BH75/366*365 -> 5459.950595 | BI75: =+BISIESTO!BI75/366*365 -> 6990.074575
AN76: 74 | AO76: =+BISIESTO!AO76/366*365 -> 61732.76288 | AP76: =+BISIESTO!AP76/366*365 -> 37822.93895 | AQ76: =+BISIESTO!AQ76/366*365 -> 28155.33981 | AR76: =+BISIESTO!AR76/366*365 -> 23745.26905 | AV76: 74 | AW76: =+BISIESTO!AW76/366*365 -> 61732.76288 | AX76: =+BISIESTO!AX76/366*365 -> 37822.93895 | AY76: =+BISIESTO!AY76/366*365 -> 28155.33981 | AZ76: =+BISIESTO!AZ76/366*365 -> 23745.26905 | BG76: 74 | BH76: =+BISIESTO!BH76/366*365 -> 5459.950595 | BI76: =+BISIESTO!BI76/366*365 -> 6990.074575
AN77: 75 | AO77: =+BISIESTO!AO77/366*365 -> 61732.76288 | AP77: =+BISIESTO!AP77/366*365 -> 37822.93895 | AQ77: =+BISIESTO!AQ77/366*365 -> 28155.33981 | AR77: =+BISIESTO!AR77/366*365 -> 23745.26905 | AV77: 75 | AW77: =+BISIESTO!AW77/366*365 -> 61732.76288 | AX77: =+BISIESTO!AX77/366*365 -> 37822.93895 | AY77: =+BISIESTO!AY77/366*365 -> 28155.33981 | AZ77: =+BISIESTO!AZ77/366*365 -> 23745.26905 | BG77: 75 | BH77: =+BISIESTO!BH77/366*365 -> 5579.796371 | BI77: =+BISIESTO!BI77/366*365 -> 6990.074575
AN78: 76 | AO78: =+BISIESTO!AO78/366*365 -> 63855.52082 | AP78: =+BISIESTO!AP78/366*365 -> 43105.15057 | AQ78: =+BISIESTO!AQ78/366*365 -> 31059.73342 | AR78: =+BISIESTO!AR78/366*365 -> 25111.07454 | AV78: 76 | AW78: =+BISIESTO!AW78/366*365 -> 63855.52082 | AX78: =+BISIESTO!AX78/366*365 -> 43105.15057 | AY78: =+BISIESTO!AY78/366*365 -> 31059.73342 | AZ78: =+BISIESTO!AZ78/366*365 -> 25111.07454 | BG78: 76 | BH78: =+BISIESTO!BH78/366*365 -> 5579.796371 | BI78: =+BISIESTO!BI78/366*365 -> 6990.074575
AN79: 77 | AO79: =+BISIESTO!AO79/366*365 -> 63855.52082 | AP79: =+BISIESTO!AP79/366*365 -> 43105.15057 | AQ79: =+BISIESTO!AQ79/366*365 -> 31059.73342 | AR79: =+BISIESTO!AR79/366*365 -> 25111.07454 | AV79: 77 | AW79: =+BISIESTO!AW79/366*365 -> 63855.52082 | AX79: =+BISIESTO!AX79/366*365 -> 43105.15057 | AY79: =+BISIESTO!AY79/366*365 -> 31059.73342 | AZ79: =+BISIESTO!AZ79/366*365 -> 25111.07454 | BG79: 77 | BH79: =+BISIESTO!BH79/366*365 -> 5579.796371 | BI79: =+BISIESTO!BI79/366*365 -> 6990.074575
AN80: 78 | AO80: =+BISIESTO!AO80/366*365 -> 63855.52082 | AP80: =+BISIESTO!AP80/366*365 -> 43105.15057 | AQ80: =+BISIESTO!AQ80/366*365 -> 31059.73342 | AR80: =+BISIESTO!AR80/366*365 -> 25111.07454 | AV80: 78 | AW80: =+BISIESTO!AW80/366*365 -> 63855.52082 | AX80: =+BISIESTO!AX80/366*365 -> 43105.15057 | AY80: =+BISIESTO!AY80/366*365 -> 31059.73342 | AZ80: =+BISIESTO!AZ80/366*365 -> 25111.07454 | BG80: 78 | BH80: =+BISIESTO!BH80/366*365 -> 5579.796371 | BI80: =+BISIESTO!BI80/366*365 -> 6990.074575
AN81: 79 | AO81: =+BISIESTO!AO81/366*365 -> 63855.52082 | AP81: =+BISIESTO!AP81/366*365 -> 43105.15057 | AQ81: =+BISIESTO!AQ81/366*365 -> 31059.73342 | AR81: =+BISIESTO!AR81/366*365 -> 25111.07454 | AV81: 79 | AW81: =+BISIESTO!AW81/366*365 -> 63855.52082 | AX81: =+BISIESTO!AX81/366*365 -> 43105.15057 | AY81: =+BISIESTO!AY81/366*365 -> 31059.73342 | AZ81: =+BISIESTO!AZ81/366*365 -> 25111.07454 | BG81: 79 | BH81: =+BISIESTO!BH81/366*365 -> 5579.796371 | BI81: =+BISIESTO!BI81/366*365 -> 6990.074575
AN82: 80 | AO82: =+BISIESTO!AO82/366*365 -> 63855.52082 | AP82: =+BISIESTO!AP82/366*365 -> 43105.15057 | AQ82: =+BISIESTO!AQ82/366*365 -> 31059.73342 | AR82: =+BISIESTO!AR82/366*365 -> 25111.07454 | AV82: 80 | AW82: =+BISIESTO!AW82/366*365 -> 63855.52082 | AX82: =+BISIESTO!AX82/366*365 -> 43105.15057 | AY82: =+BISIESTO!AY82/366*365 -> 31059.73342 | AZ82: =+BISIESTO!AZ82/366*365 -> 25111.07454 | BG82: 80 | BH82: =+BISIESTO!BH82/366*365 -> 5700.571184 | BI82: =+BISIESTO!BI82/366*365 -> 6990.074575
AN83: 81 | AO83: =+BISIESTO!AO83/366*365 -> 64390.32417 | AP83: =+BISIESTO!AP83/366*365 -> 47539.90456 | AQ83: =+BISIESTO!AQ83/366*365 -> 34400.19747 | AR83: =+BISIESTO!AR83/366*365 -> 26575.61297 | AV83: 81 | AW83: =+BISIESTO!AW83/366*365 -> 64390.32417 | AX83: =+BISIESTO!AX83/366*365 -> 47539.90456 | AY83: =+BISIESTO!AY83/366*365 -> 34400.19747 | AZ83: =+BISIESTO!AZ83/366*365 -> 26575.61297 | BG83: 81 | BH83: =+BISIESTO!BH83/366*365 -> 5700.571184 | BI83: =+BISIESTO!BI83/366*365 -> 6990.074575
AN84: 82 | AO84: =+BISIESTO!AO84/366*365 -> 64390.32417 | AP84: =+BISIESTO!AP84/366*365 -> 47539.90456 | AQ84: =+BISIESTO!AQ84/366*365 -> 34400.19747 | AR84: =+BISIESTO!AR84/366*365 -> 26575.61297 | AV84: 82 | AW84: =+BISIESTO!AW84/366*365 -> 64390.32417 | AX84: =+BISIESTO!AX84/366*365 -> 47539.90456 | AY84: =+BISIESTO!AY84/366*365 -> 34400.19747 | AZ84: =+BISIESTO!AZ84/366*365 -> 26575.61297 | BG84: 82 | BH84: =+BISIESTO!BH84/366*365 -> 5700.571184 | BI84: =+BISIESTO!BI84/366*365 -> 6990.074575
AN85: 83 | AO85: =+BISIESTO!AO85/366*365 -> 64390.32417 | AP85: =+BISIESTO!AP85/366*365 -> 47539.90456 | AQ85: =+BISIESTO!AQ85/366*365 -> 34400.19747 | AR85: =+BISIESTO!AR85/366*365 -> 26575.61297 | AV85: 83 | AW85: =+BISIESTO!AW85/366*365 -> 64390.32417 | AX85: =+BISIESTO!AX85/366*365 -> 47539.90456 | AY85: =+BISIESTO!AY85/366*365 -> 34400.19747 | AZ85: =+BISIESTO!AZ85/366*365 -> 26575.61297 | BG85: 83 | BH85: =+BISIESTO!BH85/366*365 -> 5700.571184 | BI85: =+BISIESTO!BI85/366*365 -> 6990.074575
AN86: 84 | AO86: =+BISIESTO!AO86/366*365 -> 64390.32417 | AP86: =+BISIESTO!AP86/366*365 -> 47539.90456 | AQ86: =+BISIESTO!AQ86/366*365 -> 34400.19747 | AR86: =+BISIESTO!AR86/366*365 -> 26575.61297 | AV86: 84 | AW86: =+BISIESTO!AW86/366*365 -> 64390.32417 | AX86: =+BISIESTO!AX86/366*365 -> 47539.90456 | AY86: =+BISIESTO!AY86/366*365 -> 34400.19747 | AZ86: =+BISIESTO!AZ86/366*365 -> 26575.61297 | BG86: 84 | BH86: =+BISIESTO!BH86/366*365 -> 5700.571184 | BI86: =+BISIESTO!BI86/366*365 -> 6990.074575
AN87: 85 | AO87: =+BISIESTO!AO87/366*365 -> 64390.32417 | AP87: =+BISIESTO!AP87/366*365 -> 47539.90456 | AQ87: =+BISIESTO!AQ87/366*365 -> 34400.19747 | AR87: =+BISIESTO!AR87/366*365 -> 26575.61297 | AV87: 85 | AW87: =+BISIESTO!AW87/366*365 -> 64390.32417 | AX87: =+BISIESTO!AX87/366*365 -> 47539.90456 | AY87: =+BISIESTO!AY87/366*365 -> 34400.19747 | AZ87: =+BISIESTO!AZ87/366*365 -> 26575.61297 | BG87: 85 | BH87: =+BISIESTO!BH87/366*365 -> 5700.571184 | BI87: =+BISIESTO!BI87/366*365 -> 6990.074575
AN88: 86 | AO88: =+BISIESTO!AO88/366*365 -> 64390.32417 | AP88: =+BISIESTO!AP88/366*365 -> 47539.90456 | AQ88: =+BISIESTO!AQ88/366*365 -> 34400.19747 | AR88: =+BISIESTO!AR88/366*365 -> 26575.61297 | AV88: 86 | AW88: =+BISIESTO!AW88/366*365 -> 64390.32417 | AX88: =+BISIESTO!AX88/366*365 -> 47539.90456 | AY88: =+BISIESTO!AY88/366*365 -> 34400.19747 | AZ88: =+BISIESTO!AZ88/366*365 -> 26575.61297 | BG88: 86 | BH88: =+BISIESTO!BH88/366*365 -> 5700.571184 | BI88: =+BISIESTO!BI88/366*365 -> 6990.074575
AN89: 87 | AO89: =+BISIESTO!AO89/366*365 -> 64390.32417 | AP89: =+BISIESTO!AP89/366*365 -> 47539.90456 | AQ89: =+BISIESTO!AQ89/366*365 -> 34400.19747 | AR89: =+BISIESTO!AR89/366*365 -> 26575.61297 | AV89: 87 | AW89: =+BISIESTO!AW89/366*365 -> 64390.32417 | AX89: =+BISIESTO!AX89/366*365 -> 47539.90456 | AY89: =+BISIESTO!AY89/366*365 -> 34400.19747 | AZ89: =+BISIESTO!AZ89/366*365 -> 26575.61297 | BG89: 87 | BH89: =+BISIESTO!BH89/366*365 -> 5700.571184 | BI89: =+BISIESTO!BI89/366*365 -> 6990.074575
AN90: 88 | AO90: =+BISIESTO!AO90/366*365 -> 64390.32417 | AP90: =+BISIESTO!AP90/366*365 -> 47539.90456 | AQ90: =+BISIESTO!AQ90/366*365 -> 34400.19747 | AR90: =+BISIESTO!AR90/366*365 -> 26575.61297 | AV90: 88 | AW90: =+BISIESTO!AW90/366*365 -> 64390.32417 | AX90: =+BISIESTO!AX90/366*365 -> 47539.90456 | AY90: =+BISIESTO!AY90/366*365 -> 34400.19747 | AZ90: =+BISIESTO!AZ90/366*365 -> 26575.61297 | BG90: 88 | BH90: =+BISIESTO!BH90/366*365 -> 5700.571184 | BI90: =+BISIESTO!BI90/366*365 -> 6990.074575
AN91: 89 | AO91: =+BISIESTO!AO91/366*365 -> 64390.32417 | AP91: =+BISIESTO!AP91/366*365 -> 47539.90456 | AQ91: =+BISIESTO!AQ91/366*365 -> 34400.19747 | AR91: =+BISIESTO!AR91/366*365 -> 26575.61297 | AV91: 89 | AW91: =+BISIESTO!AW91/366*365 -> 64390.32417 | AX91: =+BISIESTO!AX91/366*365 -> 47539.90456 | AY91: =+BISIESTO!AY91/366*365 -> 34400.19747 | AZ91: =+BISIESTO!AZ91/366*365 -> 26575.61297 | BG91: 89 | BH91: =+BISIESTO!BH91/366*365 -> 5700.571184 | BI91: =+BISIESTO!BI91/366*365 -> 6990.074575
AN92: 90 | AO92: =+BISIESTO!AO92/366*365 -> 64390.32417 | AP92: =+BISIESTO!AP92/366*365 -> 47539.90456 | AQ92: =+BISIESTO!AQ92/366*365 -> 34400.19747 | AR92: =+BISIESTO!AR92/366*365 -> 26575.61297 | AV92: 90 | AW92: =+BISIESTO!AW92/366*365 -> 64390.32417 | AX92: =+BISIESTO!AX92/366*365 -> 47539.90456 | AY92: =+BISIESTO!AY92/366*365 -> 34400.19747 | AZ92: =+BISIESTO!AZ92/366*365 -> 26575.61297 | BG92: 90 | BH92: =+BISIESTO!BH92/366*365 -> 5700.571184 | BI92: =+BISIESTO!BI92/366*365 -> 6990.074575
AN93: 91 | AO93: =+BISIESTO!AO93/366*365 -> 64390.32417 | AP93: =+BISIESTO!AP93/366*365 -> 47539.90456 | AQ93: =+BISIESTO!AQ93/366*365 -> 34400.19747 | AR93: =+BISIESTO!AR93/366*365 -> 26575.61297 | AV93: 91 | AW93: =+BISIESTO!AW93/366*365 -> 64390.32417 | AX93: =+BISIESTO!AX93/366*365 -> 47539.90456 | AY93: =+BISIESTO!AY93/366*365 -> 34400.19747 | AZ93: =+BISIESTO!AZ93/366*365 -> 26575.61297 | BG93: 91 | BH93: =+BISIESTO!BH93/366*365 -> 5700.571184 | BI93: =+BISIESTO!BI93/366*365 -> 6990.074575
AN94: 92 | AO94: =+BISIESTO!AO94/366*365 -> 64390.32417 | AP94: =+BISIESTO!AP94/366*365 -> 47539.90456 | AQ94: =+BISIESTO!AQ94/366*365 -> 34400.19747 | AR94: =+BISIESTO!AR94/366*365 -> 26575.61297 | AV94: 92 | AW94: =+BISIESTO!AW94/366*365 -> 64390.32417 | AX94: =+BISIESTO!AX94/366*365 -> 47539.90456 | AY94: =+BISIESTO!AY94/366*365 -> 34400.19747 | AZ94: =+BISIESTO!AZ94/366*365 -> 26575.61297 | BG94: 92 | BH94: =+BISIESTO!BH94/366*365 -> 5700.571184 | BI94: =+BISIESTO!BI94/366*365 -> 6990.074575
AN95: 93 | AO95: =+BISIESTO!AO95/366*365 -> 64390.32417 | AP95: =+BISIESTO!AP95/366*365 -> 47539.90456 | AQ95: =+BISIESTO!AQ95/366*365 -> 34400.19747 | AR95: =+BISIESTO!AR95/366*365 -> 26575.61297 | AV95: 93 | AW95: =+BISIESTO!AW95/366*365 -> 64390.32417 | AX95: =+BISIESTO!AX95/366*365 -> 47539.90456 | AY95: =+BISIESTO!AY95/366*365 -> 34400.19747 | AZ95: =+BISIESTO!AZ95/366*365 -> 26575.61297 | BG95: 93 | BH95: =+BISIESTO!BH95/366*365 -> 5700.571184 | BI95: =+BISIESTO!BI95/366*365 -> 6990.074575
AN96: 94 | AO96: =+BISIESTO!AO96/366*365 -> 64390.32417 | AP96: =+BISIESTO!AP96/366*365 -> 47539.90456 | AQ96: =+BISIESTO!AQ96/366*365 -> 34400.19747 | AR96: =+BISIESTO!AR96/366*365 -> 26575.61297 | AV96: 94 | AW96: =+BISIESTO!AW96/366*365 -> 64390.32417 | AX96: =+BISIESTO!AX96/366*365 -> 47539.90456 | AY96: =+BISIESTO!AY96/366*365 -> 34400.19747 | AZ96: =+BISIESTO!AZ96/366*365 -> 26575.61297 | BG96: 94 | BH96: =+BISIESTO!BH96/366*365 -> 5700.571184 | BI96: =+BISIESTO!BI96/366*365 -> 6990.074575
AN97: 95 | AO97: =+BISIESTO!AO97/366*365 -> 64390.32417 | AP97: =+BISIESTO!AP97/366*365 -> 47539.90456 | AQ97: =+BISIESTO!AQ97/366*365 -> 34400.19747 | AR97: =+BISIESTO!AR97/366*365 -> 26575.61297 | AV97: 95 | AW97: =+BISIESTO!AW97/366*365 -> 64390.32417 | AX97: =+BISIESTO!AX97/366*365 -> 47539.90456 | AY97: =+BISIESTO!AY97/366*365 -> 34400.19747 | AZ97: =+BISIESTO!AZ97/366*365 -> 26575.61297 | BG97: 95 | BH97: =+BISIESTO!BH97/366*365 -> 5700.571184 | BI97: =+BISIESTO!BI97/366*365 -> 6990.074575
AN98: 96 | AO98: =+BISIESTO!AO98/366*365 -> 64390.32417 | AP98: =+BISIESTO!AP98/366*365 -> 47539.90456 | AQ98: =+BISIESTO!AQ98/366*365 -> 34400.19747 | AR98: =+BISIESTO!AR98/366*365 -> 26575.61297 | AV98: 96 | AW98: =+BISIESTO!AW98/366*365 -> 64390.32417 | AX98: =+BISIESTO!AX98/366*365 -> 47539.90456 | AY98: =+BISIESTO!AY98/366*365 -> 34400.19747 | AZ98: =+BISIESTO!AZ98/366*365 -> 26575.61297 | BG98: 96 | BH98: =+BISIESTO!BH98/366*365 -> 5700.571184 | BI98: =+BISIESTO!BI98/366*365 -> 6990.074575
AN99: 97 | AO99: =+BISIESTO!AO99/366*365 -> 64390.32417 | AP99: =+BISIESTO!AP99/366*365 -> 47539.90456 | AQ99: =+BISIESTO!AQ99/366*365 -> 34400.19747 | AR99: =+BISIESTO!AR99/366*365 -> 26575.61297 | AV99: 97 | AW99: =+BISIESTO!AW99/366*365 -> 64390.32417 | AX99: =+BISIESTO!AX99/366*365 -> 47539.90456 | AY99: =+BISIESTO!AY99/366*365 -> 34400.19747 | AZ99: =+BISIESTO!AZ99/366*365 -> 26575.61297 | BG99: 97 | BH99: =+BISIESTO!BH99/366*365 -> 5700.571184 | BI99: =+BISIESTO!BI99/366*365 -> 6990.074575
AN100: 98 | AO100: =+BISIESTO!AO100/366*365 -> 64390.32417 | AP100: =+BISIESTO!AP100/366*365 -> 47539.90456 | AQ100: =+BISIESTO!AQ100/366*365 -> 34400.19747 | AR100: =+BISIESTO!AR100/366*365 -> 26575.61297 | AV100: 98 | AW100: =+BISIESTO!AW100/366*365 -> 64390.32417 | AX100: =+BISIESTO!AX100/366*365 -> 47539.90456 | AY100: =+BISIESTO!AY100/366*365 -> 34400.19747 | AZ100: =+BISIESTO!AZ100/366*365 -> 26575.61297 | BG100: 98 | BH100: =+BISIESTO!BH100/366*365 -> 5700.571184 | BI100: =+BISIESTO!BI100/366*365 -> 6990.074575
AN101: 99 | AO101: =+BISIESTO!AO101/366*365 -> 64390.32417 | AP101: =+BISIESTO!AP101/366*365 -> 47539.90456 | AQ101: =+BISIESTO!AQ101/366*365 -> 34400.19747 | AR101: =+BISIESTO!AR101/366*365 -> 26575.61297 | AV101: 99 | AW101: =+BISIESTO!AW101/366*365 -> 64390.32417 | AX101: =+BISIESTO!AX101/366*365 -> 47539.90456 | AY101: =+BISIESTO!AY101/366*365 -> 34400.19747 | AZ101: =+BISIESTO!AZ101/366*365 -> 26575.61297 | BG101: 99 | BH101: =+BISIESTO!BH101/366*365 -> 5700.571184 | BI101: =+BISIESTO!BI101/366*365 -> 6990.074575
AN102: 100 | AO102: =+BISIESTO!AO102/366*365 -> 64390.32417 | AP102: =+BISIESTO!AP102/366*365 -> 47539.90456 | AQ102: =+BISIESTO!AQ102/366*365 -> 34400.19747 | AR102: =+BISIESTO!AR102/366*365 -> 26575.61297 | AV102: 100 | AW102: =+BISIESTO!AW102/366*365 -> 64390.32417 | AX102: =+BISIESTO!AX102/366*365 -> 47539.90456 | AY102: =+BISIESTO!AY102/366*365 -> 34400.19747 | AZ102: =+BISIESTO!AZ102/366*365 -> 26575.61297 | BG102: 100 | BH102: =+BISIESTO!BH102/366*365 -> 5700.571184 | BI102: =+BISIESTO!BI102/366*365 -> 6990.074575

Sheet INT 2 (hidden)
B11: FINANCIAMIENTO | C11: AL CONTADO | D11: =+IFERROR(IF(C11="AL CONTADO","Afiliaciones al DA no aplican intereses, cupones aplican intereses de 17.5%."," ")," ") -> Afiliaciones al DA no aplican intereses, cupones aplican intereses de 17.5%.
B13: PLAN | C13: COMPLETO | D13: =+IFERROR(IF(C13="RESGUARDO","Requiere tener contratado una EPS."," ")," ") -> 
B14: DESCUENTO DE CAMPAÑA | C14: 0.2 | G14: Cotizaciones sujetas a condiciones de campaña y variaciones.
G15: Vigente desde el 1 de abril 2023 hasta el 29 de febrero 2024 (366 días). Aplica para las pólizas con fecha de ingreso a partir del 01/04/2022
D16: =IF($C$13="COMPLETO",1,IF(AND(D$19="MINT",$C$13="RESGUARDO"),0.6,IF(OR(D$19="SALUD ESENCIAL",D$19="MULTISALUD BASE", D$19="SALUD ESENCIAL PLUS"),"-",IF(AND(D$19<>"MINT",$C$13="RESGUARDO"),0.3,IF(AND(D$19="MINT",$C$13="MINT DEDUCIBLE 20K"),0.4,IF(AND(D$19<>"MINT",$C$13="MINT DEDUCIBLE 20K"),"-",IF(AND(D$19="MINT",C13="MINT DEDUCIBLE 10K"),0.5,IF(AND(D$19<>"MINT",$C$13="MINT DEDUCIBLE 10K"),"-")))))))) -> 1 | E16: =IF($C$13="COMPLETO",1,IF(AND(E$19="MINT",$C$13="RESGUARDO"),0.6,IF(OR(E$19="SALUD ESENCIAL",E$19="MULTISALUD BASE", E$19="SALUD ESENCIAL PLUS"),"-",IF(AND(E$19<>"MINT",$C$13="RESGUARDO"),0.3,IF(AND(E$19="MINT",$C$13="MINT DEDUCIBLE 20K"),0.4,IF(AND(E$19<>"MINT",$C$13="MINT DEDUCIBLE 20K"),"-",IF(AND(E$19="MINT",D13="MINT DEDUCIBLE 10K"),0.5,IF(AND(E$19<>"MINT",$C$13="MINT DEDUCIBLE 10K"),"-")))))))) -> 1 | F16: 1 | G16: 1 | H16: 1 | I16: 1 | J16: 1
D18: TARIFARIO VENTA NUEVA
B19: ASEGURADO | C19: EDAD | D19: MINT | E19: MEDICVIDA NACIONAL | F19: MULTISALUD | G19: RED PREFERENTE | H19: MULTISALUD BASE | I19: SALUD ESENCIAL PLUS | J19: SALUD ESENCIAL
D20: =+IFERROR("Paga el "&(D16)*100&"%"&" de prima.","-") -> Paga el 100% de prima. | E20: =+IFERROR("Paga el "&(E16)*100&"%"&" de prima.","-") -> Paga el 100% de prima. | F20: Paga el 100% de prima. | G20: Paga el 100% de prima. | H20: Paga el 100% de prima. | I20: Paga el 100% de prima. | J20: Paga el 100% de prima.
B21: TITULAR | C21: 45 | D21: =IFERROR(IF(C21="","",D$16*(IF($C$13="COMPLETO",IF($B21="HIJO/A",VLOOKUP($C21,#REF!,MATCH(D$19,#REF!,0),0),VLOOKUP($C21,#REF!,MATCH(D$19,#REF!,0),0))*1.18*1.03/VLOOKUP($C$11,#REF!,2,0),IF($C$13<>"COMPLETO",IF($B21="HIJO/A",VLOOKUP($C21,#REF!,MATCH(D$19,#REF!,0),0),VLOOKUP($C21,#REF!,MATCH(D$19,#REF!,0),0))*1.18*1.03/VLOOKUP($C$11,#REF!,2,0))))),"-") -> - | E21: =IFERROR(IF(D21="","",E$16*(IF($C$13="COMPLETO",IF($B21="HIJO/A",VLOOKUP($C21,#REF!,MATCH(E$19,#REF!,0),0),VLOOKUP($C21,#REF!,MATCH(E$19,#REF!,0),0))*1.18*1.03/VLOOKUP($C$11,#REF!,2,0),IF($C$13<>"COMPLETO",IF($B21="HIJO/A",VLOOKUP($C21,#REF!,MATCH(E$19,#REF!,0),0),VLOOKUP($C21,#REF!,MATCH(E$19,#REF!,0),0))*1.18*1.03/VLOOKUP($C$11,#REF!,2,0))))),"-") -> - | F21: =IFERROR(IF(E21="","",F$16*(IF($C$13="COMPLETO",IF($B21="HIJO/A",VLOOKUP($C21,#REF!,MATCH(F$19,#REF!,0),0),VLOOKUP($C21,#REF!,MATCH(F$19,#REF!,0),0))*1.18*1.03/VLOOKUP($C$11,#REF!,2,0),IF($C$13<>"COMPLETO",IF($B21="HIJO/A",VLOOKUP($C21,#REF!,MATCH(F$19,#REF!,0),0),VLOOKUP($C21,#REF!,MATCH(F$19,#REF!,0),0))*1.18*1.03/VLOOKUP($C$11,#REF!,2,0))))),"-") -> - | G21: =IFERROR(IF(F21="","",G$16*(IF($C$13="COMPLETO",IF($B21="HIJO/A",VLOOKUP($C21,#REF!,MATCH(G$19,#REF!,0),0),VLOOKUP($C21,#REF!,MATCH(G$19,#REF!,0),0))*1.18*1.03/VLOOKUP($C$11,#REF!,2,0),IF($C$13<>"COMPLETO",IF($B21="HIJO/A",VLOOKUP($C21,#REF!,MATCH(G$19,#REF!,0),0),VLOOKUP($C21,#REF!,MATCH(G$19,#REF!,0),0))*1.18*1.03/VLOOKUP($C$11,#REF!,2,0))))),"-") -> - | H21: =IFERROR(IF(G21="","",H$16*(IF($C$13="COMPLETO",IF($B21="HIJO/A",VLOOKUP($C21,#REF!,MATCH(H$19,#REF!,0),0),VLOOKUP($C21,#REF!,MATCH(H$19,#REF!,0),0))*1.18*1.03/VLOOKUP($C$11,#REF!,2,0),IF($C$13<>"COMPLETO",IF($B21="HIJO/A",VLOOKUP($C21,#REF!,MATCH(H$19,#REF!,0),0),VLOOKUP($C21,#REF!,MATCH(H$19,#REF!,0),0))*1.18*1.03/VLOOKUP($C$11,#REF!,2,0))))),"-") -> - | I21: =IFERROR(IF(H21="","",I$16*(IF($C$13="COMPLETO",IF($B21="HIJO/A",VLOOKUP($C21,#REF!,MATCH(I$19,#REF!,0),0),VLOOKUP($C21,#REF!,MATCH(I$19,#REF!,0),0))*1.18*1.03/VLOOKUP($C$11,#REF!,2,0),IF($C$13<>"COMPLETO",IF($B21="HIJO/A",VLOOKUP($C21,#REF!,MATCH(I$19,#REF!,0),0),VLOOKUP($C21,#REF!,MATCH(I$19,#REF!,0),0))*1.18*1.03/VLOOKUP($C$11,#REF!,2,0))))),"-") -> - | J21: =IFERROR(IF(I21="","",J$16*(IF($C$13="COMPLETO",IF($B21="HIJO/A",VLOOKUP($C21,#REF!,MATCH(J$19,#REF!,0),0),VLOOKUP($C21,#REF!,MATCH(J$19,#REF!,0),0))*1.18*1.03/VLOOKUP($C$11,#REF!,2,0),IF($C$13<>"COMPLETO",IF($B21="HIJO/A",VLOOKUP($C21,#REF!,MATCH(J$19,#REF!,0),0),VLOOKUP($C21,#REF!,MATCH(J$19,#REF!,0),0))*1.18*1.03/VLOOKUP($C$11,#REF!,2,0))))),"-") -> -
B22: CÓNYUGE/CONVIVIENTE | C22: 40 | D22: =IFERROR(IF(C22="","",D$16*(IF($C$13="COMPLETO",IF($B22="HIJO/A",VLOOKUP($C22,#REF!,MATCH(D$19,#REF!,0),0),VLOOKUP($C22,#REF!,MATCH(D$19,#REF!,0),0))*1.18*1.03/VLOOKUP($C$11,#REF!,2,0),IF($C$13<>"COMPLETO",IF($B22="HIJO/A",VLOOKUP($C22,#REF!,MATCH(D$19,#REF!,0),0),VLOOKUP($C22,#REF!,MATCH(D$19,#REF!,0),0))*1.18*1.03/VLOOKUP($C$11,#REF!,2,0))))),"-") -> - | E22: =IFERROR(IF(D22="","",E$16*(IF($C$13="COMPLETO",IF($B22="HIJO/A",VLOOKUP($C22,#REF!,MATCH(E$19,#REF!,0),0),VLOOKUP($C22,#REF!,MATCH(E$19,#REF!,0),0))*1.18*1.03/VLOOKUP($C$11,#REF!,2,0),IF($C$13<>"COMPLETO",IF($B22="HIJO/A",VLOOKUP($C22,#REF!,MATCH(E$19,#REF!,0),0),VLOOKUP($C22,#REF!,MATCH(E$19,#REF!,0),0))*1.18*1.03/VLOOKUP($C$11,#REF!,2,0))))),"-") -> - | F22: =IFERROR(IF(E22="","",F$16*(IF($C$13="COMPLETO",IF($B22="HIJO/A",VLOOKUP($C22,#REF!,MATCH(F$19,#REF!,0),0),VLOOKUP($C22,#REF!,MATCH(F$19,#REF!,0),0))*1.18*1.03/VLOOKUP($C$11,#REF!,2,0),IF($C$13<>"COMPLETO",IF($B22="HIJO/A",VLOOKUP($C22,#REF!,MATCH(F$19,#REF!,0),0),VLOOKUP($C22,#REF!,MATCH(F$19,#REF!,0),0))*1.18*1.03/VLOOKUP($C$11,#REF!,2,0))))),"-") -> - | G22: =IFERROR(IF(F22="","",G$16*(IF($C$13="COMPLETO",IF($B22="HIJO/A",VLOOKUP($C22,#REF!,MATCH(G$19,#REF!,0),0),VLOOKUP($C22,#REF!,MATCH(G$19,#REF!,0),0))*1.18*1.03/VLOOKUP($C$11,#REF!,2,0),IF($C$13<>"COMPLETO",IF($B22="HIJO/A",VLOOKUP($C22,#REF!,MATCH(G$19,#REF!,0),0),VLOOKUP($C22,#REF!,MATCH(G$19,#REF!,0),0))*1.18*1.03/VLOOKUP($C$11,#REF!,2,0))))),"-") -> - | H22: =IFERROR(IF(G22="","",H$16*(IF($C$13="COMPLETO",IF($B22="HIJO/A",VLOOKUP($C22,#REF!,MATCH(H$19,#REF!,0),0),VLOOKUP($C22,#REF!,MATCH(H$19,#REF!,0),0))*1.18*1.03/VLOOKUP($C$11,#REF!,2,0),IF($C$13<>"COMPLETO",IF($B22="HIJO/A",VLOOKUP($C22,#REF!,MATCH(H$19,#REF!,0),0),VLOOKUP($C22,#REF!,MATCH(H$19,#REF!,0),0))*1.18*1.03/VLOOKUP($C$11,#REF!,2,0))))),"-") -> - | I22: =IFERROR(IF(H22="","",I$16*(IF($C$13="COMPLETO",IF($B22="HIJO/A",VLOOKUP($C22,#REF!,MATCH(I$19,#REF!,0),0),VLOOKUP($C22,#REF!,MATCH(I$19,#REF!,0),0))*1.18*1.03/VLOOKUP($C$11,#REF!,2,0),IF($C$13<>"COMPLETO",IF($B22="HIJO/A",VLOOKUP($C22,#REF!,MATCH(I$19,#REF!,0),0),VLOOKUP($C22,#REF!,MATCH(I$19,#REF!,0),0))*1.18*1.03/VLOOKUP($C$11,#REF!,2,0))))),"-") -> - | J22: =IFERROR(IF(I22="","",J$16*(IF($C$13="COMPLETO",IF($B22="HIJO/A",VLOOKUP($C22,#REF!,MATCH(J$19,#REF!,0),0),VLOOKUP($C22,#REF!,MATCH(J$19,#REF!,0),0))*1.18*1.03/VLOOKUP($C$11,#REF!,2,0),IF($C$13<>"COMPLETO",IF($B22="HIJO/A",VLOOKUP($C22,#REF!,MATCH(J$19,#REF!,0),0),VLOOKUP($C22,#REF!,MATCH(J$19,#REF!,0),0))*1.18*1.03/VLOOKUP($C$11,#REF!,2,0))))),"-") -> -
B23: HIJO/A | D23: =IFERROR(IF(C23="","",D$16*(IF($C$13="COMPLETO",IF($B23="HIJO/A",VLOOKUP($C23,#REF!,MATCH(D$19,#REF!,0),0),VLOOKUP($C23,#REF!,MATCH(D$19,#REF!,0),0))*1.18*1.03/VLOOKUP($C$11,#REF!,2,0),IF($C$13<>"COMPLETO",IF($B23="HIJO/A",VLOOKUP($C23,#REF!,MATCH(D$19,#REF!,0),0),VLOOKUP($C23,#REF!,MATCH(D$19,#REF!,0),0))*1.18*1.03/VLOOKUP($C$11,#REF!,2,0))))),"-") ->  | E23: =IFERROR(IF(D23="","",E$16*(IF($C$13="COMPLETO",IF($B23="HIJO/A",VLOOKUP($C23,#REF!,MATCH(E$19,#REF!,0),0),VLOOKUP($C23,#REF!,MATCH(E$19,#REF!,0),0))*1.18*1.03/VLOOKUP($C$11,#REF!,2,0),IF($C$13<>"COMPLETO",IF($B23="HIJO/A",VLOOKUP($C23,#REF!,MATCH(E$19,#REF!,0),0),VLOOKUP($C23,#REF!,MATCH(E$19,#REF!,0),0))*1.18*1.03/VLOOKUP($C$11,#REF!,2,0))))),"-") ->  | F23: =IFERROR(IF(E23="","",F$16*(IF($C$13="COMPLETO",IF($B23="HIJO/A",VLOOKUP($C23,#REF!,MATCH(F$19,#REF!,0),0),VLOOKUP($C23,#REF!,MATCH(F$19,#REF!,0),0))*1.18*1.03/VLOOKUP($C$11,#REF!,2,0),IF($C$13<>"COMPLETO",IF($B23="HIJO/A",VLOOKUP($C23,#REF!,MATCH(F$19,#REF!,0),0),VLOOKUP($C23,#REF!,MATCH(F$19,#REF!,0),0))*1.18*1.03/VLOOKUP($C$11,#REF!,2,0))))),"-") ->  | G23: =IFERROR(IF(F23="","",G$16*(IF($C$13="COMPLETO",IF($B23="HIJO/A",VLOOKUP($C23,#REF!,MATCH(G$19,#REF!,0),0),VLOOKUP($C23,#REF!,MATCH(G$19,#REF!,0),0))*1.18*1.03/VLOOKUP($C$11,#REF!,2,0),IF($C$13<>"COMPLETO",IF($B23="HIJO/A",VLOOKUP($C23,#REF!,MATCH(G$19,#REF!,0),0),VLOOKUP($C23,#REF!,MATCH(G$19,#REF!,0),0))*1.18*1.03/VLOOKUP($C$11,#REF!,2,0))))),"-") ->  | H23: =IFERROR(IF(G23="","",H$16*(IF($C$13="COMPLETO",IF($B23="HIJO/A",VLOOKUP($C23,#REF!,MATCH(H$19,#REF!,0),0),VLOOKUP($C23,#REF!,MATCH(H$19,#REF!,0),0))*1.18*1.03/VLOOKUP($C$11,#REF!,2,0),IF($C$13<>"COMPLETO",IF($B23="HIJO/A",VLOOKUP($C23,#REF!,MATCH(H$19,#REF!,0),0),VLOOKUP($C23,#REF!,MATCH(H$19,#REF!,0),0))*1.18*1.03/VLOOKUP($C$11,#REF!,2,0))))),"-") ->  | I23: =IFERROR(IF(H23="","",I$16*(IF($C$13="COMPLETO",IF($B23="HIJO/A",VLOOKUP($C23,#REF!,MATCH(I$19,#REF!,0),0),VLOOKUP($C23,#REF!,MATCH(I$19,#REF!,0),0))*1.18*1.03/VLOOKUP($C$11,#REF!,2,0),IF($C$13<>"COMPLETO",IF($B23="HIJO/A",VLOOKUP($C23,#REF!,MATCH(I$19,#REF!,0),0),VLOOKUP($C23,#REF!,MATCH(I$19,#REF!,0),0))*1.18*1.03/VLOOKUP($C$11,#REF!,2,0))))),"-") ->  | J23: =IFERROR(IF(I23="","",J$16*(IF($C$13="COMPLETO",IF($B23="HIJO/A",VLOOKUP($C23,#REF!,MATCH(J$19,#REF!,0),0),VLOOKUP($C23,#REF!,MATCH(J$19,#REF!,0),0))*1.18*1.03/VLOOKUP($C$11,#REF!,2,0),IF($C$13<>"COMPLETO",IF($B23="HIJO/A",VLOOKUP($C23,#REF!,MATCH(J$19,#REF!,0),0),VLOOKUP($C23,#REF!,MATCH(J$19,#REF!,0),0))*1.18*1.03/VLOOKUP($C$11,#REF!,2,0))))),"-") -> 
B24: HIJO/A | D24: =IFERROR(IF(C24="","",D$16*(IF($C$13="COMPLETO",IF($B24="HIJO/A",VLOOKUP($C24,#REF!,MATCH(D$19,#REF!,0),0),VLOOKUP($C24,#REF!,MATCH(D$19,#REF!,0),0))*1.18*1.03/VLOOKUP($C$11,#REF!,2,0),IF($C$13<>"COMPLETO",IF($B24="HIJO/A",VLOOKUP($C24,#REF!,MATCH(D$19,#REF!,0),0),VLOOKUP($C24,#REF!,MATCH(D$19,#REF!,0),0))*1.18*1.03/VLOOKUP($C$11,#REF!,2,0))))),"-") ->  | E24: =IFERROR(IF(D24="","",E$16*(IF($C$13="COMPLETO",IF($B24="HIJO/A",VLOOKUP($C24,#REF!,MATCH(E$19,#REF!,0),0),VLOOKUP($C24,#REF!,MATCH(E$19,#REF!,0),0))*1.18*1.03/VLOOKUP($C$11,#REF!,2,0),IF($C$13<>"COMPLETO",IF($B24="HIJO/A",VLOOKUP($C24,#REF!,MATCH(E$19,#REF!,0),0),VLOOKUP($C24,#REF!,MATCH(E$19,#REF!,0),0))*1.18*1.03/VLOOKUP($C$11,#REF!,2,0))))),"-") ->  | F24: =IFERROR(IF(E24="","",F$16*(IF($C$13="COMPLETO",IF($B24="HIJO/A",VLOOKUP($C24,#REF!,MATCH(F$19,#REF!,0),0),VLOOKUP($C24,#REF!,MATCH(F$19,#REF!,0),0))*1.18*1.03/VLOOKUP($C$11,#REF!,2,0),IF($C$13<>"COMPLETO",IF($B24="HIJO/A",VLOOKUP($C24,#REF!,MATCH(F$19,#REF!,0),0),VLOOKUP($C24,#REF!,MATCH(F$19,#REF!,0),0))*1.18*1.03/VLOOKUP($C$11,#REF!,2,0))))),"-") ->  | G24: =IFERROR(IF(F24="","",G$16*(IF($C$13="COMPLETO",IF($B24="HIJO/A",VLOOKUP($C24,#REF!,MATCH(G$19,#REF!,0),0),VLOOKUP($C24,#REF!,MATCH(G$19,#REF!,0),0))*1.18*1.03/VLOOKUP($C$11,#REF!,2,0),IF($C$13<>"COMPLETO",IF($B24="HIJO/A",VLOOKUP($C24,#REF!,MATCH(G$19,#REF!,0),0),VLOOKUP($C24,#REF!,MATCH(G$19,#REF!,0),0))*1.18*1.03/VLOOKUP($C$11,#REF!,2,0))))),"-") ->  | H24: =IFERROR(IF(G24="","",H$16*(IF($C$13="COMPLETO",IF($B24="HIJO/A",VLOOKUP($C24,#REF!,MATCH(H$19,#REF!,0),0),VLOOKUP($C24,#REF!,MATCH(H$19,#REF!,0),0))*1.18*1.03/VLOOKUP($C$11,#REF!,2,0),IF($C$13<>"COMPLETO",IF($B24="HIJO/A",VLOOKUP($C24,#REF!,MATCH(H$19,#REF!,0),0),VLOOKUP($C24,#REF!,MATCH(H$19,#REF!,0),0))*1.18*1.03/VLOOKUP($C$11,#REF!,2,0))))),"-") ->  | I24: =IFERROR(IF(H24="","",I$16*(IF($C$13="COMPLETO",IF($B24="HIJO/A",VLOOKUP($C24,#REF!,MATCH(I$19,#REF!,0),0),VLOOKUP($C24,#REF!,MATCH(I$19,#REF!,0),0))*1.18*1.03/VLOOKUP($C$11,#REF!,2,0),IF($C$13<>"COMPLETO",IF($B24="HIJO/A",VLOOKUP($C24,#REF!,MATCH(I$19,#REF!,0),0),VLOOKUP($C24,#REF!,MATCH(I$19,#REF!,0),0))*1.18*1.03/VLOOKUP($C$11,#REF!,2,0))))),"-") ->  | J24: =IFERROR(IF(I24="","",J$16*(IF($C$13="COMPLETO",IF($B24="HIJO/A",VLOOKUP($C24,#REF!,MATCH(J$19,#REF!,0),0),VLOOKUP($C24,#REF!,MATCH(J$19,#REF!,0),0))*1.18*1.03/VLOOKUP($C$11,#REF!,2,0),IF($C$13<>"COMPLETO",IF($B24="HIJO/A",VLOOKUP($C24,#REF!,MATCH(J$19,#REF!,0),0),VLOOKUP($C24,#REF!,MATCH(J$19,#REF!,0),0))*1.18*1.03/VLOOKUP($C$11,#REF!,2,0))))),"-") -> 
B25: HIJO/A | D25: =IFERROR(IF(C25="","",D$16*(IF($C$13="COMPLETO",IF($B25="HIJO/A",VLOOKUP($C25,#REF!,MATCH(D$19,#REF!,0),0),VLOOKUP($C25,#REF!,MATCH(D$19,#REF!,0),0))*1.18*1.03/VLOOKUP($C$11,#REF!,2,0),IF($C$13<>"COMPLETO",IF($B25="HIJO/A",VLOOKUP($C25,#REF!,MATCH(D$19,#REF!,0),0),VLOOKUP($C25,#REF!,MATCH(D$19,#REF!,0),0))*1.18*1.03/VLOOKUP($C$11,#REF!,2,0))))),"-") ->  | E25: =IFERROR(IF(D25="","",E$16*(IF($C$13="COMPLETO",IF($B25="HIJO/A",VLOOKUP($C25,#REF!,MATCH(E$19,#REF!,0),0),VLOOKUP($C25,#REF!,MATCH(E$19,#REF!,0),0))*1.18*1.03/VLOOKUP($C$11,#REF!,2,0),IF($C$13<>"COMPLETO",IF($B25="HIJO/A",VLOOKUP($C25,#REF!,MATCH(E$19,#REF!,0),0),VLOOKUP($C25,#REF!,MATCH(E$19,#REF!,0),0))*1.18*1.03/VLOOKUP($C$11,#REF!,2,0))))),"-") ->  | F25: =IFERROR(IF(E25="","",F$16*(IF($C$13="COMPLETO",IF($B25="HIJO/A",VLOOKUP($C25,#REF!,MATCH(F$19,#REF!,0),0),VLOOKUP($C25,#REF!,MATCH(F$19,#REF!,0),0))*1.18*1.03/VLOOKUP($C$11,#REF!,2,0),IF($C$13<>"COMPLETO",IF($B25="HIJO/A",VLOOKUP($C25,#REF!,MATCH(F$19,#REF!,0),0),VLOOKUP($C25,#REF!,MATCH(F$19,#REF!,0),0))*1.18*1.03/VLOOKUP($C$11,#REF!,2,0))))),"-") ->  | G25: =IFERROR(IF(F25="","",G$16*(IF($C$13="COMPLETO",IF($B25="HIJO/A",VLOOKUP($C25,#REF!,MATCH(G$19,#REF!,0),0),VLOOKUP($C25,#REF!,MATCH(G$19,#REF!,0),0))*1.18*1.03/VLOOKUP($C$11,#REF!,2,0),IF($C$13<>"COMPLETO",IF($B25="HIJO/A",VLOOKUP($C25,#REF!,MATCH(G$19,#REF!,0),0),VLOOKUP($C25,#REF!,MATCH(G$19,#REF!,0),0))*1.18*1.03/VLOOKUP($C$11,#REF!,2,0))))),"-") ->  | H25: =IFERROR(IF(G25="","",H$16*(IF($C$13="COMPLETO",IF($B25="HIJO/A",VLOOKUP($C25,#REF!,MATCH(H$19,#REF!,0),0),VLOOKUP($C25,#REF!,MATCH(H$19,#REF!,0),0))*1.18*1.03/VLOOKUP($C$11,#REF!,2,0),IF($C$13<>"COMPLETO",IF($B25="HIJO/A",VLOOKUP($C25,#REF!,MATCH(H$19,#REF!,0),0),VLOOKUP($C25,#REF!,MATCH(H$19,#REF!,0),0))*1.18*1.03/VLOOKUP($C$11,#REF!,2,0))))),"-") ->  | I25: =IFERROR(IF(H25="","",I$16*(IF($C$13="COMPLETO",IF($B25="HIJO/A",VLOOKUP($C25,#REF!,MATCH(I$19,#REF!,0),0),VLOOKUP($C25,#REF!,MATCH(I$19,#REF!,0),0))*1.18*1.03/VLOOKUP($C$11,#REF!,2,0),IF($C$13<>"COMPLETO",IF($B25="HIJO/A",VLOOKUP($C25,#REF!,MATCH(I$19,#REF!,0),0),VLOOKUP($C25,#REF!,MATCH(I$19,#REF!,0),0))*1.18*1.03/VLOOKUP($C$11,#REF!,2,0))))),"-") ->  | J25: =IFERROR(IF(I25="","",J$16*(IF($C$13="COMPLETO",IF($B25="HIJO/A",VLOOKUP($C25,#REF!,MATCH(J$19,#REF!,0),0),VLOOKUP($C25,#REF!,MATCH(J$19,#REF!,0),0))*1.18*1.03/VLOOKUP($C$11,#REF!,2,0),IF($C$13<>"COMPLETO",IF($B25="HIJO/A",VLOOKUP($C25,#REF!,MATCH(J$19,#REF!,0),0),VLOOKUP($C25,#REF!,MATCH(J$19,#REF!,0),0))*1.18*1.03/VLOOKUP($C$11,#REF!,2,0))))),"-") -> 
B26: HIJO/A | D26: =IFERROR(IF(C26="","",D$16*(IF($C$13="COMPLETO",IF($B26="HIJO/A",VLOOKUP($C26,#REF!,MATCH(D$19,#REF!,0),0),VLOOKUP($C26,#REF!,MATCH(D$19,#REF!,0),0))*1.18*1.03/VLOOKUP($C$11,#REF!,2,0),IF($C$13<>"COMPLETO",IF($B26="HIJO/A",VLOOKUP($C26,#REF!,MATCH(D$19,#REF!,0),0),VLOOKUP($C26,#REF!,MATCH(D$19,#REF!,0),0))*1.18*1.03/VLOOKUP($C$11,#REF!,2,0))))),"-") ->  | E26: =IFERROR(IF(D26="","",E$16*(IF($C$13="COMPLETO",IF($B26="HIJO/A",VLOOKUP($C26,#REF!,MATCH(E$19,#REF!,0),0),VLOOKUP($C26,#REF!,MATCH(E$19,#REF!,0),0))*1.18*1.03/VLOOKUP($C$11,#REF!,2,0),IF($C$13<>"COMPLETO",IF($B26="HIJO/A",VLOOKUP($C26,#REF!,MATCH(E$19,#REF!,0),0),VLOOKUP($C26,#REF!,MATCH(E$19,#REF!,0),0))*1.18*1.03/VLOOKUP($C$11,#REF!,2,0))))),"-") ->  | F26: =IFERROR(IF(E26="","",F$16*(IF($C$13="COMPLETO",IF($B26="HIJO/A",VLOOKUP($C26,#REF!,MATCH(F$19,#REF!,0),0),VLOOKUP($C26,#REF!,MATCH(F$19,#REF!,0),0))*1.18*1.03/VLOOKUP($C$11,#REF!,2,0),IF($C$13<>"COMPLETO",IF($B26="HIJO/A",VLOOKUP($C26,#REF!,MATCH(F$19,#REF!,0),0),VLOOKUP($C26,#REF!,MATCH(F$19,#REF!,0),0))*1.18*1.03/VLOOKUP($C$11,#REF!,2,0))))),"-") ->  | G26: =IFERROR(IF(F26="","",G$16*(IF($C$13="COMPLETO",IF($B26="HIJO/A",VLOOKUP($C26,#REF!,MATCH(G$19,#REF!,0),0),VLOOKUP($C26,#REF!,MATCH(G$19,#REF!,0),0))*1.18*1.03/VLOOKUP($C$11,#REF!,2,0),IF($C$13<>"COMPLETO",IF($B26="HIJO/A",VLOOKUP($C26,#REF!,MATCH(G$19,#REF!,0),0),VLOOKUP($C26,#REF!,MATCH(G$19,#REF!,0),0))*1.18*1.03/VLOOKUP($C$11,#REF!,2,0))))),"-") ->  | H26: =IFERROR(IF(G26="","",H$16*(IF($C$13="COMPLETO",IF($B26="HIJO/A",VLOOKUP($C26,#REF!,MATCH(H$19,#REF!,0),0),VLOOKUP($C26,#REF!,MATCH(H$19,#REF!,0),0))*1.18*1.03/VLOOKUP($C$11,#REF!,2,0),IF($C$13<>"COMPLETO",IF($B26="HIJO/A",VLOOKUP($C26,#REF!,MATCH(H$19,#REF!,0),0),VLOOKUP($C26,#REF!,MATCH(H$19,#REF!,0),0))*1.18*1.03/VLOOKUP($C$11,#REF!,2,0))))),"-") ->  | I26: =IFERROR(IF(H26="","",I$16*(IF($C$13="COMPLETO",IF($B26="HIJO/A",VLOOKUP($C26,#REF!,MATCH(I$19,#REF!,0),0),VLOOKUP($C26,#REF!,MATCH(I$19,#REF!,0),0))*1.18*1.03/VLOOKUP($C$11,#REF!,2,0),IF($C$13<>"COMPLETO",IF($B26="HIJO/A",VLOOKUP($C26,#REF!,MATCH(I$19,#REF!,0),0),VLOOKUP($C26,#REF!,MATCH(I$19,#REF!,0),0))*1.18*1.03/VLOOKUP($C$11,#REF!,2,0))))),"-") ->  | J26: =IFERROR(IF(I26="","",J$16*(IF($C$13="COMPLETO",IF($B26="HIJO/A",VLOOKUP($C26,#REF!,MATCH(J$19,#REF!,0),0),VLOOKUP($C26,#REF!,MATCH(J$19,#REF!,0),0))*1.18*1.03/VLOOKUP($C$11,#REF!,2,0),IF($C$13<>"COMPLETO",IF($B26="HIJO/A",VLOOKUP($C26,#REF!,MATCH(J$19,#REF!,0),0),VLOOKUP($C26,#REF!,MATCH(J$19,#REF!,0),0))*1.18*1.03/VLOOKUP($C$11,#REF!,2,0))))),"-") -> 
B27: HIJO/A | D27: =IFERROR(IF(C27="","",D$16*(IF($C$13="COMPLETO",IF($B27="HIJO/A",VLOOKUP($C27,#REF!,MATCH(D$19,#REF!,0),0),VLOOKUP($C27,#REF!,MATCH(D$19,#REF!,0),0))*1.18*1.03/VLOOKUP($C$11,#REF!,2,0),IF($C$13<>"COMPLETO",IF($B27="HIJO/A",VLOOKUP($C27,#REF!,MATCH(D$19,#REF!,0),0),VLOOKUP($C27,#REF!,MATCH(D$19,#REF!,0),0))*1.18*1.03/VLOOKUP($C$11,#REF!,2,0))))),"-") ->  | E27: =IFERROR(IF(D27="","",E$16*(IF($C$13="COMPLETO",IF($B27="HIJO/A",VLOOKUP($C27,#REF!,MATCH(E$19,#REF!,0),0),VLOOKUP($C27,#REF!,MATCH(E$19,#REF!,0),0))*1.18*1.03/VLOOKUP($C$11,#REF!,2,0),IF($C$13<>"COMPLETO",IF($B27="HIJO/A",VLOOKUP($C27,#REF!,MATCH(E$19,#REF!,0),0),VLOOKUP($C27,#REF!,MATCH(E$19,#REF!,0),0))*1.18*1.03/VLOOKUP($C$11,#REF!,2,0))))),"-") ->  | F27: =IFERROR(IF(E27="","",F$16*(IF($C$13="COMPLETO",IF($B27="HIJO/A",VLOOKUP($C27,#REF!,MATCH(F$19,#REF!,0),0),VLOOKUP($C27,#REF!,MATCH(F$19,#REF!,0),0))*1.18*1.03/VLOOKUP($C$11,#REF!,2,0),IF($C$13<>"COMPLETO",IF($B27="HIJO/A",VLOOKUP($C27,#REF!,MATCH(F$19,#REF!,0),0),VLOOKUP($C27,#REF!,MATCH(F$19,#REF!,0),0))*1.18*1.03/VLOOKUP($C$11,#REF!,2,0))))),"-") ->  | G27: =IFERROR(IF(F27="","",G$16*(IF($C$13="COMPLETO",IF($B27="HIJO/A",VLOOKUP($C27,#REF!,MATCH(G$19,#REF!,0),0),VLOOKUP($C27,#REF!,MATCH(G$19,#REF!,0),0))*1.18*1.03/VLOOKUP($C$11,#REF!,2,0),IF($C$13<>"COMPLETO",IF($B27="HIJO/A",VLOOKUP($C27,#REF!,MATCH(G$19,#REF!,0),0),VLOOKUP($C27,#REF!,MATCH(G$19,#REF!,0),0))*1.18*1.03/VLOOKUP($C$11,#REF!,2,0))))),"-") ->  | H27: =IFERROR(IF(G27="","",H$16*(IF($C$13="COMPLETO",IF($B27="HIJO/A",VLOOKUP($C27,#REF!,MATCH(H$19,#REF!,0),0),VLOOKUP($C27,#REF!,MATCH(H$19,#REF!,0),0))*1.18*1.03/VLOOKUP($C$11,#REF!,2,0),IF($C$13<>"COMPLETO",IF($B27="HIJO/A",VLOOKUP($C27,#REF!,MATCH(H$19,#REF!,0),0),VLOOKUP($C27,#REF!,MATCH(H$19,#REF!,0),0))*1.18*1.03/VLOOKUP($C$11,#REF!,2,0))))),"-") ->  | I27: =IFERROR(IF(H27="","",I$16*(IF($C$13="COMPLETO",IF($B27="HIJO/A",VLOOKUP($C27,#REF!,MATCH(I$19,#REF!,0),0),VLOOKUP($C27,#REF!,MATCH(I$19,#REF!,0),0))*1.18*1.03/VLOOKUP($C$11,#REF!,2,0),IF($C$13<>"COMPLETO",IF($B27="HIJO/A",VLOOKUP($C27,#REF!,MATCH(I$19,#REF!,0),0),VLOOKUP($C27,#REF!,MATCH(I$19,#REF!,0),0))*1.18*1.03/VLOOKUP($C$11,#REF!,2,0))))),"-") ->  | J27: =IFERROR(IF(I27="","",J$16*(IF($C$13="COMPLETO",IF($B27="HIJO/A",VLOOKUP($C27,#REF!,MATCH(J$19,#REF!,0),0),VLOOKUP($C27,#REF!,MATCH(J$19,#REF!,0),0))*1.18*1.03/VLOOKUP($C$11,#REF!,2,0),IF($C$13<>"COMPLETO",IF($B27="HIJO/A",VLOOKUP($C27,#REF!,MATCH(J$19,#REF!,0),0),VLOOKUP($C27,#REF!,MATCH(J$19,#REF!,0),0))*1.18*1.03/VLOOKUP($C$11,#REF!,2,0))))),"-") -> 
B28: HIJO/A | D28: =IFERROR(IF(C28="","",D$16*(IF($C$13="COMPLETO",IF($B28="HIJO/A",VLOOKUP($C28,#REF!,MATCH(D$19,#REF!,0),0),VLOOKUP($C28,#REF!,MATCH(D$19,#REF!,0),0))*1.18*1.03/VLOOKUP($C$11,#REF!,2,0),IF($C$13<>"COMPLETO",IF($B28="HIJO/A",VLOOKUP($C28,#REF!,MATCH(D$19,#REF!,0),0),VLOOKUP($C28,#REF!,MATCH(D$19,#REF!,0),0))*1.18*1.03/VLOOKUP($C$11,#REF!,2,0))))),"-") ->  | E28: =IFERROR(IF(D28="","",E$16*(IF($C$13="COMPLETO",IF($B28="HIJO/A",VLOOKUP($C28,#REF!,MATCH(E$19,#REF!,0),0),VLOOKUP($C28,#REF!,MATCH(E$19,#REF!,0),0))*1.18*1.03/VLOOKUP($C$11,#REF!,2,0),IF($C$13<>"COMPLETO",IF($B28="HIJO/A",VLOOKUP($C28,#REF!,MATCH(E$19,#REF!,0),0),VLOOKUP($C28,#REF!,MATCH(E$19,#REF!,0),0))*1.18*1.03/VLOOKUP($C$11,#REF!,2,0))))),"-") ->  | F28: =IFERROR(IF(E28="","",F$16*(IF($C$13="COMPLETO",IF($B28="HIJO/A",VLOOKUP($C28,#REF!,MATCH(F$19,#REF!,0),0),VLOOKUP($C28,#REF!,MATCH(F$19,#REF!,0),0))*1.18*1.03/VLOOKUP($C$11,#REF!,2,0),IF($C$13<>"COMPLETO",IF($B28="HIJO/A",VLOOKUP($C28,#REF!,MATCH(F$19,#REF!,0),0),VLOOKUP($C28,#REF!,MATCH(F$19,#REF!,0),0))*1.18*1.03/VLOOKUP($C$11,#REF!,2,0))))),"-") ->  | G28: =IFERROR(IF(F28="","",G$16*(IF($C$13="COMPLETO",IF($B28="HIJO/A",VLOOKUP($C28,#REF!,MATCH(G$19,#REF!,0),0),VLOOKUP($C28,#REF!,MATCH(G$19,#REF!,0),0))*1.18*1.03/VLOOKUP($C$11,#REF!,2,0),IF($C$13<>"COMPLETO",IF($B28="HIJO/A",VLOOKUP($C28,#REF!,MATCH(G$19,#REF!,0),0),VLOOKUP($C28,#REF!,MATCH(G$19,#REF!,0),0))*1.18*1.03/VLOOKUP($C$11,#REF!,2,0))))),"-") ->  | H28: =IFERROR(IF(G28="","",H$16*(IF($C$13="COMPLETO",IF($B28="HIJO/A",VLOOKUP($C28,#REF!,MATCH(H$19,#REF!,0),0),VLOOKUP($C28,#REF!,MATCH(H$19,#REF!,0),0))*1.18*1.03/VLOOKUP($C$11,#REF!,2,0),IF($C$13<>"COMPLETO",IF($B28="HIJO/A",VLOOKUP($C28,#REF!,MATCH(H$19,#REF!,0),0),VLOOKUP($C28,#REF!,MATCH(H$19,#REF!,0),0))*1.18*1.03/VLOOKUP($C$11,#REF!,2,0))))),"-") ->  | I28: =IFERROR(IF(H28="","",I$16*(IF($C$13="COMPLETO",IF($B28="HIJO/A",VLOOKUP($C28,#REF!,MATCH(I$19,#REF!,0),0),VLOOKUP($C28,#REF!,MATCH(I$19,#REF!,0),0))*1.18*1.03/VLOOKUP($C$11,#REF!,2,0),IF($C$13<>"COMPLETO",IF($B28="HIJO/A",VLOOKUP($C28,#REF!,MATCH(I$19,#REF!,0),0),VLOOKUP($C28,#REF!,MATCH(I$19,#REF!,0),0))*1.18*1.03/VLOOKUP($C$11,#REF!,2,0))))),"-") ->  | J28: =IFERROR(IF(I28="","",J$16*(IF($C$13="COMPLETO",IF($B28="HIJO/A",VLOOKUP($C28,#REF!,MATCH(J$19,#REF!,0),0),VLOOKUP($C28,#REF!,MATCH(J$19,#REF!,0),0))*1.18*1.03/VLOOKUP($C$11,#REF!,2,0),IF($C$13<>"COMPLETO",IF($B28="HIJO/A",VLOOKUP($C28,#REF!,MATCH(J$19,#REF!,0),0),VLOOKUP($C28,#REF!,MATCH(J$19,#REF!,0),0))*1.18*1.03/VLOOKUP($C$11,#REF!,2,0))))),"-") -> 
C29: SUBTOTAL (INCLUYE IGV) | D29: =SUM(D21:D28) -> 0 | E29: 0 | F29: 0 | G29: 0 | H29: 0 | I29: 0 | J29: 0
C30: % DE DSCTO A APLICAR | D30: =+$C$14 -> 0.2 | E30: =+$C$14 -> 0.2 | F30: 0.2 | G30: 0.2 | H30: 0.2 | I30: 0.2 | J30: 0.2
C31: Intereses | H31: 0 | I31: 0 | J31: 0
C32: =+IF(C11="AL CONTADO","TOTAL",IF(C11=#REF!,"4 CUOTAS DE",IF(OR(C11=#REF!,C11=#REF!,C11=#REF!),"6 CUOTAS DE",IF(OR(C11=#REF!,C11=#REF!,C11=#REF!),"10 CUOTAS DE",IF(OR(C11=#REF!,C11=#REF!,C11=#REF!),"12 CUOTAS DE"))))) -> TOTAL | D32: =D29*(1-D30) -> 0 | E32: =E29*(1-E30) -> 0 | F32: 0 | G32: 0 | H32: 0 | I32: 0 | J32: 0
D34: Cód. SBS: AE0446420001 | E34: Cód. SBS: AE0446420002 | F34: Cód. SBS: AE0446410003 | G34: Cód. SBS: AE0446410003 | H34: Cód. SBS: AE0446410003 | I34: Cód. SBS: AE200400242 | J34: Cód. SBS: AE200400242
H35: NO APLICA INTERESES CON DA.
H36: PARA CUPONES LOS INETERESES SON 17.5
B40: Cobertura máxima anual por persona | D40: $ 4'000,000 | E40: S/ 9'600,000 | F40: S/ 5'000,000 | G40: S/ 3'200,000 | H40: S/ 2'000,000 | I40: S/ 2'000,000 | J40: S/ 1'000,000
B41: Edad máxima de ingreso | D41: 65 años inclusive. | E41: 65 años inclusive. | F41: 65 años inclusive. | G41: 65 años inclusive. | H41: 60 años inclusive. | I41: 60 años inclusive. | J41: 60 años inclusive.
B42: Ámbito de cobertura | D42: Lima y provincias. | E42: Lima y provincias. | F42: Lima y provincias. | G42: Lima y provincias. | H42: Lima. | I42: Lima. | J42: Lima y provincias.
B43: Cantidad de redes | D43: 8 | E43: 8 | F43: 8 | G43: 4 | H43: 4 | I43: 3 | J43: 3
B44: Chequeo Preventivo cubierto al 100% | D44: Sí. A reembolso hasta S/ 500 | E44: Sí. A reembolso hasta S/ 500 | F44: Sí. | G44: Sí. | H44: Sí. | I44: Sí. | J44: Sí.
B45: Emergencia accidental ambulatoria (dentro de las primeras 24 horas, no aplica para cirugía ambulatoria) | D45: Al 100%. | E45: Al 100%. | F45: Al 100%. | G45: Al 100%. | H45: Al 100%. | I45: Al 100%. | J45: Al 100%.
B46: Emergencia médica | D46: Al 100%. | E46: Según condiciones ambulatorias | F46: Según condiciones ambulatorias | G46: Según condiciones ambulatorias | H46: Según condiciones ambulatorias | I46: Según condiciones ambulatorias | J46: Según condiciones ambulatorias
B47: Médicos a Domicilio | D47: En Lima: S/ 55 al 100% En provincia: S/ 40 al 100% | E47: En Lima: S/ 55 al 100% En provincia: S/ 40 al 100% | F47: En Lima: S/ 55 al 100% En provincia: S/ 40 al 100% | G47: En Lima: S/ 55 al 100% En provincia: S/ 40 al 100% | H47: En Lima: S/ 40 al 100% | I47: En Lima: S/ 40 al 100% | J47: Lima: S/ 50 al 100% En provincia: S/ 50 al 100% (Trujillo, Arequipa, Piura)
B48: Programa Siempre Sano: Asma bronquial, hipertensión arterial, dislipidemia, diabetes mellitus tipo 2 (previa evaluación en Lima, Piura, Trujillo, Cajamarca y Arequipa) | D48: Al 100%. | E48: Al 100%. | F48: Al 100%. | G48: Al 100%. | H48: - | I48: - | J48: -
B49: Asistencia al viajero en el extranjero: ASSIST CARD (emergencias médicas o accidentales en el extranjero, traslados médicos, entre otros) | D49: Al 100% Hasta US$ 100,000 para todo el mundo. | E49: Al 100%. Hasta $ 50,000 en países no Schengen. Hasta € 30,000 en países Schengen. | F49: Al 100%. Hasta $ 15,000 en países no Schengen. Hasta € 30,000 en países Schengen. | G49: - | H49: - | I49: - | J49: -
B50: Cobertura oncológica | D50: Al 100%. | E50: Al 100%. | F50: Al 100%.
B51: Programa de maternidad | D51: Al 100%. | E51: Al 100%. | F51: Al 100%. | G51: Al 100%. | H51: Al 100% hasta S/4,500 | I51: Al 100% hasta S/5,000 | J51: Indemnización por parto S/4000
B52: Reembolso | D52: Si | E52: Si | F52: - | G52: - | H52: - | I52: - | J52: -

Sheet mix (hidden)
A1: CUOTAS | B1: INTERESES
A2: AL CONTADO | B2: NO APLICAN
A3: 4 CUOTAS | B3: SIN INTERESES
A4: 6 CUOTAS | B4: SIN INTERESES - DÉBITO AUTOMÁTICO
A5: 6 CUOTAS | B5: TCEA 4% - DÉBITO AUTOMÁTICO
A6: 6 CUOTAS | B6: TCEA 17.5% - CUPONES
A7: 10 CUOTAS | B7: SIN INTERESES - DÉBITO AUTOMÁTICO
A8: 10 CUOTAS | B8: TCEA 4% - DÉBITO AUTOMÁTICO
A9: 10 CUOTAS | B9: TCEA 17.5% - CUPONES
A10: 12 CUOTAS | B10: SIN INTERESES - DÉBITO AUTOMÁTICO
A11: 12 CUOTAS | B11: TCEA 4% - DÉBITO AUTOMÁTICO
A12: 12 CUOTAS | B12: TCEA 17.5% - CUPONES

Sheet Datos Integrales (hidden)
A1: ID | B1: PARENTESCO | C1: EDAD | D1: =+COUNTIF(INDIRECT("B2:B9"),"Titular") -> 0 | E1: =+COUNTIF(INDIRECT("B2:B9"),"Cónyuge/Conviviente") -> 0 | F1: =+COUNTIF(INDIRECT("C2:C9"),"") -> 8 | G1: =+(F1-8)*-1 -> 0 | I1: =+MAX(INDIRECT("A2:A1048575")) -> 0

Sheet Cuotas (hidden)
A1: CUOTAS
A2: AL CONTADO
A3: 4 CUOTAS
A4: 6 CUOTAS
A5: 10 CUOTAS
A6: 12 CUOTAS

Sheet Plan (hidden)
A1: PLAN
A2: COMPLETO
A3: RESGUARDO
A4: MINT DEDUCIBLE 10K
A5: MINT DEDUCIBLE 20K

Sheet Hoja1 (hidden)
A1: Primero seleccionar cuotas
A2: Primero seleccionar cuotas
B8: Cotizaciones sujetas a condiciones de campaña y variaciones. Vigente desde el 1 de marzo 2024 hasta el XXXXXXXX (365 días). Aplica para las pólizas con fecha de ingreso a partir del 01/03/2024
B10: Titular
B11: Cónyuge/Conviviente
B12: Hijo(a)
G13: maybe

Sheet Descuentos (hidden)
A1: 0%
A2: 10%
A3: 15%
A4: 20%
A5: 25%
A6: 30%
A7: 35%

Sheet MINT (hidden)
B6: Cotización
B8: Seguro MINT | Seguros de Salud
B9: COD.SBS.AE0446420001
A13: Datos de la cotización
B15: Fecha: | C15: =+NOW() -> 2024-07-04T18:34:50.610 | D15: hrs. | E15: Plan: | H15: MINT
B16: Nombre del Contratante: | D16: Piero Clemente | E16: Deducible anual (1): | H16: =+ROUND(VALUE((_xlfn.IFS(INTEGRALES!D17=0.6,"0",INTEGRALES!D17=0.5,"10000",INTEGRALES!D17=0.4,"20000",TRUE,0))),0) -> 0
A17: Prima total anual:
B19: Prima total: | F19: =+INDIRECT("INTEGRALES!D30")*VLOOKUP(CONCATENATE(INDIRECT("INTEGRALES!C11")," ",INDIRECT("INTEGRALES!C12")),INDIRECT("'Cambios data'!$A$40:$B$51"),2,0) -> 
B20: IGV 18%: | F20: =+(F19/(1.18))*0.18 -> 
E22: DESCUENTO DE: | I22: =+IF(OR(INDIRECT("INTEGRALES!D31")=0,INDIRECT("INTEGRALES!D31")=""),"0%",INDIRECT("INTEGRALES!D31")) -> 0%
B24: Prima total con descuento (inc. IGV): | F24: =+INDIRECT("INTEGRALES!D30")*VLOOKUP(CONCATENATE(INDIRECT("INTEGRALES!C11")," ",INDIRECT("INTEGRALES!C12")),INDIRECT("'Cambios data'!$A$40:$B$51"),2,0)*(1-INDIRECT("INTEGRALES!D31")) -> 
B25: IGV total: | F25: =+(F24/1.18)*0.18 -> 
A30: Financiamiento elegido:
B32: =+IF(INDIRECT("INTEGRALES!C32")="TOTAL"," 1 Cuota de"," "&LOWER(INDIRECT("INTEGRALES!C32")))&"*"&":" -> de*: | F32: =+INDIRECT("INTEGRALES!D32") -> 0
A39: =+IF(B32<>"AL CONTADO"," *El pago de cuotas son consecutivas","") -> *El pago de cuotas son consecutivas
A57: Principales beneficios:
D59: Coberturas principales
B71: Beneficio máximo anual por asegurado | E71: $ 4,000,000
A76: ¿Necesitas mas información? / Datos de tu corredor:
B78: Nombre del Corredor: | D78: Pacifico Seguros | E78: Teléfono del Corredor: | H78: 999-999-999
A85: Importante
A110: PACIFICO COMPAÑÍA DE SEGUROS Y REASEGUROS S.A RUC N° 20332970411

Sheet MSLD2 (hidden)
B6: Cotización
B8: Seguro Multisalud Base | Seguros de Salud
B9: COD.SBS.AE0446410003
A13: Datos de la cotización
B15: Fecha: | C15: =+NOW() -> 2024-07-04T18:34:50.610 | D15: hrs. | E15: Plan: | H15: Multisalud Base
B16: Nombre del Contratante: | D16: Piero Clemente | E16: Deducible anual (1): | H16: 0
A17: Prima total anual:
B19: Prima total: | F19: =+INDIRECT("INTEGRALES!H30")*VLOOKUP(CONCATENATE(INDIRECT("INTEGRALES!C11")," ",INDIRECT("INTEGRALES!C12")),INDIRECT("'Cambios data'!$A$40:$B$51"),2,0) -> 
B20: IGV 18%: | F20: =+(F19/(1.18))*0.18 -> 
E22: DESCUENTO DE: | I22: =+IF(OR(INDIRECT("INTEGRALES!H31")=0,INDIRECT("INTEGRALES!H31")=""),"0%",INDIRECT("INTEGRALES!H31")) -> 0%
B24: Prima total con descuento (inc. IGV): | F24: =+INDIRECT("INTEGRALES!H30")*VLOOKUP(CONCATENATE(INDIRECT("INTEGRALES!C11")," ",INDIRECT("INTEGRALES!C12")),INDIRECT("'Cambios data'!$A$40:$B$51"),2,0)*(1-INDIRECT("INTEGRALES!H31")) -> 
B25: IGV total: | F25: =+(F24/1.18)*0.18 -> 
A30: Financiamiento elegido:
B32: =+IF(INDIRECT("INTEGRALES!C32")="TOTAL"," 1 Cuota de"," "&LOWER(INDIRECT("INTEGRALES!C32")))&"*"&":" -> de*: | F32: =+INDIRECT("INTEGRALES!H32") -> 0
A39: =+IF(B32<>"AL CONTADO"," *El pago de cuotas son consecutivas","") -> *El pago de cuotas son consecutivas
A57: Principales beneficios:
D59: Coberturas principales
B71: Beneficio máximo anual por asegurado | E71: 2000000
A76: ¿Necesitas mas información? / Datos de tu corredor:
B78: Nombre del Corredor: | D78: Ivan | E78: Teléfono del Corredor: | H78: 9999999999
A85: Importante
A110: PACIFICO COMPAÑÍA DE SEGUROS Y REASEGUROS S.A RUC N° 20332970411

Sheet AM152 (hidden)
B6: Cotización
B8: Seguro Salud Esencial Plus | Seguros de Salud
B9: COD.SBS.AE200400242
A13: Datos de la cotización
B15: Fecha: | C15: =+NOW() -> 2024-07-04T18:34:50.610 | D15: hrs. | E15: Plan: | H15: Salud Esencial Plus
B16: Nombre del Contratante: | D16: Alan Gabriel Ludwig García Pérez | E16: Deducible anual (1): | H16: 0
A17: Prima total anual:
B19: Prima total: | F19: =+INDIRECT("INTEGRALES!I30")*VLOOKUP(CONCATENATE(INDIRECT("INTEGRALES!C11")," ",INDIRECT("INTEGRALES!C12")),INDIRECT("'Cambios data'!$A$40:$B$51"),2,0) -> 
B20: IGV 18%: | F20: =+(F19/(1.18))*0.18 -> 
E22: DESCUENTO DE: | I22: =+IF(OR(INDIRECT("INTEGRALES!I31")=0,INDIRECT("INTEGRALES!I31")=""),"0%",INDIRECT("INTEGRALES!I31")) -> 0%
B24: Prima total con descuento (inc. IGV): | F24: =+INDIRECT("INTEGRALES!I30")*VLOOKUP(CONCATENATE(INDIRECT("INTEGRALES!C11")," ",INDIRECT("INTEGRALES!C12")),INDIRECT("'Cambios data'!$A$40:$B$51"),2,0)*(1-INDIRECT("INTEGRALES!I31")) -> 
B25: IGV total: | F25: =+(F24/1.18)*0.18 -> 
A30: Financiamiento elegido:
B32: =+IF(INDIRECT("INTEGRALES!C32")="TOTAL"," 1 Cuota de"," "&LOWER(INDIRECT("INTEGRALES!C32")))&"*"&":" -> de*: | F32: =+INDIRECT("INTEGRALES!I32") -> 0
A39: =+IF(B32<>"AL CONTADO"," *El pago de cuotas son consecutivas","") -> *El pago de cuotas son consecutivas
A57: Principales beneficios:
D59: Coberturas principales
B71: Beneficio máximo anual por asegurado | E71: 2000000
A76: ¿Necesitas mas información? / Datos de tu corredor:
B78: Nombre del Corredor: | D78: Becerra Brokers | E78: Teléfono del Corredor: | H78: 999999999
A85: Importante
A110: PACIFICO COMPAÑÍA DE SEGUROS Y REASEGUROS S.A RUC N° 20332970411

Sheet AM15 (hidden)
B6: Cotización
B8: Seguro Salud Esencial | Seguros de Salud
B9: COD.SBS.AE200400242
A13: Datos de la cotización
B15: Fecha: | C15: =+NOW() -> 2024-07-04T18:34:50.610 | D15: hrs. | E15: Plan: | H15: Salud Esencial
B16: Nombre del Contratante: | D16: Alan Gabriel Ludwig García Pérez | E16: Deducible anual (1): | H16: 0
A17: Prima total anual:
B19: Prima total: | F19: =+INDIRECT("INTEGRALES!J30")*VLOOKUP(CONCATENATE(INDIRECT("INTEGRALES!C11")," ",INDIRECT("INTEGRALES!C12")),INDIRECT("'Cambios data'!$A$40:$B$51"),2,0) -> 
B20: IGV 18%: | F20: =+(F19/(1.18))*0.18 -> 
E22: DESCUENTO DE: | I22: =+IF(OR(INDIRECT("INTEGRALES!J31")=0,INDIRECT("INTEGRALES!J31")=""),"0%",INDIRECT("INTEGRALES!J31")) -> 0%
B24: Prima total con descuento (inc. IGV): | F24: =+INDIRECT("INTEGRALES!J30")*VLOOKUP(CONCATENATE(INDIRECT("INTEGRALES!C11")," ",INDIRECT("INTEGRALES!C12")),INDIRECT("'Cambios data'!$A$40:$B$51"),2,0)*(1-INDIRECT("INTEGRALES!J31")) -> 
B25: IGV total: | F25: =+(F24/1.18)*0.18 -> 
A30: Financiamiento elegido:
B32: =+IF(INDIRECT("INTEGRALES!C32")="TOTAL"," 1 Cuota de"," "&LOWER(INDIRECT("INTEGRALES!C32")))&"*"&":" -> de*: | F32: =+INDIRECT("INTEGRALES!J32") -> 0
A39: =+IF(B32<>"AL CONTADO"," *El pago de cuotas son consecutivas","") -> *El pago de cuotas son consecutivas
A57: Principales beneficios:
D59: Coberturas principales
B71: Beneficio máximo anual por asegurado | E71: 1000000
A76: ¿Necesitas mas información? / Datos de tu corredor:
B78: Nombre del Corredor: | D78: Becerra Brokers | E78: Teléfono del Corredor: | H78: 999999999
A85: Importante
A110: PACIFICO COMPAÑÍA DE SEGUROS Y REASEGUROS S.A RUC N° 20332970411

Sheet ONCOLÓGICOS (hidden)
B11: CUOTAS | C11: AL CONTADO | D11: =+IFERROR(IF(OR(C11="AL CONTADO",C11="4 CUOTAS",C11="6 CUOTAS SIN INTERESES",C11="10 CUOTAS SIN INTERESES",C11="12 CUOTAS SIN INTERESES"),""," Afiliaciones al DA aplican intereses de 12%, cupones aplican intereses de 17.5%.")," ") -> 
B12: INTERESES | C12: NO APLICAN | D12: -> Seleccionar una opción
B13: DESCUENTO DE CAMPAÑA | C13: 0 | D13: -> HAZ CLICK AQUÍ PARA VER LAS CONDICIONES DE CAMPAÑAS ACTUALES
D14: -> ASÍ MISMO HAZ CLICK AQUÍ PARA DESCARGAR LA SOLICITUD DE SALUD
D18: TARIFARIO ACTUAL (VENTA NUEVA)
B19: ASEGURADO | C19: EDAD | D19: ONCOLÓGICO NACIONAL | E19: ONCOLÓGICO INTERNACIONAL
D20: Paga 100% de la prima. | E20: Paga 100% de la prima.
B21: TITULAR | C21: 20 | D21: =IFERROR(IF($C21="","",VLOOKUP($C21,#REF!,MATCH(D$19,#REF!,0),0)*1.18*1.03/VLOOKUP(CONCATENATE($C$11," ",$C$12),#REF!,2,0)),"-") -> - | E21: =IFERROR(IF($C21="","",VLOOKUP($C21,#REF!,MATCH(E$19,#REF!,0),0)*1.18*1.03/VLOOKUP(CONCATENATE($C$11," ",$C$12),#REF!,2,0)),"-") -> -
B22: CÓNYUGE/CONVIVIENTE | D22: =IFERROR(IF($C22="","",VLOOKUP($C22,#REF!,MATCH(D$19,#REF!,0),0)*1.18*1.03/VLOOKUP(CONCATENATE($C$11," ",$C$12),#REF!,2,0)),"-") ->  | E22: =IFERROR(IF($C22="","",VLOOKUP($C22,#REF!,MATCH(E$19,#REF!,0),0)*1.18*1.03/VLOOKUP(CONCATENATE($C$11," ",$C$12),#REF!,2,0)),"-") -> 
B23: HIJO/A | D23: =IFERROR(IF($C23="","",VLOOKUP($C23,#REF!,MATCH(D$19,#REF!,0),0)*1.18*1.03/VLOOKUP(CONCATENATE($C$11," ",$C$12),#REF!,2,0)),"-") ->  | E23: =IFERROR(IF($C23="","",VLOOKUP($C23,#REF!,MATCH(E$19,#REF!,0),0)*1.18*1.03/VLOOKUP(CONCATENATE($C$11," ",$C$12),#REF!,2,0)),"-") -> 
B24: HIJO/A | D24: =IFERROR(IF($C24="","",VLOOKUP($C24,#REF!,MATCH(D$19,#REF!,0),0)*1.18*1.03/VLOOKUP(CONCATENATE($C$11," ",$C$12),#REF!,2,0)),"-") ->  | E24: =IFERROR(IF($C24="","",VLOOKUP($C24,#REF!,MATCH(E$19,#REF!,0),0)*1.18*1.03/VLOOKUP(CONCATENATE($C$11," ",$C$12),#REF!,2,0)),"-") -> 
B25: HIJO/A | D25: =IFERROR(IF($C25="","",VLOOKUP($C25,#REF!,MATCH(D$19,#REF!,0),0)*1.18*1.03/VLOOKUP(CONCATENATE($C$11," ",$C$12),#REF!,2,0)),"-") ->  | E25: =IFERROR(IF($C25="","",VLOOKUP($C25,#REF!,MATCH(E$19,#REF!,0),0)*1.18*1.03/VLOOKUP(CONCATENATE($C$11," ",$C$12),#REF!,2,0)),"-") -> 
B26: HIJO/A | D26: =IFERROR(IF($C26="","",VLOOKUP($C26,#REF!,MATCH(D$19,#REF!,0),0)*1.18*1.03/VLOOKUP(CONCATENATE($C$11," ",$C$12),#REF!,2,0)),"-") ->  | E26: =IFERROR(IF($C26="","",VLOOKUP($C26,#REF!,MATCH(E$19,#REF!,0),0)*1.18*1.03/VLOOKUP(CONCATENATE($C$11," ",$C$12),#REF!,2,0)),"-") -> 
B27: HIJO/A | D27: =IFERROR(IF($C27="","",VLOOKUP($C27,#REF!,MATCH(D$19,#REF!,0),0)*1.18*1.03/VLOOKUP(CONCATENATE($C$11," ",$C$12),#REF!,2,0)),"-") ->  | E27: =IFERROR(IF($C27="","",VLOOKUP($C27,#REF!,MATCH(E$19,#REF!,0),0)*1.18*1.03/VLOOKUP(CONCATENATE($C$11," ",$C$12),#REF!,2,0)),"-") -> 
C28: SUBTOTAL CON IGV | D28: =SUM(D21:D27) -> 0 | E28: 0
C29: % DE DSCTO A APLICAR | D29: =+$C$13 -> 0 | E29: =+$C$13 -> 0
C30: =+IF(C11="AL CONTADO","TOTAL",C11&" DE") -> TOTAL | D30: =IFERROR(D28*(1-D29),"INGRESAR BIEN DATOS") -> 0 | E30: =IFERROR(E28*(1-E29),"INGRESAR BIEN DATOS") -> 0
D32: Cód. SBS: AE0446420006 | E32: Cód. SBS: AE0446420006
B39: HAZLE UN CLICK A LOS NOMBRES DE LOS PRODUCTOS PARA VER LOS FOLLETOS COMPLETOS DE CADA UNO
D42: ONCOLÓGICO NACIONAL | E42: ONCOLÓGICO INTERNACIONAL
B43: Cobertura máxima anual por persona | D43: S/ 3’000,000 | E43: US$ 1’125,000
B44: Edad máxima de ingreso | D44: 60 años inclusive | E44: 60 años inclusive
B45: Enfermedades cubiertas | D45: Cancer | E45: Cancer
B46: Período de carencia | D46: 90 días | E46: 90 días
B47: Período de espera | D47: 24 meses para transplante de médula ósea
B48: Tratamientos cubiertos | D48: • Cirugía oncológica: Cuando sea necesario, se realizará una cirugía para extraer el tejido canceroso. • Quimioterapia: Tratamiento que administra uno o más medicamentos seleccionados específicamente para combatir las células cancerosas del tipo específico que afecte tu organismo. • Radioterapia: Tratamiento por medio de radiaciones ionizantes de última generación. Nuestros profesionales te proporcionarán una dosis de radiación de alta energía enfocada con precisión submilimétrica, lo que hace que las células cancerosas se destruyan, minimizando el daño de los órganos o tejidos cercanos a la zona de radiación. • Terapia biológica: Tratamiento de última generación con modificadores de respuesta biológica disponibles en el mercado. Se aplica a la sangre, y busca e identifica las células dañadas del organismo actuando sobre ellas sin afectar las células sanas.
B49: Atención ambulatoria
B50: En el Perú
B51: A crédito (clínicas afiliadas y centros médicos de la red) | D51: Al 100% | E51: Al 100%
B52: Al reembolso (atención fuera de la red, según tarifario Pacífico) | D52: - | E52: Al 70%
B53: En el extranjero
B54: A crédito (a través del operador internacional, previa certificación) | D54: - | E54: Copago por consulta: US$ 200 cubierto al 70%
B55: Al reembolso (sin certificación, según tarifario Pacífico) | D55: - | E55: Copago por consulta: US$ 200 cubierto al 70%
B56: Atención hospitalaria
B57: En el Perú
B58: A crédito (clínicas afiliadas y centros médicos de la red) | D58: Al 100% | E58: Al 100%
B59: Al reembolso (atención fuera de la red, según tarifario Pacífico) | D59: Al 70% | E59: Al 70%
B60: En el extranjero
B61: A crédito (a través del operador internacional, previa certificación) | E61: Copago: US$ 2,500 cubierto al 80% hasta US$ 50,000, exceso al 100%
B62: Al reembolso (sin certificación, según tarifario Pacífico) | E62: Copago: US$ 2,500 cubierto al 70%

Sheet Parentescos (hidden)
A1: Titular | E1: Titular | G1: Cónyuge/Conviviente
A2: Cónyuge/Conviviente | E2: Hijo(a) | G2: Hijo(a)
A3: Hijo(a)

Sheet Datos Oncologicos (hidden)
A1: ASEGURADO | B1: EDAD

Sheet MSLD (hidden)
B6: Cotización
B8: Seguro Multisalud| Seguros de Salud
B9: COD.SBS.AE0446410003
A13: Datos de la cotización
B15: Fecha: | C15: =+NOW() -> 2024-07-04T18:34:50.610 | D15: hrs. | E15: Plan: | H15: Multisalud
B16: Nombre del Contratante: | D16: Piero Clemente | E16: Deducible anual (1): | H16: =+ROUND(VALUE((IF(INTEGRALES!F17=0.3,"15000","0"))),0) -> 0
A17: Prima total anual:
B19: Prima total: | F19: =+INDIRECT("INTEGRALES!F30")*VLOOKUP(CONCATENATE(INDIRECT("INTEGRALES!C11")," ",INDIRECT("INTEGRALES!C12")),INDIRECT("'Cambios data'!$A$40:$B$51"),2,0) -> 
B20: IGV 18%: | F20: =+(F19/(1.18))*0.18 -> 
E22: DESCUENTO DE: | I22: =+IF(OR(INDIRECT("INTEGRALES!F31")=0,INDIRECT("INTEGRALES!F31")=""),"0%",INDIRECT("INTEGRALES!F31")) -> 0%
B24: Prima total con descuento (inc. IGV): | F24: =+INDIRECT("INTEGRALES!F30")*VLOOKUP(CONCATENATE(INDIRECT("INTEGRALES!C11")," ",INDIRECT("INTEGRALES!C12")),INDIRECT("'Cambios data'!$A$40:$B$51"),2,0)*(1-INDIRECT("INTEGRALES!F31")) -> 
B25: IGV total: | F25: =+(F24/1.18)*0.18 -> 
A30: Financiamiento elegido:
B32: =+IF(INDIRECT("INTEGRALES!C32")="TOTAL"," 1 Cuota de"," "&LOWER(INDIRECT("INTEGRALES!C32")))&"*"&":" -> de*: | F32: =+INDIRECT("INTEGRALES!F32") -> 0
A39: =+IF(B32<>"AL CONTADO"," *El pago de cuotas son consecutivas","") -> *El pago de cuotas son consecutivas
A57: Principales beneficios:
D59: Coberturas principales
B71: Beneficio máximo anual por asegurado | E71: 5000000
A76: ¿Necesitas mas información? / Datos de tu corredor:
B78: Nombre del Corredor: | D78: Pacifico Seguros | E78: Teléfono del Corredor: | H78: 999-999-999
A85: Importante
A110: PACIFICO COMPAÑÍA DE SEGUROS Y REASEGUROS S.A RUC N° 20332970411

Sheet AM05 (hidden)
B6: Cotización
B8: Seguro Red Preferente| Seguros de Salud
B9: COD.SBS.AE0446410003
A13: Datos de la cotización
B15: Fecha: | C15: =+NOW() -> 2024-07-04T18:34:50.610 | D15: hrs. | E15: Plan: | H15: Red Preferente
B16: Nombre del Contratante: | D16: Piero Clemente | E16: Deducible anual (1): | H16: =+ROUND(VALUE((IF(INTEGRALES!G17=0.3,"15000","0"))),0) -> 0
A17: Prima total anual:
B19: Prima total: | F19: =+INDIRECT("INTEGRALES!G30")*VLOOKUP(CONCATENATE(INDIRECT("INTEGRALES!C11")," ",INDIRECT("INTEGRALES!C12")),INDIRECT("'Cambios data'!$A$40:$B$51"),2,0) -> 
B20: IGV 18%: | F20: =+(F19/(1.18))*0.18 -> 
E22: DESCUENTO DE: | I22: =+IF(OR(INDIRECT("INTEGRALES!G31")=0,INDIRECT("INTEGRALES!G31")=""),"0%",INDIRECT("INTEGRALES!G31")) -> 0%
B24: Prima total con descuento (inc. IGV): | F24: =+INDIRECT("INTEGRALES!G30")*VLOOKUP(CONCATENATE(INDIRECT("INTEGRALES!C11")," ",INDIRECT("INTEGRALES!C12")),INDIRECT("'Cambios data'!$A$40:$B$51"),2,0)*(1-INDIRECT("INTEGRALES!G31")) -> 
B25: IGV total: | F25: =+(F24/1.18)*0.18 -> 
A30: Financiamiento elegido:
B32: =+IF(INDIRECT("INTEGRALES!C32")="TOTAL"," 1 Cuota de"," "&LOWER(INDIRECT("INTEGRALES!C32")))&"*"&":" -> de*: | F32: =+INDIRECT("INTEGRALES!G32") -> 0
A39: =+IF(B32<>"AL CONTADO"," *El pago de cuotas son consecutivas","") -> *El pago de cuotas son consecutivas
A57: Principales beneficios:
D59: Coberturas principales
B71: Beneficio máximo anual por asegurado | E71: 3200000
A76: ¿Necesitas mas información? / Datos de tu corredor:
B78: Nombre del Corredor: | D78: Ivan | E78: Teléfono del Corredor: | H78: 9999999999
A85: Importante
A110: PACIFICO COMPAÑÍA DE SEGUROS Y REASEGUROS S.A RUC N° 20332970411

Sheet MNAC (hidden)
B6: Cotización
B8: Seguro Medicvida Nacional | Seguros de Salud
B9: COD.SBS.AE0446420002
A13: Datos de la cotización
B15: Fecha: | C15: =+NOW() -> 2024-07-04T18:34:50.610 | D15: hrs. | E15: Plan: | H15: Medicvida Nacional
B16: Nombre del Contratante: | D16: Alan Gabriel Ludwig García Pérez | E16: Deducible anual (1): | H16: =+ROUND(VALUE((IF(INTEGRALES!E17=0.3,"15000","0"))),0) -> 0
A17: Prima total anual:
B19: Prima total: | F19: =+INDIRECT("INTEGRALES!E30")*VLOOKUP(CONCATENATE(INDIRECT("INTEGRALES!C11")," ",INDIRECT("INTEGRALES!C12")),INDIRECT("'Cambios data'!$A$40:$B$51"),2,0) -> 
B20: IGV 18%: | F20: =+(F19/(1.18))*0.18 -> 
E22: DESCUENTO DE: | I22: =+IF(OR(INDIRECT("INTEGRALES!E31")=0,INDIRECT("INTEGRALES!E31")=""),"0%",INDIRECT("INTEGRALES!E31")) -> 0%
B24: Prima total con descuento (inc. IGV): | F24: =+INDIRECT("INTEGRALES!E30")*VLOOKUP(CONCATENATE(INDIRECT("INTEGRALES!C11")," ",INDIRECT("INTEGRALES!C12")),INDIRECT("'Cambios data'!$A$40:$B$51"),2,0)*(1-INDIRECT("INTEGRALES!E31")) -> 
B25: IGV total: | F25: =+(F24/1.18)*0.18 -> 
A30: Financiamiento elegido:
B32: =+IF(INDIRECT("INTEGRALES!C32")="TOTAL"," 1 Cuota de"," "&LOWER(INDIRECT("INTEGRALES!C32")))&"*"&":" -> de*: | F32: =+INDIRECT("INTEGRALES!E32") -> 0
A39: =+IF(B32<>"AL CONTADO"," *El pago de cuotas son consecutivas","") -> *El pago de cuotas son consecutivas
A57: Principales beneficios:
D59: Coberturas principales
B71: Beneficio máximo anual por asegurado | E71: 9600000
A76: ¿Necesitas mas información? / Datos de tu corredor:
B78: Nombre del Corredor: | D78: Becerra Brokers | E78: Teléfono del Corredor: | H78: 999999999
A85: Importante
A110: PACIFICO COMPAÑÍA DE SEGUROS Y REASEGUROS S.A RUC N° 20332970411

Sheet Hoja2 (hidden)
B3: FINANCIAMIENTOS JUN 2022 | C3: FACTORES
B4: AL CONTADO NO APLICAN | C4: 1
B5: 4 CUOTAS SIN INTERESES | C5: 4
B6: 6 CUOTAS SIN INTERESES - DÉBITO AUTOMÁTICO | C6: 6
B7: 6 CUOTAS TCEA 4% - DÉBITO AUTOMÁTICO | C7: 5.931847245
B8: 6 CUOTAS TCEA 17.5% - CUPONES | C8: 5.725823013
B9: 10 CUOTAS SIN INTERESES - DÉBITO AUTOMÁTICO | C9: 10
B10: 10 CUOTAS TCEA 4% - DÉBITO AUTOMÁTICO | C10: 9.822277276
B11: 10 CUOTAS TCEA 17.5% - CUPONES | C11: 9.294431117
B12: 12 CUOTAS SIN INTERESES - DÉBITO AUTOMÁTICO | C12: 12
B13: 12 CUOTAS TCEA 4% - DÉBITO AUTOMÁTICO | C13: 11.74850203
B14: 12 CUOTAS TCEA 17.5% - CUPONES | C14: 11.00807343

Sheet Abril 2023 vs. Febrero 2023 (hidden)
B9: FINANCIAMIENTO | C9: AL CONTADO
B10: INICIO DE VIGENCIA | C10: 2022-06-01
E12: TARIFARIO ACTUAL (VENTA NUEVA) | N12: TARIFARIO ANTIGUO (RENOVACIÓN)
E13: MEDICVIDA INTERNACIONAL | F13: SALUD PREFERENCIAL | G13: MEDICVIDA NACIONAL | H13: FULL SALUD | I13: MULTISALUD | J13: RED MÉDICA | K13: RED PREFERENTE | L13: SALUD RED PREFERENTE | N13: MEDICVIDA INTERNACIONAL | O13: SALUD PREFERENCIAL | P13: MEDICVIDA NACIONAL | Q13: FULL SALUD | R13: MULTISALUD | S13: RED MÉDICA | T13: RED PREFERENTE | U13: SALUD RED PREFERENTE
B14: ASEGURADO | C14: F. NACIMIENTO | D14: EDAD | E14: PACIFICO | F14: RIMAC | G14: PACIFICO | H14: RIMAC | I14: PACIFICO | J14: RIMAC | K14: PACIFICO | L14: RIMAC | N14: PACIFICO | O14: RIMAC | P14: PACIFICO | Q14: RIMAC | R14: PACIFICO | S14: RIMAC | T14: PACIFICO | U14: RIMAC
B15: TITULAR | C15: 2000-12-22 | D15: 60 | E15: =IF(D15="","",IF(B15="HIJO/A",VLOOKUP(D15,Datos!$AS:$AW,MATCH(E$13,Datos!$AS$1:$AW$1,0),0),VLOOKUP(D15,Datos!$AN:$AR,MATCH(E$13,Datos!$AN$1:$AR$1,0),0))*1.18*1.03/VLOOKUP($C$9,Datos!$A$31:$C$37,2,0)) -> 34153.31507 | F15: =IFERROR(IF(D15="","",IF(B15="HIJO/A",VLOOKUP(D15,Datos!$U:$Y,MATCH(E$13,Datos!$U$1:$Y$1,0),0),VLOOKUP(D15,Datos!$P:$T,MATCH(E$13,Datos!$P$1:$T$1,0),0))/VLOOKUP($C$9,Datos!$A$31:$C$37,3,0)),"") -> 30128 | G15: =IF(D15="","",IF(B15="HIJO/A",VLOOKUP(D15,Datos!$AS:$AW,MATCH(G$13,Datos!$AS$1:$AW$1,0),0),VLOOKUP(D15,Datos!$AN:$AR,MATCH(G$13,Datos!$AB$1:$AF$1,0),0))*1.18*1.03/VLOOKUP($C$9,Datos!$A$31:$C$37,2,0)) -> 19453.15068 | H15: =IFERROR(IF(D15="","",IF(B15="HIJO/A",VLOOKUP(D15,Datos!$U:$Y,MATCH(G$13,Datos!$U$1:$Y$1,0),0),VLOOKUP(D15,Datos!$P:$T,MATCH(G$13,Datos!$P$1:$T$1,0),0))/VLOOKUP($C$9,Datos!$A$31:$C$37,3,0)),"") -> 18230 | I15: =IF(D15="","",IF(B15="HIJO/A",VLOOKUP(D15,Datos!$AS:$AW,MATCH(I$13,Datos!$AS$1:$AW$1,0),0),VLOOKUP(D15,Datos!$AN:$AR,MATCH(I$13,Datos!$AB$1:$AF$1,0),0))*1.18*1.03/VLOOKUP($C$9,Datos!$A$31:$C$37,2,0)) -> 14700.16438 | J15: =IFERROR(IF(D15="","",IF(B15="HIJO/A",VLOOKUP(D15,Datos!$U:$Y,MATCH(I$13,Datos!$U$1:$Y$1,0),0),VLOOKUP(D15,Datos!$P:$T,MATCH(I$13,Datos!$P$1:$T$1,0),0))/VLOOKUP($C$9,Datos!$A$31:$C$37,3,0)),"") -> 13028 | K15: =IF(D15="","",IF(B15="HIJO/A",VLOOKUP(D15,Datos!$AS:$AW,MATCH(K$13,Datos!$AS$1:$AW$1,0),0),VLOOKUP(D15,Datos!$AN:$AR,MATCH(K$13,Datos!$AB$1:$AF$1,0),0))*1.18*1.03/VLOOKUP($C$9,Datos!$A$31:$C$37,2,0)) -> 12343.72603 | L15: =IFERROR(IF(D15="","",IF(B15="HIJO/A",VLOOKUP(D15,Datos!$U:$Y,MATCH(K$13,Datos!$U$1:$Y$1,0),0),VLOOKUP(D15,Datos!$P:$T,MATCH(K$13,Datos!$P$1:$T$1,0),0))/VLOOKUP($C$9,Datos!$A$31:$C$37,3,0)),"") -> 8934 | N15: =IF(D15="","",IF(B15="HIJO/A",VLOOKUP(D15,Datos!$AG:$AK,MATCH(N$13,Datos!$AG$1:$AK$1,0),0),VLOOKUP(D15,Datos!$AB:$AF,MATCH(N$13,Datos!$AB$1:$AF$1,0),0))*1.18*1.03/VLOOKUP($C$9,Datos!$A$31:$C$37,2,0)) -> 30613.64384 | O15: =IFERROR(IF(D15="","",IF(B15="HIJO/A",VLOOKUP(D15,Datos!$U:$Y,MATCH(N$13,Datos!$U$1:$Y$1,0),0),VLOOKUP(D15,Datos!$P:$T,MATCH(N$13,Datos!$P$1:$T$1,0),0))/VLOOKUP($C$9,Datos!$A$31:$C$37,3,0)),"") -> 30128 | P15: =IF(D15="","",IF(B15="HIJO/A",VLOOKUP(D15,Datos!$AG:$AK,MATCH(P$13,Datos!$AG$1:$AK$1,0),0),VLOOKUP(D15,Datos!$AB:$AF,MATCH(P$13,Datos!$AB$1:$AF$1,0),0))*1.18*1.03/VLOOKUP($C$9,Datos!$A$31:$C$37,2,0)) -> 18600.82192 | Q15: =IFERROR(IF(D15="","",IF(B15="HIJO/A",VLOOKUP(D15,Datos!$U:$Y,MATCH(P$13,Datos!$U$1:$Y$1,0),0),VLOOKUP(D15,Datos!$P:$T,MATCH(P$13,Datos!$P$1:$T$1,0),0))/VLOOKUP($C$9,Datos!$A$31:$C$37,3,0)),"") -> 18230 | R15: =IF(D15="","",IF(B15="HIJO/A",VLOOKUP(D15,Datos!$AG:$AK,MATCH(R$13,Datos!$AG$1:$AK$1,0),0),VLOOKUP(D15,Datos!$AB:$AF,MATCH(R$13,Datos!$AB$1:$AF$1,0),0))*1.18*1.03/VLOOKUP($C$9,Datos!$A$31:$C$37,2,0)) -> 12333.69863 | S15: =IFERROR(IF(D15="","",IF(B15="HIJO/A",VLOOKUP(D15,Datos!$U:$Y,MATCH(R$13,Datos!$U$1:$Y$1,0),0),VLOOKUP(D15,Datos!$P:$T,MATCH(R$13,Datos!$P$1:$T$1,0),0))/VLOOKUP($C$9,Datos!$A$31:$C$37,3,0)),"") -> 13028 | T15: =IF(D15="","",IF(B15="HIJO/A",VLOOKUP(D15,Datos!$AG:$AK,MATCH(T$13,Datos!$AG$1:$AK$1,0),0),VLOOKUP(D15,Datos!$AB:$AF,MATCH(T$13,Datos!$AB$1:$AF$1,0),0))*1.18*1.03/VLOOKUP($C$9,Datos!$A$31:$C$37,2,0)) -> 10227.94521 | U15: =IFERROR(IF(D15="","",IF(B15="HIJO/A",VLOOKUP(D15,Datos!$U:$Y,MATCH(T$13,Datos!$U$1:$Y$1,0),0),VLOOKUP(D15,Datos!$P:$T,MATCH(T$13,Datos!$P$1:$T$1,0),0))/VLOOKUP($C$9,Datos!$A$31:$C$37,3,0)),"") -> 8934
B16: CÓNYUGE/CONVIVIENTE | C16: 1970-03-25 | D16: 22 | E16: =IF(D16="","",IF(B16="HIJO/A",VLOOKUP(D16,Datos!$AS:$AW,MATCH(E$13,Datos!$AS$1:$AW$1,0),0),VLOOKUP(D16,Datos!$AN:$AR,MATCH(E$13,Datos!$AN$1:$AR$1,0),0))*1.18*1.03/VLOOKUP($C$9,Datos!$A$31:$C$37,2,0)) -> 10488.65753 | F16: =IFERROR(IF(D16="","",IF(B16="HIJO/A",VLOOKUP(D16,Datos!$U:$Y,MATCH(E$13,Datos!$U$1:$Y$1,0),0),VLOOKUP(D16,Datos!$P:$T,MATCH(E$13,Datos!$P$1:$T$1,0),0))/VLOOKUP($C$9,Datos!$A$31:$C$37,3,0)),"") -> 7972 | G16: =IF(D16="","",IF(B16="HIJO/A",VLOOKUP(D16,Datos!$AS:$AW,MATCH(G$13,Datos!$AS$1:$AW$1,0),0),VLOOKUP(D16,Datos!$AN:$AR,MATCH(G$13,Datos!$AB$1:$AF$1,0),0))*1.18*1.03/VLOOKUP($C$9,Datos!$A$31:$C$37,2,0)) -> 4392 | H16: =IFERROR(IF(D16="","",IF(B16="HIJO/A",VLOOKUP(D16,Datos!$U:$Y,MATCH(G$13,Datos!$U$1:$Y$1,0),0),VLOOKUP(D16,Datos!$P:$T,MATCH(G$13,Datos!$P$1:$T$1,0),0))/VLOOKUP($C$9,Datos!$A$31:$C$37,3,0)),"") -> 4243 | I16: =IF(D16="","",IF(B16="HIJO/A",VLOOKUP(D16,Datos!$AS:$AW,MATCH(I$13,Datos!$AS$1:$AW$1,0),0),VLOOKUP(D16,Datos!$AN:$AR,MATCH(I$13,Datos!$AB$1:$AF$1,0),0))*1.18*1.03/VLOOKUP($C$9,Datos!$A$31:$C$37,2,0)) -> 3098.465753 | J16: =IFERROR(IF(D16="","",IF(B16="HIJO/A",VLOOKUP(D16,Datos!$U:$Y,MATCH(I$13,Datos!$U$1:$Y$1,0),0),VLOOKUP(D16,Datos!$P:$T,MATCH(I$13,Datos!$P$1:$T$1,0),0))/VLOOKUP($C$9,Datos!$A$31:$C$37,3,0)),"") -> 3130 | K16: =IF(D16="","",IF(B16="HIJO/A",VLOOKUP(D16,Datos!$AS:$AW,MATCH(K$13,Datos!$AS$1:$AW$1,0),0),VLOOKUP(D16,Datos!$AN:$AR,MATCH(K$13,Datos!$AB$1:$AF$1,0),0))*1.18*1.03/VLOOKUP($C$9,Datos!$A$31:$C$37,2,0)) -> 2827.726027 | L16: =IFERROR(IF(D16="","",IF(B16="HIJO/A",VLOOKUP(D16,Datos!$U:$Y,MATCH(K$13,Datos!$U$1:$Y$1,0),0),VLOOKUP(D16,Datos!$P:$T,MATCH(K$13,Datos!$P$1:$T$1,0),0))/VLOOKUP($C$9,Datos!$A$31:$C$37,3,0)),"") -> 2585 | N16: =IF(D16="","",IF(B16="HIJO/A",VLOOKUP(D16,Datos!$AG:$AK,MATCH(N$13,Datos!$AG$1:$AK$1,0),0),VLOOKUP(D16,Datos!$AB:$AF,MATCH(N$13,Datos!$AB$1:$AF$1,0),0))*1.18*1.03/VLOOKUP($C$9,Datos!$A$31:$C$37,2,0)) -> 10288.10959 | O16: =IFERROR(IF(D16="","",IF(B16="HIJO/A",VLOOKUP(D16,Datos!$U:$Y,MATCH(N$13,Datos!$U$1:$Y$1,0),0),VLOOKUP(D16,Datos!$P:$T,MATCH(N$13,Datos!$P$1:$T$1,0),0))/VLOOKUP($C$9,Datos!$A$31:$C$37,3,0)),"") -> 7972 | P16: =IF(D16="","",IF(B16="HIJO/A",VLOOKUP(D16,Datos!$AG:$AK,MATCH(P$13,Datos!$AG$1:$AK$1,0),0),VLOOKUP(D16,Datos!$AB:$AF,MATCH(P$13,Datos!$AB$1:$AF$1,0),0))*1.18*1.03/VLOOKUP($C$9,Datos!$A$31:$C$37,2,0)) -> 4442.136986 | Q16: =IFERROR(IF(D16="","",IF(B16="HIJO/A",VLOOKUP(D16,Datos!$U:$Y,MATCH(P$13,Datos!$U$1:$Y$1,0),0),VLOOKUP(D16,Datos!$P:$T,MATCH(P$13,Datos!$P$1:$T$1,0),0))/VLOOKUP($C$9,Datos!$A$31:$C$37,3,0)),"") -> 4243 | R16: =IF(D16="","",IF(B16="HIJO/A",VLOOKUP(D16,Datos!$AG:$AK,MATCH(R$13,Datos!$AG$1:$AK$1,0),0),VLOOKUP(D16,Datos!$AB:$AF,MATCH(R$13,Datos!$AB$1:$AF$1,0),0))*1.18*1.03/VLOOKUP($C$9,Datos!$A$31:$C$37,2,0)) -> 3028.273973 | S16: =IFERROR(IF(D16="","",IF(B16="HIJO/A",VLOOKUP(D16,Datos!$U:$Y,MATCH(R$13,Datos!$U$1:$Y$1,0),0),VLOOKUP(D16,Datos!$P:$T,MATCH(R$13,Datos!$P$1:$T$1,0),0))/VLOOKUP($C$9,Datos!$A$31:$C$37,3,0)),"") -> 3130 | T16: =IF(D16="","",IF(B16="HIJO/A",VLOOKUP(D16,Datos!$AG:$AK,MATCH(T$13,Datos!$AG$1:$AK$1,0),0),VLOOKUP(D16,Datos!$AB:$AF,MATCH(T$13,Datos!$AB$1:$AF$1,0),0))*1.18*1.03/VLOOKUP($C$9,Datos!$A$31:$C$37,2,0)) -> 2807.671233 | U16: =IFERROR(IF(D16="","",IF(B16="HIJO/A",VLOOKUP(D16,Datos!$U:$Y,MATCH(T$13,Datos!$U$1:$Y$1,0),0),VLOOKUP(D16,Datos!$P:$T,MATCH(T$13,Datos!$P$1:$T$1,0),0))/VLOOKUP($C$9,Datos!$A$31:$C$37,3,0)),"") -> 2585
B17: HIJO/A | E17: =IF(D17="","",IF(B17="HIJO/A",VLOOKUP(D17,Datos!$AS:$AW,MATCH(E$13,Datos!$AS$1:$AW$1,0),0),VLOOKUP(D17,Datos!$AN:$AR,MATCH(E$13,Datos!$AN$1:$AR$1,0),0))*1.18*1.03/VLOOKUP($C$9,Datos!$A$31:$C$37,2,0)) ->  | F17: =IFERROR(IF(D17="","",IF(B17="HIJO/A",VLOOKUP(D17,Datos!$U:$Y,MATCH(E$13,Datos!$U$1:$Y$1,0),0),VLOOKUP(D17,Datos!$P:$T,MATCH(E$13,Datos!$P$1:$T$1,0),0))/VLOOKUP($C$9,Datos!$A$31:$C$37,3,0)),"") ->  | G17: =IF(D17="","",IF(B17="HIJO/A",VLOOKUP(D17,Datos!$AS:$AW,MATCH(G$13,Datos!$AS$1:$AW$1,0),0),VLOOKUP(D17,Datos!$AN:$AR,MATCH(G$13,Datos!$AB$1:$AF$1,0),0))*1.18*1.03/VLOOKUP($C$9,Datos!$A$31:$C$37,2,0)) ->  | H17: =IFERROR(IF(D17="","",IF(B17="HIJO/A",VLOOKUP(D17,Datos!$U:$Y,MATCH(G$13,Datos!$U$1:$Y$1,0),0),VLOOKUP(D17,Datos!$P:$T,MATCH(G$13,Datos!$P$1:$T$1,0),0))/VLOOKUP($C$9,Datos!$A$31:$C$37,3,0)),"") ->  | I17: =IF(D17="","",IF(B17="HIJO/A",VLOOKUP(D17,Datos!$AS:$AW,MATCH(I$13,Datos!$AS$1:$AW$1,0),0),VLOOKUP(D17,Datos!$AN:$AR,MATCH(I$13,Datos!$AB$1:$AF$1,0),0))*1.18*1.03/VLOOKUP($C$9,Datos!$A$31:$C$37,2,0)) ->  | J17: =IFERROR(IF(D17="","",IF(B17="HIJO/A",VLOOKUP(D17,Datos!$U:$Y,MATCH(I$13,Datos!$U$1:$Y$1,0),0),VLOOKUP(D17,Datos!$P:$T,MATCH(I$13,Datos!$P$1:$T$1,0),0))/VLOOKUP($C$9,Datos!$A$31:$C$37,3,0)),"") ->  | K17: =IF(D17="","",IF(B17="HIJO/A",VLOOKUP(D17,Datos!$AS:$AW,MATCH(K$13,Datos!$AS$1:$AW$1,0),0),VLOOKUP(D17,Datos!$AN:$AR,MATCH(K$13,Datos!$AB$1:$AF$1,0),0))*1.18*1.03/VLOOKUP($C$9,Datos!$A$31:$C$37,2,0)) ->  | L17: =IFERROR(IF(D17="","",IF(B17="HIJO/A",VLOOKUP(D17,Datos!$U:$Y,MATCH(K$13,Datos!$U$1:$Y$1,0),0),VLOOKUP(D17,Datos!$P:$T,MATCH(K$13,Datos!$P$1:$T$1,0),0))/VLOOKUP($C$9,Datos!$A$31:$C$37,3,0)),"") ->  | N17: =IF(D17="","",IF(B17="HIJO/A",VLOOKUP(D17,Datos!$AG:$AK,MATCH(N$13,Datos!$AG$1:$AK$1,0),0),VLOOKUP(D17,Datos!$AB:$AF,MATCH(N$13,Datos!$AB$1:$AF$1,0),0))*1.18*1.03/VLOOKUP($C$9,Datos!$A$31:$C$37,2,0)) ->  | O17: =IFERROR(IF(D17="","",IF(B17="HIJO/A",VLOOKUP(D17,Datos!$U:$Y,MATCH(N$13,Datos!$U$1:$Y$1,0),0),VLOOKUP(D17,Datos!$P:$T,MATCH(N$13,Datos!$P$1:$T$1,0),0))/VLOOKUP($C$9,Datos!$A$31:$C$37,3,0)),"") ->  | P17: =IF(D17="","",IF(B17="HIJO/A",VLOOKUP(D17,Datos!$AG:$AK,MATCH(P$13,Datos!$AG$1:$AK$1,0),0),VLOOKUP(D17,Datos!$AB:$AF,MATCH(P$13,Datos!$AB$1:$AF$1,0),0))*1.18*1.03/VLOOKUP($C$9,Datos!$A$31:$C$37,2,0)) ->  | Q17: =IFERROR(IF(D17="","",IF(B17="HIJO/A",VLOOKUP(D17,Datos!$U:$Y,MATCH(P$13,Datos!$U$1:$Y$1,0),0),VLOOKUP(D17,Datos!$P:$T,MATCH(P$13,Datos!$P$1:$T$1,0),0))/VLOOKUP($C$9,Datos!$A$31:$C$37,3,0)),"") ->  | R17: =IF(D17="","",IF(B17="HIJO/A",VLOOKUP(D17,Datos!$AG:$AK,MATCH(R$13,Datos!$AG$1:$AK$1,0),0),VLOOKUP(D17,Datos!$AB:$AF,MATCH(R$13,Datos!$AB$1:$AF$1,0),0))*1.18*1.03/VLOOKUP($C$9,Datos!$A$31:$C$37,2,0)) ->  | S17: =IFERROR(IF(D17="","",IF(B17="HIJO/A",VLOOKUP(D17,Datos!$U:$Y,MATCH(R$13,Datos!$U$1:$Y$1,0),0),VLOOKUP(D17,Datos!$P:$T,MATCH(R$13,Datos!$P$1:$T$1,0),0))/VLOOKUP($C$9,Datos!$A$31:$C$37,3,0)),"") ->  | T17: =IF(D17="","",IF(B17="HIJO/A",VLOOKUP(D17,Datos!$AG:$AK,MATCH(T$13,Datos!$AG$1:$AK$1,0),0),VLOOKUP(D17,Datos!$AB:$AF,MATCH(T$13,Datos!$AB$1:$AF$1,0),0))*1.18*1.03/VLOOKUP($C$9,Datos!$A$31:$C$37,2,0)) ->  | U17: =IFERROR(IF(D17="","",IF(B17="HIJO/A",VLOOKUP(D17,Datos!$U:$Y,MATCH(T$13,Datos!$U$1:$Y$1,0),0),VLOOKUP(D17,Datos!$P:$T,MATCH(T$13,Datos!$P$1:$T$1,0),0))/VLOOKUP($C$9,Datos!$A$31:$C$37,3,0)),"") -> 
B18: HIJO/A | E18: =IF(D18="","",IF(B18="HIJO/A",VLOOKUP(D18,Datos!$AS:$AW,MATCH(E$13,Datos!$AS$1:$AW$1,0),0),VLOOKUP(D18,Datos!$AN:$AR,MATCH(E$13,Datos!$AN$1:$AR$1,0),0))*1.18*1.03/VLOOKUP($C$9,Datos!$A$31:$C$37,2,0)) ->  | F18: =IFERROR(IF(D18="","",IF(B18="HIJO/A",VLOOKUP(D18,Datos!$U:$Y,MATCH(E$13,Datos!$U$1:$Y$1,0),0),VLOOKUP(D18,Datos!$P:$T,MATCH(E$13,Datos!$P$1:$T$1,0),0))/VLOOKUP($C$9,Datos!$A$31:$C$37,3,0)),"") ->  | G18: =IF(D18="","",IF(B18="HIJO/A",VLOOKUP(D18,Datos!$AS:$AW,MATCH(G$13,Datos!$AS$1:$AW$1,0),0),VLOOKUP(D18,Datos!$AN:$AR,MATCH(G$13,Datos!$AB$1:$AF$1,0),0))*1.18*1.03/VLOOKUP($C$9,Datos!$A$31:$C$37,2,0)) ->  | H18: =IFERROR(IF(D18="","",IF(B18="HIJO/A",VLOOKUP(D18,Datos!$U:$Y,MATCH(G$13,Datos!$U$1:$Y$1,0),0),VLOOKUP(D18,Datos!$P:$T,MATCH(G$13,Datos!$P$1:$T$1,0),0))/VLOOKUP($C$9,Datos!$A$31:$C$37,3,0)),"") ->  | I18: =IF(D18="","",IF(B18="HIJO/A",VLOOKUP(D18,Datos!$AS:$AW,MATCH(I$13,Datos!$AS$1:$AW$1,0),0),VLOOKUP(D18,Datos!$AN:$AR,MATCH(I$13,Datos!$AB$1:$AF$1,0),0))*1.18*1.03/VLOOKUP($C$9,Datos!$A$31:$C$37,2,0)) ->  | J18: =IFERROR(IF(D18="","",IF(B18="HIJO/A",VLOOKUP(D18,Datos!$U:$Y,MATCH(I$13,Datos!$U$1:$Y$1,0),0),VLOOKUP(D18,Datos!$P:$T,MATCH(I$13,Datos!$P$1:$T$1,0),0))/VLOOKUP($C$9,Datos!$A$31:$C$37,3,0)),"") ->  | K18: =IF(D18="","",IF(B18="HIJO/A",VLOOKUP(D18,Datos!$AS:$AW,MATCH(K$13,Datos!$AS$1:$AW$1,0),0),VLOOKUP(D18,Datos!$AN:$AR,MATCH(K$13,Datos!$AB$1:$AF$1,0),0))*1.18*1.03/VLOOKUP($C$9,Datos!$A$31:$C$37,2,0)) ->  | L18: =IFERROR(IF(D18="","",IF(B18="HIJO/A",VLOOKUP(D18,Datos!$U:$Y,MATCH(K$13,Datos!$U$1:$Y$1,0),0),VLOOKUP(D18,Datos!$P:$T,MATCH(K$13,Datos!$P$1:$T$1,0),0))/VLOOKUP($C$9,Datos!$A$31:$C$37,3,0)),"") ->  | N18: =IF(D18="","",IF(B18="HIJO/A",VLOOKUP(D18,Datos!$AG:$AK,MATCH(N$13,Datos!$AG$1:$AK$1,0),0),VLOOKUP(D18,Datos!$AB:$AF,MATCH(N$13,Datos!$AB$1:$AF$1,0),0))*1.18*1.03/VLOOKUP($C$9,Datos!$A$31:$C$37,2,0)) ->  | O18: =IFERROR(IF(D18="","",IF(B18="HIJO/A",VLOOKUP(D18,Datos!$U:$Y,MATCH(N$13,Datos!$U$1:$Y$1,0),0),VLOOKUP(D18,Datos!$P:$T,MATCH(N$13,Datos!$P$1:$T$1,0),0))/VLOOKUP($C$9,Datos!$A$31:$C$37,3,0)),"") ->  | P18: =IF(D18="","",IF(B18="HIJO/A",VLOOKUP(D18,Datos!$AG:$AK,MATCH(P$13,Datos!$AG$1:$AK$1,0),0),VLOOKUP(D18,Datos!$AB:$AF,MATCH(P$13,Datos!$AB$1:$AF$1,0),0))*1.18*1.03/VLOOKUP($C$9,Datos!$A$31:$C$37,2,0)) ->  | Q18: =IFERROR(IF(D18="","",IF(B18="HIJO/A",VLOOKUP(D18,Datos!$U:$Y,MATCH(P$13,Datos!$U$1:$Y$1,0),0),VLOOKUP(D18,Datos!$P:$T,MATCH(P$13,Datos!$P$1:$T$1,0),0))/VLOOKUP($C$9,Datos!$A$31:$C$37,3,0)),"") ->  | R18: =IF(D18="","",IF(B18="HIJO/A",VLOOKUP(D18,Datos!$AG:$AK,MATCH(R$13,Datos!$AG$1:$AK$1,0),0),VLOOKUP(D18,Datos!$AB:$AF,MATCH(R$13,Datos!$AB$1:$AF$1,0),0))*1.18*1.03/VLOOKUP($C$9,Datos!$A$31:$C$37,2,0)) ->  | S18: =IFERROR(IF(D18="","",IF(B18="HIJO/A",VLOOKUP(D18,Datos!$U:$Y,MATCH(R$13,Datos!$U$1:$Y$1,0),0),VLOOKUP(D18,Datos!$P:$T,MATCH(R$13,Datos!$P$1:$T$1,0),0))/VLOOKUP($C$9,Datos!$A$31:$C$37,3,0)),"") ->  | T18: =IF(D18="","",IF(B18="HIJO/A",VLOOKUP(D18,Datos!$AG:$AK,MATCH(T$13,Datos!$AG$1:$AK$1,0),0),VLOOKUP(D18,Datos!$AB:$AF,MATCH(T$13,Datos!$AB$1:$AF$1,0),0))*1.18*1.03/VLOOKUP($C$9,Datos!$A$31:$C$37,2,0)) ->  | U18: =IFERROR(IF(D18="","",IF(B18="HIJO/A",VLOOKUP(D18,Datos!$U:$Y,MATCH(T$13,Datos!$U$1:$Y$1,0),0),VLOOKUP(D18,Datos!$P:$T,MATCH(T$13,Datos!$P$1:$T$1,0),0))/VLOOKUP($C$9,Datos!$A$31:$C$37,3,0)),"") -> 
B19: HIJO/A | E19: =IF(D19="","",IF(B19="HIJO/A",VLOOKUP(D19,Datos!$AS:$AW,MATCH(E$13,Datos!$AS$1:$AW$1,0),0),VLOOKUP(D19,Datos!$AN:$AR,MATCH(E$13,Datos!$AN$1:$AR$1,0),0))*1.18*1.03/VLOOKUP($C$9,Datos!$A$31:$C$37,2,0)) ->  | F19: =IFERROR(IF(D19="","",IF(B19="HIJO/A",VLOOKUP(D19,Datos!$U:$Y,MATCH(E$13,Datos!$U$1:$Y$1,0),0),VLOOKUP(D19,Datos!$P:$T,MATCH(E$13,Datos!$P$1:$T$1,0),0))/VLOOKUP($C$9,Datos!$A$31:$C$37,3,0)),"") ->  | G19: =IF(D19="","",IF(B19="HIJO/A",VLOOKUP(D19,Datos!$AS:$AW,MATCH(G$13,Datos!$AS$1:$AW$1,0),0),VLOOKUP(D19,Datos!$AN:$AR,MATCH(G$13,Datos!$AB$1:$AF$1,0),0))*1.18*1.03/VLOOKUP($C$9,Datos!$A$31:$C$37,2,0)) ->  | H19: =IFERROR(IF(D19="","",IF(B19="HIJO/A",VLOOKUP(D19,Datos!$U:$Y,MATCH(G$13,Datos!$U$1:$Y$1,0),0),VLOOKUP(D19,Datos!$P:$T,MATCH(G$13,Datos!$P$1:$T$1,0),0))/VLOOKUP($C$9,Datos!$A$31:$C$37,3,0)),"") ->  | I19: =IF(D19="","",IF(B19="HIJO/A",VLOOKUP(D19,Datos!$AS:$AW,MATCH(I$13,Datos!$AS$1:$AW$1,0),0),VLOOKUP(D19,Datos!$AN:$AR,MATCH(I$13,Datos!$AB$1:$AF$1,0),0))*1.18*1.03/VLOOKUP($C$9,Datos!$A$31:$C$37,2,0)) ->  | J19: =IFERROR(IF(D19="","",IF(B19="HIJO/A",VLOOKUP(D19,Datos!$U:$Y,MATCH(I$13,Datos!$U$1:$Y$1,0),0),VLOOKUP(D19,Datos!$P:$T,MATCH(I$13,Datos!$P$1:$T$1,0),0))/VLOOKUP($C$9,Datos!$A$31:$C$37,3,0)),"") ->  | K19: =IF(D19="","",IF(B19="HIJO/A",VLOOKUP(D19,Datos!$AS:$AW,MATCH(K$13,Datos!$AS$1:$AW$1,0),0),VLOOKUP(D19,Datos!$AN:$AR,MATCH(K$13,Datos!$AB$1:$AF$1,0),0))*1.18*1.03/VLOOKUP($C$9,Datos!$A$31:$C$37,2,0)) ->  | L19: =IFERROR(IF(D19="","",IF(B19="HIJO/A",VLOOKUP(D19,Datos!$U:$Y,MATCH(K$13,Datos!$U$1:$Y$1,0),0),VLOOKUP(D19,Datos!$P:$T,MATCH(K$13,Datos!$P$1:$T$1,0),0))/VLOOKUP($C$9,Datos!$A$31:$C$37,3,0)),"") ->  | N19: =IF(D19="","",IF(B19="HIJO/A",VLOOKUP(D19,Datos!$AG:$AK,MATCH(N$13,Datos!$AG$1:$AK$1,0),0),VLOOKUP(D19,Datos!$AB:$AF,MATCH(N$13,Datos!$AB$1:$AF$1,0),0))*1.18*1.03/VLOOKUP($C$9,Datos!$A$31:$C$37,2,0)) ->  | O19: =IFERROR(IF(D19="","",IF(B19="HIJO/A",VLOOKUP(D19,Datos!$U:$Y,MATCH(N$13,Datos!$U$1:$Y$1,0),0),VLOOKUP(D19,Datos!$P:$T,MATCH(N$13,Datos!$P$1:$T$1,0),0))/VLOOKUP($C$9,Datos!$A$31:$C$37,3,0)),"") ->  | P19: =IF(D19="","",IF(B19="HIJO/A",VLOOKUP(D19,Datos!$AG:$AK,MATCH(P$13,Datos!$AG$1:$AK$1,0),0),VLOOKUP(D19,Datos!$AB:$AF,MATCH(P$13,Datos!$AB$1:$AF$1,0),0))*1.18*1.03/VLOOKUP($C$9,Datos!$A$31:$C$37,2,0)) ->  | Q19: =IFERROR(IF(D19="","",IF(B19="HIJO/A",VLOOKUP(D19,Datos!$U:$Y,MATCH(P$13,Datos!$U$1:$Y$1,0),0),VLOOKUP(D19,Datos!$P:$T,MATCH(P$13,Datos!$P$1:$T$1,0),0))/VLOOKUP($C$9,Datos!$A$31:$C$37,3,0)),"") ->  | R19: =IF(D19="","",IF(B19="HIJO/A",VLOOKUP(D19,Datos!$AG:$AK,MATCH(R$13,Datos!$AG$1:$AK$1,0),0),VLOOKUP(D19,Datos!$AB:$AF,MATCH(R$13,Datos!$AB$1:$AF$1,0),0))*1.18*1.03/VLOOKUP($C$9,Datos!$A$31:$C$37,2,0)) ->  | S19: =IFERROR(IF(D19="","",IF(B19="HIJO/A",VLOOKUP(D19,Datos!$U:$Y,MATCH(R$13,Datos!$U$1:$Y$1,0),0),VLOOKUP(D19,Datos!$P:$T,MATCH(R$13,Datos!$P$1:$T$1,0),0))/VLOOKUP($C$9,Datos!$A$31:$C$37,3,0)),"") ->  | T19: =IF(D19="","",IF(B19="HIJO/A",VLOOKUP(D19,Datos!$AG:$AK,MATCH(T$13,Datos!$AG$1:$AK$1,0),0),VLOOKUP(D19,Datos!$AB:$AF,MATCH(T$13,Datos!$AB$1:$AF$1,0),0))*1.18*1.03/VLOOKUP($C$9,Datos!$A$31:$C$37,2,0)) ->  | U19: =IFERROR(IF(D19="","",IF(B19="HIJO/A",VLOOKUP(D19,Datos!$U:$Y,MATCH(T$13,Datos!$U$1:$Y$1,0),0),VLOOKUP(D19,Datos!$P:$T,MATCH(T$13,Datos!$P$1:$T$1,0),0))/VLOOKUP($C$9,Datos!$A$31:$C$37,3,0)),"") -> 
D20: SUBTOTAL | E20: =SUM(E15:E19) -> 44641.9726 | F20: 38100 | G20: 23845.15068 | H20: 22473 | I20: 17798.63014 | J20: 16158 | K20: 15171.45205 | L20: 11519 | N20: =SUM(N15:N19) -> 40901.75342 | O20: 38100 | P20: 23042.9589 | Q20: 22473 | R20: 15361.9726 | S20: 16158 | T20: 13035.61644 | U20: 11519
D21: % DE DSCTO A APLICAR | E21: 0.185 | F21: 0.15 | G21: 0.185 | H21: 0.15 | I21: 0.185 | J21: 0.15 | K21: 0.185 | L21: 0.15 | N21: 0.035 | O21: 0.15 | P21: 0.185 | Q21: 0.15 | R21: 0.185 | S21: 0.15 | T21: 0.185 | U21: 0.15
D22: TOTAL | E22: =E20*(1-E21) -> 36383.20767 | F22: =F20*(1-F21) -> 32385 | G22: =G20*(1-G21) -> 19433.79781 | H22: =H20*(1-H21) -> 19102.05 | I22: =I20*(1-I21) -> 14505.88356 | J22: 13734.3 | K22: =K20*(1-K21) -> 12364.73342 | L22: =L20*(1-L21) -> 9791.15 | N22: =N20*(1-N21) -> 39470.19205 | O22: =O20*(1-O21) -> 32385 | P22: =P20*(1-P21) -> 18780.01151 | Q22: =Q20*(1-Q21) -> 19102.05 | R22: =R20*(1-R21) -> 12520.00767 | S22: 13734.3 | T22: =T20*(1-T21) -> 10624.0274 | U22: =U20*(1-U21) -> 9791.15
D23: DIFERENCIA | E23: =IFERROR(F22/E22-1,"") -> -0.1098915661 | G23: =IFERROR(H22/G22-1,"") -> -0.01707066274 | I23: =IFERROR(J22/I22-1,"") -> -0.05319107646 | K23: =IFERROR(L22/K22-1,"") -> -0.2081390141 | N23: =IFERROR(O22/N22-1,"") -> -0.1795074127 | P23: =IFERROR(Q22/P22-1,"") -> 0.01714793908 | R23: =IFERROR(S22/R22-1,"") -> 0.09698814575 | T23: =IFERROR(U22/T22-1,"") -> -0.07839563718
I26: =I20/1.2154 -> 14644.25715 | K26: =K20/1.2154 -> 12482.68229

Sheet Recordatorios PClemente (hidden)
B2: Aclaración a futuro:
B3: - Pacífico: Se deben poner las primas netas.
B4: - Tener cuidado al eliminar hojas, porque la macros está a nivel #Hoja

Sheet Datos (hidden)
A1: PRODUCTOS | B1: FINANCIAMIENTOS JUN 2022 | D1: PRIMAS NETA PACIFICO 2019 | E1: TIT | F1: MEDICVIDA INTERNACIONAL | G1: MEDICVIDA NACIONAL | H1: MULTISALUD | I1: RED PREFERENTE | J1: HIJO | K1: MEDICVIDA INTERNACIONAL | L1: MEDICVIDA NACIONAL | M1: MULTISALUD | N1: RED PREFERENTE | O1: RIMAC 2023 | P1: TIT | Q1: MEDICVIDA INTERNACIONAL | R1: MEDICVIDA NACIONAL | S1: MULTISALUD | T1: RED PREFERENTE | U1: HIJO | V1: MEDICVIDA INTERNACIONAL | W1: MEDICVIDA NACIONAL | X1: MULTISALUD | Y1: RED PREFERENTE | AA1: PACÍFICO 2023 (TARIFARIO ANTIGUO) | AB1: TIT | AC1: MEDICVIDA INTERNACIONAL | AD1: MEDICVIDA NACIONAL | AE1: MULTISALUD | AF1: RED PREFERENTE | AG1: HIJO | AH1: MEDICVIDA INTERNACIONAL | AI1: MEDICVIDA NACIONAL | AJ1: MULTISALUD | AK1: RED PREFERENTE | AM1: PACÍFICO 2023 (TARIFARIO ACTUAL) | AN1: TIT | AO1: MEDICVIDA INTERNACIONAL | AP1: MEDICVIDA NACIONAL | AQ1: MULTISALUD | AR1: RED PREFERENTE | AS1: HIJO | AT1: MEDICVIDA INTERNACIONAL | AU1: MEDICVIDA NACIONAL | AV1: MULTISALUD | AW1: RED PREFERENTE
A2: MEDICVIDA INTERNACIONAL | B2: AL CONTADO | C2: 1 | E2: 0 | F2: 5795.867152 | G2: 2979.915287 | H2: 2140.65 | I2: 1707.759016 | J2: 0 | K2: 4721.366156 | L2: 2383.983327 | M2: 1655.543977 | N2: 1475.132419 | P2: 0 | Q2: 7972 | R2: 4243 | S2: 3130 | T2: 2585 | U2: 0 | V2: 7972 | W2: 4243 | X2: 3130 | Y2: 2585 | AB2: 0 | AC2: 8266.786288 | AD2: 3506.37143 | AE2: 2462.710286 | AF2: 2227.577144 | AG2: 0 | AH2: 6253.716573 | AI2: 3217.61143 | AJ2: 2334.830858 | AK2: 2029.575288 | AN2: 0 | AO2: 8448.292574 | AP2: 3572.373715 | AQ2: 2524.587429 | AR2: 2285.329144 | AS2: 0 | AT2: 6534.226288 | AU2: 3357.866287 | AV2: 2466.835429 | AW2: 2285.329144
A3: MEDICVIDA NACIONAL | B3: 4 CUOTAS | C3: 4 | E3: 1 | F3: 5795.867152 | G3: 2979.915287 | H3: 2140.65 | I3: 1707.759016 | J3: 1 | K3: 4721.366156 | L3: 2383.983327 | M3: 1655.543977 | N3: 1475.132419 | P3: 1 | Q3: 7972 | R3: 4243 | S3: 3130 | T3: 2585 | U3: 1 | V3: 7972 | W3: 4243 | X3: 3130 | Y3: 2585 | AB3: 1 | AC3: 8266.786288 | AD3: 3506.37143 | AE3: 2462.710286 | AF3: 2227.577144 | AG3: 1 | AH3: 6253.716573 | AI3: 3217.61143 | AJ3: 2334.830858 | AK3: 2029.575288 | AN3: 1 | AO3: 8448.292574 | AP3: 3572.373715 | AQ3: 2524.587429 | AR3: 2285.329144 | AS3: 1 | AT3: 6534.226288 | AU3: 3357.866287 | AV3: 2466.835429 | AW3: 2285.329144
A4: MULTISALUD | B4: 6 CUOTAS (INTERÉS 4%) | C4: 5.805671792 | E4: 2 | F4: 5795.867152 | G4: 2979.915287 | H4: 2140.65 | I4: 1707.759016 | J4: 2 | K4: 4721.366156 | L4: 2383.983327 | M4: 1655.543977 | N4: 1475.132419 | P4: 2 | Q4: 7972 | R4: 4243 | S4: 3130 | T4: 2585 | U4: 2 | V4: 7972 | W4: 4243 | X4: 3130 | Y4: 2585 | AB4: 2 | AC4: 8266.786288 | AD4: 3506.37143 | AE4: 2462.710286 | AF4: 2227.577144 | AG4: 2 | AH4: 6253.716573 | AI4: 3217.61143 | AJ4: 2334.830858 | AK4: 2029.575288 | AN4: 2 | AO4: 8448.292574 | AP4: 3572.373715 | AQ4: 2524.587429 | AR4: 2285.329144 | AS4: 2 | AT4: 6534.226288 | AU4: 3357.866287 | AV4: 2466.835429 | AW4: 2285.329144
A5: RED PREFERENTE | B5: 10 CUOTAS (INTERÉS 4%) | C5: 9.497329567 | E5: 3 | F5: 5795.867152 | G5: 2979.915287 | H5: 2140.65 | I5: 1707.759016 | J5: 3 | K5: 4721.366156 | L5: 2383.983327 | M5: 1655.543977 | N5: 1475.132419 | P5: 3 | Q5: 7972 | R5: 4243 | S5: 3130 | T5: 2585 | U5: 3 | V5: 7972 | W5: 4243 | X5: 3130 | Y5: 2585 | AB5: 3 | AC5: 8266.786288 | AD5: 3506.37143 | AE5: 2462.710286 | AF5: 2227.577144 | AG5: 3 | AH5: 6253.716573 | AI5: 3217.61143 | AJ5: 2334.830858 | AK5: 2029.575288 | AN5: 3 | AO5: 8448.292574 | AP5: 3572.373715 | AQ5: 2524.587429 | AR5: 2285.329144 | AS5: 3 | AT5: 6534.226288 | AU5: 3357.866287 | AV5: 2466.835429 | AW5: 2285.329144
B6: 12 CUOTAS (INTERÉS 4%) | C6: 11.29151599 | E6: 4 | F6: 5795.867152 | G6: 2979.915287 | H6: 2140.65 | I6: 1707.759016 | J6: 4 | K6: 4721.366156 | L6: 2383.983327 | M6: 1655.543977 | N6: 1475.132419 | P6: 4 | Q6: 7972 | R6: 4243 | S6: 3130 | T6: 2585 | U6: 4 | V6: 7972 | W6: 4243 | X6: 3130 | Y6: 2585 | AB6: 4 | AC6: 8266.786288 | AD6: 3506.37143 | AE6: 2462.710286 | AF6: 2227.577144 | AG6: 4 | AH6: 6253.716573 | AI6: 3217.61143 | AJ6: 2334.830858 | AK6: 2029.575288 | AN6: 4 | AO6: 8448.292574 | AP6: 3572.373715 | AQ6: 2524.587429 | AR6: 2285.329144 | AS6: 4 | AT6: 6534.226288 | AU6: 3357.866287 | AV6: 2466.835429 | AW6: 2285.329144
B7: 12 CUOTAS (SIN INTERESES) | C7: 12 | E7: 5 | F7: 5498.041108 | G7: 2791.41832 | H7: 1990.56 | I7: 1579.967525 | J7: 5 | K7: 4345.802939 | L7: 2185.09508 | M7: 1516.188423 | N7: 1289.9808 | P7: 5 | Q7: 7972 | R7: 4243 | S7: 3130 | T7: 2585 | U7: 5 | V7: 7972 | W7: 4243 | X7: 3130 | Y7: 2585 | AB7: 5 | AC7: 8266.786288 | AD7: 3506.37143 | AE7: 2462.710286 | AF7: 2227.577144 | AG7: 5 | AH7: 6253.716573 | AI7: 3217.61143 | AJ7: 2334.830858 | AK7: 2029.575288 | AN7: 5 | AO7: 8448.292574 | AP7: 3572.373715 | AQ7: 2524.587429 | AR7: 2285.329144 | AS7: 5 | AT7: 6534.226288 | AU7: 3357.866287 | AV7: 2466.835429 | AW7: 2285.329144
E8: 6 | F8: 5819.487918 | G8: 2939.343079 | H8: 2020.512 | I8: 1603.202342 | J8: 6 | K8: 4601.799091 | L8: 2271.40262 | M8: 1572.766778 | N8: 1328.441439 | P8: 6 | Q8: 7972 | R8: 4243 | S8: 3130 | T8: 2585 | U8: 6 | V8: 7972 | W8: 4243 | X8: 3130 | Y8: 2585 | AB8: 6 | AC8: 8266.786288 | AD8: 3506.37143 | AE8: 2462.710286 | AF8: 2227.577144 | AG8: 6 | AH8: 6253.716573 | AI8: 3217.61143 | AJ8: 2334.830858 | AK8: 2029.575288 | AN8: 6 | AO8: 8448.292574 | AP8: 3572.373715 | AQ8: 2524.587429 | AR8: 2285.329144 | AS8: 6 | AT8: 6534.226288 | AU8: 3357.866287 | AV8: 2466.835429 | AW8: 2285.329144
E9: 7 | F9: 5819.487918 | G9: 2939.343079 | H9: 2020.512 | I9: 1603.202342 | J9: 7 | K9: 4601.799091 | L9: 2271.40262 | M9: 1572.766778 | N9: 1328.441439 | P9: 7 | Q9: 7972 | R9: 4243 | S9: 3130 | T9: 2585 | U9: 7 | V9: 7972 | W9: 4243 | X9: 3130 | Y9: 2585 | AB9: 7 | AC9: 8266.786288 | AD9: 3506.37143 | AE9: 2462.710286 | AF9: 2227.577144 | AG9: 7 | AH9: 6253.716573 | AI9: 3217.61143 | AJ9: 2334.830858 | AK9: 2029.575288 | AN9: 7 | AO9: 8448.292574 | AP9: 3572.373715 | AQ9: 2524.587429 | AR9: 2285.329144 | AS9: 7 | AT9: 6534.226288 | AU9: 3357.866287 | AV9: 2466.835429 | AW9: 2285.329144
E10: 8 | F10: 5819.487918 | G10: 2939.343079 | H10: 2020.512 | I10: 1603.202342 | J10: 8 | K10: 4601.799091 | L10: 2271.40262 | M10: 1572.766778 | N10: 1328.441439 | P10: 8 | Q10: 7972 | R10: 4243 | S10: 3130 | T10: 2585 | U10: 8 | V10: 7972 | W10: 4243 | X10: 3130 | Y10: 2585 | AB10: 8 | AC10: 8266.786288 | AD10: 3506.37143 | AE10: 2462.710286 | AF10: 2227.577144 | AG10: 8 | AH10: 6253.716573 | AI10: 3217.61143 | AJ10: 2334.830858 | AK10: 2029.575288 | AN10: 8 | AO10: 8448.292574 | AP10: 3572.373715 | AQ10: 2524.587429 | AR10: 2285.329144 | AS10: 8 | AT10: 6534.226288 | AU10: 3357.866287 | AV10: 2466.835429 | AW10: 2285.329144
A11: EQUIVALENCIA DE PRODUCTOS | E11: 9 | F11: 5819.487918 | G11: 2939.343079 | H11: 2020.512 | I11: 1603.202342 | J11: 9 | K11: 4601.799091 | L11: 2271.40262 | M11: 1572.766778 | N11: 1328.441439 | P11: 9 | Q11: 7972 | R11: 4243 | S11: 3130 | T11: 2585 | U11: 9 | V11: 7972 | W11: 4243 | X11: 3130 | Y11: 2585 | AB11: 9 | AC11: 8266.786288 | AD11: 3506.37143 | AE11: 2462.710286 | AF11: 2227.577144 | AG11: 9 | AH11: 6253.716573 | AI11: 3217.61143 | AJ11: 2334.830858 | AK11: 2029.575288 | AN11: 9 | AO11: 8448.292574 | AP11: 3572.373715 | AQ11: 2524.587429 | AR11: 2285.329144 | AS11: 9 | AT11: 6534.226288 | AU11: 3357.866287 | AV11: 2466.835429 | AW11: 2285.329144
A12: MEDICVIDA INTERNACIONAL | B12: SALUD PREFERENCIAL | E12: 10 | F12: 5819.487918 | G12: 2939.343079 | H12: 2020.512 | I12: 1603.202342 | J12: 10 | K12: 4601.799091 | L12: 2271.40262 | M12: 1572.766778 | N12: 1328.441439 | P12: 10 | Q12: 7972 | R12: 4243 | S12: 3130 | T12: 2585 | U12: 10 | V12: 7972 | W12: 4243 | X12: 3130 | Y12: 2585 | AB12: 10 | AC12: 8266.786288 | AD12: 3506.37143 | AE12: 2462.710286 | AF12: 2227.577144 | AG12: 10 | AH12: 6253.716573 | AI12: 3217.61143 | AJ12: 2334.830858 | AK12: 2029.575288 | AN12: 10 | AO12: 8448.292574 | AP12: 3572.373715 | AQ12: 2524.587429 | AR12: 2285.329144 | AS12: 10 | AT12: 6534.226288 | AU12: 3357.866287 | AV12: 2466.835429 | AW12: 2285.329144
A13: MEDICVIDA NACIONAL | B13: FULL SALUD | E13: 11 | F13: 5819.487918 | G13: 2939.343079 | H13: 2020.512 | I13: 1603.202342 | J13: 11 | K13: =((Datos!V2/(Datos!AC2*1.2154))-1)/VLOOKUP($C$9,Datos!$A$31:$B$37,2,0) ->  | L13: 2271.40262 | M13: 1572.766778 | N13: 1328.441439 | P13: 11 | Q13: 7972 | R13: 4243 | S13: 3130 | T13: 2585 | U13: 11 | V13: 7972 | W13: 4243 | X13: 3130 | Y13: 2585 | AB13: 11 | AC13: 8266.786288 | AD13: 3506.37143 | AE13: 2462.710286 | AF13: 2227.577144 | AG13: 11 | AH13: 6253.716573 | AI13: 3217.61143 | AJ13: 2334.830858 | AK13: 2029.575288 | AN13: 11 | AO13: 8448.292574 | AP13: 3572.373715 | AQ13: 2524.587429 | AR13: 2285.329144 | AS13: 11 | AT13: 6534.226288 | AU13: 3357.866287 | AV13: 2466.835429 | AW13: 2285.329144
A14: MULTISALUD | B14: SALUD RED MÉDICA | E14: 12 | F14: 5819.487918 | G14: 2939.343079 | H14: 2020.512 | I14: 1603.202342 | J14: 12 | K14: 4601.799091 | L14: 2271.40262 | M14: 1572.766778 | N14: 1328.441439 | P14: 12 | Q14: 7972 | R14: 4243 | S14: 3130 | T14: 2585 | U14: 12 | V14: 7972 | W14: 4243 | X14: 3130 | Y14: 2585 | AB14: 12 | AC14: 8266.786288 | AD14: 3506.37143 | AE14: 2462.710286 | AF14: 2227.577144 | AG14: 12 | AH14: 6253.716573 | AI14: 3217.61143 | AJ14: 2334.830858 | AK14: 2029.575288 | AN14: 12 | AO14: 8448.292574 | AP14: 3572.373715 | AQ14: 2524.587429 | AR14: 2285.329144 | AS14: 12 | AT14: 6534.226288 | AU14: 3357.866287 | AV14: 2466.835429 | AW14: 2285.329144
A15: RED PREFERENTE | B15: SALUD RED PREFERENTE | E15: 13 | F15: 5819.487918 | G15: 2939.343079 | H15: 2020.512 | I15: 1603.202342 | J15: 13 | K15: 4601.799091 | L15: 2271.40262 | M15: 1572.766778 | N15: 1328.441439 | P15: 13 | Q15: 7972 | R15: 4243 | S15: 3130 | T15: 2585 | U15: 13 | V15: 7972 | W15: 4243 | X15: 3130 | Y15: 2585 | AB15: 13 | AC15: 8266.786288 | AD15: 3506.37143 | AE15: 2462.710286 | AF15: 2227.577144 | AG15: 13 | AH15: 6253.716573 | AI15: 3217.61143 | AJ15: 2334.830858 | AK15: 2029.575288 | AN15: 13 | AO15: 8448.292574 | AP15: 3572.373715 | AQ15: 2524.587429 | AR15: 2285.329144 | AS15: 13 | AT15: 6534.226288 | AU15: 3357.866287 | AV15: 2466.835429 | AW15: 2285.329144
E16: 14 | F16: 5819.487918 | G16: 2939.343079 | H16: 2020.512 | I16: 1603.202342 | J16: 14 | K16: 4601.799091 | L16: 2271.40262 | M16: 1572.766778 | N16: 1328.441439 | P16: 14 | Q16: 7972 | R16: 4243 | S16: 3130 | T16: 2585 | U16: 14 | V16: 7972 | W16: 4243 | X16: 3130 | Y16: 2585 | AB16: 14 | AC16: 8266.786288 | AD16: 3506.37143 | AE16: 2462.710286 | AF16: 2227.577144 | AG16: 14 | AH16: 6253.716573 | AI16: 3217.61143 | AJ16: 2334.830858 | AK16: 2029.575288 | AN16: 14 | AO16: 8448.292574 | AP16: 3572.373715 | AQ16: 2524.587429 | AR16: 2285.329144 | AS16: 14 | AT16: 6534.226288 | AU16: 3357.866287 | AV16: 2466.835429 | AW16: 2285.329144
A17: FINANCIAMIENTOS (RIMAC) | E17: 15 | F17: 5819.487918 | G17: 2939.343079 | H17: 2020.512 | I17: 1603.202342 | J17: 15 | K17: 4601.799091 | L17: 2271.40262 | M17: 1572.766778 | N17: 1328.441439 | P17: 15 | Q17: 7972 | R17: 4243 | S17: 3130 | T17: 2585 | U17: 15 | V17: 7972 | W17: 4243 | X17: 3130 | Y17: 2585 | AB17: 15 | AC17: 8266.786288 | AD17: 3506.37143 | AE17: 2462.710286 | AF17: 2227.577144 | AG17: 15 | AH17: 6253.716573 | AI17: 3217.61143 | AJ17: 2334.830858 | AK17: 2029.575288 | AN17: 15 | AO17: 8448.292574 | AP17: 3572.373715 | AQ17: 2524.587429 | AR17: 2285.329144 | AS17: 15 | AT17: 6534.226288 | AU17: 3357.866287 | AV17: 2466.835429 | AW17: 2285.329144
A18: AL CONTADO | B18: 1 | E18: 16 | F18: 5819.487918 | G18: 2939.343079 | H18: 2020.512 | I18: 1603.202342 | J18: 16 | K18: 4601.799091 | L18: 2271.40262 | M18: 1572.766778 | N18: 1328.441439 | P18: 16 | Q18: 7972 | R18: 4243 | S18: 3130 | T18: 2585 | U18: 16 | V18: 7972 | W18: 4243 | X18: 3130 | Y18: 2585 | AB18: 16 | AC18: 8266.786288 | AD18: 3506.37143 | AE18: 2462.710286 | AF18: 2227.577144 | AG18: 16 | AH18: 6253.716573 | AI18: 3217.61143 | AJ18: 2334.830858 | AK18: 2029.575288 | AN18: 16 | AO18: 8448.292574 | AP18: 3572.373715 | AQ18: 2524.587429 | AR18: 2285.329144 | AS18: 16 | AT18: 6534.226288 | AU18: 3357.866287 | AV18: 2466.835429 | AW18: 2285.329144
A19: 4 CUOTAS | B19: 4 | E19: 17 | F19: 5819.487918 | G19: 2939.343079 | H19: 2020.512 | I19: 1603.202342 | J19: 17 | K19: 4601.799091 | L19: 2271.40262 | M19: 1572.766778 | N19: 1328.441439 | P19: 17 | Q19: 7972 | R19: 4243 | S19: 3130 | T19: 2585 | U19: 17 | V19: 7972 | W19: 4243 | X19: 3130 | Y19: 2585 | AB19: 17 | AC19: 8266.786288 | AD19: 3506.37143 | AE19: 2462.710286 | AF19: 2227.577144 | AG19: 17 | AH19: 6253.716573 | AI19: 3217.61143 | AJ19: 2334.830858 | AK19: 2029.575288 | AN19: 17 | AO19: 8448.292574 | AP19: 3572.373715 | AQ19: 2524.587429 | AR19: 2285.329144 | AS19: 17 | AT19: 6534.226288 | AU19: 3357.866287 | AV19: 2466.835429 | AW19: 2285.329144
A20: 6 CUOTAS | B20: 6 | E20: 18 | F20: 5929.578806 | G20: 2953.97629 | H20: 2029.9776 | I20: 1613.011881 | J20: 18 | K20: 4921.666538 | L20: 2523.032298 | M20: 1747.518642 | N20: 1415.178 | P20: 18 | Q20: 7972 | R20: 4243 | S20: 3130 | T20: 2585 | U20: 18 | V20: 7972 | W20: 4243 | X20: 3130 | Y20: 2585 | AB20: 18 | AC20: 8464.793146 | AD20: 3654.876573 | AE20: 2491.586286 | AF20: 2310.080001 | AG20: 18 | AH20: 6319.718859 | AI20: 3300.114287 | AJ20: 2450.334858 | AK20: 2120.323233 | AN20: 18 | AO20: 8629.79886 | AP20: 3613.625144 | AQ20: 2549.338287 | AR20: 2326.580572 | AS20: 18 | AT20: 6583.728002 | AU20: 3399.117715 | AV20: 2532.837715 | AW20: 2326.580572
A21: 10 CUOTAS | B21: 10 | E21: 19 | F21: 5991.91719 | G21: 2982.476628 | H21: 2052.197077 | I21: 1624.281792 | J21: 19 | K21: 4921.666538 | L21: 2523.032298 | M21: 1747.518642 | N21: 1415.178 | P21: 19 | Q21: 7972 | R21: 4243 | S21: 3130 | T21: 2585 | U21: 19 | V21: 7972 | W21: 4243 | X21: 3130 | Y21: 2585 | AB21: 19 | AC21: 8464.793146 | AD21: 3654.876573 | AE21: 2491.586286 | AF21: 2310.080001 | AG21: 19 | AH21: 6319.718859 | AI21: 3300.114287 | AJ21: 2450.334858 | AK21: 2120.323233 | AN21: 19 | AO21: 8629.79886 | AP21: 3613.625144 | AQ21: 2549.338287 | AR21: 2326.580572 | AS21: 19 | AT21: 6583.728002 | AU21: 3399.117715 | AV21: 2532.837715 | AW21: 2326.580572
A22: 12 CUOTAS (CON INTERESES) | B22: 12 | E22: 20 | F22: 6028.567701 | G22: 3018.577701 | H22: 2079.126 | I22: 1635.701627 | J22: 20 | K22: 4921.666538 | L22: 2523.032298 | M22: 1747.518642 | N22: 1415.178 | P22: 20 | Q22: 7972 | R22: 4243 | S22: 3130 | T22: 2585 | U22: 20 | V22: 7972 | W22: 4243 | X22: 3130 | Y22: 2585 | AB22: 20 | AC22: 8464.793146 | AD22: 3654.876573 | AE22: 2491.586286 | AF22: 2310.080001 | AG22: 20 | AH22: 6319.718859 | AI22: 3300.114287 | AJ22: 2450.334858 | AK22: 2120.323233 | AN22: 20 | AO22: 8629.79886 | AP22: 3613.625144 | AQ22: 2549.338287 | AR22: 2326.580572 | AS22: 20 | AT22: 6583.728002 | AU22: 3399.117715 | AV22: 2532.837715 | AW22: 2326.580572
A23: 12 CUOTAS (SIN INTERESES) | B23: 12 | E23: 21 | F23: 6047.508443 | G23: 3047.124622 | H23: 2106.0384 | I23: 1646.680109 | J23: 21 | K23: 4921.666538 | L23: 2523.032298 | M23: 1747.518642 | N23: 1415.178 | P23: 21 | Q23: 7972 | R23: 4243 | S23: 3130 | T23: 2585 | U23: 21 | V23: 7972 | W23: 4243 | X23: 3130 | Y23: 2585 | AB23: 21 | AC23: 8464.793146 | AD23: 3654.876573 | AE23: 2491.586286 | AF23: 2310.080001 | AG23: 21 | AH23: 6319.718859 | AI23: 3300.114287 | AJ23: 2450.334858 | AK23: 2120.323233 | AN23: 21 | AO23: 8629.79886 | AP23: 3613.625144 | AQ23: 2549.338287 | AR23: 2326.580572 | AS23: 21 | AT23: 6583.728002 | AU23: 3399.117715 | AV23: 2532.837715 | AW23: 2326.580572
E24: 22 | F24: 6101.083685 | G24: 3078.672025 | H24: 2132.9328 | I24: 1658.6755 | J24: 22 | K24: 4921.666538 | L24: 2523.032298 | M24: 1747.518642 | N24: 1415.178 | P24: 22 | Q24: 7972 | R24: 4243 | S24: 3130 | T24: 2585 | U24: 22 | V24: 7972 | W24: 4243 | X24: 3130 | Y24: 2585 | AB24: 22 | AC24: 8464.793146 | AD24: 3654.876573 | AE24: 2491.586286 | AF24: 2310.080001 | AG24: 22 | AH24: 6319.718859 | AI24: 3300.114287 | AJ24: 2450.334858 | AK24: 2120.323233 | AN24: 22 | AO24: 8629.79886 | AP24: 3613.625144 | AQ24: 2549.338287 | AR24: 2326.580572 | AS24: 22 | AT24: 6583.728002 | AU24: 3399.117715 | AV24: 2532.837715 | AW24: 2326.580572
E25: 23 | F25: 6128.355567 | G25: 3110.604477 | H25: 2159.3832 | I25: 1670.201357 | J25: 23 | K25: 4921.666538 | L25: 2523.032298 | M25: 1747.518642 | N25: 1415.178 | P25: 23 | Q25: 7972 | R25: 4243 | S25: 3130 | T25: 2585 | U25: 23 | V25: 7972 | W25: 4243 | X25: 3130 | Y25: 2585 | AB25: 23 | AC25: 8464.793146 | AD25: 3654.876573 | AE25: 2491.586286 | AF25: 2310.080001 | AG25: 23 | AH25: 6319.718859 | AI25: 3300.114287 | AJ25: 2450.334858 | AK25: 2120.323233 | AN25: 23 | AO25: 8629.79886 | AP25: 3613.625144 | AQ25: 2549.338287 | AR25: 2326.580572 | AS25: 23 | AT25: 6583.728002 | AU25: 3399.117715 | AV25: 2532.837715 | AW25: 2326.580572
E26: 24 | F26: 6150.116773 | G26: 3122.314487 | H26: 2184.8952 | I26: 1681.193463 | J26: 24 | K26: 4921.666538 | L26: 2523.032298 | M26: 1747.518642 | N26: 1415.178 | P26: 24 | Q26: 7972 | R26: 4243 | S26: 3130 | T26: 2585 | U26: 24 | V26: 7972 | W26: 4243 | X26: 3130 | Y26: 2585 | AB26: 24 | AC26: 8464.793146 | AD26: 3654.876573 | AE26: 2491.586286 | AF26: 2310.080001 | AG26: 24 | AH26: 6319.718859 | AI26: 3300.114287 | AJ26: 2450.334858 | AK26: 2120.323233 | AN26: 24 | AO26: 8629.79886 | AP26: 3613.625144 | AQ26: 2549.338287 | AR26: 2326.580572 | AS26: 24 | AT26: 6583.728002 | AU26: 3399.117715 | AV26: 2532.837715 | AW26: 2326.580572
A27: Titular | E27: 25 | F27: 6177.812853 | G27: 3131.125306 | H27: 2193.9 | I27: 1692.702477 | J27: 25 | K27: 4921.666538 | L27: 2523.032298 | M27: 1747.518642 | N27: 1415.178 | P27: 25 | Q27: 7972 | R27: 4243 | S27: 3130 | T27: 2585 | U27: 25 | V27: 7972 | W27: 4243 | X27: 3130 | Y27: 2585 | AB27: 25 | AC27: 8464.793146 | AD27: 3654.876573 | AE27: 2491.586286 | AF27: 2310.080001 | AG27: 25 | AH27: 6319.718859 | AI27: 3300.114287 | AJ27: 2450.334858 | AK27: 2120.323233 | AN27: 25 | AO27: 8629.79886 | AP27: 3613.625144 | AQ27: 2549.338287 | AR27: 2326.580572 | AS27: 25 | AT27: 6583.728002 | AU27: 3399.117715 | AV27: 2532.837715 | AW27: 2326.580572
A28: Cónyuge/Conviviente | E28: 26 | F28: 6222.95279 | G28: 3142.824484 | H28: 2203.416 | I28: 1704.901499 | J28: 26 | K28: 4921.666538 | L28: 2523.032298 | M28: 1747.518642 | N28: 1415.178 | P28: 26 | Q28: 8700 | R28: 4578 | S28: 3523 | T28: 2684 | U28: 26 | V28: 8700 | W28: 4578 | X28: 3523 | Y28: 2684 | AB28: 26 | AC28: 8563.796574 | AD28: 3753.880001 | AE28: 2706.093715 | AF28: 2351.331429 | AG28: 26 | AH28: 6550.726859 | AI28: 3547.622858 | AJ28: 2574.089144 | AK28: 2227.576274 | AN28: 26 | AO28: 8654.549717 | AP28: 3762.130287 | AQ28: 2763.845715 | AR28: 2458.585144 | AS28: 26 | AT28: 7029.243431 | AU28: 3654.876573 | AV28: 2780.346287 | AW28: 2458.585144
A29: Hijo(a) | E29: 27 | F29: 6269.434485 | G29: 3158.541561 | H29: 2229.2928 | I29: 1717.59134 | J29: 27 | K29: 6269.434485 | L29: 3158.541561 | M29: 2229.2928 | N29: 1717.59134 | P29: 27 | Q29: 9619 | R29: 4827 | S29: 3774 | T29: 2728 | U29: 27 | V29: 9619 | W29: 4827 | X29: 3774 | Y29: 2728 | AB29: 27 | AC29: 8687.55086 | AD29: 3852.88343 | AE29: 2772.096001 | AF29: 2450.334858 | AG29: 27 | AH29: =AC29 -> 8687.55086 | AI29: =AD29 -> 3852.88343 | AJ29: =AE29 -> 2772.096001 | AK29: =AF29 -> 2450.334858 | AN29: 27 | AO29: 8712.301717 | AP29: 4017.889144 | AQ29: 3102.10743 | AR29: 2631.841144 | AS29: 27 | AT29: =AO29 -> 8712.301717 | AU29: =AP29 -> 4017.889144 | AV29: 3102.10743 | AW29: 2631.841144
E30: 28 | F30: 6322.101644 | G30: 3172.424022 | H30: 2254.518 | I30: 1730.222455 | J30: 28 | K30: 6322.101644 | L30: 3172.424022 | M30: 2254.518 | N30: 1730.222455 | P30: 28 | Q30: 10390 | R30: 5064 | S30: 3970 | T30: 2772 | U30: 28 | V30: 10390 | W30: 5064 | X30: 3970 | Y30: 2772 | AB30: 28 | AC30: 8803.05486 | AD30: 3951.886858 | AE30: 2829.848001 | AF30: 2524.587429 | AG30: 28 | AH30: =AC30 -> 8803.05486 | AI30: =AD30 -> 3951.886858 | AJ30: =AE30 -> 2829.848001 | AK30: =AF30 -> 2524.587429 | AN30: 28 | AO30: 8893.808003 | AP30: 4207.645716 | AQ30: 3209.361144 | AR30: 2681.342858 | AS30: 28 | AT30: =AO30 -> 8893.808003 | AU30: =AP30 -> 4207.645716 | AV30: =AQ30 -> 3209.361144 | AW30: =AR30 -> 2681.342858
A31: FINANCIAMIENTOS JUN 2022 | B31: FACTOR PACÍFICO | C31: FACTOR RÍMAC | E31: 29 | F31: 6379.881887 | G31: 3183.285124 | H31: 2276.64 | I31: 1741.80272 | J31: 29 | K31: 6379.881887 | L31: 3183.285124 | M31: 2276.64 | N31: 1741.80272 | P31: 29 | Q31: 10876 | R31: 5345 | S31: 4123 | T31: 2816 | U31: 29 | V31: 10876 | W31: 5345 | X31: 4123 | Y31: 2816 | AB31: 29 | AC31: 8926.809146 | AD31: 4050.890287 | AE31: 2895.850287 | AF31: 2590.589715 | AG31: 29 | AH31: =AC31 -> 8926.809146 | AI31: 4050.890287 | AJ31: 2895.850287 | AK31: 2590.589715 | AN31: 29 | AO31: 9075.314289 | AP31: 4372.65143 | AQ31: 3316.614858 | AR31: 2755.595429 | AS31: 29 | AT31: 9075.314289 | AU31: =AP31 -> 4372.65143 | AV31: 3316.614858 | AW31: 2755.595429
A32: AL CONTADO | B32: 1 | C32: 1 | E32: 30 | F32: 6456.60492 | G32: 3219.196084 | H32: 2298.643727 | I32: 1753.412215 | J32: 30 | K32: 6456.60492 | L32: 3219.196084 | M32: 2298.643727 | N32: 1753.412215 | P32: 30 | Q32: 11224 | R32: 5658 | S32: 4156 | T32: 2914 | U32: 30 | V32: 11224 | W32: 5658 | X32: 4156 | Y32: 2914 | AB32: 30 | AC32: 9091.81486 | AD32: 4149.893716 | AE32: 2961.852572 | AF32: 2631.841144 | AG32: 30 | AH32: 9091.81486 | AI32: 4149.893716 | AJ32: 2961.852572 | AK32: 2631.841144 | AN32: 30 | AO32: 9248.570289 | AP32: 4661.41143 | AQ32: 3349.616001 | AR32: 2829.848001 | AS32: 30 | AT32: 9248.570289 | AU32: 4661.41143 | AV32: 3349.616001 | AW32: 2829.848001
A33: 4 CUOTAS | B33: 4 | C33: 4 | E33: 31 | F33: 6541.540369 | G33: 3261.934518 | H33: 2321.084489 | I33: 1784.018454 | J33: 31 | K33: 6541.540369 | L33: 3261.934518 | M33: 2321.084489 | N33: 1784.018454 | P33: 31 | Q33: 11383 | R33: 5853 | S33: 4221 | T33: 2936 | U33: 31 | V33: 11383 | W33: 5853 | X33: 4221 | Y33: 2936 | AB33: 31 | AC33: 9240.320003 | AD33: 4257.14743 | AE33: 3027.854858 | AF33: 2706.093715 | AG33: 31 | AH33: 9240.320003 | AI33: 4257.14743 | AJ33: 3027.854858 | AK33: 2706.093715 | AN33: 31 | AO33: 9430.076574 | AP33: 4867.668573 | AQ33: 3399.117715 | AR33: 2912.350858 | AS33: 31 | AT33: 9430.076574 | AU33: 4867.668573 | AV33: 3399.117715 | AW33: 2912.350858
A34: 6 CUOTAS (INTERÉS 4%) | B34: 5.931847245 | C34: 6 | E34: 32 | F34: 6631.424935 | G34: 3302.730968 | H34: 2345.436 | I34: 1840.496342 | J34: 32 | K34: 6631.424935 | L34: 3302.730968 | M34: 2345.436 | N34: 1840.496342 | P34: 32 | Q34: 11499 | R34: 6090 | S34: 4254 | T34: 2980 | U34: 32 | V34: 11499 | W34: 6090 | X34: 4254 | Y34: 2980 | AB34: 32 | AC34: 9397.075432 | AD34: 4372.65143 | AE34: 3102.10743 | AF34: 2772.096001 | AG34: 32 | AH34: 9397.075432 | AI34: 4372.65143 | AJ34: 3102.10743 | AK34: 2772.096001 | AN34: 32 | AO34: 9603.332574 | AP34: 5032.674287 | AQ34: 3432.118858 | AR34: 2970.102858 | AS34: 32 | AT34: 9603.332574 | AU34: 5032.674287 | AV34: 3432.118858 | AW34: 2970.102858
A35: 10 CUOTAS (INTERÉS 4%) | B35: 9.822277276 | C35: 10 | E35: 33 | F35: 6726.698146 | G35: 3349.094375 | H35: 2365.857814 | I35: 1908.515593 | J35: 33 | K35: 6726.698146 | L35: 3349.094375 | M35: 2365.857814 | N35: 1908.515593 | P35: 33 | Q35: 11604 | R35: 6241 | S35: 4308 | T35: 3002 | U35: 33 | V35: 11604 | W35: 6241 | X35: 4308 | Y35: 3002 | AB35: 33 | AC35: 9553.83086 | AD35: 4504.656001 | AE35: 3176.360001 | AF35: 2846.348572 | AG35: 33 | AH35: 9553.83086 | AI35: 4504.656001 | AJ35: 3176.360001 | AK35: 2846.348572 | AN35: 33 | AO35: 9694.085717 | AP35: 5156.428573 | AQ35: 3473.370287 | AR35: 3077.356572 | AS35: 33 | AT35: 9694.085717 | AU35: 5156.428573 | AV35: 3473.370287 | AW35: 3077.356572
A36: 12 CUOTAS (INTERÉS 4%) | B36: 11.74850203 | C36: 12 | E36: 34 | F36: 6841.672052 | G36: 3396.011228 | H36: 2384.652233 | I36: 1974.505288 | J36: 34 | K36: 6841.672052 | L36: 3396.011228 | M36: 2384.652233 | N36: 1974.505288 | P36: 34 | Q36: 11678 | R36: 6371 | S36: 4341 | T36: 3079 | U36: 34 | V36: 11678 | W36: 6371 | X36: 4341 | Y36: 3079 | AB36: 34 | AC36: 9710.586289 | AD36: 4644.910859 | AE36: 3250.612572 | AF36: 2912.350858 | AG36: 34 | AH36: 9710.586289 | AI36: 4644.910859 | AJ36: 3250.612572 | AK36: 2912.350858 | AN36: 34 | AO36: 9875.592003 | AP36: 5255.432002 | AQ36: 3506.37143 | AR36: 3135.108572 | AS36: 34 | AT36: 9875.592003 | AU36: 5255.432002 | AV36: 3506.37143 | AW36: 3135.108572
A37: 12 CUOTAS (SIN INTERESES) | B37: 12 | C37: 12 | E37: 35 | F37: 6963.615594 | G37: 3439.233189 | H37: 2403.520975 | I37: 2043.884718 | J37: 35 | K37: 6963.615594 | L37: 3439.233189 | M37: 2403.520975 | N37: 2043.884718 | P37: 35 | Q37: 11826 | R37: 6479 | S37: 4407 | T37: 3133 | U37: 35 | V37: 11826 | W37: 6479 | X37: 4407 | Y37: 3133 | AB37: 35 | AC37: 9875.592003 | AD37: 4785.165716 | AE37: 3333.11543 | AF37: 2978.353144 | AG37: 35 | AH37: 9875.592003 | AI37: 4785.165716 | AJ37: 3333.11543 | AK37: 2978.353144 | AN37: 35 | AO37: 10007.59657 | AP37: 5337.934859 | AQ37: 3555.873144 | AR37: 3184.610287 | AS37: 35 | AT37: 10007.59657 | AU37: 5337.934859 | AV37: 3555.873144 | AW37: 3184.610287
E38: 36 | F38: 7101.930626 | G38: 3600.525258 | H38: 2444.832 | I38: 2111.5836 | J38: 36 | K38: 7101.930626 | L38: 3600.525258 | M38: 2444.832 | N38: 2111.5836 | P38: 36 | Q38: 12027 | R38: 6565 | S38: 4427 | T38: 3221 | U38: 36 | V38: 12027 | W38: 6565 | X38: 4427 | Y38: 3221 | AB38: 36 | AC38: 10040.59772 | AD38: 4933.670859 | AE38: 3415.618287 | AF38: 3044.35543 | AG38: 36 | AH38: 10040.59772 | AI38: 4933.670859 | AJ38: 3415.618287 | AK38: 3044.35543 | AN38: 36 | AO38: 10139.60115 | AP38: 5445.188573 | AQ38: 3580.624001 | AR38: 3217.61143 | AS38: 36 | AT38: 10139.60115 | AU38: 5445.188573 | AV38: 3580.624001 | AW38: 3217.61143
E39: 37 | F39: 7251.050359 | G39: 3668.578427 | H39: 2466.7632 | I39: 2179.9584 | J39: 37 | K39: 7251.050359 | L39: 3668.578427 | M39: 2466.7632 | N39: 2179.9584 | P39: 37 | Q39: 12354 | R39: 6652 | S39: 4447 | T39: 3243 | U39: 37 | V39: 12354 | W39: 6652 | X39: 4447 | Y39: 3243 | AB39: 37 | AC39: 10213.85372 | AD39: 5098.676573 | AE39: 3498.121144 | AF39: 3118.608001 | AG39: 37 | AH39: 10213.85372 | AI39: 5098.676573 | AJ39: 3498.121144 | AK39: 3118.608001 | AN39: 37 | AO39: 10403.61029 | AP39: 5560.692573 | AQ39: 3605.374858 | AR39: 3250.612572 | AS39: 37 | AT39: 10403.61029 | AU39: 5560.692573 | AV39: 3605.374858 | AW39: 3250.612572
E40: 38 | F40: 7432.340321 | G40: 3746.247967 | H40: 2485.1592 | I40: 2255.1816 | J40: 38 | K40: 7432.340321 | L40: 3746.247967 | M40: 2485.1592 | N40: 2255.1816 | P40: 38 | Q40: 12650 | R40: 6792 | S40: 4467 | T40: 3309 | U40: 38 | V40: 12650 | W40: 6792 | X40: 4467 | Y40: 3309 | AB40: 38 | AC40: 10453.112 | AD40: 5271.932573 | AE40: 3588.874287 | AF40: 3192.860572 | AG40: 38 | AH40: 10453.112 | AI40: 5271.932573 | AJ40: 3588.874287 | AK40: 3192.860572 | AN40: 38 | AO40: 10675.86972 | AP40: 5643.19543 | AQ40: 3638.376001 | AR40: 3283.613715 | AS40: 38 | AT40: 10675.86972 | AU40: 5643.19543 | AV40: 3638.376001 | AW40: 3283.613715
E41: 39 | F41: 7641.4568 | G41: 3828.80398 | H41: 2505.8952 | I41: 2334.3204 | J41: 39 | K41: 7641.4568 | L41: 3828.80398 | M41: 2505.8952 | N41: 2334.3204 | P41: 39 | Q41: 12882 | R41: 6943 | S41: 4487 | T41: 3353 | U41: 39 | V41: 12882 | W41: 6943 | X41: 4487 | Y41: 3353 | AB41: 39 | AC41: 10692.37029 | AD41: 5445.188573 | AE41: 3679.62743 | AF41: 3275.36343 | AG41: 39 | AH41: 10692.37029 | AI41: 5445.188573 | AJ41: 3679.62743 | AK41: 3275.36343 | AN41: 39 | AO41: 10939.87886 | AP41: 5791.700573 | AQ41: 3696.128001 | AR41: 3333.11543 | AS41: 39 | AT41: 10939.87886 | AU41: 5791.700573 | AV41: 3696.128001 | AW41: 3333.11543
E42: 40 | F42: 7856.373256 | G42: 3921.291363 | H42: 2525.6448 | I42: 2412.402 | J42: 40 | K42: 7856.373256 | L42: 3921.291363 | M42: 2525.6448 | N42: 2412.402 | P42: 40 | Q42: 13083 | R42: 7246 | S42: 4540 | T42: 3418 | U42: 40 | V42: 13083 | W42: 7246 | X42: 4540 | Y42: 3418 | AB42: 40 | AC42: 10997.63086 | AD42: 5634.945145 | AE42: 3778.630858 | AF42: 3374.366858 | AG42: 40 | AH42: 10997.63086 | AI42: 5634.945145 | AJ42: 3778.630858 | AK42: 3374.366858 | AN42: 40 | AO42: 11203.888 | AP42: 6022.708573 | AQ42: 3786.881144 | AR42: 3399.117715 | AS42: 40 | AT42: 11203.888 | AU42: 6022.708573 | AV42: 3786.881144 | AW42: 3399.117715
E43: 41 | F43: 8069.232363 | G43: 4011.19913 | H43: 2648.5968 | I43: 2490.4632 | J43: 41 | K43: 8069.232363 | L43: 4011.19913 | M43: 2648.5968 | N43: 2490.4632 | P43: 41 | Q43: 13262 | R43: 7516 | S43: 4911 | T43: 3594 | U43: 41 | V43: 13262 | W43: 7516 | X43: 4911 | Y43: 3594 | AB43: 41 | AC43: 11302.89143 | AD43: 5816.45143 | AE43: 3877.634287 | AF43: 3473.370287 | AG43: 41 | AH43: 11302.89143 | AI43: 5816.45143 | AJ43: 3877.634287 | AK43: 3473.370287 | AN43: 41 | AO43: 11385.39429 | AP43: 6352.720002 | AQ43: 4199.39543 | AR43: 3745.629715 | AS43: 41 | AT43: 11385.39429 | AU43: 6352.720002 | AV43: 4199.39543 | AW43: 3745.629715
E44: 42 | F44: 8246.444781 | G44: 4195.986382 | H44: 2882.8224 | I44: 2574.12 | J44: 42 | K44: 8246.444781 | L44: 4195.986382 | M44: 2882.8224 | N44: 2574.12 | P44: 42 | Q44: 13336 | R44: 7883 | S44: 5272 | T44: 3725 | U44: 42 | V44: 13336 | W44: 7883 | X44: 5272 | Y44: 3725 | AB44: 42 | AC44: 11599.90172 | AD44: 6030.958859 | AE44: 4059.140573 | AF44: 3564.12343 | AG44: 42 | AH44: 11599.90172 | AI44: 6030.958859 | AJ44: 4059.140573 | AK44: 3564.12343 | AN44: 42 | AO44: 11649.40343 | AP44: 6723.982859 | AQ44: 4471.654859 | AR44: 3927.136001 | AS44: 42 | AT44: 11649.40343 | AU44: 6723.982859 | AV44: 4471.654859 | AW44: 3927.136001
E45: 43 | F45: 8431.448105 | G45: 4390.93651 | H45: 3093.393954 | I45: 2666.5392 | J45: 43 | K45: 8431.448105 | L45: 4390.93651 | M45: 3093.393954 | N45: 2666.5392 | P45: 43 | Q45: 13495 | R45: 8164 | S45: 5739 | T45: 3835 | U45: 43 | V45: 13495 | W45: 8164 | X45: 5739 | Y45: 3835 | AB45: 43 | AC45: 11847.41029 | AD45: 6270.217145 | AE45: 4339.650287 | AF45: 3646.626287 | AG45: 43 | AH45: 11847.41029 | AI45: 6270.217145 | AJ45: 4339.650287 | AK45: 3646.626287 | AN45: 43 | AO45: 11921.66286 | AP45: 6971.491431 | AQ45: 4867.668573 | AR45: 4273.648001 | AS45: 43 | AT45: 11921.66286 | AU45: 6971.491431 | AV45: 4867.668573 | AW45: 4273.648001
E46: 44 | F46: 8626.105052 | G46: 4585.706869 | H46: 3297.898084 | I46: 2767.236 | J46: 44 | K46: 8626.105052 | L46: 4585.706869 | M46: 3297.898084 | N46: 2767.236 | P46: 44 | Q46: 13664 | R46: 8466 | S46: 5951 | T46: 3934 | U46: 44 | V46: 13664 | W46: 8466 | X46: 5951 | Y46: 3934 | AB46: 44 | AC46: 12086.66858 | AD46: 6492.974859 | AE46: 4620.160001 | AF46: 3770.380573 | AG46: 44 | AH46: 12086.66858 | AI46: 6492.974859 | AJ46: 4620.160001 | AK46: 3770.380573 | AN46: 44 | AO46: 12004.16572 | AP46: 7152.997717 | AQ46: 5040.924573 | AR46: 4537.657144 | AS46: 44 | AT46: 12004.16572 | AU46: 7152.997717 | AV46: 5040.924573 | AW46: 4537.657144
E47: 45 | F47: 8832.939968 | G47: 4785.537716 | H47: 3512.809733 | I47: 2875.7328 | J47: 45 | K47: 8832.939968 | L47: 4785.537716 | M47: 3512.809733 | N47: 2875.7328 | P47: 45 | Q47: 13738 | R47: 8682 | S47: 6185 | T47: 4043 | U47: 45 | V47: 13738 | W47: 8682 | X47: 6185 | Y47: 4043 | AB47: 45 | AC47: 12375.42858 | AD47: 6765.234288 | AE47: 4867.668573 | AF47: 3918.885716 | AG47: 45 | AH47: 12375.42858 | AI47: 6765.234288 | AJ47: 4867.668573 | AK47: 3918.885716 | AN47: 45 | AO47: 12094.91886 | AP47: 7507.760002 | AQ47: 5247.181716 | AR47: 4710.913144 | AS47: 45 | AT47: 12094.91886 | AU47: 7507.760002 | AV47: 5247.181716 | AW47: 4710.913144
E48: 46 | F48: 9037.590414 | G48: 4969.508675 | H48: 3758.54052 | I48: 2995.566 | J48: 46 | K48: 9037.590414 | L48: 4969.508675 | M48: 3758.54052 | N48: 2995.566 | P48: 46 | Q48: 14361 | R48: 9147 | S48: 6641 | T48: 4229 | U48: 46 | V48: 14361 | W48: 9147 | X48: 6641 | Y48: 4229 | AB48: 46 | AC48: 12655.93829 | AD48: 7078.745145 | AE48: 5197.680002 | AF48: 4067.390858 | AG48: 46 | AH48: 12655.93829 | AI48: 7078.745145 | AJ48: 5197.680002 | AK48: 4067.390858 | AN48: 46 | AO48: 12622.93715 | AP48: 7854.272002 | AQ48: 5692.697145 | AR48: 5065.67543 | AS48: 46 | AT48: 12622.93715 | AU48: 7854.272002 | AV48: 5692.697145 | AW48: 5065.67543
E49: 47 | F49: 9246.854146 | G49: 5167.150619 | H49: 3964.863374 | I49: 3115.9296 | J49: 47 | K49: 9246.854146 | L49: 5167.150619 | M49: 3964.863374 | N49: 3115.9296 | P49: 47 | Q49: 15079 | R49: 9481 | S49: 6927 | T49: 4471 | U49: 47 | V49: 15079 | W49: 9481 | X49: 6927 | Y49: 4471 | AB49: 47 | AC49: 12903.44686 | AD49: 7425.257145 | AE49: 5502.940573 | AF49: 4257.14743 | AG49: 47 | AH49: 12903.44686 | AI49: 7425.257145 | AJ49: 5502.940573 | AK49: 4257.14743 | AN49: 47 | AO49: 13249.95886 | AP49: 8035.778288 | AQ49: 6006.208002 | AR49: 5238.93143 | AS49: 47 | AT49: 13249.95886 | AU49: 8035.778288 | AV49: 6006.208002 | AW49: 5238.93143
